Workbook

Sheet SUMMARY
B1: ="WEEK " & TEXT('Current week'!$M$3,"##") -> WEEK 26 | E1: ='Current week'!$D$3 -> 2021-10-03 | H1: WEEKLY WINNERS | J1: 1st PLACE - | K1: 4 | L1: 2nd PLACE - | M1: 1
B2: NAME | C2: W | D2: L | E2: PCT | F2: GB | I2: WEEK ENDING | J2: NAME | K2: PCT | L2: NAME | M2: PCT | O2: Number of Wins | T2: * Adds are for ties, +$1 months, and Season
B3: ='Current week'!C59 -> LARRY | C3: ='Current week'!D59 -> 23 | D3: ='Current week'!E59 -> 7 | E3: ='Current week'!F59 -> 0.7666666667 | F3: ='Current week'!G59 -> 0 | H3: 1 | I3: 2021-04-11 | J3: JOHN | K3: 0.5818181818 | L3: DIANE | M3: 0.5769230769 | P3: Wk 1st | Q3: Wk 2nd | R3: Mon 1st | S3: Mon 2nd | T3: Winnings | U3: Adds | V3: Total
B4: ='Current week'!C60 -> JIM T. | C4: ='Current week'!D60 -> 21 | D4: ='Current week'!E60 -> 9 | E4: ='Current week'!F60 -> 0.7 | F4: ='Current week'!G60 -> 2 | H4: =H3+1 -> 2 | I4: =I3+7 -> 2021-04-18 | J4: MIKE | K4: 0.6666666667 | L4: JEAN | M4: 0.6388888889 | O4: =UPDATE!$C$11 -> LARRY | P4: =COUNTIF($J$3:$J$28,O4) -> 6 | Q4: =COUNTIF($L$3:$L$28,O4) -> 4 | R4: =COUNTIF($J$33:$J$39,O4) -> 3 | S4: =COUNTIF($L$33:$L$38,O4) -> 0 | T4: =$K$1*P4+$M$1*Q4+$K$31*R4+$M$31*S4 -> 46 | U4: 1 | V4: =T4+U4 -> 47
B5: ='Current week'!C61 -> TIM | C5: ='Current week'!D61 -> 20 | D5: ='Current week'!E61 -> 10 | E5: ='Current week'!F61 -> 0.6666666667 | F5: ='Current week'!G61 -> 3 | H5: 3 | I5: =I4+7 -> 2021-04-25 | J5: JIM T. | K5: 0.6 | L5: MIKE | M5: 0.5714285714 | O5: =UPDATE!$C$5 -> MIKE | P5: 5 | Q5: 3 | R5: 0 | S5: 1 | T5: 25 | V5: 25
B6: ='Current week'!C62 -> DIANE | C6: ='Current week'!D62 -> 17 | D6: ='Current week'!E62 -> 13 | E6: ='Current week'!F62 -> 0.5666666667 | F6: ='Current week'!G62 -> 6 | H6: 4 | I6: 2021-05-02 | J6: TIM | K6: 0.5609756098 | L6: JIM T. | M6: 0.525 | O6: =UPDATE!$C$10 -> TIM | P6: 4 | Q6: 1 | R6: 0 | S6: 2 | T6: 21 | V6: 21
B7: ='Current week'!C63 -> JIM K. | C7: ='Current week'!D63 -> 17 | D7: ='Current week'!E63 -> 13 | E7: ='Current week'!F63 -> 0.5666666667 | F7: ='Current week'!G63 -> 6 | H7: 5 | I7: 2021-05-09 | J7: TIM | K7: 0.6315789474 | L7: DIANE | M7: 0.5263157895 | O7: =UPDATE!$C$8 -> JOHN | P7: 3 | Q7: 5 | R7: 0 | S7: 1 | T7: 19 | V7: 19
B8: ='Current week'!C64 -> JEAN | C8: ='Current week'!D64 -> 16 | D8: ='Current week'!E64 -> 14 | E8: ='Current week'!F64 -> 0.5333333333 | F8: ='Current week'!G64 -> 7 | H8: 6 | I8: 2021-05-16 | J8: JIM K. | K8: 0.6111111111 | L8: MIKE | M8: 0.5833333333 | O8: =UPDATE!$C$6 -> JIM T. | P8: 3 | Q8: 2 | R8: 0 | S8: 1 | T8: 16 | U8: 1 | V8: 17
B9: ='Current week'!C65 -> JOHN | C9: ='Current week'!D65 -> 15 | D9: ='Current week'!E65 -> 15 | E9: ='Current week'!F65 -> 0.5 | F9: ='Current week'!G65 -> 8 | H9: 7 | I9: 2021-05-23 | J9: LARRY | K9: 0.6756756757 | L9: JOHN | M9: 0.6285714286 | O9: =UPDATE!$C$7 -> JIM K. | P9: 3 | Q9: 1 | R9: 0 | S9: 0 | T9: 13 | V9: 13
B10: ='Current week'!C66 -> MIKE | C10: ='Current week'!D66 -> 12 | D10: ='Current week'!E66 -> 19 | E10: ='Current week'!F66 -> 0.3870967742 | F10: ='Current week'!G66 -> 11.5 | H10: 8 | I10: 2021-05-30 | J10: MIKE | K10: 0.7692307692 | L10: LARRY | M10: 0.6944444444 | O10: =UPDATE!$C$9 -> JEAN | P10: 1 | Q10: 3 | R10: 1 | S10: 0 | T10: 13 | V10: 13
B11: ='Current week'!C67 -> ----- | C11: ='Current week'!D67 -> 0 | D11: ='Current week'!E67 -> 30 | E11: ='Current week'!F67 -> 0 | F11: ='Current week'!G67 -> ----- | H11: 9 | I11: 2021-06-06 | J11: JIM T. | K11: 0.6111111111 | L11: LARRY | M11: 0.5897435897 | O11: =UPDATE!$C$12 -> DIANE | P11: 0 | Q11: 6 | R11: 1 | S11: 0 | T11: 12 | V11: 12
H12: 10 | I12: 2021-06-13 | J12: JIM K. | K12: 0.7878787879 | L12: LARRY | M12: 0.7222222222 | O12: =UPDATE!$C$13 -> ----- | P12: 0 | Q12: 0 | R12: 0 | S12: 0 | T12: 0 | V12: 0
B13: ="MONTH OF " & 'Current week'!$N$3 -> MONTH OF OCTOBER | H13: 11 | I13: 2021-06-20 | J13: LARRY | K13: 0.6315789474 | L13: JOHN | M13: 0.625 | O13: Total | P13: =SUM(P4:P12) -> 25 | Q13: 25 | R13: 5 | S13: 5 | T13: 165 | U13: 2 | V13: 167
B14: NAME | C14: W | D14: L | E14: PCT | F14: GB | H14: 12 | I14: 2021-06-27 | J14: MIKE | K14: 0.5833333333 | L14: LARRY | M14: 0.5675675676
B15: ='Current week'!C74 -> LARRY | C15: ='Current week'!D74 -> 110 | D15: ='Current week'!E74 -> 71 | E15: ='Current week'!F74 -> 0.6077348066 | F15: ='Current week'!G74 -> 0 | H15: 13 | I15: 2021-07-04 | J15: LARRY | K15: 0.7435897436 | L15: DIANE | M15: 0.6923076923
B16: ='Current week'!C75 -> JIM T. | C16: ='Current week'!D75 -> 108 | D16: ='Current week'!E75 -> 74 | E16: ='Current week'!F75 -> 0.5934065934 | F16: ='Current week'!G75 -> 2.5 | H16: 14 | I16: 2021-07-11 | J16: MIKE | K16: 0.5277777778 | L16: JOHN | M16: 0.5128205128
B17: ='Current week'!C76 -> TIM | C17: ='Current week'!D76 -> 107 | D17: ='Current week'!E76 -> 76 | E17: ='Current week'!F76 -> 0.5846994536 | F17: ='Current week'!G76 -> 4 | H17: 15 | I17: 2021-07-18 | J17: JOHN | K17: 0.6111111111 | L17: DIANE | M17: 0.6111111111
B18: ='Current week'!C77 -> DIANE | C18: ='Current week'!D77 -> 104 | D18: ='Current week'!E77 -> 78 | E18: ='Current week'!F77 -> 0.5714285714 | F18: ='Current week'!G77 -> 6.5 | H18: 16 | I18: 2021-07-25 | J18: JEAN | K18: 0.6388888889 | L18: MIKE | M18: 0.5897435897
B19: ='Current week'!C78 -> JEAN | C19: ='Current week'!D78 -> 102 | D19: ='Current week'!E78 -> 82 | E19: ='Current week'!F78 -> 0.5543478261 | F19: ='Current week'!G78 -> 9.5 | H19: 17 | I19: 2021-08-01 | J19: JOHN | K19: 0.5675675676 | L19: JEAN | M19: 0.5384615385 | O19: MONEY BOARD
B20: ='Current week'!C79 -> JIM K. | C20: ='Current week'!D79 -> 98 | D20: ='Current week'!E79 -> 81 | E20: ='Current week'!F79 -> 0.5474860335 | F20: ='Current week'!G79 -> 11 | H20: 18 | I20: 2021-08-08 | J20: LARRY | K20: 0.7222222222 | L20: TIM | M20: 0.7105263158 | O20: Name | P20: Winnings | Q20: Cost | R20: Profit | S20: Deposit | T20: BAL
B21: ='Current week'!C80 -> JOHN | C21: ='Current week'!D80 -> 99 | D21: ='Current week'!E80 -> 82 | E21: ='Current week'!F80 -> 0.546961326 | F21: ='Current week'!G80 -> 11 | H21: 19 | I21: 2021-08-15 | J21: JIM T. | K21: 0.6666666667 | L21: DIANE | M21: 0.6486486486 | O21: =O4 -> LARRY | P21: =V4 -> 47 | Q21: =IF(O21<>"-----",'Current week'!$M$3,0) -> 26 | R21: =IF(Q21<>0,P21-Q21,0) -> 21 | S21: =IF(O21<>"-----",26,0) -> 26 | T21: =R21+S21 -> 47
B22: ='Current week'!C81 -> MIKE | C22: ='Current week'!D81 -> 92 | D22: ='Current week'!E81 -> 94 | E22: ='Current week'!F81 -> 0.4946236559 | F22: ='Current week'!G81 -> 20.5 | H22: 20 | I22: 2021-08-22 | J22: LARRY | K22: 0.65 | L22: JOHN | M22: 0.6153846154 | O22: =O5 -> MIKE | P22: =V5 -> 25 | Q22: =IF(O22<>"-----",'Current week'!$M$3,0) -> 26 | R22: =IF(Q22<>0,P22-Q22,0) -> -1 | S22: =IF(O22<>"-----",26,0) -> 26 | T22: =R22+S22 -> 25
B23: ='Current week'!C82 -> ----- | C23: ='Current week'!D82 -> 0 | D23: ='Current week'!E82 -> 150 | E23: ='Current week'!F82 -> 0 | F23: ='Current week'!G82 -> ----- | H23: 21 | I23: 2021-08-29 | J23: TIM | K23: 0.6111111111 | L23: JOHN | M23: 0.6111111111 | O23: TIM | P23: 21 | Q23: =IF(O23<>"-----",'Current week'!$M$3,0) -> 26 | R23: -5 | S23: 26 | T23: 21
H24: 22 | I24: 2021-09-05 | J24: MIKE | K24: 0.6052631579 | L24: JIM K. | M24: 0.5945945946 | O24: JOHN | P24: 19 | Q24: =IF(O24<>"-----",'Current week'!$M$3,0) -> 26 | R24: -7 | S24: 26 | T24: 19
B25: =YEAR(TODAY()) -> 2022 | D25: SEASON | H25: 23 | I25: 2021-09-12 | J25: TIM | K25: 0.5555555556 | L25: JIM T. | M25: 0.5555555556 | O25: JIM T. | P25: 17 | Q25: =IF(O25<>"-----",'Current week'!$M$3,0) -> 26 | R25: -9 | S25: 26 | T25: 17
B26: NAME | C26: W | D26: L | E26: PCT | F26: GB | H26: 24 | I26: 2021-09-19 | J26: JIM K. | K26: 0.6216216216 | L26: DIANE | M26: 0.6216216216 | O26: JIM K. | P26: 13 | Q26: =IF(O26<>"-----",'Current week'!$M$3,0) -> 26 | R26: -13 | S26: 26 | T26: 13
B27: ='Current week'!C88 -> LARRY | C27: ='Current week'!D88 -> 560 | D27: ='Current week'!E88 -> 409 | E27: ='Current week'!F88 -> 0.5779153767 | F27: ='Current week'!G88 -> 0 | H27: 25 | I27: 2021-09-26 | J27: LARRY | K27: 0.6829268293 | L27: JEAN | M27: 0.619047619 | O27: JEAN | P27: 13 | Q27: =IF(O27<>"-----",'Current week'!$M$3,0) -> 26 | R27: -13 | S27: 26 | T27: 13
B28: ='Current week'!C89 -> JIM T. | C28: ='Current week'!D89 -> 541 | D28: ='Current week'!E89 -> 427 | E28: ='Current week'!F89 -> 0.5588842975 | F28: ='Current week'!G89 -> 18.5 | H28: 26 | I28: 2021-10-03 | O28: DIANE | P28: 12 | Q28: =IF(O28<>"-----",'Current week'!$M$3,0) -> 26 | R28: -14 | S28: =IF(O28<>"-----",26,0) -> 26 | T28: 12
B29: ='Current week'!C90 -> TIM | C29: ='Current week'!D90 -> 531 | D29: ='Current week'!E90 -> 445 | E29: ='Current week'!F90 -> 0.544057377 | F29: ='Current week'!G90 -> 32.5 | O29: ----- | P29: 0 | Q29: =IF(O29<>"-----",'Current week'!$M$3,0) -> 0 | R29: 0 | S29: =IF(O29<>"-----",26,0) -> 0 | T29: 0
B30: ='Current week'!C91 -> DIANE | C30: ='Current week'!D91 -> 519 | D30: ='Current week'!E91 -> 447 | E30: ='Current week'!F91 -> 0.5372670807 | F30: ='Current week'!G91 -> 39.5 | O30: Total | P30: =SUM(P21:P29) -> 167 | Q30: =SUM(Q21:Q29) -> 208 | R30: =SUM(R21:R29) -> -41 | S30: =SUM(S21:S29) -> 208 | T30: =SUM(T21:T29) -> 167
B31: ='Current week'!C92 -> JOHN | C31: ='Current week'!D92 -> 511 | D31: ='Current week'!E92 -> 457 | E31: ='Current week'!F92 -> 0.527892562 | F31: ='Current week'!G92 -> 48.5 | H31: MONTHLY WINNERS | J31: 1st PLACE | K31: 6 | L31: 2nd PLACE | M31: 2
B32: ='Current week'!C93 -> JIM K. | C32: ='Current week'!D93 -> 506 | D32: ='Current week'!E93 -> 453 | E32: ='Current week'!F93 -> 0.527632951 | F32: ='Current week'!G93 -> 49 | I32: MONTH ENDING | J32: NAME | K32: $ | L32: NAME | M32: $
B33: ='Current week'!C94 -> JEAN | C33: ='Current week'!D94 -> 503 | D33: ='Current week'!E94 -> 456 | E33: ='Current week'!F94 -> 0.5245046924 | F33: ='Current week'!G94 -> 52 | H33: 1 | I33: =I6 -> 2021-05-02 | J33: DIANE | K33: 6 | L33: TIM | M33: 2
B34: ='Current week'!C95 -> MIKE | C34: ='Current week'!D95 -> 504 | D34: ='Current week'!E95 -> 465 | E34: ='Current week'!F95 -> 0.520123839 | F34: ='Current week'!G95 -> 56 | H34: 2 | I34: =I10 -> 2021-05-30 | J34: LARRY | K34: 6 | L34: MIKE | M34: 2
B35: ='Current week'!C96 -> ----- | C35: ='Current week'!D96 -> 0 | D35: ='Current week'!E96 -> 790 | E35: ='Current week'!F96 -> 0 | F35: ='Current week'!G96 -> ----- | H35: 3 | I35: =I15 -> 2021-07-04 | J35: LARRY | K35: 7 | L35: JIM T. | M35: 3
H36: 4 | I36: =I19 -> 2021-08-01 | J36: JEAN | K36: 6 | L36: JOHN | M36: 2
H37: 5 | I37: =I23 -> 2021-08-29 | J37: LARRY | K37: 6 | L37: TIM | M37: 2
H38: 6 | I38: =I28 -> 2021-10-03
I40: SEASON LONG WINNERS
H41: 18 | I41: 1st Place
H42: 8 | I42: 2nd Place
A120: 8 | B120: WEEKLY POOL | E120: ='Current week'!$D$3 -> 2021-10-03 | O120: Number of Wins | T120: * Adds are for ties, $7/$3 monthlys, and Season
B121: NAME | C121: W | D121: L | E121: PCT | F121: GB | P121: Wk 1st | Q121: Wk 2nd | R121: Mon 1st | S121: Mon 2nd | T121: Winnings | U121: Adds | V121: Total
B122: ='Current week'!C178 -> 0 | C122: ='Current week'!D178 -> 0 | D122: ='Current week'!E178 -> 0 | E122: ='Current week'!F178 -> 0 | F122: ='Current week'!G178 -> 0 | O122: =UPDATE!$C$11 -> LARRY | P122: =COUNTIF($J$3:$J$28,O122) -> 6 | Q122: =COUNTIF($L$3:$L$28,O122) -> 4 | R122: =COUNTIF($J$33:$J$39,O122) -> 3 | S122: =COUNTIF($L$33:$L$38,O122) -> 0 | T122: =4*P122+2*Q122+6*R122+2*S122 -> 50 | V122: =T122+U122 -> 50
B123: ='Current week'!C179 -> 0 | C123: ='Current week'!D179 -> 0 | D123: ='Current week'!E179 -> 0 | E123: ='Current week'!F179 -> 0 | F123: ='Current week'!G179 -> 0 | O123: =UPDATE!$C$13 -> ----- | P123: 0 | Q123: 0 | R123: 0 | S123: 0 | T123: 0 | V123: 0
B124: ='Current week'!C180 -> 0 | C124: ='Current week'!D180 -> 0 | D124: ='Current week'!E180 -> 0 | E124: ='Current week'!F180 -> 0 | F124: ='Current week'!G180 -> 0 | O124: =UPDATE!$C$12 -> DIANE | P124: 0 | Q124: 6 | R124: 1 | S124: 0 | T124: 18 | V124: 18
B125: ='Current week'!C181 -> 0 | C125: ='Current week'!D181 -> 0 | D125: ='Current week'!E181 -> 0 | E125: ='Current week'!F181 -> 0 | F125: ='Current week'!G181 -> 0 | O125: =UPDATE!$C$5 -> MIKE | P125: 5 | Q125: 3 | R125: 0 | S125: 1 | T125: 28 | V125: 28
B126: ='Current week'!C182 -> 0 | C126: ='Current week'!D182 -> 0 | D126: ='Current week'!E182 -> 0 | E126: ='Current week'!F182 -> 0 | F126: ='Current week'!G182 -> 0 | O126: =UPDATE!$C$9 -> JEAN | P126: 1 | Q126: 3 | R126: 1 | S126: 0 | T126: 16 | V126: 16
B127: ='Current week'!C183 -> 0 | C127: ='Current week'!D183 -> 0 | D127: ='Current week'!E183 -> 0 | E127: ='Current week'!F183 -> 0 | F127: ='Current week'!G183 -> 0 | O127: =UPDATE!$C$6 -> JIM T. | P127: 3 | Q127: 2 | R127: 0 | S127: 1 | T127: 18 | V127: 18
B128: ='Current week'!C184 -> 0 | C128: ='Current week'!D184 -> 0 | D128: ='Current week'!E184 -> 0 | E128: ='Current week'!F184 -> 0 | F128: ='Current week'!G184 -> 0 | O128: =UPDATE!$C$10 -> TIM | P128: 4 | Q128: 1 | R128: 0 | S128: 2 | T128: 22 | V128: 22
B129: ='Current week'!C185 -> 0 | C129: ='Current week'!D185 -> 0 | D129: ='Current week'!E185 -> 0 | E129: ='Current week'!F185 -> 0 | F129: ='Current week'!G185 -> 0 | O129: =UPDATE!$C$7 -> JIM K. | P129: 3 | Q129: 1 | R129: 0 | S129: 0 | T129: 14 | V129: 14
O130: Total | P130: =SUM(P122:P129) -> 22 | Q130: =SUM(Q122:Q129) -> 20 | R130: 5 | S130: 4 | T130: 166 | U130: 0 | V130: 166
B131: ="MONTH OF " & 'Current week'!$N$3 -> MONTH OF OCTOBER
B132: NAME | C132: W | D132: L | E132: PCT | F132: GB
B133: ='Current week'!C191 -> 0 | C133: ='Current week'!D191 -> 0 | D133: ='Current week'!E191 -> 0 | E133: ='Current week'!F191 -> 0 | F133: ='Current week'!G191 -> 0
B134: ='Current week'!C192 -> 0 | C134: ='Current week'!D192 -> 0 | D134: ='Current week'!E192 -> 0 | E134: ='Current week'!F192 -> 0 | F134: ='Current week'!G192 -> 0
B135: ='Current week'!C193 -> 0 | C135: ='Current week'!D193 -> 0 | D135: ='Current week'!E193 -> 0 | E135: ='Current week'!F193 -> 0 | F135: ='Current week'!G193 -> 0
B136: ='Current week'!C194 -> 0 | C136: ='Current week'!D194 -> 0 | D136: ='Current week'!E194 -> 0 | E136: ='Current week'!F194 -> 0 | F136: ='Current week'!G194 -> 0
B137: ='Current week'!C195 -> 0 | C137: ='Current week'!D195 -> 0 | D137: ='Current week'!E195 -> 0 | E137: ='Current week'!F195 -> 0 | F137: ='Current week'!G195 -> 0 | O137: MONEY BOARD
B138: ='Current week'!C196 -> 0 | C138: ='Current week'!D196 -> 0 | D138: ='Current week'!E196 -> 0 | E138: ='Current week'!F196 -> 0 | F138: ='Current week'!G196 -> 0 | O138: Name | P138: Winnings | Q138: Cost | R138: Profit | S138: Deposit | T138: BAL
B139: ='Current week'!C197 -> 0 | C139: ='Current week'!D197 -> 0 | D139: ='Current week'!E197 -> 0 | E139: ='Current week'!F197 -> 0 | F139: ='Current week'!G197 -> 0 | O139: =O122 -> LARRY | P139: =V122 -> 50 | Q139: ='Current week'!$M$3 -> 26 | R139: =P139-Q139 -> 24 | S139: 26 | T139: =R139+S139 -> 50
B140: ='Current week'!C198 -> 0 | C140: ='Current week'!D198 -> 0 | D140: ='Current week'!E198 -> 0 | E140: ='Current week'!F198 -> 0 | F140: ='Current week'!G198 -> 0 | O140: =O123 -> ----- | P140: 0 | Q140: ='Current week'!$M$3 -> 26 | R140: =P140-Q140 -> -26 | S140: 26 | T140: =R140+S140 -> 0
O141: DIANE | P141: 18 | Q141: ='Current week'!$M$3 -> 26 | R141: -8 | S141: 26 | T141: 18
B142: =YEAR(TODAY()) -> 2022 | D142: SEASON | O142: MIKE | P142: 28 | Q142: ='Current week'!$M$3 -> 26 | R142: 2 | S142: 26 | T142: 28
B143: NAME | C143: W | D143: L | E143: PCT | F143: GB | O143: JEAN | P143: 16 | Q143: ='Current week'!$M$3 -> 26 | R143: -10 | S143: 26 | T143: 16
B144: ='Current week'!C203 -> 0 | C144: ='Current week'!D203 -> 0 | D144: ='Current week'!E203 -> 0 | E144: ='Current week'!F203 -> 0 | F144: ='Current week'!G203 -> 0 | O144: JIM T. | P144: 18 | Q144: ='Current week'!$M$3 -> 26 | R144: -8 | S144: 26 | T144: 18
B145: ='Current week'!C204 -> 0 | C145: ='Current week'!D204 -> 0 | D145: ='Current week'!E204 -> 0 | E145: ='Current week'!F204 -> 0 | F145: ='Current week'!G204 -> 0 | O145: TIM | P145: 22 | Q145: ='Current week'!$M$3 -> 26 | R145: -4 | S145: 26 | T145: 22
B146: ='Current week'!C205 -> 0 | C146: ='Current week'!D205 -> 0 | D146: ='Current week'!E205 -> 0 | E146: ='Current week'!F205 -> 0 | F146: ='Current week'!G205 -> 0 | O146: JIM K. | P146: 14 | Q146: ='Current week'!$M$3 -> 26 | R146: -12 | S146: 26 | T146: 14
B147: ='Current week'!C206 -> 0 | C147: ='Current week'!D206 -> 0 | D147: ='Current week'!E206 -> 0 | E147: ='Current week'!F206 -> 0 | F147: ='Current week'!G206 -> 0 | O147: Total | P147: =SUM(P139:P146) -> 166 | Q147: =SUM(Q139:Q146) -> 208 | R147: =SUM(R139:R146) -> -42 | S147: =SUM(S139:S146) -> 208 | T147: =SUM(T139:T146) -> 166
B148: ='Current week'!C207 -> 0 | C148: ='Current week'!D207 -> 0 | D148: ='Current week'!E207 -> 0 | E148: ='Current week'!F207 -> 0 | F148: ='Current week'!G207 -> 0
B149: ='Current week'!C208 -> 0 | C149: ='Current week'!D208 -> 0 | D149: ='Current week'!E208 -> 0 | E149: ='Current week'!F208 -> 0 | F149: ='Current week'!G208 -> 0
B150: ='Current week'!C209 -> 0 | C150: ='Current week'!D209 -> 0 | D150: ='Current week'!E209 -> 0 | E150: ='Current week'!F209 -> 0 | F150: ='Current week'!G209 -> 0
B151: ='Current week'!C210 -> 0 | C151: ='Current week'!D210 -> 0 | D151: ='Current week'!E210 -> 0 | E151: ='Current week'!F210 -> 0 | F151: ='Current week'!G210 -> 0
A154: 9 | B154: WEEKLY POOL | E154: ='Current week'!$D$3 -> 2021-10-03 | O154: Number of Wins | T154: * Adds are for ties, $7/$3 monthlys, and Season
B155: NAME | C155: W | D155: L | E155: PCT | F155: GB | P155: Wk 1st | Q155: Wk 2nd | R155: Mon 1st | S155: Mon 2nd | T155: Winnings | U155: Adds | V155: Total
B156: ='Current week'!C212 -> 0 | C156: ='Current week'!D212 -> 0 | D156: ='Current week'!E212 -> 0 | E156: ='Current week'!F212 -> 0 | F156: ='Current week'!G212 -> 0 | O156: =UPDATE!$C$11 -> LARRY | P156: =COUNTIF($J$3:$J$28,O156) -> 6 | Q156: =COUNTIF($L$3:$L$28,O156) -> 4 | R156: =COUNTIF($J$33:$J$39,O156) -> 3 | S156: =COUNTIF($L$33:$L$38,O156) -> 0 | T156: =4*P156+2*Q156+6*R156+2*S156 -> 50 | V156: =T156+U156 -> 50
B157: ='Current week'!C213 -> 0 | C157: ='Current week'!D213 -> 0 | D157: ='Current week'!E213 -> 0 | E157: ='Current week'!F213 -> 0 | F157: ='Current week'!G213 -> 0 | O157: =UPDATE!$C$13 -> ----- | P157: 0 | Q157: 0 | R157: 0 | S157: 0 | T157: 0 | V157: 0
B158: ='Current week'!C214 -> 0 | C158: ='Current week'!D214 -> 0 | D158: ='Current week'!E214 -> 0 | E158: ='Current week'!F214 -> 0 | F158: ='Current week'!G214 -> 0 | O158: =UPDATE!$C$12 -> DIANE | P158: 0 | Q158: 6 | R158: 1 | S158: 0 | T158: 18 | V158: 18
B159: ='Current week'!C215 -> 0 | C159: ='Current week'!D215 -> 0 | D159: ='Current week'!E215 -> 0 | E159: ='Current week'!F215 -> 0 | F159: ='Current week'!G215 -> 0 | O159: =UPDATE!$C$5 -> MIKE | P159: 5 | Q159: 3 | R159: 0 | S159: 1 | T159: 28 | V159: 28
B160: ='Current week'!C216 -> 0 | C160: ='Current week'!D216 -> 0 | D160: ='Current week'!E216 -> 0 | E160: ='Current week'!F216 -> 0 | F160: ='Current week'!G216 -> 0 | O160: =UPDATE!$C$9 -> JEAN | P160: 1 | Q160: 3 | R160: 1 | S160: 0 | T160: 16 | V160: 16
B161: ='Current week'!C217 -> 0 | C161: ='Current week'!D217 -> 0 | D161: ='Current week'!E217 -> 0 | E161: ='Current week'!F217 -> 0 | F161: ='Current week'!G217 -> 0 | O161: =UPDATE!$C$6 -> JIM T. | P161: 3 | Q161: 2 | R161: 0 | S161: 1 | T161: 18 | V161: 18
B162: ='Current week'!C218 -> 0 | C162: ='Current week'!D218 -> 0 | D162: ='Current week'!E218 -> 0 | E162: ='Current week'!F218 -> 0 | F162: ='Current week'!G218 -> 0 | O162: =UPDATE!$C$10 -> TIM | P162: 4 | Q162: 1 | R162: 0 | S162: 2 | T162: 22 | V162: 22
B163: ='Current week'!C219 -> 0 | C163: ='Current week'!D219 -> 0 | D163: ='Current week'!E219 -> 0 | E163: ='Current week'!F219 -> 0 | F163: ='Current week'!G219 -> 0 | O163: =UPDATE!$C$7 -> JIM K. | P163: 3 | Q163: 1 | R163: 0 | S163: 0 | T163: 14 | V163: 14
B164: ='Current week'!C220 -> 0 | C164: ='Current week'!D220 -> 0 | D164: ='Current week'!E220 -> 0 | E164: ='Current week'!F220 -> 0 | F164: ='Current week'!G220 -> 0 | O164: =UPDATE!$C$8 -> JOHN | P164: =COUNTIF($J$3:$J$28,O164) -> 3 | Q164: =COUNTIF($L$3:$L$28,O164) -> 5 | R164: =COUNTIF($J$33:$J$39,O164) -> 0 | S164: =COUNTIF($L$33:$L$38,O164) -> 1 | T164: =4*P164+2*Q164+6*R164+2*S164 -> 24 | V164: =T164+U164 -> 24
O165: Total | P165: =SUM(P156:P164) -> 25 | Q165: =SUM(Q156:Q164) -> 25 | R165: 5 | S165: 5 | T165: 190 | U165: 0 | V165: 190
B166: ="MONTH OF " & 'Current week'!$N$3 -> MONTH OF OCTOBER
B167: NAME | C167: W | D167: L | E167: PCT | F167: GB
B168: ='Current week'!C225 -> 0 | C168: ='Current week'!D225 -> 0 | D168: ='Current week'!E225 -> 0 | E168: ='Current week'!F225 -> 0 | F168: ='Current week'!G225 -> 0
B169: ='Current week'!C226 -> 0 | C169: ='Current week'!D226 -> 0 | D169: ='Current week'!E226 -> 0 | E169: ='Current week'!F226 -> 0 | F169: ='Current week'!G226 -> 0
B170: ='Current week'!C227 -> 0 | C170: ='Current week'!D227 -> 0 | D170: ='Current week'!E227 -> 0 | E170: ='Current week'!F227 -> 0 | F170: ='Current week'!G227 -> 0
B171: ='Current week'!C228 -> 0 | C171: ='Current week'!D228 -> 0 | D171: ='Current week'!E228 -> 0 | E171: ='Current week'!F228 -> 0 | F171: ='Current week'!G228 -> 0 | O171: MONEY BOARD
B172: ='Current week'!C229 -> 0 | C172: ='Current week'!D229 -> 0 | D172: ='Current week'!E229 -> 0 | E172: ='Current week'!F229 -> 0 | F172: ='Current week'!G229 -> 0 | O172: Name | P172: Winnings | Q172: Cost | R172: Profit | S172: Deposit | T172: BAL
B173: ='Current week'!C230 -> 0 | C173: ='Current week'!D230 -> 0 | D173: ='Current week'!E230 -> 0 | E173: ='Current week'!F230 -> 0 | F173: ='Current week'!G230 -> 0 | O173: =O156 -> LARRY | P173: =V156 -> 50 | Q173: ='Current week'!$M$3 -> 26 | R173: =P173-Q173 -> 24 | S173: 26 | T173: =R173+S173 -> 50
B174: ='Current week'!C231 -> 0 | C174: ='Current week'!D231 -> 0 | D174: ='Current week'!E231 -> 0 | E174: ='Current week'!F231 -> 0 | F174: ='Current week'!G231 -> 0 | O174: =O157 -> ----- | P174: 0 | Q174: ='Current week'!$M$3 -> 26 | R174: =P174-Q174 -> -26 | S174: 26 | T174: =R174+S174 -> 0
B175: ='Current week'!C232 -> 0 | C175: ='Current week'!D232 -> 0 | D175: ='Current week'!E232 -> 0 | E175: ='Current week'!F232 -> 0 | F175: ='Current week'!G232 -> 0 | O175: DIANE | P175: 18 | Q175: ='Current week'!$M$3 -> 26 | R175: -8 | S175: 26 | T175: 18
B176: ='Current week'!C233 -> 0 | C176: ='Current week'!D233 -> 0 | D176: ='Current week'!E233 -> 0 | E176: ='Current week'!F233 -> 0 | F176: ='Current week'!G233 -> 0 | O176: MIKE | P176: 28 | Q176: ='Current week'!$M$3 -> 26 | R176: 2 | S176: 26 | T176: 28
O177: JEAN | P177: 16 | Q177: ='Current week'!$M$3 -> 26 | R177: -10 | S177: 26 | T177: 16
B178: =YEAR(TODAY()) -> 2022 | D178: SEASON | O178: JIM T. | P178: 18 | Q178: ='Current week'!$M$3 -> 26 | R178: -8 | S178: 26 | T178: 18
B179: NAME | C179: W | D179: L | E179: PCT | F179: GB | O179: TIM | P179: 22 | Q179: ='Current week'!$M$3 -> 26 | R179: -4 | S179: 26 | T179: 22
B180: ='Current week'!C237 -> 0 | C180: ='Current week'!D237 -> 0 | D180: ='Current week'!E237 -> 0 | E180: ='Current week'!F237 -> 0 | F180: ='Current week'!G237 -> 0 | O180: JIM K. | P180: 14 | Q180: ='Current week'!$M$3 -> 26 | R180: -12 | S180: 26 | T180: 14
B181: ='Current week'!C238 -> 0 | C181: ='Current week'!D238 -> 0 | D181: ='Current week'!E238 -> 0 | E181: ='Current week'!F238 -> 0 | F181: ='Current week'!G238 -> 0 | O181: JOHN | P181: =V164 -> 24 | Q181: ='Current week'!$M$3 -> 26 | R181: =P181-Q181 -> -2 | S181: 26 | T181: =R181+S181 -> 24
B182: ='Current week'!C239 -> 0 | C182: ='Current week'!D239 -> 0 | D182: ='Current week'!E239 -> 0 | E182: ='Current week'!F239 -> 0 | F182: ='Current week'!G239 -> 0 | O182: Total | P182: =SUM(P173:P181) -> 190 | Q182: =SUM(Q173:Q181) -> 234 | R182: =SUM(R173:R181) -> -44 | S182: =SUM(S173:S181) -> 234 | T182: =SUM(T173:T181) -> 190
B183: ='Current week'!C240 -> 0 | C183: ='Current week'!D240 -> 0 | D183: ='Current week'!E240 -> 0 | E183: ='Current week'!F240 -> 0 | F183: ='Current week'!G240 -> 0
B184: ='Current week'!C241 -> 0 | C184: ='Current week'!D241 -> 0 | D184: ='Current week'!E241 -> 0 | E184: ='Current week'!F241 -> 0 | F184: ='Current week'!G241 -> 0
B185: ='Current week'!C242 -> 0 | C185: ='Current week'!D242 -> 0 | D185: ='Current week'!E242 -> 0 | E185: ='Current week'!F242 -> 0 | F185: ='Current week'!G242 -> 0
B186: ='Current week'!C243 -> 0 | C186: ='Current week'!D243 -> 0 | D186: ='Current week'!E243 -> 0 | E186: ='Current week'!F243 -> 0 | F186: ='Current week'!G243 -> 0
B187: ='Current week'!C244 -> 0 | C187: ='Current week'!D244 -> 0 | D187: ='Current week'!E244 -> 0 | E187: ='Current week'!F244 -> 0 | F187: ='Current week'!G244 -> 0
B188: ='Current week'!C245 -> 0 | C188: ='Current week'!D245 -> 0 | D188: ='Current week'!E245 -> 0 | E188: ='Current week'!F245 -> 0 | F188: ='Current week'!G245 -> 0
A191: 10 | B191: WEEKLY POOL | E191: ='Current week'!$D$3 -> 2021-10-03 | O191: Number of Wins | T191: * Adds are for ties, $7/$3 monthlys, and Season
B192: NAME | C192: W | D192: L | E192: PCT | F192: GB | P192: Wk 1st | Q192: Wk 2nd | R192: Mon 1st | S192: Mon 2nd | T192: Winnings | U192: Adds | V192: Total
B193: ='Current week'!C249 -> 0 | C193: ='Current week'!D249 -> 0 | D193: ='Current week'!E249 -> 0 | E193: ='Current week'!F249 -> 0 | F193: ='Current week'!G249 -> 0 | O193: =UPDATE!$C$11 -> LARRY | P193: =COUNTIF($J$3:$J$28,O193) -> 6 | Q193: =COUNTIF($L$3:$L$28,O193) -> 4 | R193: =COUNTIF($J$33:$J$39,O193) -> 3 | S193: =COUNTIF($L$33:$L$38,O193) -> 0 | T193: =4*P193+2*Q193+6*R193+2*S193 -> 50 | V193: =T193+U193 -> 50
B194: ='Current week'!C250 -> 0 | C194: ='Current week'!D250 -> 0 | D194: ='Current week'!E250 -> 0 | E194: ='Current week'!F250 -> 0 | F194: ='Current week'!G250 -> 0 | O194: =UPDATE!$C$13 -> ----- | P194: 0 | Q194: 0 | R194: 0 | S194: 0 | T194: 0 | V194: 0
B195: ='Current week'!C251 -> 0 | C195: ='Current week'!D251 -> 0 | D195: ='Current week'!E251 -> 0 | E195: ='Current week'!F251 -> 0 | F195: ='Current week'!G251 -> 0 | O195: =UPDATE!$C$12 -> DIANE | P195: 0 | Q195: 6 | R195: 1 | S195: 0 | T195: 18 | V195: 18
B196: ='Current week'!C252 -> 0 | C196: ='Current week'!D252 -> 0 | D196: ='Current week'!E252 -> 0 | E196: ='Current week'!F252 -> 0 | F196: ='Current week'!G252 -> 0 | O196: =UPDATE!$C$5 -> MIKE | P196: 5 | Q196: 3 | R196: 0 | S196: 1 | T196: 28 | V196: 28
B197: ='Current week'!C253 -> 0 | C197: ='Current week'!D253 -> 0 | D197: ='Current week'!E253 -> 0 | E197: ='Current week'!F253 -> 0 | F197: ='Current week'!G253 -> 0 | O197: =UPDATE!$C$9 -> JEAN | P197: 1 | Q197: 3 | R197: 1 | S197: 0 | T197: 16 | V197: 16
B198: ='Current week'!C254 -> 0 | C198: ='Current week'!D254 -> 0 | D198: ='Current week'!E254 -> 0 | E198: ='Current week'!F254 -> 0 | F198: ='Current week'!G254 -> 0 | O198: =UPDATE!$C$6 -> JIM T. | P198: 3 | Q198: 2 | R198: 0 | S198: 1 | T198: 18 | V198: 18
B199: ='Current week'!C255 -> 0 | C199: ='Current week'!D255 -> 0 | D199: ='Current week'!E255 -> 0 | E199: ='Current week'!F255 -> 0 | F199: ='Current week'!G255 -> 0 | O199: =UPDATE!$C$10 -> TIM | P199: 4 | Q199: 1 | R199: 0 | S199: 2 | T199: 22 | V199: 22
B200: ='Current week'!C256 -> 0 | C200: ='Current week'!D256 -> 0 | D200: ='Current week'!E256 -> 0 | E200: ='Current week'!F256 -> 0 | F200: ='Current week'!G256 -> 0 | O200: =UPDATE!$C$7 -> JIM K. | P200: 3 | Q200: 1 | R200: 0 | S200: 0 | T200: 14 | V200: 14
B201: ='Current week'!C257 -> 0 | C201: ='Current week'!D257 -> 0 | D201: ='Current week'!E257 -> 0 | E201: ='Current week'!F257 -> 0 | F201: ='Current week'!G257 -> 0 | O201: =UPDATE!$C$8 -> JOHN | P201: 3 | Q201: 5 | R201: 0 | S201: 1 | T201: 24 | V201: 24
B202: ='Current week'!C258 -> 0 | C202: ='Current week'!D258 -> 0 | D202: ='Current week'!E258 -> 0 | E202: ='Current week'!F258 -> 0 | F202: ='Current week'!G258 -> 0 | O202: =UPDATE!$C$14 -> 0 | P202: =COUNTIF($J$3:$J$28,O202) -> 0 | Q202: =COUNTIF($L$3:$L$28,O202) -> 0 | R202: =COUNTIF($J$33:$J$39,O202) -> 0 | S202: =COUNTIF($L$33:$L$38,O202) -> 0 | T202: =4*P202+2*Q202+6*R202+2*S202 -> 0 | V202: =T202+U202 -> 0
O203: Total | P203: =SUM(P193:P202) -> 25 | Q203: =SUM(Q193:Q202) -> 25 | R203: 5 | S203: 5 | T203: 190 | U203: 0 | V203: 190
B204: ="MONTH OF " & 'Current week'!$N$3 -> MONTH OF OCTOBER
B205: NAME | C205: W | D205: L | E205: PCT | F205: GB
B206: ='Current week'!C262 -> 0 | C206: ='Current week'!D262 -> 0 | D206: ='Current week'!E262 -> 0 | E206: ='Current week'!F262 -> 0 | F206: ='Current week'!G262 -> 0
B207: ='Current week'!C263 -> 0 | C207: ='Current week'!D263 -> 0 | D207: ='Current week'!E263 -> 0 | E207: ='Current week'!F263 -> 0 | F207: ='Current week'!G263 -> 0
B208: ='Current week'!C264 -> 0 | C208: ='Current week'!D264 -> 0 | D208: ='Current week'!E264 -> 0 | E208: ='Current week'!F264 -> 0 | F208: ='Current week'!G264 -> 0 | O208: MONEY BOARD
B209: ='Current week'!C265 -> 0 | C209: ='Current week'!D265 -> 0 | D209: ='Current week'!E265 -> 0 | E209: ='Current week'!F265 -> 0 | F209: ='Current week'!G265 -> 0 | O209: Name | P209: Winnings | Q209: Cost | R209: Profit | S209: Deposit | T209: BAL
B210: ='Current week'!C266 -> 0 | C210: ='Current week'!D266 -> 0 | D210: ='Current week'!E266 -> 0 | E210: ='Current week'!F266 -> 0 | F210: ='Current week'!G266 -> 0 | O210: =O193 -> LARRY | P210: =V193 -> 50 | Q210: ='Current week'!$M$3 -> 26 | R210: =P210-Q210 -> 24 | S210: 26 | T210: =R210+S210 -> 50
B211: ='Current week'!C267 -> 0 | C211: ='Current week'!D267 -> 0 | D211: ='Current week'!E267 -> 0 | E211: ='Current week'!F267 -> 0 | F211: ='Current week'!G267 -> 0 | O211: =O194 -> ----- | P211: 0 | Q211: ='Current week'!$M$3 -> 26 | R211: =P211-Q211 -> -26 | S211: 26 | T211: =R211+S211 -> 0
B212: ='Current week'!C268 -> 0 | C212: ='Current week'!D268 -> 0 | D212: ='Current week'!E268 -> 0 | E212: ='Current week'!F268 -> 0 | F212: ='Current week'!G268 -> 0 | O212: DIANE | P212: 18 | Q212: ='Current week'!$M$3 -> 26 | R212: -8 | S212: 26 | T212: 18
B213: ='Current week'!C269 -> 0 | C213: ='Current week'!D269 -> 0 | D213: ='Current week'!E269 -> 0 | E213: ='Current week'!F269 -> 0 | F213: ='Current week'!G269 -> 0 | O213: MIKE | P213: 28 | Q213: ='Current week'!$M$3 -> 26 | R213: 2 | S213: 26 | T213: 28
B214: ='Current week'!C270 -> 0 | C214: ='Current week'!D270 -> 0 | D214: ='Current week'!E270 -> 0 | E214: ='Current week'!F270 -> 0 | F214: ='Current week'!G270 -> 0 | O214: JEAN | P214: 16 | Q214: ='Current week'!$M$3 -> 26 | R214: -10 | S214: 26 | T214: 16
B215: ='Current week'!C271 -> 0 | C215: ='Current week'!D271 -> 0 | D215: ='Current week'!E271 -> 0 | E215: ='Current week'!F271 -> 0 | F215: ='Current week'!G271 -> 0 | O215: JIM T. | P215: 18 | Q215: ='Current week'!$M$3 -> 26 | R215: -8 | S215: 26 | T215: 18
O216: TIM | P216: 22 | Q216: ='Current week'!$M$3 -> 26 | R216: -4 | S216: 26 | T216: 22
B217: =YEAR(TODAY()) -> 2022 | D217: SEASON | O217: JIM K. | P217: 14 | Q217: ='Current week'!$M$3 -> 26 | R217: -12 | S217: 26 | T217: 14
B218: NAME | C218: W | D218: L | E218: PCT | F218: GB | O218: JOHN | P218: 24 | Q218: ='Current week'!$M$3 -> 26 | R218: -2 | S218: 26 | T218: 24
B219: ='Current week'!C274 -> 0 | C219: ='Current week'!D274 -> 0 | D219: ='Current week'!E274 -> 0 | E219: ='Current week'!F274 -> 0 | F219: ='Current week'!G274 -> 0 | O219: 0 | P219: =V202 -> 0 | Q219: ='Current week'!$M$3 -> 26 | R219: =P219-Q219 -> -26 | S219: 26 | T219: =R219+S219 -> 0
B220: ='Current week'!C275 -> 0 | C220: ='Current week'!D275 -> 0 | D220: ='Current week'!E275 -> 0 | E220: ='Current week'!F275 -> 0 | F220: ='Current week'!G275 -> 0 | O220: Total | P220: =SUM(P210:P219) -> 190 | Q220: =SUM(Q210:Q219) -> 260 | R220: =SUM(R210:R219) -> -70 | S220: =SUM(S210:S219) -> 260 | T220: =SUM(T210:T219) -> 190
B221: ='Current week'!C276 -> 0 | C221: ='Current week'!D276 -> 0 | D221: ='Current week'!E276 -> 0 | E221: ='Current week'!F276 -> 0 | F221: ='Current week'!G276 -> 0
B222: ='Current week'!C277 -> 0 | C222: ='Current week'!D277 -> 0 | D222: ='Current week'!E277 -> 0 | E222: ='Current week'!F277 -> 0 | F222: ='Current week'!G277 -> 0
B223: ='Current week'!C278 -> 0 | C223: ='Current week'!D278 -> 0 | D223: ='Current week'!E278 -> 0 | E223: ='Current week'!F278 -> 0 | F223: ='Current week'!G278 -> 0
B224: ='Current week'!C279 -> 0 | C224: ='Current week'!D279 -> 0 | D224: ='Current week'!E279 -> 0 | E224: ='Current week'!F279 -> 0 | F224: ='Current week'!G279 -> 0
B225: ='Current week'!C280 -> 0 | C225: ='Current week'!D280 -> 0 | D225: ='Current week'!E280 -> 0 | E225: ='Current week'!F280 -> 0 | F225: ='Current week'!G280 -> 0
B226: ='Current week'!C281 -> 0 | C226: ='Current week'!D281 -> 0 | D226: ='Current week'!E281 -> 0 | E226: ='Current week'!F281 -> 0 | F226: ='Current week'!G281 -> 0
B227: ='Current week'!C282 -> 0 | C227: ='Current week'!D282 -> 0 | D227: ='Current week'!E282 -> 0 | E227: ='Current week'!F282 -> 0 | F227: ='Current week'!G282 -> 0
B228: ='Current week'!C283 -> 0 | C228: ='Current week'!D283 -> 0 | D228: ='Current week'!E283 -> 0 | E228: ='Current week'!F283 -> 0 | F228: ='Current week'!G283 -> 0
A231: 11 | B231: WEEKLY POOL | E231: ='Current week'!$D$3 -> 2021-10-03 | O231: Number of Wins | T231: * Adds are for ties, $7/$3 monthlys, and Season
B232: NAME | C232: W | D232: L | E232: PCT | F232: GB | P232: Wk 1st | Q232: Wk 2nd | R232: Mon 1st | S232: Mon 2nd | T232: Winnings | U232: Adds | V232: Total
B233: ='Current week'!C289 -> 0 | C233: ='Current week'!D289 -> 0 | D233: ='Current week'!E289 -> 0 | E233: ='Current week'!F289 -> 0 | F233: ='Current week'!G289 -> 0 | O233: =UPDATE!$C$11 -> LARRY | P233: =COUNTIF($J$3:$J$28,O233) -> 6 | Q233: =COUNTIF($L$3:$L$28,O233) -> 4 | R233: =COUNTIF($J$33:$J$39,O233) -> 3 | S233: =COUNTIF($L$33:$L$38,O233) -> 0 | T233: =4*P233+2*Q233+6*R233+2*S233 -> 50 | V233: =T233+U233 -> 50
B234: ='Current week'!C290 -> 0 | C234: ='Current week'!D290 -> 0 | D234: ='Current week'!E290 -> 0 | E234: ='Current week'!F290 -> 0 | F234: ='Current week'!G290 -> 0 | O234: =UPDATE!$C$13 -> ----- | P234: 0 | Q234: 0 | R234: 0 | S234: 0 | T234: 0 | V234: 0
B235: ='Current week'!C291 -> 0 | C235: ='Current week'!D291 -> 0 | D235: ='Current week'!E291 -> 0 | E235: ='Current week'!F291 -> 0 | F235: ='Current week'!G291 -> 0 | O235: =UPDATE!$C$12 -> DIANE | P235: 0 | Q235: 6 | R235: 1 | S235: 0 | T235: 18 | V235: 18
B236: ='Current week'!C292 -> 0 | C236: ='Current week'!D292 -> 0 | D236: ='Current week'!E292 -> 0 | E236: ='Current week'!F292 -> 0 | F236: ='Current week'!G292 -> 0 | O236: =UPDATE!$C$5 -> MIKE | P236: 5 | Q236: 3 | R236: 0 | S236: 1 | T236: 28 | V236: 28
B237: ='Current week'!C293 -> 0 | C237: ='Current week'!D293 -> 0 | D237: ='Current week'!E293 -> 0 | E237: ='Current week'!F293 -> 0 | F237: ='Current week'!G293 -> 0 | O237: =UPDATE!$C$9 -> JEAN | P237: 1 | Q237: 3 | R237: 1 | S237: 0 | T237: 16 | V237: 16
B238: ='Current week'!C294 -> 0 | C238: ='Current week'!D294 -> 0 | D238: ='Current week'!E294 -> 0 | E238: ='Current week'!F294 -> 0 | F238: ='Current week'!G294 -> 0 | O238: =UPDATE!$C$6 -> JIM T. | P238: 3 | Q238: 2 | R238: 0 | S238: 1 | T238: 18 | V238: 18
B239: ='Current week'!C295 -> 0 | C239: ='Current week'!D295 -> 0 | D239: ='Current week'!E295 -> 0 | E239: ='Current week'!F295 -> 0 | F239: ='Current week'!G295 -> 0 | O239: =UPDATE!$C$10 -> TIM | P239: 4 | Q239: 1 | R239: 0 | S239: 2 | T239: 22 | V239: 22
B240: ='Current week'!C296 -> 0 | C240: ='Current week'!D296 -> 0 | D240: ='Current week'!E296 -> 0 | E240: ='Current week'!F296 -> 0 | F240: ='Current week'!G296 -> 0 | O240: =UPDATE!$C$7 -> JIM K. | P240: 3 | Q240: 1 | R240: 0 | S240: 0 | T240: 14 | V240: 14
B241: ='Current week'!C297 -> 0 | C241: ='Current week'!D297 -> 0 | D241: ='Current week'!E297 -> 0 | E241: ='Current week'!F297 -> 0 | F241: ='Current week'!G297 -> 0 | O241: =UPDATE!$C$8 -> JOHN | P241: 3 | Q241: 5 | R241: 0 | S241: 1 | T241: 24 | V241: 24
B242: ='Current week'!C298 -> 0 | C242: ='Current week'!D298 -> 0 | D242: ='Current week'!E298 -> 0 | E242: ='Current week'!F298 -> 0 | F242: ='Current week'!G298 -> 0 | O242: =UPDATE!$C$14 -> 0 | P242: 0 | Q242: 0 | R242: 0 | S242: 0 | T242: 0 | V242: 0
B243: ='Current week'!C299 -> 0 | C243: ='Current week'!D299 -> 0 | D243: ='Current week'!E299 -> 0 | E243: ='Current week'!F299 -> 0 | F243: ='Current week'!G299 -> 0 | O243: =UPDATE!$C$15 -> 0 | P243: =COUNTIF($J$3:$J$28,O243) -> 0 | Q243: =COUNTIF($L$3:$L$28,O243) -> 0 | R243: =COUNTIF($J$33:$J$39,O243) -> 0 | S243: =COUNTIF($L$33:$L$38,O243) -> 0 | T243: =4*P243+2*Q243+6*R243+2*S243 -> 0 | V243: =T243+U243 -> 0
O244: Total | P244: =SUM(P233:P243) -> 25 | Q244: =SUM(Q233:Q243) -> 25 | R244: 5 | S244: 5 | T244: 190 | U244: 0 | V244: 190
B245: ="MONTH OF " & 'Current week'!$N$3 -> MONTH OF OCTOBER
B246: NAME | C246: W | D246: L | E246: PCT | F246: GB
B247: ='Current week'!C302 -> 0 | C247: ='Current week'!D302 -> 0 | D247: ='Current week'!E302 -> 0 | E247: ='Current week'!F302 -> 0 | F247: ='Current week'!G302 -> 0
B248: ='Current week'!C303 -> 0 | C248: ='Current week'!D303 -> 0 | D248: ='Current week'!E303 -> 0 | E248: ='Current week'!F303 -> 0 | F248: ='Current week'!G303 -> 0 | O248: MONEY BOARD
B249: ='Current week'!C304 -> 0 | C249: ='Current week'!D304 -> 0 | D249: ='Current week'!E304 -> 0 | E249: ='Current week'!F304 -> 0 | F249: ='Current week'!G304 -> 0 | O249: Name | P249: Winnings | Q249: Cost | R249: Profit | S249: Deposit | T249: BAL
B250: ='Current week'!C305 -> 0 | C250: ='Current week'!D305 -> 0 | D250: ='Current week'!E305 -> 0 | E250: ='Current week'!F305 -> 0 | F250: ='Current week'!G305 -> 0 | O250: =O233 -> LARRY | P250: =V233 -> 50 | Q250: ='Current week'!$M$3 -> 26 | R250: =P250-Q250 -> 24 | S250: 26 | T250: =R250+S250 -> 50
B251: ='Current week'!C306 -> 0 | C251: ='Current week'!D306 -> 0 | D251: ='Current week'!E306 -> 0 | E251: ='Current week'!F306 -> 0 | F251: ='Current week'!G306 -> 0 | O251: =O234 -> ----- | P251: 0 | Q251: ='Current week'!$M$3 -> 26 | R251: =P251-Q251 -> -26 | S251: 26 | T251: =R251+S251 -> 0
B252: ='Current week'!C307 -> 0 | C252: ='Current week'!D307 -> 0 | D252: ='Current week'!E307 -> 0 | E252: ='Current week'!F307 -> 0 | F252: ='Current week'!G307 -> 0 | O252: DIANE | P252: 18 | Q252: ='Current week'!$M$3 -> 26 | R252: -8 | S252: 26 | T252: 18
B253: ='Current week'!C308 -> 0 | C253: ='Current week'!D308 -> 0 | D253: ='Current week'!E308 -> 0 | E253: ='Current week'!F308 -> 0 | F253: ='Current week'!G308 -> 0 | O253: MIKE | P253: 28 | Q253: ='Current week'!$M$3 -> 26 | R253: 2 | S253: 26 | T253: 28
B254: ='Current week'!C309 -> 0 | C254: ='Current week'!D309 -> 0 | D254: ='Current week'!E309 -> 0 | E254: ='Current week'!F309 -> 0 | F254: ='Current week'!G309 -> 0 | O254: JEAN | P254: 16 | Q254: ='Current week'!$M$3 -> 26 | R254: -10 | S254: 26 | T254: 16
B255: ='Current week'!C310 -> 0 | C255: ='Current week'!D310 -> 0 | D255: ='Current week'!E310 -> 0 | E255: ='Current week'!F310 -> 0 | F255: ='Current week'!G310 -> 0 | O255: JIM T. | P255: 18 | Q255: ='Current week'!$M$3 -> 26 | R255: -8 | S255: 26 | T255: 18
B256: ='Current week'!C311 -> 0 | C256: ='Current week'!D311 -> 0 | D256: ='Current week'!E311 -> 0 | E256: ='Current week'!F311 -> 0 | F256: ='Current week'!G311 -> 0 | O256: TIM | P256: 22 | Q256: ='Current week'!$M$3 -> 26 | R256: -4 | S256: 26 | T256: 22
B257: ='Current week'!C312 -> 0 | C257: ='Current week'!D312 -> 0 | D257: ='Current week'!E312 -> 0 | E257: ='Current week'!F312 -> 0 | F257: ='Current week'!G312 -> 0 | O257: JIM K. | P257: 14 | Q257: ='Current week'!$M$3 -> 26 | R257: -12 | S257: 26 | T257: 14
O258: JOHN | P258: 24 | Q258: ='Current week'!$M$3 -> 26 | R258: -2 | S258: 26 | T258: 24
B259: =YEAR(TODAY()) -> 2022 | D259: SEASON | O259: 0 | P259: 0 | Q259: ='Current week'!$M$3 -> 26 | R259: -26 | S259: 26 | T259: 0
B260: NAME | C260: W | D260: L | E260: PCT | F260: GB | O260: 0 | P260: =V243 -> 0 | Q260: ='Current week'!$M$3 -> 26 | R260: =P260-Q260 -> -26 | S260: 26 | T260: =R260+S260 -> 0
B261: ='Current week'!C314 -> 0 | C261: ='Current week'!D314 -> 0 | D261: ='Current week'!E314 -> 0 | E261: ='Current week'!F314 -> 0 | F261: ='Current week'!G314 -> 0 | O261: Total | P261: =SUM(P250:P260) -> 190 | Q261: =SUM(Q250:Q260) -> 286 | R261: =SUM(R250:R260) -> -96 | S261: =SUM(S250:S260) -> 286 | T261: =SUM(T250:T260) -> 190
B262: ='Current week'!C315 -> 0 | C262: ='Current week'!D315 -> 0 | D262: ='Current week'!E315 -> 0 | E262: ='Current week'!F315 -> 0 | F262: ='Current week'!G315 -> 0
B263: ='Current week'!C316 -> 0 | C263: ='Current week'!D316 -> 0 | D263: ='Current week'!E316 -> 0 | E263: ='Current week'!F316 -> 0 | F263: ='Current week'!G316 -> 0
B264: ='Current week'!C317 -> 0 | C264: ='Current week'!D317 -> 0 | D264: ='Current week'!E317 -> 0 | E264: ='Current week'!F317 -> 0 | F264: ='Current week'!G317 -> 0
B265: ='Current week'!C318 -> 0 | C265: ='Current week'!D318 -> 0 | D265: ='Current week'!E318 -> 0 | E265: ='Current week'!F318 -> 0 | F265: ='Current week'!G318 -> 0
B266: ='Current week'!C319 -> 0 | C266: ='Current week'!D319 -> 0 | D266: ='Current week'!E319 -> 0 | E266: ='Current week'!F319 -> 0 | F266: ='Current week'!G319 -> 0
B267: ='Current week'!C320 -> 0 | C267: ='Current week'!D320 -> 0 | D267: ='Current week'!E320 -> 0 | E267: ='Current week'!F320 -> 0 | F267: ='Current week'!G320 -> 0
B268: ='Current week'!C321 -> 0 | C268: ='Current week'!D321 -> 0 | D268: ='Current week'!E321 -> 0 | E268: ='Current week'!F321 -> 0 | F268: ='Current week'!G321 -> 0
B269: ='Current week'!C322 -> 0 | C269: ='Current week'!D322 -> 0 | D269: ='Current week'!E322 -> 0 | E269: ='Current week'!F322 -> 0 | F269: ='Current week'!G322 -> 0
B270: ='Current week'!C323 -> 0 | C270: ='Current week'!D323 -> 0 | D270: ='Current week'!E323 -> 0 | E270: ='Current week'!F323 -> 0 | F270: ='Current week'!G323 -> 0
B271: ='Current week'!C324 -> 0 | C271: ='Current week'!D324 -> 0 | D271: ='Current week'!E324 -> 0 | E271: ='Current week'!F324 -> 0 | F271: ='Current week'!G324 -> 0
A273: 12 | B273: WEEKLY POOL | E273: ='Current week'!$D$3 -> 2021-10-03 | O273: Number of Wins | T273: * Adds are for ties, $7/$3 monthlys, and Season
B274: NAME | C274: W | D274: L | E274: PCT | F274: GB | P274: Wk 1st | Q274: Wk 2nd | R274: Mon 1st | S274: Mon 2nd | T274: Winnings | U274: Adds | V274: Total
B275: ='Current week'!C331 -> 0 | C275: ='Current week'!D331 -> 0 | D275: ='Current week'!E331 -> 0 | E275: ='Current week'!F331 -> 0 | F275: ='Current week'!G331 -> 0 | O275: =UPDATE!$C$11 -> LARRY | P275: =COUNTIF($J$3:$J$28,O275) -> 6 | Q275: =COUNTIF($L$3:$L$28,O275) -> 4 | R275: =COUNTIF($J$33:$J$39,O275) -> 3 | S275: =COUNTIF($L$33:$L$38,O275) -> 0 | T275: =4*P275+2*Q275+6*R275+2*S275 -> 50 | V275: =T275+U275 -> 50
B276: ='Current week'!C332 -> 0 | C276: ='Current week'!D332 -> 0 | D276: ='Current week'!E332 -> 0 | E276: ='Current week'!F332 -> 0 | F276: ='Current week'!G332 -> 0 | O276: =UPDATE!$C$13 -> ----- | P276: 0 | Q276: 0 | R276: 0 | S276: 0 | T276: 0 | V276: 0
B277: ='Current week'!C333 -> 0 | C277: ='Current week'!D333 -> 0 | D277: ='Current week'!E333 -> 0 | E277: ='Current week'!F333 -> 0 | F277: ='Current week'!G333 -> 0 | O277: =UPDATE!$C$12 -> DIANE | P277: 0 | Q277: 6 | R277: 1 | S277: 0 | T277: 18 | V277: 18
B278: ='Current week'!C334 -> 0 | C278: ='Current week'!D334 -> 0 | D278: ='Current week'!E334 -> 0 | E278: ='Current week'!F334 -> 0 | F278: ='Current week'!G334 -> 0 | O278: =UPDATE!$C$5 -> MIKE | P278: 5 | Q278: 3 | R278: 0 | S278: 1 | T278: 28 | V278: 28
B279: ='Current week'!C335 -> 0 | C279: ='Current week'!D335 -> 0 | D279: ='Current week'!E335 -> 0 | E279: ='Current week'!F335 -> 0 | F279: ='Current week'!G335 -> 0 | O279: =UPDATE!$C$9 -> JEAN | P279: 1 | Q279: 3 | R279: 1 | S279: 0 | T279: 16 | V279: 16
B280: ='Current week'!C336 -> 0 | C280: ='Current week'!D336 -> 0 | D280: ='Current week'!E336 -> 0 | E280: ='Current week'!F336 -> 0 | F280: ='Current week'!G336 -> 0 | O280: =UPDATE!$C$6 -> JIM T. | P280: 3 | Q280: 2 | R280: 0 | S280: 1 | T280: 18 | V280: 18
B281: ='Current week'!C337 -> 0 | C281: ='Current week'!D337 -> 0 | D281: ='Current week'!E337 -> 0 | E281: ='Current week'!F337 -> 0 | F281: ='Current week'!G337 -> 0 | O281: =UPDATE!$C$10 -> TIM | P281: 4 | Q281: 1 | R281: 0 | S281: 2 | T281: 22 | V281: 22
B282: ='Current week'!C338 -> 0 | C282: ='Current week'!D338 -> 0 | D282: ='Current week'!E338 -> 0 | E282: ='Current week'!F338 -> 0 | F282: ='Current week'!G338 -> 0 | O282: =UPDATE!$C$7 -> JIM K. | P282: 3 | Q282: 1 | R282: 0 | S282: 0 | T282: 14 | V282: 14
B283: ='Current week'!C339 -> 0 | C283: ='Current week'!D339 -> 0 | D283: ='Current week'!E339 -> 0 | E283: ='Current week'!F339 -> 0 | F283: ='Current week'!G339 -> 0 | O283: =UPDATE!$C$8 -> JOHN | P283: 3 | Q283: 5 | R283: 0 | S283: 1 | T283: 24 | V283: 24
B284: ='Current week'!C340 -> 0 | C284: ='Current week'!D340 -> 0 | D284: ='Current week'!E340 -> 0 | E284: ='Current week'!F340 -> 0 | F284: ='Current week'!G340 -> 0 | O284: =UPDATE!$C$14 -> 0 | P284: 0 | Q284: 0 | R284: 0 | S284: 0 | T284: 0 | V284: 0
B285: ='Current week'!C341 -> 0 | C285: ='Current week'!D341 -> 0 | D285: ='Current week'!E341 -> 0 | E285: ='Current week'!F341 -> 0 | F285: ='Current week'!G341 -> 0 | O285: =UPDATE!$C$15 -> 0 | P285: =COUNTIF($J$3:$J$28,O285) -> 0 | Q285: =COUNTIF($L$3:$L$28,O285) -> 0 | R285: =COUNTIF($J$33:$J$39,O285) -> 0 | S285: =COUNTIF($L$33:$L$38,O285) -> 0 | T285: =4*P285+2*Q285+6*R285+2*S285 -> 0 | V285: =T285+U285 -> 0
... 31 more rows

Sheet Standings (hidden)

Sheet Table 5 (hidden)
A1: TEAM | B1: W | C1: L
A2: Giants Z | B2: 106 | C2: 55
A3: Dodgers W | B3: 105 | C3: 56
A4: Padres | B4: 79 | C4: 82
A5: Rockies | B5: 74 | C5: 86
A6: Diamondbacks | B6: 51 | C6: 110

Sheet Table 4 (hidden)
A1: TEAM | B1: W | C1: L
A2: Brewers Y | B2: 95 | C2: 66
A3: Cardinals X | B3: 90 | C3: 71
A4: Reds | B4: 82 | C4: 79
A5: Cubs | B5: 70 | C5: 91
A6: Pirates | B6: 61 | C6: 100

Sheet Table 3 (hidden)
A1: TEAM | B1: W | C1: L
A2: Braves Y | B2: 87 | C2: 73
A3: Phillies | B3: 82 | C3: 79
A4: Mets | B4: 77 | C4: 84
A5: Marlins | B5: 66 | C5: 95
A6: Nationals | B6: 65 | C6: 96

Sheet Table 2 (hidden)
A1: TEAM | B1: W | C1: L
A2: Astros Y | B2: 94 | C2: 67
A3: Mariners | B3: 90 | C3: 71
A4: Athletics | B4: 86 | C4: 75
A5: Angels | B5: 76 | C5: 85
A6: Rangers | B6: 60 | C6: 101

Sheet Table 1 (hidden)
A1: TEAM | B1: W | C1: L
A2: White Sox Y | B2: 93 | C2: 68
A3: Indians | B3: 79 | C3: 82
A4: Tigers | B4: 76 | C4: 85
A5: Royals | B5: 74 | C5: 87
A6: Twins | B6: 72 | C6: 89

Sheet Table 0 (hidden)
A1: TEAM | B1: W | C1: L
A2: Rays Z | B2: 100 | C2: 61
A3: Red Sox | B3: 91 | C3: 70
A4: Yankees | B4: 91 | C4: 70
A5: Blue Jays | B5: 90 | C5: 71
A6: Orioles | B6: 52 | C6: 109

Sheet Append1
A1: TEAM | B1: W | C1: L
A2: Rays | B2: 100 | C2: 61
A3: Red Sox | B3: 91 | C3: 70
A4: Yankees | B4: 91 | C4: 70
A5: Blue Jays | B5: 90 | C5: 71
A6: Orioles | B6: 52 | C6: 109
A7: White Sox | B7: 93 | C7: 68
A8: Indians | B8: 79 | C8: 82
A9: Tigers | B9: 76 | C9: 85
A10: Royals | B10: 74 | C10: 87
A11: Twins | B11: 72 | C11: 89
A12: Astros | B12: 94 | C12: 67
A13: Mariners | B13: 90 | C13: 71
A14: Athletics | B14: 86 | C14: 75
A15: Angels | B15: 76 | C15: 85
A16: Rangers | B16: 60 | C16: 101
A17: Braves | B17: 87 | C17: 73
A18: Phillies | B18: 82 | C18: 79
A19: Mets | B19: 77 | C19: 84
A20: Marlins | B20: 66 | C20: 95
A21: Nationals | B21: 65 | C21: 96
A22: Brewers | B22: 95 | C22: 66
A23: Cardinals | B23: 90 | C23: 71
A24: Reds | B24: 82 | C24: 79
A25: Cubs | B25: 70 | C25: 91
A26: Pirates | B26: 61 | C26: 100
A27: Giants | B27: 106 | C27: 55
A28: Dodgers | B28: 105 | C28: 56
A29: Padres | B29: 79 | C29: 82
A30: Rockies | B30: 74 | C30: 86
A31: Diamondbacks | B31: 51 | C31: 110
A32: West

Sheet UPDATE
A1: AL East | B1: Used | F1: =YEAR(TODAY()) -> 2022
A2: Blue Jays | B2: =COUNTIF($C$54:$K$71,A2) -> 4 | N2: At the very start:
A3: Orioles | B3: =COUNTIF($C$54:$K$71,A3) -> 9 | C3: CURRENT PICKS | O3: Set the number of players on the End sheet.
A4: Rays | B4: =COUNTIF($C$54:$K$71,A4) -> 5 | C4: NAME | D4: 1 | E4: 2 | F4: 3 | G4: 4 | H4: 5 | I4: 6 | O4: Copy the approriate grids on Summary and Update Sheet
A5: Yankees | B5: =COUNTIF($C$54:$K$71,A5) -> 4 | C5: MIKE | D5: Rays | E5: Astros | F5: Brewers | G5: Padres | H5: Indians | I5: Phillies | O5: If more than 9 players unhide AE thru AH, otherwise hide them
A6: Red Sox | B6: =COUNTIF($C$54:$K$71,A6) -> 8 | C6: JIM T. | D6: Rays | E6: White Sox | F6: Astros | G6: Braves | H6: Brewers | I6: Dodgers
A7: AL Central | C7: JIM K. | D7: Giants | E7: White Sox | F7: Red Sox | G7: Athletics | H7: Phillies | I7: Cubs
A8: Twins | B8: =COUNTIF($C$54:$K$71,A8) -> 5 | C8: JOHN | D8: Dodgers | E8: Yankees | F8: Phillies | G8: White Sox | H8: Brewers | I8: Athletics | N8: To refresh and sort anytime:
A9: White Sox | B9: =COUNTIF($C$54:$K$71,A9) -> 5 | C9: JEAN | D9: Rays | E9: Astros | F9: Phillies | G9: Cardinals | H9: Padres | I9: White Sox | N9: · Click Update Standings Button on UPDATE sheet.
A10: Royals | B10: =COUNTIF($C$54:$K$71,A10) -> 6 | C10: TIM | D10: Giants | E10: Rays | F10: Brewers | G10: Astros | H10: White Sox | I10: Braves | N10: · Save spreadsheet & upload files to website with WinSCP Client *
A11: Tigers | B11: =COUNTIF($C$54:$K$71,A11) -> 4 | C11: LARRY | D11: Braves | E11: Cardinals | F11: White Sox | G11: Yankees | H11: Mariners | I11: Dodgers
A12: Indians | B12: =COUNTIF($C$54:$K$71,A12) -> 5 | C12: DIANE | D12: Brewers | E12: White Sox | F12: Dodgers | G12: Astros | H12: Yankees | I12: Phillies | N12: Weekly Update (Monday AM):
A13: AL West | C13: ----- | D13: Cubs | E13: Indians | F13: Blue Jays | G13: Astros | H13: Padres | I13: Nationals | N13: · Click Update Standings Button on UPDATE sheet.
A14: Angels | B14: =COUNTIF($C$54:$K$71,A14) -> 6 | N14: · Payout winners (just click names under current week on Summary page-
A15: Rangers | B15: =COUNTIF($C$54:$K$71,A15) -> 6 | O15: -money calc automatically)
A16: Mariners | B16: =COUNTIF($C$54:$K$71,A16) -> 3 | N16: · Save spreadsheet & upload files to website with WinSCP Client *
A17: Athletics | B17: =COUNTIF($C$54:$K$71,A17) -> 9 | N17: · Click New Week on UPDATE sheet.
A18: Astros | B18: =COUNTIF($C$54:$K$71,A18) -> 7 | N18: · Manually enter new picks in NEXT PICKS table (or see instructions below)
A19: NL East | C19: PICKS UPDATED | E19: Last Update on | F19: 2021-09-27T16:45:10 | G19: 44466.69803 | N19: · Copy NEXT PICKS to CURRENT PICKS (after noon Monday)
A20: Nationals | B20: =COUNTIF($C$54:$K$71,A20) -> 6 | N20: (Copy Picks also Updates the Picks)
A21: Braves | B21: =COUNTIF($C$54:$K$71,A21) -> 4 | F21: COPY PICKS | N21: · Save spreadsheet & upload files to website with WinSCP Client *
A22: Phillies | B22: =COUNTIF($C$54:$K$71,A22) -> 5 | N22: o Do this after uploading Monday Final!
A23: Mets | B23: =COUNTIF($C$54:$K$71,A23) -> 5 | C23: NEXT PICKS
A24: Marlins | B24: =COUNTIF($C$54:$K$71,A24) -> 4 | C24: NAME | D24: 1 | E24: 2 | F24: 3 | G24: 4 | H24: 5 | I24: 6 | N24: Monthly Update (after last week in the month)
A25: NL Central | C25: =C5 -> MIKE | D25: Rays | E25: Astros | F25: Brewers | G25: Padres | H25: Indians | I25: Phillies | N25: · Click Update Standings Button on UPDATE sheet.
A26: Pirates | B26: =COUNTIF($C$54:$K$71,A26) -> 6 | C26: JIM T. | D26: Rays | E26: White Sox | F26: Astros | G26: Braves | H26: Brewers | I26: Dodgers | N26: · Payout winners (just click names under current week on Summary page-
A27: Cubs | B27: =COUNTIF($C$54:$K$71,A27) -> 6 | C27: JIM K. | D27: Giants | E27: White Sox | F27: Red Sox | G27: Athletics | H27: Phillies | I27: Cubs | O27: -money calc automatically)
A28: Brewers | B28: =COUNTIF($C$54:$K$71,A28) -> 5 | C28: JOHN | D28: Dodgers | E28: Yankees | F28: Phillies | G28: White Sox | H28: Brewers | I28: Athletics | N28: · Save spreadsheet & upload files to website with WinSCP Client *
A29: Cardinals | B29: =COUNTIF($C$54:$K$71,A29) -> 6 | C29: JEAN | D29: Rays | E29: Astros | F29: Phillies | G29: Cardinals | H29: Padres | I29: White Sox | N29: · Click New Month on UPDATE sheet
A30: Reds | B30: =COUNTIF($C$54:$K$71,A30) -> 4 | C30: TIM | D30: Giants | E30: Rays | F30: Brewers | G30: Astros | H30: White Sox | I30: Braves | N30: · Manually enter new picks in NEXT PICKS table (or see instructions below)
A31: NL West | C31: LARRY | D31: Braves | E31: Cardinals | F31: White Sox | G31: Yankees | H31: Mariners | I31: Dodgers | N31: · Copy NEXT PICKS to CURRENT PICKS (after noon Monday)
A32: Giants | B32: =COUNTIF($C$54:$K$71,A32) -> 6 | C32: DIANE | D32: Brewers | E32: White Sox | F32: Dodgers | G32: Astros | H32: Yankees | I32: Phillies | N32: · Save spreadsheet & upload files to website with WinSCP Client *
A33: Diamondbacks | B33: =COUNTIF($C$54:$K$71,A33) -> 3 | C33: ----- | D33: Cubs | E33: Indians | F33: Blue Jays | G33: Astros | H33: Padres | I33: Nationals | N33: o Do this after uploading Monday Final!
A34: Padres | B34: =COUNTIF($C$54:$K$71,A34) -> 5 | N34: * Use Blue Griffon to update the index.html file with text before upload.
A35: Dodgers | B35: =COUNTIF($C$54:$K$71,A35) -> 6
A36: Rockies | B36: =COUNTIF($C$54:$K$71,A36) -> 5 | N36: New Way to Enter Picks:
N37: Go to Sort Draft sheet and follow instructions
D38: Last Update on | G38: Last Update on | J38: Last Update on | N38: Click Copy Draft Order on Sort Draft sheet when done
C39: UPDATE STANDINGS | D39: 2021-10-03T05:22:27 | F39: NEW WEEK | G39: 2021-09-27T16:44:55 | I39: NEW MONTH | J39: 2021-08-31T05:35:38 | N39: This copies the picks to Next Picks.
D40: 44472.22392 | G40: 44466.69786 | J40: 44439.23308 | N40: Then click on Copy Picks button to make the teams active.
A42: Blue Jays | C42: 1. Select Team from column on the left. Then click on cell to add team to player's list.
A43: Orioles | C43: 2. Current Picks are for the current week. Next Picks are for the next week.
A44: Rays | C44: 3. Copy Picks copies the Next Picks to the Current Picks. Update Picks updates the pick info on the current week sheet.
A45: Yankees | C45: 4. Update Standings refreshes the Standings Data and sorts the players info.
A46: Red Sox | C46: 5. Weekly Update refreshes, sorts, copies current week to back up sheet, updates weekly totals, copies team W-L records to Previous Week
A47: Twins | C47: 6. Monthly Update does weekly update and updates month data at end of month.
A48: White Sox
A49: Royals | C49: Grid sizes for other numbers of players are below
A50: Tigers
A51: Indians
A52: Angels | B52: ` | E52: SEPTEMBER | G52: DRAFT
A53: Rangers | C53: =$C$5 -> MIKE | D53: =$C$6 -> JIM T. | E53: =$C$7 -> JIM K. | F53: =$C$8 -> JOHN | G53: =$C$9 -> JEAN | H53: =$C$10 -> TIM | I53: =$C$11 -> LARRY | J53: =$C$12 -> DIANE | K53: =$C$13 -> -----
A54: Mariners | B54: 1 | C54: Royals | D54: Rays | E54: Pirates | F54: Red Sox | G54: White Sox | H54: Brewers | I54: Athletics | J54: Diamondbacks | K54: Yankees | L54: RUN DRAFT
A55: Athletics | B55: 2 | C55: Angels | D55: Athletics | E55: Orioles | F55: Rockies | G55: Cardinals | H55: Orioles | I55: Nationals | J55: Brewers | K55: Cardinals
A56: Astros | B56: 3 | C56: Rockies | D56: Twins | E56: Braves | F56: Athletics | G56: Nationals | H56: Giants | I56: Rockies | J56: Royals | K56: Braves
A57: Nationals | B57: 4 | C57: Nationals | D57: Phillies | E57: Indians | F57: Cubs | G57: Giants | H57: Royals | I57: Royals | J57: Phillies | K57: Dodgers | L57: CLEAR ALL
A58: Braves | B58: 5 | C58: Pirates | D58: Rockies | E58: Giants | F58: Indians | G58: Angels | H58: Mets | I58: Reds | J58: Rangers | K58: Twins
A59: Phillies | B59: 6 | C59: Red Sox | D59: Pirates | E59: Angels | F59: Phillies | G59: Orioles | H59: Rangers | I59: Blue Jays | J59: Red Sox | K59: Angels
A60: Mets | B60: 1 | C60: Yankees | D60: Yankees | E60: Red Sox | F60: Yankees | G60: Blue Jays | H60: Red Sox | I60: Orioles | J60: Rays | K60: Red Sox
A61: Marlins | B61: 2 | C61: Indians | D61: Royals | E61: Royals | F61: Twins | G61: Twins | H61: White Sox | I61: Indians | J61: White Sox | K61: Tigers
A62: Pirates | B62: 3 | C62: Athletics | D62: Astros | E62: Athletics | F62: Astros | G62: Rangers | H62: Athletics | I62: Astros | J62: Athletics | K62: Athletics
A63: Cubs | B63: 4 | C63: Mets | D63: Mets | E63: Nationals | F63: Braves | G63: Marlins | H63: Phillies | I63: Phillies | J63: Marlins | K63: Nationals
A64: Brewers | B64: 5 | C64: Brewers | D64: Cardinals | E64: Cubs | F64: Cardinals | G64: Pirates | H64: Cubs | I64: Cubs | J64: Cubs | K64: Brewers
A65: Cardinals | B65: 6 | C65: Padres | D65: Giants | E65: Diamondbacks | F65: Dodgers | G65: Padres | H65: Rockies | I65: Dodgers | J65: Dodgers | K65: Giants | L65: COPY TO NEXT PICKS
A66: Reds | B66: 7 | C66: Diamondbacks | D66: Rangers | E66: Twins | F66: Mariners | G66: Indians | H66: Rays | I66: Padres | J66: Astros | K66: Padres
A67: Giants | B67: 8 | C67: Giants | D67: Padres | E67: Tigers | F67: Rangers | G67: Dodgers | H67: Reds | I67: Marlins | J67: Nationals | K67: Mets
A68: Diamondbacks | B68: 9 | C68: Cubs | D68: Dodgers | E68: Marlins | F68: Orioles | G68: Reds | H68: Angels | I68: White Sox | J68: Pirates | K68: White Sox
A69: Padres | B69: 10 | C69: Rays | D69: Mariners | E69: Reds | F69: Brewers | G69: Tigers | H69: Blue Jays | I69: Red Sox | J69: Cardinals | K69: Rangers
A70: Dodgers | B70: 11 | C70: Orioles | D70: Orioles | E70: Mets | F70: Tigers | G70: Athletics | H70: Astros | I70: Cardinals | J70: Angels | K70: Mariners | L70: SAVE DRAFT
A71: Rockies | B71: 12 | C71: Astros | D71: Braves | E71: Astros | F71: Blue Jays | G71: Red Sox | H71: Pirates | I71: Rays | J71: Orioles | K71: Orioles
L73: RESTORE DRAFT
A101: 8 | C101: NAME | D101: 1 | E101: 2 | F101: 3 | G101: 4 | H101: 5 | I101: 6
C102: =C85 -> 0
C103: 0
C104: 0
C105: 0
C106: 0
C107: 0
C108: 0
C109: 0
A111: 9 | C111: NAME | D111: 1 | E111: 2 | F111: 3 | G111: 4 | H111: 5 | I111: 6
C112: =C95 -> 0
C113: 0
C114: 0
C115: 0
C116: 0
C117: 0
C118: NAME
C119: 0
C120: 0
A122: 10 | C122: NAME | D122: 1 | E122: 2 | F122: 3 | G122: 4 | H122: 5 | I122: 6
C123: =C106 -> 0
C124: 0
C125: 0
C126: 0
C127: 0
C128: NAME
C129: 0
C130: 0
C131: =C114 -> 0
C132: =C115 -> 0
A134: 11 | C134: NAME | D134: 1 | E134: 2 | F134: 3 | G134: 4 | H134: 5 | I134: 6
C135: =C118 -> NAME
C136: 0
C137: 0
C138: 0
C139: NAME
C140: 0
C141: 0
C142: 0
C143: 0
C144: =C127 -> 0
C145: =C128 -> NAME
A147: 12 | C147: NAME | D147: 1 | E147: 2 | F147: 3 | G147: 4 | H147: 5 | I147: 6
C148: =C131 -> 0
C149: 0
C150: 0
C151: NAME
C152: NAME
C153: 0
C154: 0
C155: 0
C156: NAME
C157: 0
C158: =C141 -> 0
C159: =C142 -> 0

Sheet Sort Draft
H1: SEPTEMBER | J1: DRAFT
A2: # | B2: =UPDATE!$C$5 -> MIKE | C2: # | D2: =UPDATE!$C$6 -> JIM T. | E2: # | F2: =UPDATE!$C$7 -> JIM K. | G2: # | H2: =UPDATE!$C$8 -> JOHN | I2: # | J2: =UPDATE!$C$9 -> JEAN | K2: # | L2: =UPDATE!$C$10 -> TIM | M2: # | N2: =UPDATE!$C$11 -> LARRY | O2: # | P2: =UPDATE!$C$12 -> DIANE | Q2: # | R2: =UPDATE!$C$13 -> ----- | U2: # | X2: #
A3: 1 | B3: Royals | C3: 1 | D3: Rays | E3: 1 | F3: Pirates | H3: Red Sox | I3: 1 | J3: White Sox | K3: 1 | L3: Brewers | M3: 1 | N3: Athletics | O3: 1 | P3: Diamondbacks | R3: Yankees | S3: Div | T3: Team | U3: of | V3: Div | W3: Team | X3: of
A4: 2 | B4: Angels | C4: 2 | D4: Athletics | E4: 2 | F4: Orioles | G4: 2 | H4: Rockies | I4: 2 | J4: Cardinals | K4: 2 | L4: Orioles | M4: 2 | N4: Nationals | O4: 2 | P4: Brewers | R4: Cardinals | S4: ALE | T4: Blue Jays | U4: =COUNTIF($B$3:$R$20,T4) -> 4 | V4: NLE | W4: Nationals | X4: =COUNTIF($B$3:$R$20,W4) -> 6
A5: 3 | B5: Rockies | C5: 3 | D5: Twins | E5: 3 | F5: Braves | G5: 3 | H5: Athletics | I5: 3 | J5: Nationals | K5: 3 | L5: Giants | M5: 3 | N5: Rockies | O5: 3 | P5: Royals | R5: Braves | T5: Orioles | U5: =COUNTIF($B$3:$R$20,T5) -> 9 | W5: Braves | X5: 4
A6: 4 | B6: Nationals | C6: 4 | D6: Phillies | E6: 4 | F6: Indians | G6: 4 | H6: Cubs | I6: 4 | J6: Giants | K6: 4 | L6: Royals | M6: 4 | N6: Royals | O6: 4 | P6: Phillies | R6: Dodgers | T6: Rays | U6: 5 | W6: Phillies | X6: 5
A7: 5 | B7: Pirates | C7: 5 | D7: Rockies | E7: 5 | F7: Giants | G7: 5 | H7: Indians | I7: 5 | J7: Angels | K7: 5 | L7: Mets | M7: 5 | N7: Reds | O7: 5 | P7: Rangers | R7: Twins | T7: Yankees | U7: 4 | W7: Mets | X7: 5
A8: 6 | B8: Red Sox | C8: 6 | D8: Pirates | E8: 6 | F8: Angels | G8: 6 | H8: Phillies | I8: 6 | J8: Orioles | K8: 6 | L8: Rangers | M8: 6 | N8: Blue Jays | O8: 6 | P8: Red Sox | R8: Angels | T8: Red Sox | U8: 8 | W8: Marlins | X8: 4
B9: Yankees | D9: Yankees | F9: Red Sox | G9: 1 | H9: Yankees | J9: Blue Jays | L9: Red Sox | N9: Orioles | P9: Rays | Q9: 1 | R9: Red Sox | S9: ALC | T9: Twins | U9: 5 | V9: NLC | W9: Pirates | X9: 6
B10: Indians | D10: Royals | F10: Royals | H10: Twins | J10: Twins | L10: White Sox | N10: Indians | P10: White Sox | R10: Tigers | T10: White Sox | U10: 5 | W10: Cubs | X10: 6
B11: Athletics | D11: Astros | F11: Athletics | H11: Astros | J11: Rangers | L11: Athletics | N11: Astros | P11: Athletics | R11: Athletics | T11: Royals | U11: 6 | W11: Brewers | X11: 5
B12: Mets | D12: Mets | F12: Nationals | H12: Braves | J12: Marlins | L12: Phillies | N12: Phillies | P12: Marlins | R12: Nationals | T12: Tigers | U12: 4 | W12: Cardinals | X12: 6
B13: Brewers | D13: Cardinals | F13: Cubs | H13: Cardinals | J13: Pirates | L13: Cubs | N13: Cubs | P13: Cubs | R13: Brewers | T13: Indians | U13: 5 | W13: Reds | X13: 4
B14: Padres | D14: Giants | F14: Diamondbacks | H14: Dodgers | J14: Padres | L14: Rockies | N14: Dodgers | P14: Dodgers | R14: Giants | S14: ALW | T14: Angels | U14: 6 | V14: NLW | W14: Giants | X14: 6
B15: Diamondbacks | D15: Rangers | F15: Twins | H15: Mariners | J15: Indians | L15: Rays | N15: Padres | P15: Astros | R15: Padres | T15: Rangers | U15: 6 | W15: Diamondbacks | X15: 3
B16: Giants | D16: Padres | F16: Tigers | H16: Rangers | J16: Dodgers | L16: Reds | N16: Marlins | P16: Nationals | R16: Mets | T16: Mariners | U16: 3 | W16: Padres | X16: 5
B17: Cubs | D17: Dodgers | F17: Marlins | H17: Orioles | J17: Reds | L17: Angels | N17: White Sox | P17: Pirates | R17: White Sox | T17: Athletics | U17: 9 | W17: Dodgers | X17: 6
B18: Rays | D18: Mariners | F18: Reds | H18: Brewers | J18: Tigers | L18: Blue Jays | N18: Red Sox | P18: Cardinals | R18: Rangers | T18: Astros | U18: 7 | W18: Rockies | X18: 5
B19: Orioles | D19: Orioles | F19: Mets | H19: Tigers | J19: Athletics | L19: Astros | N19: Cardinals | P19: Angels | R19: Mariners
B20: Astros | D20: Braves | F20: Astros | H20: Blue Jays | J20: Red Sox | L20: Pirates | N20: Rays | P20: Orioles | R20: Orioles
B22: LOAD DRAFT | D22: CLEAR NUMBERS | F22: COPY DRAFT ORDER | J22: SORT DRAFT ORDER | N22: SORT BY DIVISION | R22: CLEAR DRAFT
B26: Instructions:
A27: 1 | B27: Save the draft on the UPDATE page in case something goes wrong!
A28: 2 | B28: Load the draft
A29: 3 | B29: To the left of the team, enter the choice number (just 1 to 6) for that player
A30: or | B30: Under a player's name, click teams in order of choice (numbers added automatically)
A31: 4 | B31: Click on "#" before player's name to sort teams
A32: 5 | B32: Click on the player's name to clear numbers before teams
A33: 6 | B33: Sort Draft Order sorts the entire table by choice numbers
B34: Click on the # if you just want to sort that column of teams (for one player)
A35: 7 | B35: Copy Draft Order copies this order to UPDATE page draft table
B37: Clear Numbers clears just the choice numbers
B38: Clear Draft clears the entire table

Sheet Draft Email
M1: # | P1: #
A2: # | B2: =UPDATE!$C$5 -> MIKE | C2: # | D2: =UPDATE!$C$6 -> JIM T. | E2: # | F2: =UPDATE!$C$7 -> JIM K. | G2: # | H2: =UPDATE!$C$8 -> JOHN | K2: Div | L2: Team | M2: of | N2: Div | O2: Team | P2: of
B3: Tigers | D3: Diamondbacks | F3: Royals | H3: Brewers | K3: ALE | L3: Blue Jays | M3: =COUNTIF($B$3:$J$41,L3) -> 5 | N3: NLE | O3: Nationals | P3: =COUNTIF($B$3:$J$41,O3) -> 5
B4: Brewers | D4: Twins | F4: Pirates | H4: Braves | L4: Orioles | M4: =COUNTIF($B$3:$J$41,L4) -> 4 | O4: Braves | P4: =COUNTIF($B$3:$J$41,O4) -> 5
B5: Yankees | D5: Rays | F5: Marlins | H5: Rangers | L5: Rays | M5: 5 | O5: Phillies | P5: 6
B6: Phillies | D6: Braves | F6: Giants | H6: Blue Jays | L6: Yankees | M6: 4 | O6: Mets | P6: 6
B7: Diamondbacks | D7: Angels | F7: Mariners | H7: Dodgers | L7: Red Sox | M7: 6 | O7: Marlins | P7: 7
B8: Astros | D8: Pirates | F8: Red Sox | H8: Indians | K8: ALC | L8: Twins | M8: 6 | N8: NLC | O8: Pirates | P8: 6
B9: Rays | D9: Red Sox | F9: Orioles | H9: Yankees | L9: White Sox | M9: 8 | O9: Cubs | P9: 5
B10: Indians | D10: Tigers | F10: Twins | H10: Tigers | L10: Royals | M10: 5 | O10: Brewers | P10: 6 | R10: GET DRAFT
B11: Mariners | D11: Athletics | F11: Rangers | H11: Athletics | L11: Tigers | M11: 6 | O11: Cardinals | P11: 6
B12: Marlins | D12: Mets | F12: Mets | H12: Mets | L12: Indians | M12: 6 | O12: Reds | P12: 3
B13: Cardinals | D13: Brewers | F13: Cubs | H13: Pirates | K13: ALW | L13: Angels | M13: 5 | N13: NLW | O13: Giants | P13: 3 | R13: COPY
B14: Rockies | D14: Dodgers | F14: Dodgers | H14: Diamondbacks | L14: Rangers | M14: 5 | O14: Diamondbacks | P14: 8
B15: Twins | D15: Orioles | F15: White Sox | H15: Cardinals | L15: Mariners | M15: 6 | O15: Padres | P15: 4
B16: Nationals | D16: Cubs | F16: Phillies | H16: White Sox | L16: Athletics | M16: 5 | O16: Dodgers | P16: 6 | R16: CLEAR TEAMS
B17: Athletics | D17: White Sox | F17: Tigers | H17: Astros | L17: Astros | M17: 7 | O17: Rockies | P17: 3
B18: Blue Jays | D18: Astros | F18: Padres | H18: Orioles
B19: Pirates | D19: Marlins | F19: Diamondbacks | H19: Angels
B20: Padres | D20: Rangers | F20: Athletics | H20: Phillies
A23: # | B23: =UPDATE!$C$9 -> JEAN | C23: # | D23: =UPDATE!$C$10 -> TIM | E23: # | F23: =UPDATE!$C$11 -> LARRY | G23: # | H23: =UPDATE!$C$12 -> DIANE | I23: # | J23: =UPDATE!$C$13 -> -----
B24: Red Sox | D24: Rangers | F24: Braves | H24: Cubs | J24: Cubs
B25: Astros | D25: Rockies | F25: Diamondbacks | H25: Yankees | J25: Indians
B26: Marlins | D26: Marlins | F26: Twins | H26: Rockies | J26: Blue Jays
B27: Reds | D27: Cubs | F27: Reds | H27: Astros | J27: Astros
B28: Diamondbacks | D28: Red Sox | F28: Yankees | H28: Nationals | J28: Padres
B29: Royals | D29: Indians | F29: Rangers | H29: Twins | J29: Nationals
B30: Rays | D30: Blue Jays | F30: Blue Jays | H30: Red Sox | J30: Red Sox
B31: Twins | D31: White Sox | F31: Tigers | H31: Indians | J31: White Sox
B32: Angels | D32: Astros | F32: Angels | H32: Angels | J32: Athletics
B33: Braves | D33: Braves | F33: Marlins | H33: Phillies | J33: Mets
B34: Pirates | D34: Brewers | F34: Brewers | H34: Cardinals | J34: Cardinals
B35: Padres | D35: Giants | F35: Dodgers | H35: Dodgers | J35: Giants
B36: Mets | D36: Tigers | F36: Indians | H36: Marlins | J36: Reds
B37: Nationals | D37: Pirates | F37: Cardinals | H37: Diamondbacks | J37: Rays
B38: Phillies | D38: Rays | F38: Nationals | H38: Brewers | J38: Royals
B39: Cardinals | D39: Diamondbacks | F39: Mariners | H39: White Sox | J39: Dodgers
B40: White Sox | D40: Mets | F40: Royals | H40: Orioles | J40: Mariners
B41: Mariners | D41: Mariners | F41: White Sox | H41: Royals | J41: Phillies

Sheet Current week
B1: =YEAR(TODAY()) -> 2022 | C1: STANDINGS
Q2: CURRENT WEEK RESULTS
B3: WEEK ENDING | D3: =VLOOKUP(M3,SUMMARY!$H$3:$I$28,2,FALSE) -> 2021-10-03 | L3: WEEK | M3: 26 | N3: =IF(VALUE(UPPER(TEXT(VLOOKUP(M3,SUMMARY!H3:I28,2),"dd")))<2,UPPER(TEXT(VLOOKUP(M3-1,SUMMARY!H3:I28,2),"mmmm")),UPPER(TEXT(VLOOKUP(M3,SUMMARY!H3:I28,2),"mmmm"))) -> OCTOBER
S4: =UPDATE!$C$5 -> MIKE | W4: =UPDATE!$C$8 -> JOHN | AA4: =UPDATE!$C$11 -> LARRY | AE4: =UPDATE!$C$14 -> 0
C5: CURRENT WEEK-SEASON TO DATE | G5: PREVIOUS WEEK-SEASON TO DATE | L5: CURRENT WEEK TOTALS | S5: RANK | T5: W | U5: L | V5: PCT | W5: RANK | X5: W | Y5: L | Z5: PCT | AA5: RANK | AB5: W | AC5: L | AD5: PCT | AE5: RANK | AF5: W | AG5: L | AH5: PCT
S6: =UPDATE!$D$5 -> Rays | T6: =VLOOKUP(S6,$L$9:$O$53,2,FALSE) -> 3 | U6: =VLOOKUP(S6,$L$9:$O$53,3,FALSE) -> 2 | V6: =T6/(T6+U6) -> 0.6 | W6: =UPDATE!$D$8 -> Dodgers | X6: =VLOOKUP(W6,$L$9:$O$53,2,FALSE) -> 5 | Y6: =VLOOKUP(W6,$L$9:$O$53,3,FALSE) -> 0 | Z6: =X6/(X6+Y6) -> 1 | AA6: =UPDATE!$D$11 -> Braves | AB6: =VLOOKUP(AA6,$L$9:$O$53,2,FALSE) -> 4 | AC6: =VLOOKUP(AA6,$L$9:$O$53,3,FALSE) -> 1 | AD6: =AB6/(AB6+AC6) -> 0.8 | AE6: =UPDATE!$D$14 -> 0 | AF6: =VLOOKUP(AE6,$L$9:$O$53,2,FALSE) ->  | AG6: =VLOOKUP(AE6,$L$9:$O$53,3,FALSE) ->  | AH6: =AF6/(AF6+AG6) -> 
B7: American League | G7: AL EAST | K7: Times | L7: AL EAST | S7: =UPDATE!$E$5 -> Astros | T7: 3 | U7: 2 | V7: 0.6 | W7: =UPDATE!$E$8 -> Yankees | X7: 2 | Y7: 3 | Z7: 0.4 | AA7: =UPDATE!$E$11 -> Cardinals | AB7: 3 | AC7: 2 | AD7: 0.6 | AE7: =UPDATE!$E$14 -> 0
B8: East | C8: W | D8: L | E8: PCT | F8: Rank | G8: TEAM | H8: W | I8: L | J8: PCT | K8: Picked | L8: TEAM | M8: W | N8: L | O8: PCT | P8: Rank | S8: =UPDATE!$F$5 -> Brewers | T8: 1 | U8: 4 | V8: 0.2 | W8: =UPDATE!$F$8 -> Phillies | X8: 1 | Y8: 4 | Z8: 0.2 | AA8: =UPDATE!$F$11 -> White Sox | AB8: 5 | AC8: 0 | AD8: 1 | AE8: =UPDATE!$F$14 -> 0
B9: Orioles | C9: =VLOOKUP(B9,Append1[],2,FALSE) -> 52 | D9: =VLOOKUP(B9,Append1[],3,FALSE) -> 109 | E9: =C9/(C9+D9) -> 0.3229813665 | F9: =RANK(E9,E9:E13) -> 5 | G9: BALTIMORE | H9: 50 | I9: 106 | J9: 0.3205128205 | K9: =COUNTIFS(UPDATE!$D$5:$I$13,L9) -> 0 | L9: Orioles | M9: =C9-H9 -> 2 | N9: 3 | O9: =M9/(M9+N9) -> 0.4 | P9: =RANK(O9,O$9:O$13) -> 4 | S9: =UPDATE!$G$5 -> Padres | T9: 1 | U9: 4 | V9: 0.2 | W9: =UPDATE!$G$8 -> White Sox | X9: 5 | Y9: 0 | Z9: 1 | AA9: =UPDATE!$G$11 -> Yankees | AB9: 2 | AC9: 3 | AD9: 0.4 | AE9: =UPDATE!$G$14 -> 0
B10: Red Sox | C10: =VLOOKUP(B10,Append1[],2,FALSE) -> 91 | D10: =VLOOKUP(B10,Append1[],3,FALSE) -> 70 | E10: =C10/(C10+D10) -> 0.5652173913 | F10: =RANK(E10,E9:E13) -> 2 | G10: BOSTON | H10: 88 | I10: 68 | J10: 0.5641025641 | K10: =COUNTIFS(UPDATE!$D$5:$I$13,L10) -> 1 | L10: Red Sox | M10: 3 | N10: 2 | O10: =M10/(M10+N10) -> 0.6 | P10: =RANK(O10,O$9:O$13) -> 1 | S10: =UPDATE!$H$5 -> Indians | T10: 3 | U10: 3 | V10: 0.5 | W10: =UPDATE!$H$8 -> Brewers | X10: 1 | Y10: 4 | Z10: 0.2 | AA10: =UPDATE!$H$11 -> Mariners | AB10: 4 | AC10: 1 | AD10: 0.8 | AE10: =UPDATE!$H$14 -> 0
B11: Yankees | C11: =VLOOKUP(B11,Append1[],2,FALSE) -> 91 | D11: =VLOOKUP(B11,Append1[],3,FALSE) -> 70 | E11: =C11/(C11+D11) -> 0.5652173913 | F11: =RANK(E11,E9:E13) -> 2 | G11: NEW YORK | H11: 89 | I11: 67 | J11: 0.5705128205 | K11: =COUNTIFS(UPDATE!$D$5:$I$13,L11) -> 3 | L11: Yankees | M11: 2 | N11: 3 | O11: =M11/(M11+N11) -> 0.4 | P11: =RANK(O11,O$9:O$13) -> 4 | S11: =UPDATE!$I$5 -> Phillies | T11: 1 | U11: 4 | V11: 0.2 | W11: =UPDATE!$I$8 -> Athletics | X11: 1 | Y11: 4 | Z11: 0.2 | AA11: =UPDATE!$I$11 -> Dodgers | AB11: 5 | AC11: 0 | AD11: 1 | AE11: =UPDATE!$I$14 -> 0
B12: Rays | C12: =VLOOKUP(B12,Append1[],2,FALSE) -> 100 | D12: =VLOOKUP(B12,Append1[],3,FALSE) -> 61 | E12: =C12/(C12+D12) -> 0.6211180124 | F12: =RANK(E12,E9:E13) -> 1 | G12: TAMPA BAY | H12: 97 | I12: 59 | J12: 0.6217948718 | K12: =COUNTIFS(UPDATE!$D$5:$I$13,L12) -> 4 | L12: Rays | M12: 3 | N12: 2 | O12: =M12/(M12+N12) -> 0.6 | P12: =RANK(O12,O$9:O$13) -> 1 | Q12: WEEKLY TOTAL | T12: =SUM(T6:T11) -> 12 | U12: =SUM(U6:U11) -> 19 | V12: 0.3870967742 | X12: =SUM(X6:X11) -> 15 | Y12: =SUM(Y6:Y11) -> 15 | Z12: 0.5 | AB12: =SUM(AB6:AB11) -> 23 | AC12: =SUM(AC6:AC11) -> 7 | AD12: 0.7666666667 | AF12: =SUM(AF6:AF11) ->  | AG12: =SUM(AG6:AG11) -> 
B13: Blue Jays | C13: =VLOOKUP(B13,Append1[],2,FALSE) -> 90 | D13: =VLOOKUP(B13,Append1[],3,FALSE) -> 71 | E13: =C13/(C13+D13) -> 0.5590062112 | F13: =RANK(E13,E9:E13) -> 4 | G13: TORONTO | H13: 87 | I13: 69 | J13: 0.5576923077 | K13: =COUNTIFS(UPDATE!$D$5:$I$13,L13) -> 1 | L13: Blue Jays | M13: 3 | N13: 2 | O13: =M13/(M13+N13) -> 0.6 | P13: =RANK(O13,O$9:O$13) -> 1 | Q13: PREV WEEK TO DATE | T13: 492 | U13: 446 | V13: 0.5245202559 | X13: 496 | Y13: 442 | Z13: 0.5287846482 | AB13: 537 | AC13: 402 | AD13: 0.571884984
Q14: CUR TOTAL TO DATE | T14: =SUM(T12:T13) -> 504 | U14: =SUM(U12:U13) -> 465 | V14: =IF(T14>0,T14/(T14+U14),0) -> 0.520123839 | X14: =SUM(X12:X13) -> 511 | Y14: =SUM(Y12:Y13) -> 457 | Z14: =X14/(X14+Y14) -> 0.527892562 | AB14: =SUM(AB12:AB13) -> 560 | AC14: =SUM(AC12:AC13) -> 409 | AD14: =AB14/(AB14+AC14) -> 0.5779153767 | AF14: =SUM(AF12:AF13) ->  | AG14: =SUM(AG12:AG13) ->  | AH14: =AF14/(AF14+AG14) -> 
G15: AL CENTRAL | L15: AL CENTRAL
B16: Central | C16: W | D16: L | E16: PCT | G16: TEAM | H16: W | I16: L | J16: PCT | L16: TEAM | M16: W | N16: L | O16: PCT
B17: White Sox | C17: =VLOOKUP(B17,Append1[],2,FALSE) -> 93 | D17: =VLOOKUP(B17,Append1[],3,FALSE) -> 68 | E17: =C17/(C17+D17) -> 0.5776397516 | F17: =RANK(E17,E17:E21) -> 1 | G17: CHICAGO | H17: 88 | I17: 68 | J17: 0.5641025641 | K17: =COUNTIFS(UPDATE!$D$5:$I$13,L17) -> 7 | L17: White Sox | M17: =C17-H17 -> 5 | N17: 0 | O17: =M17/(M17+N17) -> 1 | P17: =RANK(O17,O$17:O$21) -> 1 | Q17: SEASON TLT TO DATE | T17: 412 | U17: 371 | V17: 0.5261813538 | X17: 412 | Y17: 375 | Z17: 0.5235069886 | AB17: 450 | AC17: 338 | AD17: 0.5710659898
B18: Indians | C18: =VLOOKUP(B18,Append1[],2,FALSE) -> 79 | D18: =VLOOKUP(B18,Append1[],3,FALSE) -> 82 | E18: =C18/(C18+D18) -> 0.4906832298 | F18: =RANK(E18,E17:E21) -> 2 | G18: CLEVELAND | H18: 76 | I18: 79 | J18: 0.4903225806 | K18: =COUNTIFS(UPDATE!$D$5:$I$13,L18) -> 2 | L18: Indians | M18: 3 | N18: 3 | O18: =M18/(M18+N18) -> 0.5 | P18: =RANK(O18,O$17:O$21) -> 3 | Q18: =$N$3&" TOTAL TO DATE" -> OCTOBER TOTAL TO DATE | T18: =T14-T17 -> 92 | U18: =U14-U17 -> 94 | V18: =IF(T18>0,T18/(T18+U18),0) -> 0.4946236559 | X18: =X14-X17 -> 99 | Y18: =Y14-Y17 -> 82 | Z18: =X18/(X18+Y18) -> 0.546961326 | AB18: =AB14-AB17 -> 110 | AC18: =AC14-AC17 -> 71 | AD18: =AB18/(AB18+AC18) -> 0.6077348066 | AF18: =AF14-AF17 ->  | AG18: =AG14-AG17 ->  | AH18: =AF18/(AF18+AG18) -> 
B19: Tigers | C19: =VLOOKUP(B19,Append1[],2,FALSE) -> 76 | D19: =VLOOKUP(B19,Append1[],3,FALSE) -> 85 | E19: =C19/(C19+D19) -> 0.4720496894 | F19: =RANK(E19,E17:E21) -> 3 | G19: DETROIT | H19: 75 | I19: 80 | J19: 0.4838709677 | K19: =COUNTIFS(UPDATE!$D$5:$I$13,L19) -> 0 | L19: Tigers | M19: 1 | N19: 5 | O19: =M19/(M19+N19) -> 0.1666666667 | P19: =RANK(O19,O$17:O$21) -> 5
B20: Royals | C20: =VLOOKUP(B20,Append1[],2,FALSE) -> 74 | D20: =VLOOKUP(B20,Append1[],3,FALSE) -> 87 | E20: =C20/(C20+D20) -> 0.4596273292 | F20: =RANK(E20,E17:E21) -> 4 | G20: KANSAS CITY | H20: 71 | I20: 84 | J20: 0.4580645161 | K20: =COUNTIFS(UPDATE!$D$5:$I$13,L20) -> 0 | L20: Royals | M20: 3 | N20: 3 | O20: =M20/(M20+N20) -> 0.5 | P20: =RANK(O20,O$17:O$21) -> 3
B21: Twins | C21: =VLOOKUP(B21,Append1[],2,FALSE) -> 72 | D21: =VLOOKUP(B21,Append1[],3,FALSE) -> 89 | E21: =C21/(C21+D21) -> 0.4472049689 | F21: =RANK(E21,E17:E21) -> 5 | G21: MINNESOTA | H21: 69 | I21: 87 | J21: 0.4423076923 | K21: =COUNTIFS(UPDATE!$D$5:$I$13,L21) -> 0 | L21: Twins | M21: 3 | N21: 2 | O21: =M21/(M21+N21) -> 0.6 | P21: =RANK(O21,O$17:O$21) -> 2 | S21: =UPDATE!$C$6 -> JIM T. | W21: =UPDATE!$C$9 -> JEAN | AA21: =UPDATE!$C$12 -> DIANE | AE21: =UPDATE!$C$15 -> 0
S22: RANK | T22: W | U22: L | V22: PCT | W22: RANK | X22: W | Y22: L | Z22: PCT | AA22: RANK | AB22: W | AC22: L | AD22: PCT | AE22: RANK | AF22: W | AG22: L | AH22: PCT
G23: AL WEST | L23: AL WEST | S23: =UPDATE!$D$6 -> Rays | T23: =VLOOKUP(S23,$L$9:$O$53,2,FALSE) -> 3 | U23: =VLOOKUP(S23,$L$9:$O$53,3,FALSE) -> 2 | V23: =T23/(T23+U23) -> 0.6 | W23: =UPDATE!$D$9 -> Rays | X23: =VLOOKUP(W23,$L$9:$O$53,2,FALSE) -> 3 | Y23: =VLOOKUP(W23,$L$9:$O$53,3,FALSE) -> 2 | Z23: =X23/(X23+Y23) -> 0.6 | AA23: =UPDATE!$D$12 -> Brewers | AB23: =VLOOKUP(AA23,$L$9:$O$53,2,FALSE) -> 1 | AC23: =VLOOKUP(AA23,$L$9:$O$53,3,FALSE) -> 4 | AD23: =AB23/(AB23+AC23) -> 0.2 | AE23: =UPDATE!$D$15 -> 0 | AF23: =VLOOKUP(AE23,$L$9:$O$53,2,FALSE) ->  | AG23: =VLOOKUP(AE23,$L$9:$O$53,3,FALSE) ->  | AH23: =AF23/(AF23+AG23) -> 
B24: West | C24: W | D24: L | E24: PCT | G24: TEAM | H24: W | I24: L | J24: PCT | L24: TEAM | M24: W | N24: L | O24: PCT | S24: =UPDATE!$E$6 -> White Sox | T24: 5 | U24: 0 | V24: 1 | W24: =UPDATE!$E$9 -> Astros | X24: 3 | Y24: 2 | Z24: 0.6 | AA24: =UPDATE!$E$12 -> White Sox | AB24: 5 | AC24: 0 | AD24: 1 | AE24: =UPDATE!$E$15 -> 0
B25: Angels | C25: =VLOOKUP(B25,Append1[],2,FALSE) -> 76 | D25: =VLOOKUP(B25,Append1[],3,FALSE) -> 85 | E25: =C25/(C25+D25) -> 0.4720496894 | F25: =RANK(E25,E25:E29) -> 4 | G25: LOS ANGELES | H25: 74 | I25: 82 | J25: 0.4743589744 | K25: =COUNTIFS(UPDATE!$D$5:$I$13,L25) -> 0 | L25: Angels | M25: =C25-H25 -> 2 | N25: 3 | O25: =M25/(M25+N25) -> 0.4 | P25: =RANK(O25,O$25:O$29) -> 4 | S25: =UPDATE!$F$6 -> Astros | T25: 3 | U25: 2 | V25: 0.6 | W25: =UPDATE!$F$9 -> Phillies | X25: 1 | Y25: 4 | Z25: 0.2 | AA25: =UPDATE!$F$12 -> Dodgers | AB25: 5 | AC25: 0 | AD25: 1 | AE25: =UPDATE!$F$15 -> 0
B26: Athletics | C26: =VLOOKUP(B26,Append1[],2,FALSE) -> 86 | D26: =VLOOKUP(B26,Append1[],3,FALSE) -> 75 | E26: =C26/(C26+D26) -> 0.5341614907 | F26: =RANK(E26,E25:E29) -> 3 | G26: OAKLAND | H26: 85 | I26: 71 | J26: 0.5448717949 | K26: =COUNTIFS(UPDATE!$D$5:$I$13,L26) -> 2 | L26: Athletics | M26: 1 | N26: 4 | O26: =M26/(M26+N26) -> 0.2 | P26: =RANK(O26,O$25:O$29) -> 5 | S26: =UPDATE!$G$6 -> Braves | T26: 4 | U26: 1 | V26: 0.8 | W26: =UPDATE!$G$9 -> Cardinals | X26: 3 | Y26: 2 | Z26: 0.6 | AA26: =UPDATE!$G$12 -> Astros | AB26: 3 | AC26: 2 | AD26: 0.6 | AE26: =UPDATE!$G$15 -> 0
B27: Mariners | C27: =VLOOKUP(B27,Append1[],2,FALSE) -> 90 | D27: =VLOOKUP(B27,Append1[],3,FALSE) -> 71 | E27: =C27/(C27+D27) -> 0.5590062112 | F27: =RANK(E27,E25:E29) -> 2 | G27: SEATTLE | H27: 86 | I27: 70 | J27: 0.5512820513 | K27: =COUNTIFS(UPDATE!$D$5:$I$13,L27) -> 1 | L27: Mariners | M27: 4 | N27: 1 | O27: =M27/(M27+N27) -> 0.8 | P27: =RANK(O27,O$25:O$29) -> 1 | S27: =UPDATE!$H$6 -> Brewers | T27: 1 | U27: 4 | V27: 0.2 | W27: =UPDATE!$H$9 -> Padres | X27: 1 | Y27: 4 | Z27: 0.2 | AA27: =UPDATE!$H$12 -> Yankees | AB27: 2 | AC27: 3 | AD27: 0.4 | AE27: =UPDATE!$H$15 -> 0
B28: Rangers | C28: =VLOOKUP(B28,Append1[],2,FALSE) -> 60 | D28: =VLOOKUP(B28,Append1[],3,FALSE) -> 101 | E28: =C28/(C28+D28) -> 0.3726708075 | F28: =RANK(E28,E25:E29) -> 5 | G28: TEXAS | H28: 57 | I28: 99 | J28: 0.3653846154 | K28: =COUNTIFS(UPDATE!$D$5:$I$13,L28) -> 0 | L28: Rangers | M28: 3 | N28: 2 | O28: =M28/(M28+N28) -> 0.6 | P28: =RANK(O28,O$25:O$29) -> 2 | S28: =UPDATE!$I$6 -> Dodgers | T28: 5 | U28: 0 | V28: 1 | W28: =UPDATE!$I$9 -> White Sox | X28: 5 | Y28: 0 | Z28: 1 | AA28: =UPDATE!$I$12 -> Phillies | AB28: 1 | AC28: 4 | AD28: 0.2 | AE28: =UPDATE!$I$15 -> 0
B29: Astros | C29: =VLOOKUP(B29,Append1[],2,FALSE) -> 94 | D29: =VLOOKUP(B29,Append1[],3,FALSE) -> 67 | E29: =C29/(C29+D29) -> 0.5838509317 | F29: =RANK(E29,E25:E29) -> 1 | G29: HOUSTON | H29: 91 | I29: 65 | J29: 0.5833333333 | K29: =COUNTIFS(UPDATE!$D$5:$I$13,L29) -> 6 | L29: Astros | M29: 3 | N29: 2 | O29: =M29/(M29+N29) -> 0.6 | P29: =RANK(O29,O$25:O$29) -> 2 | Q29: WEEKLY TOTAL | T29: =SUM(T23:T28) -> 21 | U29: =SUM(U23:U28) -> 9 | V29: 0.7 | X29: =SUM(X23:X28) -> 16 | Y29: =SUM(Y23:Y28) -> 14 | Z29: 0.5333333333 | AB29: =SUM(AB23:AB28) -> 17 | AC29: =SUM(AC23:AC28) -> 13 | AD29: 0.5666666667 | AF29: =SUM(AF23:AF28) ->  | AG29: =SUM(AG23:AG28) -> 
Q30: PREV WEEK TO DATE | T30: 520 | U30: 418 | V30: 0.5543710021 | X30: 487 | Y30: 442 | Z30: 0.524219591 | AB30: 502 | AC30: 434 | AD30: 0.5363247863
B31: National League | G31: NL EAST | L31: NL EAST | Q31: CUR TOTAL TO DATE | T31: =SUM(T29:T30) -> 541 | U31: =SUM(U29:U30) -> 427 | V31: =T31/(T31+U31) -> 0.5588842975 | X31: =SUM(X29:X30) -> 503 | Y31: =SUM(Y29:Y30) -> 456 | Z31: =X31/(X31+Y31) -> 0.5245046924 | AB31: =SUM(AB29:AB30) -> 519 | AC31: =SUM(AC29:AC30) -> 447 | AD31: =AB31/(AB31+AC31) -> 0.5372670807 | AF31: =SUM(AF29:AF30) ->  | AG31: =SUM(AG29:AG30) ->  | AH31: =AF31/(AF31+AG31) -> 
B32: East | C32: W | D32: L | E32: PCT | G32: TEAM | H32: W | I32: L | J32: PCT | L32: TEAM | M32: W | N32: L | O32: PCT
B33: Braves | C33: =VLOOKUP(B33,Append1[],2,FALSE) -> 87 | D33: =VLOOKUP(B33,Append1[],3,FALSE) -> 73 | E33: =C33/(C33+D33) -> 0.54375 | F33: =RANK(E33,E33:E37) -> 1 | G33: ATLANTA | H33: 83 | I33: 72 | J33: 0.535483871 | K33: =COUNTIFS(UPDATE!$D$5:$I$13,L33) -> 3 | L33: Braves | M33: =C33-H33 -> 4 | N33: 1 | O33: =M33/(M33+N33) -> 0.8 | P33: =RANK(O33,O$33:O$37) -> 1
B34: Marlins | C34: =VLOOKUP(B34,Append1[],2,FALSE) -> 66 | D34: =VLOOKUP(B34,Append1[],3,FALSE) -> 95 | E34: =C34/(C34+D34) -> 0.4099378882 | F34: =RANK(E34,E33:E37) -> 4 | G34: Miami | H34: 64 | I34: 91 | J34: 0.4129032258 | K34: =COUNTIFS(UPDATE!$D$5:$I$13,L34) -> 0 | L34: Marlins | M34: 2 | N34: 4 | O34: =M34/(M34+N34) -> 0.3333333333 | P34: =RANK(O34,O$33:O$37) -> 3 | Q34: SEASON TLT TO DATE | T34: 433 | U34: 353 | V34: 0.5508905852 | X34: 401 | Y34: 374 | Z34: 0.5174193548 | AB34: 415 | AC34: 369 | AD34: 0.5293367347
B35: Mets | C35: =VLOOKUP(B35,Append1[],2,FALSE) -> 77 | D35: =VLOOKUP(B35,Append1[],3,FALSE) -> 84 | E35: =C35/(C35+D35) -> 0.4782608696 | F35: =RANK(E35,E33:E37) -> 3 | G35: NEW YORK | H35: 73 | I35: 82 | J35: 0.4709677419 | K35: =COUNTIFS(UPDATE!$D$5:$I$13,L35) -> 0 | L35: Mets | M35: 4 | N35: 2 | O35: =M35/(M35+N35) -> 0.6666666667 | P35: =RANK(O35,O$33:O$37) -> 2 | Q35: =$N$3&" TOTAL TO DATE" -> OCTOBER TOTAL TO DATE | T35: =T31-T34 -> 108 | U35: =U31-U34 -> 74 | V35: =T35/(T35+U35) -> 0.5934065934 | X35: =X31-X34 -> 102 | Y35: =Y31-Y34 -> 82 | Z35: =X35/(X35+Y35) -> 0.5543478261 | AB35: =AB31-AB34 -> 104 | AC35: =AC31-AC34 -> 78 | AD35: =AB35/(AB35+AC35) -> 0.5714285714 | AF35: =AF31-AF34 ->  | AG35: =AG31-AG34 ->  | AH35: =AF35/(AF35+AG35) -> 
B36: Phillies | C36: =VLOOKUP(B36,Append1[],2,FALSE) -> 82 | D36: =VLOOKUP(B36,Append1[],3,FALSE) -> 79 | E36: =C36/(C36+D36) -> 0.5093167702 | F36: =RANK(E36,E33:E37) -> 2 | G36: PHILADELPHIA | H36: 81 | I36: 75 | J36: 0.5192307692 | K36: =COUNTIFS(UPDATE!$D$5:$I$13,L36) -> 5 | L36: Phillies | M36: 1 | N36: 4 | O36: =M36/(M36+N36) -> 0.2 | P36: =RANK(O36,O$33:O$37) -> 4
B37: Nationals | C37: =VLOOKUP(B37,Append1[],2,FALSE) -> 65 | D37: =VLOOKUP(B37,Append1[],3,FALSE) -> 96 | E37: =C37/(C37+D37) -> 0.4037267081 | F37: =RANK(E37,E33:E37) -> 5 | G37: WASHINGTON | H37: 64 | I37: 92 | J37: 0.4102564103 | K37: =COUNTIFS(UPDATE!$D$5:$I$13,L37) -> 1 | L37: Nationals | M37: 1 | N37: 4 | O37: =M37/(M37+N37) -> 0.2 | P37: =RANK(O37,O$33:O$37) -> 4
S38: =UPDATE!$C$7 -> JIM K. | W38: =UPDATE!$C$10 -> TIM | AA38: =UPDATE!$C$13 -> ----- | AE38: =UPDATE!$C$16 -> 0
G39: NL CENTRAL | L39: NL CENTRAL | S39: RANK | T39: W | U39: L | V39: PCT | W39: RANK | X39: W | Y39: L | Z39: PCT | AA39: RANK | AB39: W | AC39: L | AD39: PCT | AE39: RANK | AF39: W | AG39: L | AH39: PCT
B40: Central | C40: W | D40: L | E40: PCT | G40: TEAM | H40: W | I40: L | J40: PCT | L40: TEAM | M40: W | N40: L | O40: PCT | S40: =UPDATE!$D$7 -> Giants | T40: =VLOOKUP(S40,$L$9:$O$53,2,FALSE) -> 4 | U40: =VLOOKUP(S40,$L$9:$O$53,3,FALSE) -> 1 | V40: =T40/(T40+U40) -> 0.8 | W40: =UPDATE!$D$10 -> Giants | X40: =VLOOKUP(W40,$L$9:$O$53,2,FALSE) -> 4 | Y40: =VLOOKUP(W40,$L$9:$O$53,3,FALSE) -> 1 | Z40: =X40/(X40+Y40) -> 0.8 | AE40: =UPDATE!$D$16 -> 0 | AF40: =VLOOKUP(AE40,$L$9:$O$53,2,FALSE) ->  | AG40: =VLOOKUP(AE40,$L$9:$O$53,3,FALSE) ->  | AH40: =AF40/(AF40+AG40) -> 
B41: Cubs | C41: =VLOOKUP(B41,Append1[],2,FALSE) -> 70 | D41: =VLOOKUP(B41,Append1[],3,FALSE) -> 91 | E41: =C41/(C41+D41) -> 0.4347826087 | F41: =RANK(E41,E41:E45) -> 4 | G41: CHICAGO | H41: 67 | I41: 89 | J41: 0.4294871795 | K41: =COUNTIFS(UPDATE!$D$5:$I$13,L41) -> 2 | L41: Cubs | M41: =C41-H41 -> 3 | N41: 2 | O41: =M41/(M41+N41) -> 0.6 | P41: =RANK(O41,O$41:O$45) -> 1 | S41: =UPDATE!$E$7 -> White Sox | T41: 5 | U41: 0 | V41: 1 | W41: =UPDATE!$E$10 -> Rays | X41: 3 | Y41: 2 | Z41: 0.6 | AE41: =UPDATE!$E$16 -> 0
B42: Reds | C42: =VLOOKUP(B42,Append1[],2,FALSE) -> 82 | D42: =VLOOKUP(B42,Append1[],3,FALSE) -> 79 | E42: =C42/(C42+D42) -> 0.5093167702 | F42: =RANK(E42,E41:E45) -> 3 | G42: CINCINNATI | H42: 81 | I42: 75 | J42: 0.5192307692 | K42: =COUNTIFS(UPDATE!$D$5:$I$13,L42) -> 0 | L42: Reds | M42: 1 | N42: 4 | O42: =M42/(M42+N42) -> 0.2 | P42: =RANK(O42,O$41:O$45) -> 4 | S42: =UPDATE!$F$7 -> Red Sox | T42: 3 | U42: 2 | V42: 0.6 | W42: =UPDATE!$F$10 -> Brewers | X42: 1 | Y42: 4 | Z42: 0.2 | AE42: =UPDATE!$F$16 -> 0
B43: Brewers | C43: =VLOOKUP(B43,Append1[],2,FALSE) -> 95 | D43: =VLOOKUP(B43,Append1[],3,FALSE) -> 66 | E43: =C43/(C43+D43) -> 0.5900621118 | F43: =RANK(E43,E41:E45) -> 1 | G43: MILWAUKEE | H43: 94 | I43: 62 | J43: 0.6025641026 | K43: =COUNTIFS(UPDATE!$D$5:$I$13,L43) -> 5 | L43: Brewers | M43: 1 | N43: 4 | O43: =M43/(M43+N43) -> 0.2 | P43: =RANK(O43,O$41:O$45) -> 4 | S43: =UPDATE!$G$7 -> Athletics | T43: 1 | U43: 4 | V43: 0.2 | W43: =UPDATE!$G$10 -> Astros | X43: 3 | Y43: 2 | Z43: 0.6 | AE43: =UPDATE!$G$16 -> 0
B44: Pirates | C44: =VLOOKUP(B44,Append1[],2,FALSE) -> 61 | D44: =VLOOKUP(B44,Append1[],3,FALSE) -> 100 | E44: =C44/(C44+D44) -> 0.3788819876 | F44: =RANK(E44,E41:E45) -> 5 | G44: PITTSBURGH | H44: 58 | I44: 97 | J44: 0.3741935484 | K44: =COUNTIFS(UPDATE!$D$5:$I$13,L44) -> 0 | L44: Pirates | M44: 3 | N44: 3 | O44: =M44/(M44+N44) -> 0.5 | P44: =RANK(O44,O$41:O$45) -> 3 | S44: =UPDATE!$H$7 -> Phillies | T44: 1 | U44: 4 | V44: 0.2 | W44: =UPDATE!$H$10 -> White Sox | X44: 5 | Y44: 0 | Z44: 1 | AE44: =UPDATE!$H$16 -> 0
B45: Cardinals | C45: =VLOOKUP(B45,Append1[],2,FALSE) -> 90 | D45: =VLOOKUP(B45,Append1[],3,FALSE) -> 71 | E45: =C45/(C45+D45) -> 0.5590062112 | F45: =RANK(E45,E41:E45) -> 2 | G45: ST LOUIS | H45: 87 | I45: 69 | J45: 0.5576923077 | K45: =COUNTIFS(UPDATE!$D$5:$I$13,L45) -> 2 | L45: Cardinals | M45: 3 | N45: 2 | O45: =M45/(M45+N45) -> 0.6 | P45: =RANK(O45,O$41:O$45) -> 1 | S45: =UPDATE!$I$7 -> Cubs | T45: 3 | U45: 2 | V45: 0.6 | W45: =UPDATE!$I$10 -> Braves | X45: 4 | Y45: 1 | Z45: 0.8 | AE45: =UPDATE!$I$16 -> 0
Q46: WEEKLY TOTAL | T46: =SUM(T40:T45) -> 17 | U46: =SUM(U40:U45) -> 13 | V46: 0.5666666667 | X46: =SUM(X40:X45) -> 20 | Y46: =SUM(Y40:Y45) -> 10 | Z46: 0.6666666667 | AB46: =SUM(AB40:AB45) -> 0 | AC46: 30 | AD46: =IF(AB46<>0,AB46/(AB46+AC46),"") ->  | AF46: =SUM(AF40:AF45) ->  | AG46: =SUM(AG40:AG45) -> 
G47: NL WEST | L47: NL WEST | Q47: PREV WEEK TO DATE | T47: 489 | U47: 440 | V47: 0.5263724435 | X47: 511 | Y47: 435 | Z47: 0.5401691332 | AB47: 0 | AC47: 760
B48: West | C48: W | D48: L | E48: PCT | G48: TEAM | H48: W | I48: L | J48: PCT | L48: TEAM | M48: W | N48: L | O48: PCT | Q48: CUR TOTAL TO DATE | T48: =SUM(T46:T47) -> 506 | U48: =SUM(U46:U47) -> 453 | V48: =T48/(T48+U48) -> 0.527632951 | X48: =SUM(X46:X47) -> 531 | Y48: =SUM(Y46:Y47) -> 445 | Z48: =X48/(X48+Y48) -> 0.544057377 | AB48: =SUM(AB46:AB47) -> 0 | AC48: =SUM(AC46:AC47) -> 790 | AD48: =IF(AB48<>0,AB48/(AB48+AC48),"") ->  | AF48: =SUM(AF46:AF47) ->  | AG48: =SUM(AG46:AG47) ->  | AH48: =AF48/(AF48+AG48) -> 
B49: Diamondbacks | C49: =VLOOKUP(B49,Append1[],2,FALSE) -> 51 | D49: =VLOOKUP(B49,Append1[],3,FALSE) -> 110 | E49: =C49/(C49+D49) -> 0.3167701863 | F49: =RANK(E49,E49:E53) -> 5 | G49: ARIZONA | H49: 50 | I49: 106 | J49: 0.3205128205 | K49: =COUNTIFS(UPDATE!$D$5:$I$13,L49) -> 0 | L49: Diamondbacks | M49: =C49-H49 -> 1 | N49: 4 | O49: =M49/(M49+N49) -> 0.2 | P49: =RANK(O49,O$49:O$53) -> 4
B50: Rockies | C50: =VLOOKUP(B50,Append1[],2,FALSE) -> 74 | D50: =VLOOKUP(B50,Append1[],3,FALSE) -> 86 | E50: =C50/(C50+D50) -> 0.4625 | F50: =RANK(E50,E49:E53) -> 4 | G50: COLORADO | H50: 71 | I50: 84 | J50: 0.4580645161 | K50: =COUNTIFS(UPDATE!$D$5:$I$13,L50) -> 0 | L50: Rockies | M50: 3 | N50: 2 | O50: =M50/(M50+N50) -> 0.6 | P50: =RANK(O50,O$49:O$53) -> 3
B51: Dodgers | C51: =VLOOKUP(B51,Append1[],2,FALSE) -> 105 | D51: =VLOOKUP(B51,Append1[],3,FALSE) -> 56 | E51: =C51/(C51+D51) -> 0.652173913 | F51: =RANK(E51,E49:E53) -> 2 | G51: LOS ANGELES | H51: 100 | I51: 56 | J51: 0.641025641 | K51: =COUNTIFS(UPDATE!$D$5:$I$13,L51) -> 4 | L51: Dodgers | M51: 5 | N51: 0 | O51: =M51/(M51+N51) -> 1 | P51: =RANK(O51,O$49:O$53) -> 1 | Q51: SEASON TLT TO DATE | T51: 408 | U51: 372 | V51: 0.5230769231 | X51: 424 | Y51: 369 | Z51: 0.5346784363 | AB51: 0 | AC51: 640
B52: Padres | C52: =VLOOKUP(B52,Append1[],2,FALSE) -> 79 | D52: =VLOOKUP(B52,Append1[],3,FALSE) -> 82 | E52: =C52/(C52+D52) -> 0.4906832298 | F52: =RANK(E52,E49:E53) -> 3 | G52: SAN DIEGO | H52: 78 | I52: 78 | J52: 0.5 | K52: =COUNTIFS(UPDATE!$D$5:$I$13,L52) -> 3 | L52: Padres | M52: 1 | N52: 4 | O52: =M52/(M52+N52) -> 0.2 | P52: =RANK(O52,O$49:O$53) -> 4 | Q52: =$N$3&" TOTAL TO DATE" -> OCTOBER TOTAL TO DATE | T52: =T48-T51 -> 98 | U52: =U48-U51 -> 81 | V52: =T52/(T52+U52) -> 0.5474860335 | X52: =X48-X51 -> 107 | Y52: =Y48-Y51 -> 76 | Z52: =X52/(X52+Y52) -> 0.5846994536 | AB52: =AB48-AB51 -> 0 | AC52: =AC48-AC51 -> 150 | AD52: =IF(AB52<>0,AB52/(AB52+AC52),"") ->  | AF52: =AF48-AF51 ->  | AG52: =AG48-AG51 ->  | AH52: =AF52/(AF52+AG52) -> 
B53: Giants | C53: =VLOOKUP(B53,Append1[],2,FALSE) -> 106 | D53: =VLOOKUP(B53,Append1[],3,FALSE) -> 55 | E53: =C53/(C53+D53) -> 0.6583850932 | F53: =RANK(E53,E49:E53) -> 1 | G53: SAN FRANCISCO | H53: 102 | I53: 54 | J53: 0.6538461538 | K53: =COUNTIFS(UPDATE!$D$5:$I$13,L53) -> 2 | L53: Giants | M53: 4 | N53: 1 | O53: =M53/(M53+N53) -> 0.8 | P53: =RANK(O53,O$49:O$53) -> 2
M54: =SUM(M9:M53) -> 78 | N54: =SUM(N9:N53) -> 78
D55: =TODAY() -> 2022-03-05 | E55: =" Morning" -> Morning
C57: ="WEEK " & M3 -> WEEK 26
C58: NAME | D58: W | E58: L | F58: PCT | G58: GB
C59: =UPDATE!$C$11 -> LARRY | D59: =$AB$12 -> 23 | E59: =$AC$12 -> 7 | F59: =IF(E59+D59<>0,D59/(D59+E59)) -> 0.7666666667 | G59: =IF(C59="-----","-----",SUM($D$59,-D59,E59,-$E$59)/2) -> 0
C60: =UPDATE!$C$6 -> JIM T. | D60: =$T$29 -> 21 | E60: =$U$29 -> 9 | F60: 0.7 | G60: 2
C61: =UPDATE!$C$10 -> TIM | D61: =$X$46 -> 20 | E61: =$Y$46 -> 10 | F61: 0.6666666667 | G61: 3
C62: =IF(UPDATE!$C$12<>"",UPDATE!$C$12,"") -> DIANE | D62: =$AB$29 -> 17 | E62: =$AC$29 -> 13 | F62: 0.5666666667 | G62: 6
C63: =UPDATE!$C$7 -> JIM K. | D63: =$T$46 -> 17 | E63: =$U$46 -> 13 | F63: 0.5666666667 | G63: 6
C64: =UPDATE!$C$9 -> JEAN | D64: =$X$29 -> 16 | E64: =$Y$29 -> 14 | F64: 0.5333333333 | G64: 7
C65: =UPDATE!$C$8 -> JOHN | D65: =$X$12 -> 15 | E65: =$Y$12 -> 15 | F65: 0.5 | G65: 8
C66: =UPDATE!$C$5 -> MIKE | D66: =$T$12 -> 12 | E66: =$U$12 -> 19 | F66: 0.3870967742 | G66: 11.5
C67: =IF(UPDATE!$C$13<>"",UPDATE!$C$13,"") -> ----- | D67: =IF(UPDATE!$C$13<>"",$AB$46,"") -> 0 | E67: =IF(UPDATE!$C$13<>"",$AC$46,"") -> 30 | F67: 0 | G67: =IF(C67="-----","-----",SUM($D$59,-D67,E67,-$E$59)/2) -> -----
C68: =IF(UPDATE!$C$14<>"",UPDATE!$C$14,"") ->  | D68: =IF(UPDATE!$C$14<>"",$AB$46,"") ->  | E68: =IF(UPDATE!$C$14<>"",$AC$46,"") ->  | F68: =IF(UPDATE!$C$14<>"",D68/(D68+E68),"") ->  | G68: =IF(UPDATE!$C$14<>"",SUM($D$59,-D68,E68,-$E$59)/2,"") -> 
C69: =IF(UPDATE!$C$15<>"",UPDATE!$C$15,"") ->  | D69: =IF(UPDATE!$C$15<>"",$AB$46,"") ->  | E69: =IF(UPDATE!$C$15<>"",$AC$46,"") ->  | F69: =IF(UPDATE!$C$15<>"",D69/(D69+E69),"") ->  | G69: =IF(UPDATE!$C$15<>"",SUM($D$59,-D69,E69,-$E$59)/2,"") -> 
C70: =IF(UPDATE!$C$16<>"",UPDATE!$C$16,"") ->  | D70: =IF(UPDATE!$C$16<>"",$AB$46,"") ->  | E70: =IF(UPDATE!$C$16<>"",$AC$46,"") ->  | F70: =IF(UPDATE!$C$16<>"",D70/(D70+E70),"") ->  | G70: =IF(UPDATE!$C$16<>"",SUM($D$59,-D70,E70,-$E$59)/2,"") -> 
C72: ="MONTH OF " & $N$3 -> MONTH OF OCTOBER
C73: NAME | D73: W | E73: L | F73: PCT | G73: GB
C74: =UPDATE!$C$11 -> LARRY | D74: =$AB$18 -> 110 | E74: =$AC$18 -> 71 | F74: =IF(E74+D74<>0,D74/(D74+E74)) -> 0.6077348066 | G74: =IF(C74="-----","-----",SUM($D$74,-D74,E74,-$E$74)/2) -> 0
C75: =UPDATE!$C$6 -> JIM T. | D75: =$T$35 -> 108 | E75: =$U$35 -> 74 | F75: 0.5934065934 | G75: =IF(C75="-----","-----",SUM($D$74,-D75,E75,-$E$74)/2) -> 2.5
C76: =UPDATE!$C$10 -> TIM | D76: =$X$52 -> 107 | E76: =$Y$52 -> 76 | F76: 0.5846994536 | G76: 4
C77: =UPDATE!$C$12 -> DIANE | D77: =$AB$35 -> 104 | E77: =$AC$35 -> 78 | F77: 0.5714285714 | G77: 6.5
C78: =UPDATE!$C$9 -> JEAN | D78: =$X$35 -> 102 | E78: =$Y$35 -> 82 | F78: 0.5543478261 | G78: 9.5
C79: =UPDATE!$C$7 -> JIM K. | D79: =$T$52 -> 98 | E79: =$U$52 -> 81 | F79: 0.5474860335 | G79: 11
C80: =UPDATE!$C$8 -> JOHN | D80: =$X$18 -> 99 | E80: =$Y$18 -> 82 | F80: 0.546961326 | G80: 11
C81: =UPDATE!$C$5 -> MIKE | D81: =$T$18 -> 92 | E81: =$U$18 -> 94 | F81: 0.4946236559 | G81: 20.5
C82: =UPDATE!$C$13 -> ----- | D82: =$AB$52 -> 0 | E82: =$AC$52 -> 150 | F82: 0 | G82: -----
C83: =IF(UPDATE!$C$14<>"",UPDATE!$C$14,"") ->  | D83: =IF(UPDATE!$C$14<>"",$AF$12,"") ->  | E83: =IF(UPDATE!$C$14<>"",$AG$12,"") ->  | F83: =IF(UPDATE!$C$14<>"",D83/(D83+E83),"") ->  | G83: =IF(UPDATE!$C$14<>"",SUM($D$74,-D83,E83,-$E$74)/2,"") -> 
C84: =IF(UPDATE!$C$15<>"",UPDATE!$C$15,"") ->  | D84: =IF(UPDATE!$C$15<>"",$AF$35,"") ->  | E84: =IF(UPDATE!$C$15<>"",$AG$35,"") ->  | F84: =IF(UPDATE!$C$15<>"",D84/(D84+E84),"") ->  | G84: =IF(UPDATE!$C$14<>"",SUM($D$74,-D84,E84,-$E$74)/2,"") -> 
C85: =IF(UPDATE!$C$16<>"",UPDATE!$C$16,"") ->  | D85: =IF(UPDATE!$C$16<>"",$AF$52,"") ->  | E85: =IF(UPDATE!$C$16<>"",$AG$52,"") ->  | F85: =IF(UPDATE!$C$16<>"",D85/(D85+E85),"") ->  | G85: =IF(UPDATE!$C$14<>"",SUM($D$74,-D85,E85,-$E$74)/2,"") -> 
C86: =YEAR(TODAY()) -> 2022 | E86: SEASON
C87: NAME | D87: W | E87: L | F87: PCT | G87: GB
C88: =UPDATE!$C$11 -> LARRY | D88: =$AB$14 -> 560 | E88: =$AC$14 -> 409 | F88: =IF(E88<>0,D88/(D88+E88)) -> 0.5779153767 | G88: =IF(C88="-----","-----",SUM($D$88,-D88,E88,-$E$88)/2) -> 0
C89: =UPDATE!$C$6 -> JIM T. | D89: =$T$31 -> 541 | E89: =$U$31 -> 427 | F89: 0.5588842975 | G89: =IF(C89="-----","-----",SUM($D$88,-D89,E89,-$E$88)/2) -> 18.5
C90: =UPDATE!$C$10 -> TIM | D90: =$X$48 -> 531 | E90: =$Y$48 -> 445 | F90: 0.544057377 | G90: 32.5
C91: =UPDATE!$C$12 -> DIANE | D91: =$AB$31 -> 519 | E91: =$AC$31 -> 447 | F91: 0.5372670807 | G91: 39.5
C92: =UPDATE!$C$8 -> JOHN | D92: =$X$14 -> 511 | E92: =$Y$14 -> 457 | F92: 0.527892562 | G92: 48.5
C93: =UPDATE!$C$7 -> JIM K. | D93: =$T$48 -> 506 | E93: =$U$48 -> 453 | F93: 0.527632951 | G93: 49
C94: =UPDATE!$C$9 -> JEAN | D94: =$X$31 -> 503 | E94: =$Y$31 -> 456 | F94: 0.5245046924 | G94: 52
C95: =UPDATE!$C$5 -> MIKE | D95: =$T$14 -> 504 | E95: =$U$14 -> 465 | F95: 0.520123839 | G95: 56
C96: =UPDATE!$C$13 -> ----- | D96: =$AB$48 -> 0 | E96: =$AC$48 -> 790 | F96: 0 | G96: -----
C97: =IF(UPDATE!$C$14<>"",UPDATE!$C$14,"") ->  | D97: =IF(UPDATE!$C$14<>"",$AF$14,"") ->  | E97: =IF(UPDATE!$C$14<>"",$AG$14,"") ->  | F97: =IF(UPDATE!$C$14<>"",D97/(D97+E97),"") ->  | G97: =IF(UPDATE!$C$14<>"",SUM($D$88,-D97,E97,-$E$88)/2,"") -> 
C98: =IF(UPDATE!$C$15<>"",UPDATE!$C$15,"") ->  | D98: =IF(UPDATE!$C$15<>"",$AF$31,"") ->  | E98: =IF(UPDATE!$C$15<>"",$AG$31,"") ->  | F98: =IF(UPDATE!$C$15<>"",D98/(D98+E98),"") ->  | G98: =IF(UPDATE!$C$14<>"",SUM($D$88,-D98,E98,-$E$88)/2,"") -> 
C99: =IF(UPDATE!$C$16<>"",UPDATE!$C$16,"") ->  | D99: =IF(UPDATE!$C$16<>"",$AF$48,"") ->  | E99: =IF(UPDATE!$C$16<>"",$AG$48,"") ->  | F99: =IF(UPDATE!$C$16<>"",D99/(D99+E99),"") ->  | G99: =IF(UPDATE!$C$14<>"",SUM($D$88,-D99,E99,-$E$88)/2,"") -> 
E107: CURRENT WEEK | L107: THIS WEEK
C108: WEEK ENDING | E108: THIS WEEK | F108: SEASON | L108: AL | N108: RANK
C109: =$D$3 -> 2021-10-03 | E109: RANK | F109: RANK | L109: CHICAGO A | M109: =VLOOKUP(L109,$C$110:$D$139,2,FALSE) -> 1 | N109: =RANK(M109,$M$109:$M$123) -> 1
C110: LOS ANGELES N | D110: =$O$51 -> 1 | E110: =RANK(D110,D110:D139) -> 1 | F110: =VLOOKUP(C110,$C$144:$E$173,3,FALSE) -> 2 | L110: SEATTLE | M110: 0.8 | N110: 2
C111: CHICAGO A | D111: =$O$17 -> 1 | E111: =RANK(D111,D110:D139) -> 1 | F111: =VLOOKUP(C111,$C$144:$E$173,3,FALSE) -> 6 | L111: MINNESOTA | M111: 0.6 | N111: 3
C112: SAN FRANCISCO | D112: =$O$53 -> 0.8 | E112: =RANK(D112,D110:D139) -> 3 | F112: 1 | L112: HOUSTON | M112: 0.6 | N112: 3
C113: ATLANTA | D113: =$O$33 -> 0.8 | E113: =RANK(D113,D110:D139) -> 3 | F113: 12 | L113: TEXAS | M113: 0.6 | N113: 3
C114: SEATTLE | D114: =$O$27 -> 0.8 | E114: =RANK(D114,D110:D139) -> 3 | F114: 9 | L114: TAMPA BAY | M114: 0.6 | N114: 3
C115: NEW YORK N | D115: =$O$35 -> 0.6666666667 | E115: =RANK(D115,D110:D139) -> 6 | F115: 18 | L115: TORONTO | M115: 0.6 | N115: 3
C116: COLORADO | D116: =$O$50 -> 0.6 | E116: =RANK(D116,D110:D139) -> 7 | F116: 21 | L116: BOSTON | M116: 0.6 | N116: 3
C117: ST LOUIS | D117: =$O$45 -> 0.6 | E117: =RANK(D117,D110:D139) -> 7 | F117: 9 | L117: KANSAS CITY | M117: 0.5 | N117: 9
C118: MINNESOTA | D118: =$O$21 -> 0.6 | E118: =RANK(D118,D110:D139) -> 7 | F118: 23 | L118: CLEVELAND | M118: 0.5 | N118: 9
C119: HOUSTON | D119: =$O$29 -> 0.6 | E119: =RANK(D119,D110:D139) -> 7 | F119: 5 | L119: NEW YORK A | M119: 0.4 | N119: 11
C120: TEXAS | D120: =$O$28 -> 0.6 | E120: =RANK(D120,D110:D139) -> 7 | F120: 28 | L120: BALTIMORE | M120: 0.4 | N120: 11
C121: CHICAGO N | D121: =$O$41 -> 0.6 | E121: =RANK(D121,D110:D139) -> 7 | F121: 24 | L121: LOS ANGELES A | M121: 0.4 | N121: 11
C122: TAMPA BAY | D122: =$O$12 -> 0.6 | E122: =RANK(D122,D110:D139) -> 7 | F122: 3 | L122: OAKLAND | M122: 0.2 | N122: =RANK(M122,$M$109:$M$123) -> 14
C123: TORONTO | D123: =$O$13 -> 0.6 | E123: =RANK(D123,D110:D139) -> 7 | F123: 9 | L123: DETROIT | M123: 0.1666666667 | N123: 15
C124: BOSTON | D124: =$O$10 -> 0.6 | E124: =RANK(D124,D110:D139) -> 7 | F124: 7 | L124: NL
C125: KANSAS CITY | D125: =$O$20 -> 0.5 | E125: =RANK(D125,D110:D139) -> 16 | F125: 22 | L125: LOS ANGELES N | M125: =VLOOKUP(L125,$C$110:$D$139,2,FALSE) -> 1 | N125: =RANK(M125,L125:M139) -> 1
C126: CLEVELAND | D126: =$O$18 -> 0.5 | E126: =RANK(D126,D110:D139) -> 16 | F126: 16 | L126: SAN FRANCISCO | M126: 0.8 | N126: =RANK(M126,L125:M139) -> 2
C127: PITTSBURGH | D127: =$O$44 -> 0.5 | E127: =RANK(D127,D110:D139) -> 16 | F127: 27 | L127: ATLANTA | M127: 0.8 | N127: =RANK(M127,L125:M139) -> 2
C128: NEW YORK A | D128: =$O$11 -> 0.4 | E128: =RANK(D128,D110:D139) -> 19 | F128: 7 | L128: NEW YORK N | M128: 0.6666666667 | N128: =RANK(M128,L125:M139) -> 4
C129: BALTIMORE | D129: =$O$9 -> 0.4 | E129: =RANK(D129,D110:D139) -> 19 | F129: 29 | L129: COLORADO | M129: 0.6 | N129: =RANK(M129,L125:M139) -> 5
C130: LOS ANGELES A | D130: =$O$25 -> 0.4 | E130: =RANK(D130,D110:D139) -> 19 | F130: 19 | L130: ST LOUIS | M130: 0.6 | N130: =RANK(M130,L125:M139) -> 5
C131: MIAMI | D131: =$O$34 -> 0.3333333333 | E131: =RANK(D131,D110:D139) -> 22 | F131: 25 | L131: CHICAGO N | M131: 0.6 | N131: =RANK(M131,L125:M139) -> 5
C132: MILWAUKEE | D132: =$O$43 -> 0.2 | E132: =RANK(D132,D110:D139) -> 23 | F132: 4 | L132: PITTSBURGH | M132: 0.5 | N132: =RANK(M132,L125:M139) -> 8
C133: CINCINNATI | D133: =$O$42 -> 0.2 | E133: =RANK(D133,D110:D139) -> 23 | F133: 14 | L133: MIAMI | M133: 0.3333333333 | N133: =RANK(M133,L125:M139) -> 9
C134: WASHINGTON | D134: =$O$37 -> 0.2 | E134: =RANK(D134,D110:D139) -> 23 | F134: 26 | L134: MILWAUKEE | M134: 0.2 | N134: =RANK(M134,L125:M139) -> 10
C135: PHILADELPHIA | D135: =$O$36 -> 0.2 | E135: =RANK(D135,D110:D139) -> 23 | F135: 14 | L135: CINCINNATI | M135: 0.2 | N135: =RANK(M135,L125:M139) -> 10
C136: OAKLAND | D136: =$O$26 -> 0.2 | E136: =RANK(D136,D110:D139) -> 23 | F136: 13 | L136: WASHINGTON | M136: 0.2 | N136: =RANK(M136,L125:M139) -> 10
C137: SAN DIEGO | D137: =$O$52 -> 0.2 | E137: =RANK(D137,D110:D139) -> 23 | F137: 16 | L137: PHILADELPHIA | M137: 0.2 | N137: =RANK(M137,L125:M139) -> 10
C138: ARIZONA | D138: =$O$49 -> 0.2 | E138: =RANK(D138,D110:D139) -> 23 | F138: =VLOOKUP(C138,$C$144:$E$173,3,FALSE) -> 30 | L138: SAN DIEGO | M138: 0.2 | N138: =RANK(M138,L125:M139) -> 10
C139: DETROIT | D139: =$O$19 -> 0.1666666667 | E139: =RANK(D139,D110:D139) -> 30 | F139: 19 | L139: ARIZONA | M139: 0.2 | N139: =RANK(M139,L125:M139) -> 10
E141: SEASON TO DATE | L141: SEASON TO DATE
L142: AL
C143: SEASON TO-DATE | E143: RANK | L143: TAMPA BAY | M143: =VLOOKUP(L143,$C$144:$D$173,2,FALSE) -> 0.6211180124 | N143: =RANK(M143,$M$143:$M$157) -> 1
C144: SAN FRANCISCO | D144: =$E$53 -> 0.6583850932 | E144: =RANK(D144,D144:D173) -> 1 | L144: HOUSTON | M144: 0.5838509317 | N144: 2
C145: LOS ANGELES N | D145: =$E$51 -> 0.652173913 | E145: =RANK(D145,D144:D173) -> 2 | L145: CHICAGO A | M145: 0.5776397516 | N145: 3
C146: TAMPA BAY | D146: =$E$12 -> 0.6211180124 | E146: =RANK(D146,D144:D173) -> 3 | L146: NEW YORK A | M146: 0.5652173913 | N146: 4
C147: MILWAUKEE | D147: =$E$43 -> 0.5900621118 | E147: =RANK(D147,D144:D173) -> 4 | L147: BOSTON | M147: 0.5652173913 | N147: 4
C148: HOUSTON | D148: =$E$29 -> 0.5838509317 | E148: =RANK(D148,D144:D173) -> 5 | L148: SEATTLE | M148: 0.5590062112 | N148: 6
C149: CHICAGO A | D149: =$E$17 -> 0.5776397516 | E149: =RANK(D149,D144:D173) -> 6 | L149: TORONTO | M149: 0.5590062112 | N149: 6
C150: NEW YORK A | D150: =$E$11 -> 0.5652173913 | E150: =RANK(D150,D144:D173) -> 7 | L150: OAKLAND | M150: 0.5341614907 | N150: 8
C151: BOSTON | D151: =$E$10 -> 0.5652173913 | E151: =RANK(D151,D144:D173) -> 7 | L151: CLEVELAND | M151: 0.4906832298 | N151: 9
C152: ST LOUIS | D152: =$E$45 -> 0.5590062112 | E152: =RANK(D152,D144:D173) -> 9 | L152: DETROIT | M152: 0.4720496894 | N152: 10
C153: SEATTLE | D153: =$E$27 -> 0.5590062112 | E153: =RANK(D153,D144:D173) -> 9 | L153: LOS ANGELES A | M153: 0.4720496894 | N153: 10
C154: TORONTO | D154: =$E$13 -> 0.5590062112 | E154: =RANK(D154,D144:D173) -> 9 | L154: KANSAS CITY | M154: 0.4596273292 | N154: 12
C155: ATLANTA | D155: =$E$33 -> 0.54375 | E155: =RANK(D155,D144:D173) -> 12 | L155: MINNESOTA | M155: 0.4472049689 | N155: 13
C156: OAKLAND | D156: =$E$26 -> 0.5341614907 | E156: =RANK(D156,D144:D173) -> 13 | L156: TEXAS | M156: 0.3726708075 | N156: =RANK(M156,$M$143:$M$157) -> 14
C157: CINCINNATI | D157: =$E$42 -> 0.5093167702 | E157: =RANK(D157,D144:D173) -> 14 | L157: BALTIMORE | M157: 0.3229813665 | N157: 15
C158: PHILADELPHIA | D158: =$E$36 -> 0.5093167702 | E158: =RANK(D158,D144:D173) -> 14 | L158: NL
C159: CLEVELAND | D159: =$E$18 -> 0.4906832298 | E159: =RANK(D159,D144:D173) -> 16 | L159: SAN FRANCISCO | M159: =VLOOKUP(L159,$C$144:$D$173,2,FALSE) -> 0.6583850932 | N159: =RANK(M159,L159:M173) -> 1
C160: SAN DIEGO | D160: =$E$52 -> 0.4906832298 | E160: =RANK(D160,D144:D173) -> 16 | L160: LOS ANGELES N | M160: 0.652173913 | N160: =RANK(M160,L159:M173) -> 2
C161: NEW YORK N | D161: =$E$35 -> 0.4782608696 | E161: =RANK(D161,D144:D173) -> 18 | L161: MILWAUKEE | M161: 0.5900621118 | N161: =RANK(M161,L159:M173) -> 3
C162: DETROIT | D162: =$E$19 -> 0.4720496894 | E162: =RANK(D162,D144:D173) -> 19 | L162: ST LOUIS | M162: 0.5590062112 | N162: =RANK(M162,L159:M173) -> 4
C163: LOS ANGELES A | D163: =$E$25 -> 0.4720496894 | E163: =RANK(D163,D144:D173) -> 19 | L163: ATLANTA | M163: 0.54375 | N163: =RANK(M163,L159:M173) -> 5
C164: COLORADO | D164: =$E$50 -> 0.4625 | E164: =RANK(D164,D144:D173) -> 21 | L164: CINCINNATI | M164: 0.5093167702 | N164: =RANK(M164,L159:M173) -> 6
C165: KANSAS CITY | D165: =$E$20 -> 0.4596273292 | E165: =RANK(D165,D144:D173) -> 22 | L165: PHILADELPHIA | M165: 0.5093167702 | N165: =RANK(M165,L159:M173) -> 6
C166: MINNESOTA | D166: =$E$21 -> 0.4472049689 | E166: =RANK(D166,D144:D173) -> 23 | L166: SAN DIEGO | M166: 0.4906832298 | N166: =RANK(M166,L159:M173) -> 8
C167: CHICAGO N | D167: =$E$41 -> 0.4347826087 | E167: =RANK(D167,D144:D173) -> 24 | L167: NEW YORK N | M167: 0.4782608696 | N167: =RANK(M167,L159:M173) -> 9
C168: MIAMI | D168: =$E$34 -> 0.4099378882 | E168: =RANK(D168,D144:D173) -> 25 | L168: COLORADO | M168: 0.4625 | N168: =RANK(M168,L159:M173) -> 10
C169: WASHINGTON | D169: =$E$37 -> 0.4037267081 | E169: =RANK(D169,D144:D173) -> 26 | L169: CHICAGO N | M169: 0.4347826087 | N169: =RANK(M169,L159:M173) -> 11
C170: PITTSBURGH | D170: =$E$44 -> 0.3788819876 | E170: =RANK(D170,D144:D173) -> 27 | L170: MIAMI | M170: 0.4099378882 | N170: =RANK(M170,L159:M173) -> 12
C171: TEXAS | D171: =$E$28 -> 0.3726708075 | E171: =RANK(D171,D144:D173) -> 28 | L171: WASHINGTON | M171: 0.4037267081 | N171: =RANK(M171,L159:M173) -> 13
C172: BALTIMORE | D172: =$E$9 -> 0.3229813665 | E172: =RANK(D172,D144:D173) -> 29 | L172: PITTSBURGH | M172: 0.3788819876 | N172: =RANK(M172,L159:M173) -> 14
C173: ARIZONA | D173: =$E$49 -> 0.3167701863 | E173: =RANK(D173,D144:D173) -> 30 | L173: ARIZONA | M173: 0.3167701863 | N173: =RANK(M173,L159:M173) -> 15

Sheet 26-Sep
B1: 2021 | C1: STANDINGS
Q2: CURRENT WEEK RESULTS
B3: WEEK ENDING | D3: 2021-09-26 | L3: WEEK | M3: 25 | N3: SEPTEMBER
S4: MIKE | W4: JOHN | AA4: LARRY | AE4: 0
C5: CURRENT WEEK-SEASON TO DATE | G5: PREVIOUS WEEK-SEASON TO DATE | L5: CURRENT WEEK TOTALS | S5: RANK | T5: W | U5: L | V5: PCT | W5: RANK | X5: W | Y5: L | Z5: PCT | AA5: RANK | AB5: W | AC5: L | AD5: PCT | AE5: RANK | AF5: W | AG5: L | AH5: PCT
S6: Rays | T6: 5 | U6: 1 | V6: 0.8333333333 | W6: Dodgers | X6: 4 | Y6: 2 | Z6: 0.6666666667 | AA6: Braves | AB6: 6 | AC6: 2 | AD6: 0.75 | AE6: 0
B7: American League | G7: AL EAST | K7: Times | L7: AL EAST | S7: Astros | T7: 3 | U7: 4 | V7: 0.4285714286 | W7: Yankees | X7: 6 | Y7: 0 | Z7: 1 | AA7: Brewers | AB7: 3 | AC7: 4 | AD7: 0.4285714286 | AE7: 0
B8: East | C8: W | D8: L | E8: PCT | F8: Rank | G8: TEAM | H8: W | I8: L | J8: PCT | K8: Picked | L8: TEAM | M8: W | N8: L | O8: PCT | P8: Rank | S8: Brewers | T8: 3 | U8: 4 | V8: 0.4285714286 | W8: Phillies | X8: 5 | Y8: 2 | Z8: 0.7142857143 | AA8: White Sox | AB8: 3 | AC8: 4 | AD8: 0.4285714286 | AE8: 0
B9: Orioles | C9: 50 | D9: 106 | E9: 0.3205128205 | F9: 5 | G9: BALTIMORE | H9: 47 | I9: 102 | J9: 0.3154362416 | K9: 0 | L9: Orioles | M9: 3 | N9: 4 | O9: 0.4285714286 | P9: 3 | S9: Padres | T9: 2 | U9: 5 | V9: 0.2857142857 | W9: White Sox | X9: 3 | Y9: 4 | Z9: 0.4285714286 | AA9: Yankees | AB9: 6 | AC9: 0 | AD9: 1 | AE9: 0
B10: Red Sox | C10: 88 | D10: 68 | E10: 0.5641025641 | F10: 3 | G10: BOSTON | H10: 86 | I10: 65 | J10: 0.5695364238 | K10: 1 | L10: Red Sox | M10: 2 | N10: 3 | O10: 0.4 | P10: 5 | S10: Indians | T10: 3 | U10: 5 | V10: 0.375 | W10: Brewers | X10: 3 | Y10: 4 | Z10: 0.4285714286 | AA10: Mariners | AB10: 6 | AC10: 1 | AD10: 0.8571428571 | AE10: 0
B11: Yankees | C11: 89 | D11: 67 | E11: 0.5705128205 | F11: 2 | G11: NEW YORK | H11: 83 | I11: 67 | J11: 0.5533333333 | K11: 3 | L11: Yankees | M11: 6 | N11: 0 | O11: 1 | P11: 1 | S11: Phillies | T11: 5 | U11: 2 | V11: 0.7142857143 | W11: Athletics | X11: 3 | Y11: 4 | Z11: 0.4285714286 | AA11: Dodgers | AB11: 4 | AC11: 2 | AD11: 0.6666666667 | AE11: 0
B12: Rays | C12: 97 | D12: 59 | E12: 0.6217948718 | F12: 1 | G12: TAMPA BAY | H12: 92 | I12: 58 | J12: 0.6133333333 | K12: 4 | L12: Rays | M12: 5 | N12: 1 | O12: 0.8333333333 | P12: 2 | Q12: WEEKLY TOTAL | T12: 21 | U12: 21 | V12: 0.5 | X12: 24 | Y12: 16 | Z12: 0.6 | AB12: 28 | AC12: 13 | AD12: 0.6829268293
B13: Blue Jays | C13: 87 | D13: 69 | E13: 0.5576923077 | F13: 4 | G13: TORONTO | H13: 84 | I13: 65 | J13: 0.5637583893 | K13: 1 | L13: Blue Jays | M13: 3 | N13: 4 | O13: 0.4285714286 | P13: 3 | Q13: PREV WEEK TO DATE | T13: 471 | U13: 425 | V13: 0.5256696429 | X13: 472 | Y13: 426 | Z13: 0.5256124722 | AB13: 509 | AC13: 389 | AD13: 0.5668151448
Q14: CUR TOTAL TO DATE | T14: 492 | U14: 446 | V14: 0.5245202559 | X14: 496 | Y14: 442 | Z14: 0.5287846482 | AB14: 537 | AC14: 402 | AD14: 0.571884984
G15: AL CENTRAL | L15: AL CENTRAL
B16: Central | C16: W | D16: L | E16: PCT | G16: TEAM | H16: W | I16: L | J16: PCT | L16: TEAM | M16: W | N16: L | O16: PCT
B17: White Sox | C17: 88 | D17: 68 | E17: 0.5641025641 | F17: 1 | G17: CHICAGO | H17: 85 | I17: 64 | J17: 0.5704697987 | K17: 7 | L17: White Sox | M17: 3 | N17: 4 | O17: 0.4285714286 | P17: 4 | Q17: SEASON TLT TO DATE | T17: 412 | U17: 371 | V17: 0.5261813538 | X17: 412 | Y17: 375 | Z17: 0.5235069886 | AB17: 450 | AC17: 338 | AD17: 0.5710659898
B18: Indians | C18: 76 | D18: 79 | E18: 0.4903225806 | F18: 2 | G18: CLEVELAND | H18: 73 | I18: 74 | J18: 0.4965986395 | K18: 2 | L18: Indians | M18: 3 | N18: 5 | O18: 0.375 | P18: 5 | Q18: SEPTEMBER TOTAL TO DATE | T18: 80 | U18: 75 | V18: 0.5161290323 | X18: 84 | Y18: 67 | Z18: 0.5562913907 | AB18: 87 | AC18: 64 | AD18: 0.5761589404
B19: Tigers | C19: 75 | D19: 80 | E19: 0.4838709677 | F19: 3 | G19: DETROIT | H19: 72 | I19: 78 | J19: 0.48 | K19: 0 | L19: Tigers | M19: 3 | N19: 2 | O19: 0.6 | P19: 3
B20: Royals | C20: 71 | D20: 84 | E20: 0.4580645161 | F20: 4 | G20: KANSAS CITY | H20: 67 | I20: 82 | J20: 0.4496644295 | K20: 0 | L20: Royals | M20: 4 | N20: 2 | O20: 0.6666666667 | P20: 1
B21: Twins | C21: 69 | D21: 87 | E21: 0.4423076923 | F21: 5 | G21: MINNESOTA | H21: 65 | I21: 85 | J21: 0.4333333333 | K21: 0 | L21: Twins | M21: 4 | N21: 2 | O21: 0.6666666667 | P21: 1 | S21: JIM T. | W21: JEAN | AA21: DIANE | AE21: 0
S22: RANK | T22: W | U22: L | V22: PCT | W22: RANK | X22: W | Y22: L | Z22: PCT | AA22: RANK | AB22: W | AC22: L | AD22: PCT | AE22: RANK | AF22: W | AG22: L | AH22: PCT
G23: AL WEST | L23: AL WEST | S23: Rays | T23: 5 | U23: 1 | V23: 0.8333333333 | W23: Rays | X23: 5 | Y23: 1 | Z23: 0.8333333333 | AA23: Brewers | AB23: 3 | AC23: 4 | AD23: 0.4285714286 | AE23: 0
B24: West | C24: W | D24: L | E24: PCT | G24: TEAM | H24: W | I24: L | J24: PCT | L24: TEAM | M24: W | N24: L | O24: PCT | S24: White Sox | T24: 3 | U24: 4 | V24: 0.4285714286 | W24: Astros | X24: 3 | Y24: 4 | Z24: 0.4285714286 | AA24: White Sox | AB24: 3 | AC24: 4 | AD24: 0.4285714286 | AE24: 0
B25: Angels | C25: 74 | D25: 82 | E25: 0.4743589744 | F25: 4 | G25: LOS ANGELES | H25: 72 | I25: 77 | J25: 0.4832214765 | K25: 0 | L25: Angels | M25: 2 | N25: 5 | O25: 0.2857142857 | P25: 4 | S25: Astros | T25: 3 | U25: 4 | V25: 0.4285714286 | W25: Phillies | X25: 5 | Y25: 2 | Z25: 0.7142857143 | AA25: Dodgers | AB25: 4 | AC25: 2 | AD25: 0.6666666667 | AE25: 0
B26: Athletics | C26: 85 | D26: 71 | E26: 0.5448717949 | F26: 3 | G26: OAKLAND | H26: 82 | I26: 67 | J26: 0.5503355705 | K26: 2 | L26: Athletics | M26: 3 | N26: 4 | O26: 0.4285714286 | P26: 2 | S26: Braves | T26: 6 | U26: 2 | V26: 0.75 | W26: Cardinals | X26: 8 | Y26: 0 | Z26: 1 | AA26: Astros | AB26: 3 | AC26: 4 | AD26: 0.4285714286 | AE26: 0
B27: Mariners | C27: 86 | D27: 70 | E27: 0.5512820513 | F27: 2 | G27: SEATTLE | H27: 80 | I27: 69 | J27: 0.5369127517 | K27: 1 | L27: Mariners | M27: 6 | N27: 1 | O27: 0.8571428571 | P27: 1 | S27: Brewers | T27: 3 | U27: 4 | V27: 0.4285714286 | W27: Padres | X27: 2 | Y27: 5 | Z27: 0.2857142857 | AA27: Yankees | AB27: 6 | AC27: 0 | AD27: 1 | AE27: 0
B28: Rangers | C28: 57 | D28: 99 | E28: 0.3653846154 | F28: 5 | G28: TEXAS | H28: 55 | I28: 94 | J28: 0.3691275168 | K28: 0 | L28: Rangers | M28: 2 | N28: 5 | O28: 0.2857142857 | P28: 4 | S28: Dodgers | T28: 4 | U28: 2 | V28: 0.6666666667 | W28: White Sox | X28: 3 | Y28: 4 | Z28: 0.4285714286 | AA28: Phillies | AB28: 5 | AC28: 2 | AD28: 0.7142857143 | AE28: 0
B29: Astros | C29: 91 | D29: 65 | E29: 0.5833333333 | F29: 1 | G29: HOUSTON | H29: 88 | I29: 61 | J29: 0.5906040268 | K29: 6 | L29: Astros | M29: 3 | N29: 4 | O29: 0.4285714286 | P29: 2 | Q29: WEEKLY TOTAL | T29: 24 | U29: 17 | V29: 0.5853658537 | X29: 26 | Y29: 16 | Z29: 0.619047619 | AB29: 24 | AC29: 16 | AD29: 0.6
Q30: PREV WEEK TO DATE | T30: 496 | U30: 401 | V30: 0.5529542921 | X30: 461 | Y30: 426 | Z30: 0.519729425 | AB30: 478 | AC30: 418 | AD30: 0.5334821429
B31: National League | G31: NL EAST | L31: NL EAST | Q31: CUR TOTAL TO DATE | T31: 520 | U31: 418 | V31: 0.5543710021 | X31: 487 | Y31: 442 | Z31: 0.524219591 | AB31: 502 | AC31: 434 | AD31: 0.5363247863
B32: East | C32: W | D32: L | E32: PCT | G32: TEAM | H32: W | I32: L | J32: PCT | L32: TEAM | M32: W | N32: L | O32: PCT
B33: Braves | C33: 83 | D33: 72 | E33: 0.535483871 | F33: 1 | G33: ATLANTA | H33: 77 | I33: 70 | J33: 0.5238095238 | K33: 3 | L33: Braves | M33: 6 | N33: 2 | O33: 0.75 | P33: 1
B34: Marlins | C34: 64 | D34: 91 | E34: 0.4129032258 | F34: 4 | G34: Miami | H34: 63 | I34: 86 | J34: 0.4228187919 | K34: 0 | L34: Marlins | M34: 1 | N34: 5 | O34: 0.1666666667 | P34: 4 | Q34: SEASON TLT TO DATE | T34: 433 | U34: 353 | V34: 0.5508905852 | X34: 401 | Y34: 374 | Z34: 0.5174193548 | AB34: 415 | AC34: 369 | AD34: 0.5293367347
B35: Mets | C35: 73 | D35: 82 | E35: 0.4709677419 | F35: 3 | G35: NEW YORK | H35: 73 | I35: 77 | J35: 0.4866666667 | K35: 0 | L35: Mets | M35: 0 | N35: 5 | O35: 0 | P35: 5 | Q35: SEPTEMBER TOTAL TO DATE | T35: 87 | U35: 65 | V35: 0.5723684211 | X35: 86 | Y35: 68 | Z35: 0.5584415584 | AB35: 87 | AC35: 65 | AD35: 0.5723684211
B36: Phillies | C36: 81 | D36: 75 | E36: 0.5192307692 | F36: 2 | G36: PHILADELPHIA | H36: 76 | I36: 73 | J36: 0.5100671141 | K36: 5 | L36: Phillies | M36: 5 | N36: 2 | O36: 0.7142857143 | P36: 2
B37: Nationals | C37: 64 | D37: 92 | E37: 0.4102564103 | F37: 5 | G37: WASHINGTON | H37: 61 | I37: 88 | J37: 0.4093959732 | K37: 1 | L37: Nationals | M37: 3 | N37: 4 | O37: 0.4285714286 | P37: 3
S38: JIM K. | W38: TIM | AA38: ----- | AE38: 0
G39: NL CENTRAL | L39: NL CENTRAL | S39: RANK | T39: W | U39: L | V39: PCT | W39: RANK | X39: W | Y39: L | Z39: PCT | AA39: RANK | AB39: W | AC39: L | AD39: PCT | AE39: RANK | AF39: W | AG39: L | AH39: PCT
B40: Central | C40: W | D40: L | E40: PCT | G40: TEAM | H40: W | I40: L | J40: PCT | L40: TEAM | M40: W | N40: L | O40: PCT | S40: Giants | T40: 5 | U40: 1 | V40: 0.8333333333 | W40: Giants | X40: 5 | Y40: 1 | Z40: 0.8333333333 | AE40: 0
B41: Cubs | C41: 67 | D41: 89 | E41: 0.4294871795 | F41: 4 | G41: CHICAGO | H41: 67 | I41: 83 | J41: 0.4466666667 | K41: 2 | L41: Cubs | M41: 0 | N41: 6 | O41: 0 | P41: 5 | S41: White Sox | T41: 3 | U41: 4 | V41: 0.4285714286 | W41: Rays | X41: 5 | Y41: 1 | Z41: 0.8333333333 | AE41: 0
B42: Reds | C42: 81 | D42: 75 | E42: 0.5192307692 | F42: 3 | G42: CINCINNATI | H42: 77 | I42: 73 | J42: 0.5133333333 | K42: 0 | L42: Reds | M42: 4 | N42: 2 | O42: 0.6666666667 | P42: 2 | S42: Red Sox | T42: 2 | U42: 3 | V42: 0.4 | W42: Brewers | X42: 3 | Y42: 4 | Z42: 0.4285714286 | AE42: 0
B43: Brewers | C43: 94 | D43: 62 | E43: 0.6025641026 | F43: 1 | G43: MILWAUKEE | H43: 91 | I43: 58 | J43: 0.610738255 | K43: 6 | L43: Brewers | M43: 3 | N43: 4 | O43: 0.4285714286 | P43: 3 | S43: Athletics | T43: 3 | U43: 4 | V43: 0.4285714286 | W43: Astros | X43: 3 | Y43: 4 | Z43: 0.4285714286 | AE43: 0
B44: Pirates | C44: 58 | D44: 97 | E44: 0.3741935484 | F44: 5 | G44: PITTSBURGH | H44: 56 | I44: 93 | J44: 0.3758389262 | K44: 0 | L44: Pirates | M44: 2 | N44: 4 | O44: 0.3333333333 | P44: 4 | S44: Phillies | T44: 5 | U44: 2 | V44: 0.7142857143 | W44: White Sox | X44: 3 | Y44: 4 | Z44: 0.4285714286 | AE44: 0
B45: Cardinals | C45: 87 | D45: 69 | E45: 0.5576923077 | F45: 2 | G45: ST LOUIS | H45: 79 | I45: 69 | J45: 0.5337837838 | K45: 1 | L45: Cardinals | M45: 8 | N45: 0 | O45: 1 | P45: 1 | S45: Cubs | T45: 0 | U45: 6 | V45: 0 | W45: Braves | X45: 6 | Y45: 2 | Z45: 0.75 | AE45: 0
Q46: WEEKLY TOTAL | T46: 18 | U46: 20 | V46: 0.4736842105 | X46: 25 | Y46: 16 | Z46: 0.6097560976 | AB46: 0 | AC46: 30
G47: NL WEST | L47: NL WEST | Q47: PREV WEEK TO DATE | T47: 471 | U47: 420 | V47: 0.5286195286 | X47: 486 | Y47: 419 | Z47: 0.5370165746 | AB47: 0 | AC47: 730
B48: West | C48: W | D48: L | E48: PCT | G48: TEAM | H48: W | I48: L | J48: PCT | L48: TEAM | M48: W | N48: L | O48: PCT | Q48: CUR TOTAL TO DATE | T48: 489 | U48: 440 | V48: 0.5263724435 | X48: 511 | Y48: 435 | Z48: 0.5401691332 | AB48: 0 | AC48: 760
B49: Diamondbacks | C49: 50 | D49: 106 | E49: 0.3205128205 | F49: 5 | G49: ARIZONA | H49: 48 | I49: 101 | J49: 0.322147651 | K49: 0 | L49: Diamondbacks | M49: 2 | N49: 5 | O49: 0.2857142857 | P49: 3
B50: Rockies | C50: 71 | D50: 84 | E50: 0.4580645161 | F50: 4 | G50: COLORADO | H50: 70 | I50: 79 | J50: 0.4697986577 | K50: 0 | L50: Rockies | M50: 1 | N50: 5 | O50: 0.1666666667 | P50: 5
B51: Dodgers | C51: 100 | D51: 56 | E51: 0.641025641 | F51: 2 | G51: LOS ANGELES | H51: 96 | I51: 54 | J51: 0.64 | K51: 4 | L51: Dodgers | M51: 4 | N51: 2 | O51: 0.6666666667 | P51: 2 | Q51: SEASON TLT TO DATE | T51: 408 | U51: 372 | V51: 0.5230769231 | X51: 424 | Y51: 369 | Z51: 0.5346784363 | AB51: 0 | AC51: 640
B52: Padres | C52: 78 | D52: 78 | E52: 0.5 | F52: 3 | G52: SAN DIEGO | H52: 76 | I52: 73 | J52: 0.5100671141 | K52: 3 | L52: Padres | M52: 2 | N52: 5 | O52: 0.2857142857 | P52: 3 | Q52: SEPTEMBER TOTAL TO DATE | T52: 81 | U52: 68 | V52: 0.5436241611 | X52: 87 | Y52: 66 | Z52: 0.568627451 | AB52: 0 | AC52: 120
B53: Giants | C53: 102 | D53: 54 | E53: 0.6538461538 | F53: 1 | G53: SAN FRANCISCO | H53: 97 | I53: 53 | J53: 0.6466666667 | K53: 2 | L53: Giants | M53: 5 | N53: 1 | O53: 0.8333333333 | P53: 1
M54: 98 | N54: 98
D55: 2021-09-27 | E55: Morning
C57: WEEK 25
C58: NAME | D58: W | E58: L | F58: PCT | G58: GB
C59: LARRY | D59: 28 | E59: 13 | F59: 0.6829268293 | G59: 0
C60: JEAN | D60: 26 | E60: 16 | F60: 0.619047619 | G60: 2.5
C61: TIM | D61: 25 | E61: 16 | F61: 0.6097560976 | G61: 3
C62: DIANE | D62: 24 | E62: 16 | F62: 0.6 | G62: 3.5
C63: JOHN | D63: 24 | E63: 16 | F63: 0.6 | G63: 3.5
C64: JIM T. | D64: 24 | E64: 17 | F64: 0.5853658537 | G64: 4
C65: MIKE | D65: 21 | E65: 21 | F65: 0.5 | G65: 7.5
C66: JIM K. | D66: 18 | E66: 20 | F66: 0.4736842105 | G66: 8.5
C67: ----- | D67: 0 | E67: 30 | F67: 0 | G67: -----
C72: MONTH OF SEPTEMBER
C73: NAME | D73: W | E73: L | F73: PCT | G73: GB
C74: LARRY | D74: 87 | E74: 64 | F74: 0.5761589404 | G74: 0
C75: DIANE | D75: 87 | E75: 65 | F75: 0.5723684211 | G75: 0.5
C76: JIM T. | D76: 87 | E76: 65 | F76: 0.5723684211 | G76: 0.5
C77: TIM | D77: 87 | E77: 66 | F77: 0.568627451 | G77: 1
C78: JEAN | D78: 86 | E78: 68 | F78: 0.5584415584 | G78: 2.5
C79: JOHN | D79: 84 | E79: 67 | F79: 0.5562913907 | G79: 3
C80: JIM K. | D80: 81 | E80: 68 | F80: 0.5436241611 | G80: 5
C81: MIKE | D81: 80 | E81: 75 | F81: 0.5161290323 | G81: 9
C82: ----- | D82: 0 | E82: 120 | F82: 0 | G82: -----
C86: 2021 | E86: SEASON
C87: NAME | D87: W | E87: L | F87: PCT | G87: GB
C88: LARRY | D88: 537 | E88: 402 | F88: 0.571884984 | G88: 0
C89: JIM T. | D89: 520 | E89: 418 | F89: 0.5543710021 | G89: 16.5
C90: TIM | D90: 511 | E90: 435 | F90: 0.5401691332 | G90: 29.5
C91: DIANE | D91: 502 | E91: 434 | F91: 0.5363247863 | G91: 33.5
C92: JOHN | D92: 496 | E92: 442 | F92: 0.5287846482 | G92: 40.5
C93: JIM K. | D93: 489 | E93: 440 | F93: 0.5263724435 | G93: 43
C94: MIKE | D94: 492 | E94: 446 | F94: 0.5245202559 | G94: 44.5
C95: JEAN | D95: 487 | E95: 442 | F95: 0.524219591 | G95: 45
C96: ----- | D96: 0 | E96: 760 | F96: 0 | G96: -----
E107: CURRENT WEEK | L107: THIS WEEK
C108: WEEK ENDING | E108: THIS WEEK | F108: SEASON | L108: AL | N108: RANK
C109: 2021-09-26 | E109: RANK | F109: RANK | L109: NEW YORK A | M109: 1 | N109: 1
C110: ST LOUIS | D110: 1 | E110: 1 | F110: 9 | L110: SEATTLE | M110: 0.8571428571 | N110: 2
C111: NEW YORK A | D111: 1 | E111: 1 | F111: 6 | L111: TAMPA BAY | M111: 0.8333333333 | N111: 3
C112: SEATTLE | D112: 0.8571428571 | E112: 3 | F112: 11 | L112: MINNESOTA | M112: 0.6666666667 | N112: 4
C113: SAN FRANCISCO | D113: 0.8333333333 | E113: 4 | F113: 1 | L113: KANSAS CITY | M113: 0.6666666667 | N113: 4
C114: TAMPA BAY | D114: 0.8333333333 | E114: 4 | F114: 3 | L114: DETROIT | M114: 0.6 | N114: 6
C115: ATLANTA | D115: 0.75 | E115: 6 | F115: 13 | L115: HOUSTON | M115: 0.4285714286 | N115: 7
C116: PHILADELPHIA | D116: 0.7142857143 | E116: 7 | F116: 14 | L116: BALTIMORE | M116: 0.4285714286 | N116: 7
C117: MINNESOTA | D117: 0.6666666667 | E117: 8 | F117: 23 | L117: CHICAGO A | M117: 0.4285714286 | N117: 7
C118: KANSAS CITY | D118: 0.6666666667 | E118: 8 | F118: 21 | L118: TORONTO | M118: 0.4285714286 | N118: 7
C119: LOS ANGELES N | D119: 0.6666666667 | E119: 8 | F119: 2 | L119: OAKLAND | M119: 0.4285714286 | N119: 7
C120: CINCINNATI | D120: 0.6666666667 | E120: 8 | F120: 14 | L120: BOSTON | M120: 0.4 | N120: 12
C121: DETROIT | D121: 0.6 | E121: 12 | F121: 18 | L121: CLEVELAND | M121: 0.375 | N121: 13
C122: HOUSTON | D122: 0.4285714286 | E122: 13 | F122: 5 | L122: LOS ANGELES A | M122: 0.2857142857 | N122: 14
C123: WASHINGTON | D123: 0.4285714286 | E123: 13 | F123: 26 | L123: TEXAS | M123: 0.2857142857 | N123: 14
C124: BALTIMORE | D124: 0.4285714286 | E124: 13 | F124: 29 | L124: NL
C125: CHICAGO A | D125: 0.4285714286 | E125: 13 | F125: 7 | L125: ST LOUIS | M125: 1 | N125: 1
C126: TORONTO | D126: 0.4285714286 | E126: 13 | F126: 9 | L126: SAN FRANCISCO | M126: 0.8333333333 | N126: 2
C127: OAKLAND | D127: 0.4285714286 | E127: 13 | F127: 12 | L127: ATLANTA | M127: 0.75 | N127: 3
C128: MILWAUKEE | D128: 0.4285714286 | E128: 13 | F128: 4 | L128: PHILADELPHIA | M128: 0.7142857143 | N128: 4
C129: BOSTON | D129: 0.4 | E129: 20 | F129: 7 | L129: LOS ANGELES N | M129: 0.6666666667 | N129: 5
C130: CLEVELAND | D130: 0.375 | E130: 21 | F130: 17 | L130: CINCINNATI | M130: 0.6666666667 | N130: 5
C131: PITTSBURGH | D131: 0.3333333333 | E131: 22 | F131: 27 | L131: WASHINGTON | M131: 0.4285714286 | N131: 7
C132: SAN DIEGO | D132: 0.2857142857 | E132: 23 | F132: 16 | L132: MILWAUKEE | M132: 0.4285714286 | N132: 7
C133: LOS ANGELES A | D133: 0.2857142857 | E133: 23 | F133: 19 | L133: PITTSBURGH | M133: 0.3333333333 | N133: 9
C134: ARIZONA | D134: 0.2857142857 | E134: 23 | F134: 29 | L134: SAN DIEGO | M134: 0.2857142857 | N134: 10
C135: TEXAS | D135: 0.2857142857 | E135: 23 | F135: 28 | L135: ARIZONA | M135: 0.2857142857 | N135: 10
C136: COLORADO | D136: 0.1666666667 | E136: 27 | F136: 21 | L136: COLORADO | M136: 0.1666666667 | N136: 12
C137: MIAMI | D137: 0.1666666667 | E137: 27 | F137: 25 | L137: MIAMI | M137: 0.1666666667 | N137: 12
C138: CHICAGO N | D138: 0 | E138: 29 | F138: 24 | L138: CHICAGO N | M138: 0 | N138: 14
C139: NEW YORK N | D139: 0 | E139: 29 | F139: 20 | L139: NEW YORK N | M139: 0 | N139: 14
E141: SEASON TO DATE | L141: SEASON TO DATE
L142: AL
C143: SEASON TO-DATE | E143: RANK | L143: TAMPA BAY | M143: 0.6217948718 | N143: 1
C144: SAN FRANCISCO | D144: 0.6538461538 | E144: 1 | L144: HOUSTON | M144: 0.5833333333 | N144: 2
C145: LOS ANGELES N | D145: 0.641025641 | E145: 2 | L145: NEW YORK A | M145: 0.5705128205 | N145: 3
C146: TAMPA BAY | D146: 0.6217948718 | E146: 3 | L146: BOSTON | M146: 0.5641025641 | N146: 4
C147: MILWAUKEE | D147: 0.6025641026 | E147: 4 | L147: CHICAGO A | M147: 0.5641025641 | N147: 4
C148: HOUSTON | D148: 0.5833333333 | E148: 5 | L148: TORONTO | M148: 0.5576923077 | N148: 6
C149: NEW YORK A | D149: 0.5705128205 | E149: 6 | L149: SEATTLE | M149: 0.5512820513 | N149: 7
C150: BOSTON | D150: 0.5641025641 | E150: 7 | L150: OAKLAND | M150: 0.5448717949 | N150: 8
C151: CHICAGO A | D151: 0.5641025641 | E151: 7 | L151: CLEVELAND | M151: 0.4903225806 | N151: 9
C152: TORONTO | D152: 0.5576923077 | E152: 9 | L152: DETROIT | M152: 0.4838709677 | N152: 10
C153: ST LOUIS | D153: 0.5576923077 | E153: 9 | L153: LOS ANGELES A | M153: 0.4743589744 | N153: 11
C154: SEATTLE | D154: 0.5512820513 | E154: 11 | L154: KANSAS CITY | M154: 0.4580645161 | N154: 12
C155: OAKLAND | D155: 0.5448717949 | E155: 12 | L155: MINNESOTA | M155: 0.4423076923 | N155: 13
C156: ATLANTA | D156: 0.535483871 | E156: 13 | L156: TEXAS | M156: 0.3653846154 | N156: 14
C157: PHILADELPHIA | D157: 0.5192307692 | E157: 14 | L157: BALTIMORE | M157: 0.3205128205 | N157: 15
C158: CINCINNATI | D158: 0.5192307692 | E158: 14 | L158: NL
C159: SAN DIEGO | D159: 0.5 | E159: 16 | L159: SAN FRANCISCO | M159: 0.6538461538 | N159: 1
C160: CLEVELAND | D160: 0.4903225806 | E160: 17 | L160: LOS ANGELES N | M160: 0.641025641 | N160: 2
C161: DETROIT | D161: 0.4838709677 | E161: 18 | L161: MILWAUKEE | M161: 0.6025641026 | N161: 3
C162: LOS ANGELES A | D162: 0.4743589744 | E162: 19 | L162: ST LOUIS | M162: 0.5576923077 | N162: 4
C163: NEW YORK N | D163: 0.4709677419 | E163: 20 | L163: ATLANTA | M163: 0.535483871 | N163: 5
C164: COLORADO | D164: 0.4580645161 | E164: 21 | L164: PHILADELPHIA | M164: 0.5192307692 | N164: 6
C165: KANSAS CITY | D165: 0.4580645161 | E165: 21 | L165: CINCINNATI | M165: 0.5192307692 | N165: 6
C166: MINNESOTA | D166: 0.4423076923 | E166: 23 | L166: SAN DIEGO | M166: 0.5 | N166: 8
C167: CHICAGO N | D167: 0.4294871795 | E167: 24 | L167: NEW YORK N | M167: 0.4709677419 | N167: 9
C168: MIAMI | D168: 0.4129032258 | E168: 25 | L168: COLORADO | M168: 0.4580645161 | N168: 10
C169: WASHINGTON | D169: 0.4102564103 | E169: 26 | L169: CHICAGO N | M169: 0.4294871795 | N169: 11
C170: PITTSBURGH | D170: 0.3741935484 | E170: 27 | L170: MIAMI | M170: 0.4129032258 | N170: 12
C171: TEXAS | D171: 0.3653846154 | E171: 28 | L171: WASHINGTON | M171: 0.4102564103 | N171: 13
C172: ARIZONA | D172: 0.3205128205 | E172: 29 | L172: PITTSBURGH | M172: 0.3741935484 | N172: 14

Sheet 19-Sep
B1: 2021 | C1: STANDINGS
Q2: CURRENT WEEK RESULTS
B3: WEEK ENDING | D3: 2021-09-19 | L3: WEEK | M3: 24 | N3: SEPTEMBER
S4: MIKE | W4: JOHN | AA4: LARRY | AE4: 0
C5: CURRENT WEEK-SEASON TO DATE | G5: PREVIOUS WEEK-SEASON TO DATE | L5: CURRENT WEEK TOTALS | S5: RANK | T5: W | U5: L | V5: PCT | W5: RANK | X5: W | Y5: L | Z5: PCT | AA5: RANK | AB5: W | AC5: L | AD5: PCT | AE5: RANK | AF5: W | AG5: L | AH5: PCT
S6: Rays | T6: 3 | U6: 4 | V6: 0.4285714286 | W6: Dodgers | X6: 5 | Y6: 1 | Z6: 0.8333333333 | AA6: Braves | AB6: 1 | AC6: 4 | AD6: 0.2 | AE6: 0
B7: American League | G7: AL EAST | K7: Times | L7: AL EAST | S7: Astros | T7: 5 | U7: 2 | V7: 0.7142857143 | W7: Yankees | X7: 4 | Y7: 3 | Z7: 0.5714285714 | AA7: Brewers | AB7: 2 | AC7: 3 | AD7: 0.4 | AE7: 0
B8: East | C8: W | D8: L | E8: PCT | F8: Rank | G8: TEAM | H8: W | I8: L | J8: PCT | K8: Picked | L8: TEAM | M8: W | N8: L | O8: PCT | P8: Rank | S8: Brewers | T8: 2 | U8: 3 | V8: 0.4 | W8: Astros | X8: 5 | Y8: 2 | Z8: 0.7142857143 | AA8: White Sox | AB8: 3 | AC8: 3 | AD8: 0.5 | AE8: 0
B9: Orioles | C9: 47 | D9: 102 | E9: 0.3154362416 | F9: 5 | G9: BALTIMORE | H9: 46 | I9: 97 | J9: 0.3216783217 | K9: 0 | L9: Orioles | M9: 1 | N9: 5 | O9: 0.1666666667 | P9: 5 | S9: Padres | T9: 2 | U9: 5 | V9: 0.2857142857 | W9: White Sox | X9: 3 | Y9: 3 | Z9: 0.5 | AA9: Yankees | AB9: 4 | AC9: 3 | AD9: 0.5714285714 | AE9: 0
B10: Red Sox | C10: 86 | D10: 65 | E10: 0.5695364238 | F10: 2 | G10: BOSTON | H10: 81 | I10: 64 | J10: 0.5586206897 | K10: 1 | L10: Red Sox | M10: 5 | N10: 1 | O10: 0.8333333333 | P10: 1 | S10: Indians | T10: 4 | U10: 2 | V10: 0.6666666667 | W10: Brewers | X10: 2 | Y10: 3 | Z10: 0.4 | AA10: Mariners | AB10: 3 | AC10: 3 | AD10: 0.5 | AE10: 0
B11: Yankees | C11: 83 | D11: 67 | E11: 0.5533333333 | F11: 4 | G11: NEW YORK | H11: 79 | I11: 64 | J11: 0.5524475524 | K11: 3 | L11: Yankees | M11: 4 | N11: 3 | O11: 0.5714285714 | P11: 3 | S11: Phillies | T11: 4 | U11: 2 | V11: 0.6666666667 | W11: Braves | X11: 1 | Y11: 4 | Z11: 0.2 | AA11: Dodgers | AB11: 5 | AC11: 1 | AD11: 0.8333333333 | AE11: 0
B12: Rays | C12: 92 | D12: 58 | E12: 0.6133333333 | F12: 1 | G12: TAMPA BAY | H12: 89 | I12: 54 | J12: 0.6223776224 | K12: 4 | L12: Rays | M12: 3 | N12: 4 | O12: 0.4285714286 | P12: 4 | Q12: WEEKLY TOTAL | T12: 20 | U12: 18 | V12: 0.5263157895 | X12: 20 | Y12: 16 | Z12: 0.5555555556 | AB12: 18 | AC12: 17 | AD12: 0.5142857143
B13: Blue Jays | C13: 84 | D13: 65 | E13: 0.5637583893 | F13: 3 | G13: TORONTO | H13: 80 | I13: 63 | J13: 0.5594405594 | K13: 1 | L13: Blue Jays | M13: 4 | N13: 2 | O13: 0.6666666667 | P13: 2 | Q13: PREV WEEK TO DATE | T13: 451 | U13: 407 | V13: 0.5256410256 | X13: 452 | Y13: 410 | Z13: 0.524361949 | AB13: 491 | AC13: 372 | AD13: 0.5689455388
Q14: CUR TOTAL TO DATE | T14: 471 | U14: 425 | V14: 0.5256696429 | X14: 472 | Y14: 426 | Z14: 0.5256124722 | AB14: 509 | AC14: 389 | AD14: 0.5668151448
G15: AL CENTRAL | L15: AL CENTRAL
B16: Central | C16: W | D16: L | E16: PCT | G16: TEAM | H16: W | I16: L | J16: PCT | L16: TEAM | M16: W | N16: L | O16: PCT
B17: White Sox | C17: 85 | D17: 64 | E17: 0.5704697987 | F17: 1 | G17: CHICAGO | H17: 82 | I17: 61 | J17: 0.5734265734 | K17: 7 | L17: White Sox | M17: 3 | N17: 3 | O17: 0.5 | P17: 3 | Q17: SEASON TLT TO DATE | T17: 412 | U17: 371 | V17: 0.5261813538 | X17: 412 | Y17: 375 | Z17: 0.5235069886 | AB17: 450 | AC17: 338 | AD17: 0.5710659898
B18: Indians | C18: 73 | D18: 74 | E18: 0.4965986395 | F18: 2 | G18: CLEVELAND | H18: 69 | I18: 72 | J18: 0.4893617021 | K18: 2 | L18: Indians | M18: 4 | N18: 2 | O18: 0.6666666667 | P18: 1 | Q18: SEPTEMBER TOTAL TO DATE | T18: 59 | U18: 54 | V18: 0.5221238938 | X18: 60 | Y18: 51 | Z18: 0.5405405405 | AB18: 59 | AC18: 51 | AD18: 0.5363636364
B19: Tigers | C19: 72 | D19: 78 | E19: 0.48 | F19: 3 | G19: DETROIT | H19: 68 | I19: 76 | J19: 0.4722222222 | K19: 0 | L19: Tigers | M19: 4 | N19: 2 | O19: 0.6666666667 | P19: 1
B20: Royals | C20: 67 | D20: 82 | E20: 0.4496644295 | F20: 4 | G20: KANSAS CITY | H20: 65 | I20: 78 | J20: 0.4545454545 | K20: 0 | L20: Royals | M20: 2 | N20: 4 | O20: 0.3333333333 | P20: 4
B21: Twins | C21: 65 | D21: 85 | E21: 0.4333333333 | F21: 5 | G21: MINNESOTA | H21: 63 | I21: 80 | J21: 0.4405594406 | K21: 0 | L21: Twins | M21: 2 | N21: 5 | O21: 0.2857142857 | P21: 5 | S21: JIM T. | W21: JEAN | AA21: DIANE | AE21: 0
S22: RANK | T22: W | U22: L | V22: PCT | W22: RANK | X22: W | Y22: L | Z22: PCT | AA22: RANK | AB22: W | AC22: L | AD22: PCT | AE22: RANK | AF22: W | AG22: L | AH22: PCT
G23: AL WEST | L23: AL WEST | S23: Rays | T23: 3 | U23: 4 | V23: 0.4285714286 | W23: Rays | X23: 3 | Y23: 4 | Z23: 0.4285714286 | AA23: Brewers | AB23: 2 | AC23: 3 | AD23: 0.4 | AE23: 0
B24: West | C24: W | D24: L | E24: PCT | G24: TEAM | H24: W | I24: L | J24: PCT | L24: TEAM | M24: W | N24: L | O24: PCT | S24: White Sox | T24: 3 | U24: 3 | V24: 0.5 | W24: Astros | X24: 5 | Y24: 2 | Z24: 0.7142857143 | AA24: White Sox | AB24: 3 | AC24: 3 | AD24: 0.5 | AE24: 0
B25: Angels | C25: 72 | D25: 77 | E25: 0.4832214765 | F25: 4 | G25: LOS ANGELES | H25: 70 | I25: 73 | J25: 0.4895104895 | K25: 0 | L25: Angels | M25: 2 | N25: 4 | O25: 0.3333333333 | P25: 4 | S25: Astros | T25: 5 | U25: 2 | V25: 0.7142857143 | W25: Phillies | X25: 4 | Y25: 2 | Z25: 0.6666666667 | AA25: Dodgers | AB25: 5 | AC25: 1 | AD25: 0.8333333333 | AE25: 0
B26: Athletics | C26: 82 | D26: 67 | E26: 0.5503355705 | F26: 2 | G26: OAKLAND | H26: 77 | I26: 66 | J26: 0.5384615385 | K26: 1 | L26: Athletics | M26: 5 | N26: 1 | O26: 0.8333333333 | P26: 1 | S26: Braves | T26: 1 | U26: 4 | V26: 0.2 | W26: Cardinals | X26: 6 | Y26: 0 | Z26: 1 | AA26: Astros | AB26: 5 | AC26: 2 | AD26: 0.7142857143 | AE26: 0
B27: Mariners | C27: 80 | D27: 69 | E27: 0.5369127517 | F27: 3 | G27: SEATTLE | H27: 77 | I27: 66 | J27: 0.5384615385 | K27: 1 | L27: Mariners | M27: 3 | N27: 3 | O27: 0.5 | P27: 3 | S27: Brewers | T27: 2 | U27: 3 | V27: 0.4 | W27: Padres | X27: 2 | Y27: 5 | Z27: 0.2857142857 | AA27: Yankees | AB27: 4 | AC27: 3 | AD27: 0.5714285714 | AE27: 0
B28: Rangers | C28: 55 | D28: 94 | E28: 0.3691275168 | F28: 5 | G28: TEXAS | H28: 53 | I28: 89 | J28: 0.3732394366 | K28: 0 | L28: Rangers | M28: 2 | N28: 5 | O28: 0.2857142857 | P28: 5 | S28: Dodgers | T28: 5 | U28: 1 | V28: 0.8333333333 | W28: White Sox | X28: 3 | Y28: 3 | Z28: 0.5 | AA28: Phillies | AB28: 4 | AC28: 2 | AD28: 0.6666666667 | AE28: 0
B29: Astros | C29: 88 | D29: 61 | E29: 0.5906040268 | F29: 1 | G29: HOUSTON | H29: 83 | I29: 59 | J29: 0.5845070423 | K29: 7 | L29: Astros | M29: 5 | N29: 2 | O29: 0.7142857143 | P29: 2 | Q29: WEEKLY TOTAL | T29: 19 | U29: 17 | V29: 0.5277777778 | X29: 23 | Y29: 16 | Z29: 0.5897435897 | AB29: 23 | AC29: 14 | AD29: 0.6216216216
Q30: PREV WEEK TO DATE | T30: 477 | U30: 384 | V30: 0.5540069686 | X30: 438 | Y30: 410 | Z30: 0.516509434 | AB30: 455 | AC30: 404 | AD30: 0.529685681
B31: National League | G31: NL EAST | L31: NL EAST | Q31: CUR TOTAL TO DATE | T31: 496 | U31: 401 | V31: 0.5529542921 | X31: 461 | Y31: 426 | Z31: 0.519729425 | AB31: 478 | AC31: 418 | AD31: 0.5334821429
B32: East | C32: W | D32: L | E32: PCT | G32: TEAM | H32: W | I32: L | J32: PCT | L32: TEAM | M32: W | N32: L | O32: PCT
B33: Braves | C33: 77 | D33: 70 | E33: 0.5238095238 | F33: 1 | G33: ATLANTA | H33: 76 | I33: 66 | J33: 0.5352112676 | K33: 4 | L33: Braves | M33: 1 | N33: 4 | O33: 0.2 | P33: 4
B34: Marlins | C34: 63 | D34: 86 | E34: 0.4228187919 | F34: 4 | G34: Miami | H34: 60 | I34: 83 | J34: 0.4195804196 | K34: 0 | L34: Marlins | M34: 3 | N34: 3 | O34: 0.5 | P34: 2 | Q34: SEASON TLT TO DATE | T34: 433 | U34: 353 | V34: 0.5508905852 | X34: 401 | Y34: 374 | Z34: 0.5174193548 | AB34: 415 | AC34: 369 | AD34: 0.5293367347
B35: Mets | C35: 73 | D35: 77 | E35: 0.4866666667 | F35: 3 | G35: NEW YORK | H35: 72 | I35: 72 | J35: 0.5 | K35: 0 | L35: Mets | M35: 1 | N35: 5 | O35: 0.1666666667 | P35: 5 | Q35: SEPTEMBER TOTAL TO DATE | T35: 63 | U35: 48 | V35: 0.5675675676 | X35: 60 | Y35: 52 | Z35: 0.5357142857 | AB35: 63 | AC35: 49 | AD35: 0.5625
B36: Phillies | C36: 76 | D36: 73 | E36: 0.5100671141 | F36: 2 | G36: PHILADELPHIA | H36: 72 | I36: 71 | J36: 0.5034965035 | K36: 4 | L36: Phillies | M36: 4 | N36: 2 | O36: 0.6666666667 | P36: 1
B37: Nationals | C37: 61 | D37: 88 | E37: 0.4093959732 | F37: 5 | G37: WASHINGTON | H37: 59 | I37: 84 | J37: 0.4125874126 | K37: 1 | L37: Nationals | M37: 2 | N37: 4 | O37: 0.3333333333 | P37: 3
S38: JIM K. | W38: TIM | AA38: ----- | AE38: 0
G39: NL CENTRAL | L39: NL CENTRAL | S39: RANK | T39: W | U39: L | V39: PCT | W39: RANK | X39: W | Y39: L | Z39: PCT | AA39: RANK | AB39: W | AC39: L | AD39: PCT | AE39: RANK | AF39: W | AG39: L | AH39: PCT
B40: Central | C40: W | D40: L | E40: PCT | G40: TEAM | H40: W | I40: L | J40: PCT | L40: TEAM | M40: W | N40: L | O40: PCT | S40: Giants | T40: 4 | U40: 3 | V40: 0.5714285714 | W40: Giants | X40: 4 | Y40: 3 | Z40: 0.5714285714 | AE40: 0
B41: Cubs | C41: 67 | D41: 83 | E41: 0.4466666667 | F41: 4 | G41: CHICAGO | H41: 65 | I41: 79 | J41: 0.4513888889 | K41: 2 | L41: Cubs | M41: 2 | N41: 4 | O41: 0.3333333333 | P41: 4 | S41: White Sox | T41: 3 | U41: 3 | V41: 0.5 | W41: Rays | X41: 3 | Y41: 4 | Z41: 0.4285714286 | AE41: 0
B42: Reds | C42: 77 | D42: 73 | E42: 0.5133333333 | F42: 3 | G42: CINCINNATI | H42: 75 | I42: 69 | J42: 0.5208333333 | K42: 0 | L42: Reds | M42: 2 | N42: 4 | O42: 0.3333333333 | P42: 4 | S42: Red Sox | T42: 5 | U42: 1 | V42: 0.8333333333 | W42: Brewers | X42: 2 | Y42: 3 | Z42: 0.4 | AE42: 0
B43: Brewers | C43: 91 | D43: 58 | E43: 0.610738255 | F43: 1 | G43: MILWAUKEE | H43: 89 | I43: 55 | J43: 0.6180555556 | K43: 6 | L43: Brewers | M43: 2 | N43: 3 | O43: 0.4 | P43: 3 | S43: Athletics | T43: 5 | U43: 1 | V43: 0.8333333333 | W43: Astros | X43: 5 | Y43: 2 | Z43: 0.7142857143 | AE43: 0
B44: Pirates | C44: 56 | D44: 93 | E44: 0.3758389262 | F44: 5 | G44: PITTSBURGH | H44: 52 | I44: 91 | J44: 0.3636363636 | K44: 0 | L44: Pirates | M44: 4 | N44: 2 | O44: 0.6666666667 | P44: 2 | S44: Phillies | T44: 4 | U44: 2 | V44: 0.6666666667 | W44: White Sox | X44: 3 | Y44: 3 | Z44: 0.5 | AE44: 0
B45: Cardinals | C45: 79 | D45: 69 | E45: 0.5337837838 | F45: 2 | G45: ST LOUIS | H45: 73 | I45: 69 | J45: 0.514084507 | K45: 1 | L45: Cardinals | M45: 6 | N45: 0 | O45: 1 | P45: 1 | S45: Cubs | T45: 2 | U45: 4 | V45: 0.3333333333 | W45: Braves | X45: 1 | Y45: 4 | Z45: 0.2 | AE45: 0
Q46: WEEKLY TOTAL | T46: 23 | U46: 14 | V46: 0.6216216216 | X46: 18 | Y46: 19 | Z46: 0.4864864865 | AB46: 0 | AC46: 30
G47: NL WEST | L47: NL WEST | Q47: PREV WEEK TO DATE | T47: 448 | U47: 406 | V47: 0.5245901639 | X47: 468 | Y47: 400 | Z47: 0.5391705069 | AB47: 0 | AC47: 700
B48: West | C48: W | D48: L | E48: PCT | G48: TEAM | H48: W | I48: L | J48: PCT | L48: TEAM | M48: W | N48: L | O48: PCT | Q48: CUR TOTAL TO DATE | T48: 471 | U48: 420 | V48: 0.5286195286 | X48: 486 | Y48: 419 | Z48: 0.5370165746 | AB48: 0 | AC48: 730
B49: Diamondbacks | C49: 48 | D49: 101 | E49: 0.322147651 | F49: 5 | G49: ARIZONA | H49: 47 | I49: 96 | J49: 0.3286713287 | K49: 0 | L49: Diamondbacks | M49: 1 | N49: 5 | O49: 0.1666666667 | P49: 5
B50: Rockies | C50: 70 | D50: 79 | E50: 0.4697986577 | F50: 4 | G50: COLORADO | H50: 66 | I50: 78 | J50: 0.4583333333 | K50: 0 | L50: Rockies | M50: 4 | N50: 1 | O50: 0.8 | P50: 2
B51: Dodgers | C51: 96 | D51: 54 | E51: 0.64 | F51: 2 | G51: LOS ANGELES | H51: 91 | I51: 53 | J51: 0.6319444444 | K51: 4 | L51: Dodgers | M51: 5 | N51: 1 | O51: 0.8333333333 | P51: 1 | Q51: SEASON TLT TO DATE | T51: 408 | U51: 372 | V51: 0.5230769231 | X51: 424 | Y51: 369 | Z51: 0.5346784363 | AB51: 0 | AC51: 640
B52: Padres | C52: 76 | D52: 73 | E52: 0.5100671141 | F52: 3 | G52: SAN DIEGO | H52: 74 | I52: 68 | J52: 0.5211267606 | K52: 3 | L52: Padres | M52: 2 | N52: 5 | O52: 0.2857142857 | P52: 4 | Q52: SEPTEMBER TOTAL TO DATE | T52: 63 | U52: 48 | V52: 0.5675675676 | X52: 62 | Y52: 50 | Z52: 0.5535714286 | AB52: 0 | AC52: 90
B53: Giants | C53: 97 | D53: 53 | E53: 0.6466666667 | F53: 1 | G53: SAN FRANCISCO | H53: 93 | I53: 50 | J53: 0.6503496503 | K53: 2 | L53: Giants | M53: 4 | N53: 3 | O53: 0.5714285714 | P53: 3
M54: 92 | N54: 92
D55: 2021-09-21 | E55: Morning
C57: WEEK 24
C58: NAME | D58: W | E58: L | F58: PCT | G58: GB
C59: DIANE | D59: 23 | E59: 14 | F59: 0.6216216216 | G59: 0
C60: JIM K. | D60: 23 | E60: 14 | F60: 0.6216216216 | G60: 0
C61: JEAN | D61: 23 | E61: 16 | F61: 0.5897435897 | G61: 1
C62: JOHN | D62: 20 | E62: 16 | F62: 0.5555555556 | G62: 2.5
C63: JIM T. | D63: 19 | E63: 17 | F63: 0.5277777778 | G63: 3.5
C64: MIKE | D64: 20 | E64: 18 | F64: 0.5263157895 | G64: 3.5
C65: LARRY | D65: 18 | E65: 17 | F65: 0.5142857143 | G65: 4
C66: TIM | D66: 18 | E66: 19 | F66: 0.4864864865 | G66: 5
C67: ----- | D67: 0 | E67: 30 | F67: 0 | G67: -----
C72: MONTH OF SEPTEMBER
C73: NAME | D73: W | E73: L | F73: PCT | G73: GB
C74: JIM T. | D74: 63 | E74: 48 | F74: 0.5675675676 | G74: 0
C75: JIM K. | D75: 63 | E75: 48 | F75: 0.5675675676 | G75: 0
C76: DIANE | D76: 63 | E76: 49 | F76: 0.5625 | G76: 0.5
C77: TIM | D77: 62 | E77: 50 | F77: 0.5535714286 | G77: 1.5
C78: JOHN | D78: 60 | E78: 51 | F78: 0.5405405405 | G78: 3
C79: LARRY | D79: 59 | E79: 51 | F79: 0.5363636364 | G79: 3.5
C80: JEAN | D80: 60 | E80: 52 | F80: 0.5357142857 | G80: 3.5
C81: MIKE | D81: 59 | E81: 54 | F81: 0.5221238938 | G81: 5
C82: ----- | D82: 0 | E82: 90 | F82: 0 | G82: -----
C86: 2021 | E86: SEASON
C87: NAME | D87: W | E87: L | F87: PCT | G87: GB
C88: LARRY | D88: 509 | E88: 389 | F88: 0.5668151448 | G88: 0
C89: JIM T. | D89: 496 | E89: 401 | F89: 0.5529542921 | G89: 12.5
C90: TIM | D90: 486 | E90: 419 | F90: 0.5370165746 | G90: 26.5
C91: DIANE | D91: 478 | E91: 418 | F91: 0.5334821429 | G91: 30
C92: JIM K. | D92: 471 | E92: 420 | F92: 0.5286195286 | G92: 34.5
C93: MIKE | D93: 471 | E93: 425 | F93: 0.5256696429 | G93: 37
C94: JOHN | D94: 472 | E94: 426 | F94: 0.5256124722 | G94: 37
C95: JEAN | D95: 461 | E95: 426 | F95: 0.519729425 | G95: 42.5
C96: ----- | D96: 0 | E96: 730 | F96: 0 | G96: -----
E107: CURRENT WEEK | L107: THIS WEEK
C108: WEEK ENDING | E108: THIS WEEK | F108: SEASON | L108: AL | N108: RANK
C109: 2021-09-19 | E109: RANK | F109: RANK | L109: BOSTON | M109: 0.8333333333 | N109: 1
C110: ST LOUIS | D110: 1 | E110: 1 | F110: 12 | L110: OAKLAND | M110: 0.8333333333 | N110: 1
C111: LOS ANGELES N | D111: 0.8333333333 | E111: 2 | F111: 2 | L111: HOUSTON | M111: 0.7142857143 | N111: 3
C112: BOSTON | D112: 0.8333333333 | E112: 2 | F112: 7 | L112: DETROIT | M112: 0.6666666667 | N112: 4
C113: OAKLAND | D113: 0.8333333333 | E113: 2 | F113: 10 | L113: TORONTO | M113: 0.6666666667 | N113: 4
C114: COLORADO | D114: 0.8 | E114: 5 | F114: 21 | L114: CLEVELAND | M114: 0.6666666667 | N114: 4
C115: HOUSTON | D115: 0.7142857143 | E115: 6 | F115: 5 | L115: NEW YORK A | M115: 0.5714285714 | N115: 7
C116: PITTSBURGH | D116: 0.6666666667 | E116: 7 | F116: 27 | L116: CHICAGO A | M116: 0.5 | N116: 8
C117: PHILADELPHIA | D117: 0.6666666667 | E117: 7 | F117: 15 | L117: SEATTLE | M117: 0.5 | N117: 8
C118: DETROIT | D118: 0.6666666667 | E118: 7 | F118: 20 | L118: TAMPA BAY | M118: 0.4285714286 | N118: 10
C119: TORONTO | D119: 0.6666666667 | E119: 7 | F119: 8 | L119: LOS ANGELES A | M119: 0.3333333333 | N119: 11
C120: CLEVELAND | D120: 0.6666666667 | E120: 7 | F120: 17 | L120: KANSAS CITY | M120: 0.3333333333 | N120: 11
C121: NEW YORK A | D121: 0.5714285714 | E121: 12 | F121: 9 | L121: MINNESOTA | M121: 0.2857142857 | N121: 13
C122: SAN FRANCISCO | D122: 0.5714285714 | E122: 12 | F122: 1 | L122: TEXAS | M122: 0.2857142857 | N122: 13
C123: MIAMI | D123: 0.5 | E123: 14 | F123: 25 | L123: BALTIMORE | M123: 0.1666666667 | N123: 15
C124: CHICAGO A | D124: 0.5 | E124: 14 | F124: 6 | L124: NL
C125: SEATTLE | D125: 0.5 | E125: 14 | F125: 11 | L125: ST LOUIS | M125: 1 | N125: 1
C126: TAMPA BAY | D126: 0.4285714286 | E126: 17 | F126: 3 | L126: LOS ANGELES N | M126: 0.8333333333 | N126: 2
C127: MILWAUKEE | D127: 0.4 | E127: 18 | F127: 4 | L127: COLORADO | M127: 0.8 | N127: 3
C128: LOS ANGELES A | D128: 0.3333333333 | E128: 19 | F128: 19 | L128: PITTSBURGH | M128: 0.6666666667 | N128: 4
C129: CINCINNATI | D129: 0.3333333333 | E129: 19 | F129: 14 | L129: PHILADELPHIA | M129: 0.6666666667 | N129: 4
C130: KANSAS CITY | D130: 0.3333333333 | E130: 19 | F130: 22 | L130: SAN FRANCISCO | M130: 0.5714285714 | N130: 6
C131: CHICAGO N | D131: 0.3333333333 | E131: 19 | F131: 23 | L131: MIAMI | M131: 0.5 | N131: 7
C132: WASHINGTON | D132: 0.3333333333 | E132: 19 | F132: 26 | L132: MILWAUKEE | M132: 0.4 | N132: 8
C133: SAN DIEGO | D133: 0.2857142857 | E133: 24 | F133: 15 | L133: CINCINNATI | M133: 0.3333333333 | N133: 9
C134: MINNESOTA | D134: 0.2857142857 | E134: 24 | F134: 24 | L134: CHICAGO N | M134: 0.3333333333 | N134: 9
C135: TEXAS | D135: 0.2857142857 | E135: 24 | F135: 28 | L135: WASHINGTON | M135: 0.3333333333 | N135: 9
C136: ATLANTA | D136: 0.2 | E136: 27 | F136: 13 | L136: SAN DIEGO | M136: 0.2857142857 | N136: 12
C137: BALTIMORE | D137: 0.1666666667 | E137: 28 | F137: 30 | L137: ATLANTA | M137: 0.2 | N137: 13
C138: ARIZONA | D138: 0.1666666667 | E138: 28 | F138: 29 | L138: ARIZONA | M138: 0.1666666667 | N138: 14
C139: NEW YORK N | D139: 0.1666666667 | E139: 28 | F139: 18 | L139: NEW YORK N | M139: 0.1666666667 | N139: 14
E141: SEASON TO DATE | L141: SEASON TO DATE
L142: AL
C143: SEASON TO-DATE | E143: RANK | L143: TAMPA BAY | M143: 0.6133333333 | N143: 1
C144: SAN FRANCISCO | D144: 0.6466666667 | E144: 1 | L144: HOUSTON | M144: 0.5906040268 | N144: 2
C145: LOS ANGELES N | D145: 0.64 | E145: 2 | L145: CHICAGO A | M145: 0.5704697987 | N145: 3
C146: TAMPA BAY | D146: 0.6133333333 | E146: 3 | L146: BOSTON | M146: 0.5695364238 | N146: 4
C147: MILWAUKEE | D147: 0.610738255 | E147: 4 | L147: TORONTO | M147: 0.5637583893 | N147: 5
C148: HOUSTON | D148: 0.5906040268 | E148: 5 | L148: NEW YORK A | M148: 0.5533333333 | N148: 6
C149: CHICAGO A | D149: 0.5704697987 | E149: 6 | L149: OAKLAND | M149: 0.5503355705 | N149: 7
C150: BOSTON | D150: 0.5695364238 | E150: 7 | L150: SEATTLE | M150: 0.5369127517 | N150: 8
C151: TORONTO | D151: 0.5637583893 | E151: 8 | L151: CLEVELAND | M151: 0.4965986395 | N151: 9
C152: NEW YORK A | D152: 0.5533333333 | E152: 9 | L152: LOS ANGELES A | M152: 0.4832214765 | N152: 10
C153: OAKLAND | D153: 0.5503355705 | E153: 10 | L153: DETROIT | M153: 0.48 | N153: 11
C154: SEATTLE | D154: 0.5369127517 | E154: 11 | L154: KANSAS CITY | M154: 0.4496644295 | N154: 12
C155: ST LOUIS | D155: 0.5337837838 | E155: 12 | L155: MINNESOTA | M155: 0.4333333333 | N155: 13
C156: ATLANTA | D156: 0.5238095238 | E156: 13 | L156: TEXAS | M156: 0.3691275168 | N156: 14
C157: CINCINNATI | D157: 0.5133333333 | E157: 14 | L157: BALTIMORE | M157: 0.3154362416 | N157: 15
C158: SAN DIEGO | D158: 0.5100671141 | E158: 15 | L158: NL
C159: PHILADELPHIA | D159: 0.5100671141 | E159: 15 | L159: SAN FRANCISCO | M159: 0.6466666667 | N159: 1
C160: CLEVELAND | D160: 0.4965986395 | E160: 17 | L160: LOS ANGELES N | M160: 0.64 | N160: 2
C161: NEW YORK N | D161: 0.4866666667 | E161: 18 | L161: MILWAUKEE | M161: 0.610738255 | N161: 3
C162: LOS ANGELES A | D162: 0.4832214765 | E162: 19 | L162: ST LOUIS | M162: 0.5337837838 | N162: 4
C163: DETROIT | D163: 0.48 | E163: 20 | L163: ATLANTA | M163: 0.5238095238 | N163: 5
C164: COLORADO | D164: 0.4697986577 | E164: 21 | L164: CINCINNATI | M164: 0.5133333333 | N164: 6
C165: KANSAS CITY | D165: 0.4496644295 | E165: 22 | L165: SAN DIEGO | M165: 0.5100671141 | N165: 7
C166: CHICAGO N | D166: 0.4466666667 | E166: 23 | L166: PHILADELPHIA | M166: 0.5100671141 | N166: 7
C167: MINNESOTA | D167: 0.4333333333 | E167: 24 | L167: NEW YORK N | M167: 0.4866666667 | N167: 9
C168: MIAMI | D168: 0.4228187919 | E168: 25 | L168: COLORADO | M168: 0.4697986577 | N168: 10
C169: WASHINGTON | D169: 0.4093959732 | E169: 26 | L169: CHICAGO N | M169: 0.4466666667 | N169: 11
C170: PITTSBURGH | D170: 0.3758389262 | E170: 27 | L170: MIAMI | M170: 0.4228187919 | N170: 12
C171: TEXAS | D171: 0.3691275168 | E171: 28 | L171: WASHINGTON | M171: 0.4093959732 | N171: 13
C172: ARIZONA | D172: 0.322147651 | E172: 29 | L172: PITTSBURGH | M172: 0.3758389262 | N172: 14

Sheet 12-Sep
B1: 2021 | C1: STANDINGS
Q2: CURRENT WEEK RESULTS
B3: WEEK ENDING | D3: 2021-09-12 | L3: WEEK | M3: 23 | N3: SEPTEMBER
S4: MIKE | W4: JOHN | AA4: LARRY | AE4: 0
C5: CURRENT WEEK-SEASON TO DATE | G5: PREVIOUS WEEK-SEASON TO DATE | L5: CURRENT WEEK TOTALS | S5: RANK | T5: W | U5: L | V5: PCT | W5: RANK | X5: W | Y5: L | Z5: PCT | AA5: RANK | AB5: W | AC5: L | AD5: PCT | AE5: RANK | AF5: W | AG5: L | AH5: PCT
S6: Rays | T6: 3 | U6: 3 | V6: 0.5 | W6: Dodgers | X6: 5 | Y6: 2 | Z6: 0.7142857143 | AA6: Braves | AB6: 4 | AC6: 2 | AD6: 0.6666666667 | AE6: 0
B7: American League | G7: AL EAST | K7: Times | L7: AL EAST | S7: Astros | T7: 4 | U7: 2 | V7: 0.6666666667 | W7: Yankees | X7: 1 | Y7: 6 | Z7: 0.1428571429 | AA7: Brewers | AB7: 5 | AC7: 1 | AD7: 0.8333333333 | AE7: 0
B8: East | C8: W | D8: L | E8: PCT | F8: Rank | G8: TEAM | H8: W | I8: L | J8: PCT | K8: Picked | L8: TEAM | M8: W | N8: L | O8: PCT | P8: Rank | S8: Brewers | T8: 5 | U8: 1 | V8: 0.8333333333 | W8: Astros | X8: 4 | Y8: 2 | Z8: 0.6666666667 | AA8: White Sox | AB8: 3 | AC8: 3 | AD8: 0.5 | AE8: 0
B9: Orioles | C9: 46 | D9: 97 | E9: 0.3216783217 | F9: 5 | G9: BALTIMORE | H9: 43 | I9: 92 | J9: 0.3185185185 | K9: 0 | L9: Orioles | M9: 3 | N9: 5 | O9: 0.375 | P9: 3 | S9: Padres | T9: 1 | U9: 4 | V9: 0.2 | W9: White Sox | X9: 3 | Y9: 3 | Z9: 0.5 | AA9: Yankees | AB9: 1 | AC9: 6 | AD9: 0.1428571429 | AE9: 0
B10: Red Sox | C10: 81 | D10: 64 | E10: 0.5586206897 | F10: 3 | G10: BOSTON | H10: 79 | I10: 60 | J10: 0.5683453237 | K10: 1 | L10: Red Sox | M10: 2 | N10: 4 | O10: 0.3333333333 | P10: 4 | S10: Indians | T10: 1 | U10: 6 | V10: 0.1428571429 | W10: Brewers | X10: 5 | Y10: 1 | Z10: 0.8333333333 | AA10: Mariners | AB10: 2 | AC10: 4 | AD10: 0.3333333333 | AE10: 0
B11: Yankees | C11: 79 | D11: 64 | E11: 0.5524475524 | F11: 4 | G11: NEW YORK | H11: 78 | I11: 58 | J11: 0.5735294118 | K11: 3 | L11: Yankees | M11: 1 | N11: 6 | O11: 0.1428571429 | P11: 5 | S11: Phillies | T11: 2 | U11: 5 | V11: 0.2857142857 | W11: Braves | X11: 4 | Y11: 2 | Z11: 0.6666666667 | AA11: Dodgers | AB11: 5 | AC11: 2 | AD11: 0.7142857143 | AE11: 0
B12: Rays | C12: 89 | D12: 54 | E12: 0.6223776224 | F12: 1 | G12: TAMPA BAY | H12: 86 | I12: 51 | J12: 0.6277372263 | K12: 4 | L12: Rays | M12: 3 | N12: 3 | O12: 0.5 | P12: 2 | Q12: WEEKLY TOTAL | T12: 16 | U12: 21 | V12: 0.4324324324 | X12: 22 | Y12: 16 | Z12: 0.5789473684 | AB12: 20 | AC12: 18 | AD12: 0.5263157895
B13: Blue Jays | C13: 80 | D13: 63 | E13: 0.5594405594 | F13: 2 | G13: TORONTO | H13: 73 | I13: 62 | J13: 0.5407407407 | K13: 1 | L13: Blue Jays | M13: 7 | N13: 1 | O13: 0.875 | P13: 1 | Q13: PREV WEEK TO DATE | T13: 435 | U13: 386 | V13: 0.5298416565 | X13: 430 | Y13: 394 | Z13: 0.5218446602 | AB13: 471 | AC13: 354 | AD13: 0.5709090909
Q14: CUR TOTAL TO DATE | T14: 451 | U14: 407 | V14: 0.5256410256 | X14: 452 | Y14: 410 | Z14: 0.524361949 | AB14: 491 | AC14: 372 | AD14: 0.5689455388
G15: AL CENTRAL | L15: AL CENTRAL
B16: Central | C16: W | D16: L | E16: PCT | G16: TEAM | H16: W | I16: L | J16: PCT | L16: TEAM | M16: W | N16: L | O16: PCT
B17: White Sox | C17: 82 | D17: 61 | E17: 0.5734265734 | F17: 1 | G17: CHICAGO | H17: 79 | I17: 58 | J17: 0.5766423358 | K17: 7 | L17: White Sox | M17: 3 | N17: 3 | O17: 0.5 | P17: 3 | Q17: SEASON TLT TO DATE | T17: 412 | U17: 371 | V17: 0.5261813538 | X17: 412 | Y17: 375 | Z17: 0.5235069886 | AB17: 450 | AC17: 338 | AD17: 0.5710659898
B18: Indians | C18: 69 | D18: 72 | E18: 0.4893617021 | F18: 2 | G18: CLEVELAND | H18: 68 | I18: 66 | J18: 0.5074626866 | K18: 2 | L18: Indians | M18: 1 | N18: 6 | O18: 0.1428571429 | P18: 5 | Q18: SEPTEMBER TOTAL TO DATE | T18: 39 | U18: 36 | V18: 0.52 | X18: 40 | Y18: 35 | Z18: 0.5333333333 | AB18: 41 | AC18: 34 | AD18: 0.5466666667
B19: Tigers | C19: 68 | D19: 76 | E19: 0.4722222222 | F19: 3 | G19: DETROIT | H19: 65 | I19: 73 | J19: 0.4710144928 | K19: 0 | L19: Tigers | M19: 3 | N19: 3 | O19: 0.5 | P19: 3
B20: Royals | C20: 65 | D20: 78 | E20: 0.4545454545 | F20: 4 | G20: KANSAS CITY | H20: 61 | I20: 75 | J20: 0.4485294118 | K20: 0 | L20: Royals | M20: 4 | N20: 3 | O20: 0.5714285714 | P20: 1
B21: Twins | C21: 63 | D21: 80 | E21: 0.4405594406 | F21: 5 | G21: MINNESOTA | H21: 59 | I21: 77 | J21: 0.4338235294 | K21: 0 | L21: Twins | M21: 4 | N21: 3 | O21: 0.5714285714 | P21: 1 | S21: JIM T. | W21: JEAN | AA21: DIANE | AE21: 0
S22: RANK | T22: W | U22: L | V22: PCT | W22: RANK | X22: W | Y22: L | Z22: PCT | AA22: RANK | AB22: W | AC22: L | AD22: PCT | AE22: RANK | AF22: W | AG22: L | AH22: PCT
G23: AL WEST | L23: AL WEST | S23: Rays | T23: 3 | U23: 3 | V23: 0.5 | W23: Rays | X23: 3 | Y23: 3 | Z23: 0.5 | AA23: Brewers | AB23: 5 | AC23: 1 | AD23: 0.8333333333 | AE23: 0
B24: West | C24: W | D24: L | E24: PCT | G24: TEAM | H24: W | I24: L | J24: PCT | L24: TEAM | M24: W | N24: L | O24: PCT | S24: White Sox | T24: 3 | U24: 3 | V24: 0.5 | W24: Astros | X24: 4 | Y24: 2 | Z24: 0.6666666667 | AA24: White Sox | AB24: 3 | AC24: 3 | AD24: 0.5 | AE24: 0
B25: Angels | C25: 70 | D25: 73 | E25: 0.4895104895 | F25: 4 | G25: LOS ANGELES | H25: 68 | I25: 69 | J25: 0.496350365 | K25: 0 | L25: Angels | M25: 2 | N25: 4 | O25: 0.3333333333 | P25: 4 | S25: Astros | T25: 4 | U25: 2 | V25: 0.6666666667 | W25: Phillies | X25: 2 | Y25: 5 | Z25: 0.2857142857 | AA25: Dodgers | AB25: 5 | AC25: 2 | AD25: 0.7142857143 | AE25: 0
B26: Athletics | C26: 77 | D26: 66 | E26: 0.5384615385 | F26: 2 | G26: OAKLAND | H26: 74 | I26: 63 | J26: 0.5401459854 | K26: 1 | L26: Athletics | M26: 3 | N26: 3 | O26: 0.5 | P26: 3 | S26: Braves | T26: 4 | U26: 2 | V26: 0.6666666667 | W26: Cardinals | X26: 4 | Y26: 3 | Z26: 0.5714285714 | AA26: Astros | AB26: 4 | AC26: 2 | AD26: 0.6666666667 | AE26: 0
B27: Mariners | C27: 77 | D27: 66 | E27: 0.5384615385 | F27: 2 | G27: SEATTLE | H27: 75 | I27: 62 | J27: 0.5474452555 | K27: 1 | L27: Mariners | M27: 2 | N27: 4 | O27: 0.3333333333 | P27: 4 | S27: Brewers | T27: 5 | U27: 1 | V27: 0.8333333333 | W27: Padres | X27: 1 | Y27: 4 | Z27: 0.2 | AA27: Yankees | AB27: 1 | AC27: 6 | AD27: 0.1428571429 | AE27: 0
B28: Rangers | C28: 53 | D28: 89 | E28: 0.3732394366 | F28: 5 | G28: TEXAS | H28: 48 | I28: 88 | J28: 0.3529411765 | K28: 0 | L28: Rangers | M28: 5 | N28: 1 | O28: 0.8333333333 | P28: 1 | S28: Dodgers | T28: 5 | U28: 2 | V28: 0.7142857143 | W28: White Sox | X28: 3 | Y28: 3 | Z28: 0.5 | AA28: Phillies | AB28: 2 | AC28: 5 | AD28: 0.2857142857 | AE28: 0
B29: Astros | C29: 83 | D29: 59 | E29: 0.5845070423 | F29: 1 | G29: HOUSTON | H29: 79 | I29: 57 | J29: 0.5808823529 | K29: 7 | L29: Astros | M29: 4 | N29: 2 | O29: 0.6666666667 | P29: 2 | Q29: WEEKLY TOTAL | T29: 24 | U29: 13 | V29: 0.6486486486 | X29: 17 | Y29: 20 | Z29: 0.4594594595 | AB29: 20 | AC29: 19 | AD29: 0.5128205128
Q30: PREV WEEK TO DATE | T30: 453 | U30: 371 | V30: 0.5497572816 | X30: 421 | Y30: 390 | Z30: 0.5191122072 | AB30: 435 | AC30: 385 | AD30: 0.5304878049
B31: National League | G31: NL EAST | L31: NL EAST | Q31: CUR TOTAL TO DATE | T31: 477 | U31: 384 | V31: 0.5540069686 | X31: 438 | Y31: 410 | Z31: 0.516509434 | AB31: 455 | AC31: 404 | AD31: 0.529685681
B32: East | C32: W | D32: L | E32: PCT | G32: TEAM | H32: W | I32: L | J32: PCT | L32: TEAM | M32: W | N32: L | O32: PCT
B33: Braves | C33: 76 | D33: 66 | E33: 0.5352112676 | F33: 1 | G33: ATLANTA | H33: 72 | I33: 64 | J33: 0.5294117647 | K33: 4 | L33: Braves | M33: 4 | N33: 2 | O33: 0.6666666667 | P33: 1
B34: Marlins | C34: 60 | D34: 83 | E34: 0.4195804196 | F34: 4 | G34: Miami | H34: 57 | I34: 80 | J34: 0.4160583942 | K34: 0 | L34: Marlins | M34: 3 | N34: 3 | O34: 0.5 | P34: 2 | Q34: SEASON TLT TO DATE | T34: 433 | U34: 353 | V34: 0.5508905852 | X34: 401 | Y34: 374 | Z34: 0.5174193548 | AB34: 415 | AC34: 369 | AD34: 0.5293367347
B35: Mets | C35: 72 | D35: 72 | E35: 0.5 | F35: 3 | G35: NEW YORK | H35: 69 | I35: 68 | J35: 0.503649635 | K35: 0 | L35: Mets | M35: 3 | N35: 4 | O35: 0.4285714286 | P35: 3 | Q35: SEPTEMBER TOTAL TO DATE | T35: 44 | U35: 31 | V35: 0.5866666667 | X35: 37 | Y35: 36 | Z35: 0.5068493151 | AB35: 40 | AC35: 35 | AD35: 0.5333333333
B36: Phillies | C36: 72 | D36: 71 | E36: 0.5034965035 | F36: 2 | G36: PHILADELPHIA | H36: 70 | I36: 66 | J36: 0.5147058824 | K36: 4 | L36: Phillies | M36: 2 | N36: 5 | O36: 0.2857142857 | P36: 5
B37: Nationals | C37: 59 | D37: 84 | E37: 0.4125874126 | F37: 5 | G37: WASHINGTON | H37: 56 | I37: 80 | J37: 0.4117647059 | K37: 1 | L37: Nationals | M37: 3 | N37: 4 | O37: 0.4285714286 | P37: 3
S38: JIM K. | W38: TIM | AA38: ----- | AE38: 0
G39: NL CENTRAL | L39: NL CENTRAL | S39: RANK | T39: W | U39: L | V39: PCT | W39: RANK | X39: W | Y39: L | Z39: PCT | AA39: RANK | AB39: W | AC39: L | AD39: PCT | AE39: RANK | AF39: W | AG39: L | AH39: PCT
B40: Central | C40: W | D40: L | E40: PCT | G40: TEAM | H40: W | I40: L | J40: PCT | L40: TEAM | M40: W | N40: L | O40: PCT | S40: Giants | T40: 6 | U40: 0 | V40: 1 | W40: Giants | X40: 6 | Y40: 0 | Z40: 1 | AE40: 0
B41: Cubs | C41: 65 | D41: 79 | E41: 0.4513888889 | F41: 4 | G41: CHICAGO | H41: 63 | I41: 75 | J41: 0.4565217391 | K41: 2 | L41: Cubs | M41: 2 | N41: 4 | O41: 0.3333333333 | P41: 4 | S41: White Sox | T41: 3 | U41: 3 | V41: 0.5 | W41: Rays | X41: 3 | Y41: 3 | Z41: 0.5 | AE41: 0
B42: Reds | C42: 75 | D42: 69 | E42: 0.5208333333 | F42: 2 | G42: CINCINNATI | H42: 73 | I42: 65 | J42: 0.5289855072 | K42: 0 | L42: Reds | M42: 2 | N42: 4 | O42: 0.3333333333 | P42: 4 | S42: Red Sox | T42: 2 | U42: 4 | V42: 0.3333333333 | W42: Brewers | X42: 5 | Y42: 1 | Z42: 0.8333333333 | AE42: 0
B43: Brewers | C43: 89 | D43: 55 | E43: 0.6180555556 | F43: 1 | G43: MILWAUKEE | H43: 84 | I43: 54 | J43: 0.6086956522 | K43: 6 | L43: Brewers | M43: 5 | N43: 1 | O43: 0.8333333333 | P43: 1 | S43: Athletics | T43: 3 | U43: 3 | V43: 0.5 | W43: Astros | X43: 4 | Y43: 2 | Z43: 0.6666666667 | AE43: 0
B44: Pirates | C44: 52 | D44: 91 | E44: 0.3636363636 | F44: 5 | G44: PITTSBURGH | H44: 48 | I44: 89 | J44: 0.3503649635 | K44: 0 | L44: Pirates | M44: 4 | N44: 2 | O44: 0.6666666667 | P44: 2 | S44: Phillies | T44: 2 | U44: 5 | V44: 0.2857142857 | W44: White Sox | X44: 3 | Y44: 3 | Z44: 0.5 | AE44: 0
B45: Cardinals | C45: 73 | D45: 69 | E45: 0.514084507 | F45: 3 | G45: ST LOUIS | H45: 69 | I45: 66 | J45: 0.5111111111 | K45: 1 | L45: Cardinals | M45: 4 | N45: 3 | O45: 0.5714285714 | P45: 3 | S45: Cubs | T45: 2 | U45: 4 | V45: 0.3333333333 | W45: Braves | X45: 4 | Y45: 2 | Z45: 0.6666666667 | AE45: 0
Q46: WEEKLY TOTAL | T46: 18 | U46: 19 | V46: 0.4864864865 | X46: 25 | Y46: 11 | Z46: 0.6944444444 | AB46: 0 | AC46: 30
G47: NL WEST | L47: NL WEST | Q47: PREV WEEK TO DATE | T47: 430 | U47: 387 | V47: 0.5263157895 | X47: 443 | Y47: 389 | Z47: 0.5324519231 | AB47: 0 | AC47: 670
B48: West | C48: W | D48: L | E48: PCT | G48: TEAM | H48: W | I48: L | J48: PCT | L48: TEAM | M48: W | N48: L | O48: PCT | Q48: CUR TOTAL TO DATE | T48: 448 | U48: 406 | V48: 0.5245901639 | X48: 468 | Y48: 400 | Z48: 0.5391705069 | AB48: 0 | AC48: 700
B49: Diamondbacks | C49: 47 | D49: 96 | E49: 0.3286713287 | F49: 5 | G49: ARIZONA | H49: 45 | I49: 93 | J49: 0.3260869565 | K49: 0 | L49: Diamondbacks | M49: 2 | N49: 3 | O49: 0.4 | P49: 4
B50: Rockies | C50: 66 | D50: 78 | E50: 0.4583333333 | F50: 4 | G50: COLORADO | H50: 63 | I50: 74 | J50: 0.4598540146 | K50: 0 | L50: Rockies | M50: 3 | N50: 4 | O50: 0.4285714286 | P50: 3
B51: Dodgers | C51: 91 | D51: 53 | E51: 0.6319444444 | F51: 2 | G51: LOS ANGELES | H51: 86 | I51: 51 | J51: 0.6277372263 | K51: 4 | L51: Dodgers | M51: 5 | N51: 2 | O51: 0.7142857143 | P51: 2 | Q51: SEASON TLT TO DATE | T51: 408 | U51: 372 | V51: 0.5230769231 | X51: 424 | Y51: 369 | Z51: 0.5346784363 | AB51: 0 | AC51: 640
B52: Padres | C52: 74 | D52: 68 | E52: 0.5211267606 | F52: 3 | G52: SAN DIEGO | H52: 73 | I52: 64 | J52: 0.5328467153 | K52: 3 | L52: Padres | M52: 1 | N52: 4 | O52: 0.2 | P52: 5 | Q52: SEPTEMBER TOTAL TO DATE | T52: 40 | U52: 34 | V52: 0.5405405405 | X52: 44 | Y52: 31 | Z52: 0.5866666667 | AB52: 0 | AC52: 60
B53: Giants | C53: 93 | D53: 50 | E53: 0.6503496503 | F53: 1 | G53: SAN FRANCISCO | H53: 87 | I53: 50 | J53: 0.6350364964 | K53: 2 | L53: Giants | M53: 6 | N53: 0 | O53: 1 | P53: 1
M54: 96 | N54: 96
D55: 2021-09-15 | E55: Morning
C57: WEEK 23
C58: NAME | D58: W | E58: L | F58: PCT | G58: GB
C59: TIM | D59: 25 | E59: 11 | F59: 0.6944444444 | G59: 0
C60: JIM T. | D60: 24 | E60: 13 | F60: 0.6486486486 | G60: 1.5
C61: JOHN | D61: 22 | E61: 16 | F61: 0.5789473684 | G61: 4
C62: LARRY | D62: 20 | E62: 18 | F62: 0.5263157895 | G62: 6
C63: DIANE | D63: 20 | E63: 19 | F63: 0.5128205128 | G63: 6.5
C64: JIM K. | D64: 18 | E64: 19 | F64: 0.4864864865 | G64: 7.5
C65: JEAN | D65: 17 | E65: 20 | F65: 0.4594594595 | G65: 8.5
C66: MIKE | D66: 16 | E66: 21 | F66: 0.4324324324 | G66: 9.5
C67: ----- | D67: 0 | E67: 30 | F67: 0 | G67: -----
C72: MONTH OF SEPTEMBER
C73: NAME | D73: W | E73: L | F73: PCT | G73: GB
C74: JIM T. | D74: 44 | E74: 31 | F74: 0.5866666667 | G74: 0
C75: TIM | D75: 44 | E75: 31 | F75: 0.5866666667 | G75: 0
C76: LARRY | D76: 41 | E76: 34 | F76: 0.5466666667 | G76: 3
C77: JIM K. | D77: 40 | E77: 34 | F77: 0.5405405405 | G77: 3.5
C78: DIANE | D78: 40 | E78: 35 | F78: 0.5333333333 | G78: 4
C79: JOHN | D79: 40 | E79: 35 | F79: 0.5333333333 | G79: 4
C80: MIKE | D80: 39 | E80: 36 | F80: 0.52 | G80: 5
C81: JEAN | D81: 37 | E81: 36 | F81: 0.5068493151 | G81: 6
C82: ----- | D82: 0 | E82: 60 | F82: 0 | G82: -----
C86: 2021 | E86: SEASON
C87: NAME | D87: W | E87: L | F87: PCT | G87: GB
C88: LARRY | D88: 491 | E88: 372 | F88: 0.5689455388 | G88: 0
C89: JIM T. | D89: 477 | E89: 384 | F89: 0.5540069686 | G89: 13
C90: TIM | D90: 468 | E90: 400 | F90: 0.5391705069 | G90: 25.5
C91: DIANE | D91: 455 | E91: 404 | F91: 0.529685681 | G91: 34
C92: MIKE | D92: 451 | E92: 407 | F92: 0.5256410256 | G92: 37.5
C93: JIM K. | D93: 448 | E93: 406 | F93: 0.5245901639 | G93: 38.5
C94: JOHN | D94: 452 | E94: 410 | F94: 0.524361949 | G94: 38.5
C95: JEAN | D95: 438 | E95: 410 | F95: 0.516509434 | G95: 45.5
C96: ----- | D96: 0 | E96: 700 | F96: 0 | G96: -----
E107: CURRENT WEEK | L107: THIS WEEK
C108: WEEK ENDING | E108: THIS WEEK | F108: SEASON | L108: AL | N108: RANK
C109: 2021-09-12 | E109: RANK | F109: RANK | L109: TORONTO | M109: 0.875 | N109: 1
C110: SAN FRANCISCO | D110: 1 | E110: 1 | F110: 1 | L110: TEXAS | M110: 0.8333333333 | N110: 2
C111: TORONTO | D111: 0.875 | E111: 2 | F111: 7 | L111: HOUSTON | M111: 0.6666666667 | N111: 3
C112: TEXAS | D112: 0.8333333333 | E112: 3 | F112: 27 | L112: MINNESOTA | M112: 0.5714285714 | N112: 4
C113: MILWAUKEE | D113: 0.8333333333 | E113: 3 | F113: 4 | L113: KANSAS CITY | M113: 0.5714285714 | N113: 4
C114: LOS ANGELES N | D114: 0.7142857143 | E114: 5 | F114: 2 | L114: OAKLAND | M114: 0.5 | N114: 6
C115: PITTSBURGH | D115: 0.6666666667 | E115: 6 | F115: 28 | L115: TAMPA BAY | M115: 0.5 | N115: 6
C116: HOUSTON | D116: 0.6666666667 | E116: 6 | F116: 5 | L116: CHICAGO A | M116: 0.5 | N116: 6
C117: ATLANTA | D117: 0.6666666667 | E117: 6 | F117: 12 | L117: DETROIT | M117: 0.5 | N117: 6
C118: MINNESOTA | D118: 0.5714285714 | E118: 9 | F118: 24 | L118: BALTIMORE | M118: 0.375 | N118: 10
C119: KANSAS CITY | D119: 0.5714285714 | E119: 9 | F119: 22 | L119: SEATTLE | M119: 0.3333333333 | N119: 11
C120: ST LOUIS | D120: 0.5714285714 | E120: 9 | F120: 15 | L120: LOS ANGELES A | M120: 0.3333333333 | N120: 11
C121: OAKLAND | D121: 0.5 | E121: 12 | F121: 10 | L121: BOSTON | M121: 0.3333333333 | N121: 11
C122: TAMPA BAY | D122: 0.5 | E122: 12 | F122: 3 | L122: CLEVELAND | M122: 0.1428571429 | N122: 14
C123: MIAMI | D123: 0.5 | E123: 12 | F123: 25 | L123: NEW YORK A | M123: 0.1428571429 | N123: 14
C124: CHICAGO A | D124: 0.5 | E124: 12 | F124: 6 | L124: NL
C125: DETROIT | D125: 0.5 | E125: 12 | F125: 20 | L125: SAN FRANCISCO | M125: 1 | N125: 1
C126: WASHINGTON | D126: 0.4285714286 | E126: 17 | F126: 26 | L126: MILWAUKEE | M126: 0.8333333333 | N126: 2
C127: NEW YORK N | D127: 0.4285714286 | E127: 17 | F127: 17 | L127: LOS ANGELES N | M127: 0.7142857143 | N127: 3
C128: COLORADO | D128: 0.4285714286 | E128: 17 | F128: 21 | L128: PITTSBURGH | M128: 0.6666666667 | N128: 4
C129: ARIZONA | D129: 0.4 | E129: 20 | F129: 29 | L129: ATLANTA | M129: 0.6666666667 | N129: 4
C130: BALTIMORE | D130: 0.375 | E130: 21 | F130: 30 | L130: ST LOUIS | M130: 0.5714285714 | N130: 6
C131: CHICAGO N | D131: 0.3333333333 | E131: 22 | F131: 23 | L131: MIAMI | M131: 0.5 | N131: 7
C132: CINCINNATI | D132: 0.3333333333 | E132: 22 | F132: 14 | L132: WASHINGTON | M132: 0.4285714286 | N132: 8
C133: SEATTLE | D133: 0.3333333333 | E133: 22 | F133: 10 | L133: NEW YORK N | M133: 0.4285714286 | N133: 8
C134: LOS ANGELES A | D134: 0.3333333333 | E134: 22 | F134: 18 | L134: COLORADO | M134: 0.4285714286 | N134: 8
C135: BOSTON | D135: 0.3333333333 | E135: 22 | F135: 8 | L135: ARIZONA | M135: 0.4 | N135: 11
C136: PHILADELPHIA | D136: 0.2857142857 | E136: 27 | F136: 16 | L136: CHICAGO N | M136: 0.3333333333 | N136: 12
C137: SAN DIEGO | D137: 0.2 | E137: 28 | F137: 13 | L137: CINCINNATI | M137: 0.3333333333 | N137: 12
C138: CLEVELAND | D138: 0.1428571429 | E138: 29 | F138: 19 | L138: PHILADELPHIA | M138: 0.2857142857 | N138: 14
C139: NEW YORK A | D139: 0.1428571429 | E139: 29 | F139: 9 | L139: SAN DIEGO | M139: 0.2 | N139: 15
E141: SEASON TO DATE | L141: SEASON TO DATE
L142: AL
C143: SEASON TO-DATE | E143: RANK | L143: TAMPA BAY | M143: 0.6223776224 | N143: 1
C144: SAN FRANCISCO | D144: 0.6503496503 | E144: 1 | L144: HOUSTON | M144: 0.5845070423 | N144: 2
C145: LOS ANGELES N | D145: 0.6319444444 | E145: 2 | L145: CHICAGO A | M145: 0.5734265734 | N145: 3
C146: TAMPA BAY | D146: 0.6223776224 | E146: 3 | L146: TORONTO | M146: 0.5594405594 | N146: 4
C147: MILWAUKEE | D147: 0.6180555556 | E147: 4 | L147: BOSTON | M147: 0.5586206897 | N147: 5
C148: HOUSTON | D148: 0.5845070423 | E148: 5 | L148: NEW YORK A | M148: 0.5524475524 | N148: 6
C149: CHICAGO A | D149: 0.5734265734 | E149: 6 | L149: SEATTLE | M149: 0.5384615385 | N149: 7
C150: TORONTO | D150: 0.5594405594 | E150: 7 | L150: OAKLAND | M150: 0.5384615385 | N150: 7
C151: BOSTON | D151: 0.5586206897 | E151: 8 | L151: LOS ANGELES A | M151: 0.4895104895 | N151: 9
C152: NEW YORK A | D152: 0.5524475524 | E152: 9 | L152: CLEVELAND | M152: 0.4893617021 | N152: 10
C153: SEATTLE | D153: 0.5384615385 | E153: 10 | L153: DETROIT | M153: 0.4722222222 | N153: 11
C154: OAKLAND | D154: 0.5384615385 | E154: 10 | L154: KANSAS CITY | M154: 0.4545454545 | N154: 12
C155: ATLANTA | D155: 0.5352112676 | E155: 12 | L155: MINNESOTA | M155: 0.4405594406 | N155: 13
C156: SAN DIEGO | D156: 0.5211267606 | E156: 13 | L156: TEXAS | M156: 0.3732394366 | N156: 14
C157: CINCINNATI | D157: 0.5208333333 | E157: 14 | L157: BALTIMORE | M157: 0.3216783217 | N157: 15
C158: ST LOUIS | D158: 0.514084507 | E158: 15 | L158: NL
C159: PHILADELPHIA | D159: 0.5034965035 | E159: 16 | L159: SAN FRANCISCO | M159: 0.6503496503 | N159: 1
C160: NEW YORK N | D160: 0.5 | E160: 17 | L160: LOS ANGELES N | M160: 0.6319444444 | N160: 2
C161: LOS ANGELES A | D161: 0.4895104895 | E161: 18 | L161: MILWAUKEE | M161: 0.6180555556 | N161: 3
C162: CLEVELAND | D162: 0.4893617021 | E162: 19 | L162: ATLANTA | M162: 0.5352112676 | N162: 4
C163: DETROIT | D163: 0.4722222222 | E163: 20 | L163: SAN DIEGO | M163: 0.5211267606 | N163: 5
C164: COLORADO | D164: 0.4583333333 | E164: 21 | L164: CINCINNATI | M164: 0.5208333333 | N164: 6
C165: KANSAS CITY | D165: 0.4545454545 | E165: 22 | L165: ST LOUIS | M165: 0.514084507 | N165: 7
C166: CHICAGO N | D166: 0.4513888889 | E166: 23 | L166: PHILADELPHIA | M166: 0.5034965035 | N166: 8
C167: MINNESOTA | D167: 0.4405594406 | E167: 24 | L167: NEW YORK N | M167: 0.5 | N167: 9
C168: MIAMI | D168: 0.4195804196 | E168: 25 | L168: COLORADO | M168: 0.4583333333 | N168: 10
C169: WASHINGTON | D169: 0.4125874126 | E169: 26 | L169: CHICAGO N | M169: 0.4513888889 | N169: 11
C170: TEXAS | D170: 0.3732394366 | E170: 27 | L170: MIAMI | M170: 0.4195804196 | N170: 12
C171: PITTSBURGH | D171: 0.3636363636 | E171: 28 | L171: WASHINGTON | M171: 0.4125874126 | N171: 13
C172: ARIZONA | D172: 0.3286713287 | E172: 29 | L172: PITTSBURGH | M172: 0.3636363636 | N172: 14

Sheet 5-Sep
B1: 2021 | C1: STANDINGS
Q2: CURRENT WEEK RESULTS
B3: WEEK ENDING | D3: 2021-09-05 | L3: WEEK | M3: 22 | N3: SEPTEMBER
S4: MIKE | W4: JOHN | AA4: LARRY | AE4: 0
C5: CURRENT WEEK-SEASON TO DATE | G5: PREVIOUS WEEK-SEASON TO DATE | L5: CURRENT WEEK TOTALS | S5: RANK | T5: W | U5: L | V5: PCT | W5: RANK | X5: W | Y5: L | Z5: PCT | AA5: RANK | AB5: W | AC5: L | AD5: PCT | AE5: RANK | AF5: W | AG5: L | AH5: PCT
S6: Rays | T6: 4 | U6: 3 | V6: 0.5714285714 | W6: Dodgers | X6: 4 | Y6: 2 | Z6: 0.6666666667 | AA6: Braves | AB6: 2 | AC6: 5 | AD6: 0.2857142857 | AE6: 0
B7: American League | G7: AL EAST | K7: Times | L7: AL EAST | S7: Astros | T7: 2 | U7: 4 | V7: 0.3333333333 | W7: Yankees | X7: 2 | Y7: 4 | Z7: 0.3333333333 | AA7: Brewers | AB7: 5 | AC7: 2 | AD7: 0.7142857143 | AE7: 0
B8: East | C8: W | D8: L | E8: PCT | F8: Rank | G8: TEAM | H8: W | I8: L | J8: PCT | K8: Picked | L8: TEAM | M8: W | N8: L | O8: PCT | P8: Rank | S8: Brewers | T8: 5 | U8: 2 | V8: 0.7142857143 | W8: Astros | X8: 2 | Y8: 4 | Z8: 0.3333333333 | AA8: White Sox | AB8: 3 | AC8: 2 | AD8: 0.6 | AE8: 0
B9: Orioles | C9: 43 | D9: 92 | E9: 0.3185185185 | F9: 5 | G9: BALTIMORE | H9: 40 | I9: 89 | J9: 0.3100775194 | K9: 0 | L9: Orioles | M9: 3 | N9: 3 | O9: 0.5 | P9: 4 | S9: Padres | T9: 4 | U9: 2 | V9: 0.6666666667 | W9: White Sox | X9: 3 | Y9: 2 | Z9: 0.6 | AA9: Yankees | AB9: 2 | AC9: 4 | AD9: 0.3333333333 | AE9: 0
B10: Red Sox | C10: 79 | D10: 60 | E10: 0.5683453237 | F10: 3 | G10: BOSTON | H10: 75 | I10: 57 | J10: 0.5681818182 | K10: 1 | L10: Red Sox | M10: 4 | N10: 3 | O10: 0.5714285714 | P10: 2 | S10: Indians | T10: 4 | U10: 2 | V10: 0.6666666667 | W10: Brewers | X10: 5 | Y10: 2 | Z10: 0.7142857143 | AA10: Mariners | AB10: 5 | AC10: 1 | AD10: 0.8333333333 | AE10: 0
B11: Yankees | C11: 78 | D11: 58 | E11: 0.5735294118 | F11: 2 | G11: NEW YORK | H11: 76 | I11: 54 | J11: 0.5846153846 | K11: 3 | L11: Yankees | M11: 2 | N11: 4 | O11: 0.3333333333 | P11: 5 | S11: Phillies | T11: 4 | U11: 2 | V11: 0.6666666667 | W11: Braves | X11: 2 | Y11: 5 | Z11: 0.2857142857 | AA11: Dodgers | AB11: 4 | AC11: 2 | AD11: 0.6666666667 | AE11: 0
B12: Rays | C12: 86 | D12: 51 | E12: 0.6277372263 | F12: 1 | G12: TAMPA BAY | H12: 82 | I12: 48 | J12: 0.6307692308 | K12: 4 | L12: Rays | M12: 4 | N12: 3 | O12: 0.5714285714 | P12: 2 | Q12: WEEKLY TOTAL | T12: 23 | U12: 15 | V12: 0.6052631579 | X12: 18 | Y12: 19 | Z12: 0.4864864865 | AB12: 21 | AC12: 16 | AD12: 0.5675675676
B13: Blue Jays | C13: 73 | D13: 62 | E13: 0.5407407407 | F13: 4 | G13: TORONTO | H13: 68 | I13: 61 | J13: 0.5271317829 | K13: 1 | L13: Blue Jays | M13: 5 | N13: 1 | O13: 0.8333333333 | P13: 1 | Q13: PREV WEEK TO DATE | T13: 412 | U13: 371 | V13: 0.5261813538 | X13: 412 | Y13: 375 | Z13: 0.5235069886 | AB13: 450 | AC13: 338 | AD13: 0.5710659898
Q14: CUR TOTAL TO DATE | T14: 435 | U14: 386 | V14: 0.5298416565 | X14: 430 | Y14: 394 | Z14: 0.5218446602 | AB14: 471 | AC14: 354 | AD14: 0.5709090909
G15: AL CENTRAL | L15: AL CENTRAL
B16: Central | C16: W | D16: L | E16: PCT | G16: TEAM | H16: W | I16: L | J16: PCT | L16: TEAM | M16: W | N16: L | O16: PCT
B17: White Sox | C17: 79 | D17: 58 | E17: 0.5766423358 | F17: 1 | G17: CHICAGO | H17: 76 | I17: 56 | J17: 0.5757575758 | K17: 7 | L17: White Sox | M17: 3 | N17: 2 | O17: 0.6 | P17: 2 | Q17: SEASON TLT TO DATE | T17: 412 | U17: 371 | V17: 0.5261813538 | X17: 412 | Y17: 375 | Z17: 0.5235069886 | AB17: 450 | AC17: 338 | AD17: 0.5710659898
B18: Indians | C18: 68 | D18: 66 | E18: 0.5074626866 | F18: 2 | G18: CLEVELAND | H18: 64 | I18: 64 | J18: 0.5 | K18: 2 | L18: Indians | M18: 4 | N18: 2 | O18: 0.6666666667 | P18: 1 | Q18: SEPTEMBER TOTAL TO DATE | T18: 23 | U18: 15 | V18: 0.6052631579 | X18: 18 | Y18: 19 | Z18: 0.4864864865 | AB18: 21 | AC18: 16 | AD18: 0.5675675676
B19: Tigers | C19: 65 | D19: 73 | E19: 0.4710144928 | F19: 3 | G19: DETROIT | H19: 62 | I19: 69 | J19: 0.4732824427 | K19: 0 | L19: Tigers | M19: 3 | N19: 4 | O19: 0.4285714286 | P19: 3
B20: Royals | C20: 61 | D20: 75 | E20: 0.4485294118 | F20: 4 | G20: KANSAS CITY | H20: 59 | I20: 71 | J20: 0.4538461538 | K20: 0 | L20: Royals | M20: 2 | N20: 4 | O20: 0.3333333333 | P20: 4
B21: Twins | C21: 59 | D21: 77 | E21: 0.4338235294 | F21: 5 | G21: MINNESOTA | H21: 57 | I21: 73 | J21: 0.4384615385 | K21: 0 | L21: Twins | M21: 2 | N21: 4 | O21: 0.3333333333 | P21: 4 | S21: JIM T. | W21: JEAN | AA21: DIANE | AE21: 0
S22: RANK | T22: W | U22: L | V22: PCT | W22: RANK | X22: W | Y22: L | Z22: PCT | AA22: RANK | AB22: W | AC22: L | AD22: PCT | AE22: RANK | AF22: W | AG22: L | AH22: PCT
G23: AL WEST | L23: AL WEST | S23: Rays | T23: 4 | U23: 3 | V23: 0.5714285714 | W23: Rays | X23: 4 | Y23: 3 | Z23: 0.5714285714 | AA23: Brewers | AB23: 5 | AC23: 2 | AD23: 0.7142857143 | AE23: 0
B24: West | C24: W | D24: L | E24: PCT | G24: TEAM | H24: W | I24: L | J24: PCT | L24: TEAM | M24: W | N24: L | O24: PCT | S24: White Sox | T24: 3 | U24: 2 | V24: 0.6 | W24: Astros | X24: 2 | Y24: 4 | Z24: 0.3333333333 | AA24: White Sox | AB24: 3 | AC24: 2 | AD24: 0.6 | AE24: 0
B25: Angels | C25: 68 | D25: 69 | E25: 0.496350365 | F25: 4 | G25: LOS ANGELES | H25: 64 | I25: 67 | J25: 0.4885496183 | K25: 0 | L25: Angels | M25: 4 | N25: 2 | O25: 0.6666666667 | P25: 2 | S25: Astros | T25: 2 | U25: 4 | V25: 0.3333333333 | W25: Phillies | X25: 4 | Y25: 2 | Z25: 0.6666666667 | AA25: Dodgers | AB25: 4 | AC25: 2 | AD25: 0.6666666667 | AE25: 0
B26: Athletics | C26: 74 | D26: 63 | E26: 0.5401459854 | F26: 3 | G26: OAKLAND | H26: 72 | I26: 59 | J26: 0.5496183206 | K26: 1 | L26: Athletics | M26: 2 | N26: 4 | O26: 0.3333333333 | P26: 4 | S26: Braves | T26: 2 | U26: 5 | V26: 0.2857142857 | W26: Cardinals | X26: 3 | Y26: 3 | Z26: 0.5 | AA26: Astros | AB26: 2 | AC26: 4 | AD26: 0.3333333333 | AE26: 0
B27: Mariners | C27: 75 | D27: 62 | E27: 0.5474452555 | F27: 2 | G27: SEATTLE | H27: 70 | I27: 61 | J27: 0.534351145 | K27: 1 | L27: Mariners | M27: 5 | N27: 1 | O27: 0.8333333333 | P27: 1 | S27: Brewers | T27: 5 | U27: 2 | V27: 0.7142857143 | W27: Padres | X27: 4 | Y27: 2 | Z27: 0.6666666667 | AA27: Yankees | AB27: 2 | AC27: 4 | AD27: 0.3333333333 | AE27: 0
B28: Rangers | C28: 48 | D28: 88 | E28: 0.3529411765 | F28: 5 | G28: TEXAS | H28: 45 | I28: 85 | J28: 0.3461538462 | K28: 0 | L28: Rangers | M28: 3 | N28: 3 | O28: 0.5 | P28: 3 | S28: Dodgers | T28: 4 | U28: 2 | V28: 0.6666666667 | W28: White Sox | X28: 3 | Y28: 2 | Z28: 0.6 | AA28: Phillies | AB28: 4 | AC28: 2 | AD28: 0.6666666667 | AE28: 0
B29: Astros | C29: 79 | D29: 57 | E29: 0.5808823529 | F29: 1 | G29: HOUSTON | H29: 77 | I29: 53 | J29: 0.5923076923 | K29: 7 | L29: Astros | M29: 2 | N29: 4 | O29: 0.3333333333 | P29: 4 | Q29: WEEKLY TOTAL | T29: 20 | U29: 18 | V29: 0.5263157895 | X29: 20 | Y29: 16 | Z29: 0.5555555556 | AB29: 20 | AC29: 16 | AD29: 0.5555555556
Q30: PREV WEEK TO DATE | T30: 433 | U30: 353 | V30: 0.5508905852 | X30: 401 | Y30: 374 | Z30: 0.5174193548 | AB30: 415 | AC30: 369 | AD30: 0.5293367347
B31: National League | G31: NL EAST | L31: NL EAST | Q31: CUR TOTAL TO DATE | T31: 453 | U31: 371 | V31: 0.5497572816 | X31: 421 | Y31: 390 | Z31: 0.5191122072 | AB31: 435 | AC31: 385 | AD31: 0.5304878049
B32: East | C32: W | D32: L | E32: PCT | G32: TEAM | H32: W | I32: L | J32: PCT | L32: TEAM | M32: W | N32: L | O32: PCT
B33: Braves | C33: 72 | D33: 64 | E33: 0.5294117647 | F33: 1 | G33: ATLANTA | H33: 70 | I33: 59 | J33: 0.5426356589 | K33: 4 | L33: Braves | M33: 2 | N33: 5 | O33: 0.2857142857 | P33: 4
B34: Marlins | C34: 57 | D34: 80 | E34: 0.4160583942 | F34: 4 | G34: Miami | H34: 55 | I34: 76 | J34: 0.4198473282 | K34: 0 | L34: Marlins | M34: 2 | N34: 4 | O34: 0.3333333333 | P34: 3 | Q34: SEASON TLT TO DATE | T34: 433 | U34: 353 | V34: 0.5508905852 | X34: 401 | Y34: 374 | Z34: 0.5174193548 | AB34: 415 | AC34: 369 | AD34: 0.5293367347
B35: Mets | C35: 69 | D35: 68 | E35: 0.503649635 | F35: 3 | G35: NEW YORK | H35: 63 | I35: 67 | J35: 0.4846153846 | K35: 0 | L35: Mets | M35: 6 | N35: 1 | O35: 0.8571428571 | P35: 1 | Q35: SEPTEMBER TOTAL TO DATE | T35: 20 | U35: 18 | V35: 0.5263157895 | X35: 20 | Y35: 16 | Z35: 0.5555555556 | AB35: 20 | AC35: 16 | AD35: 0.5555555556
B36: Phillies | C36: 70 | D36: 66 | E36: 0.5147058824 | F36: 2 | G36: PHILADELPHIA | H36: 66 | I36: 64 | J36: 0.5076923077 | K36: 4 | L36: Phillies | M36: 4 | N36: 2 | O36: 0.6666666667 | P36: 2
B37: Nationals | C37: 56 | D37: 80 | E37: 0.4117647059 | F37: 5 | G37: WASHINGTON | H37: 55 | I37: 74 | J37: 0.4263565891 | K37: 1 | L37: Nationals | M37: 1 | N37: 6 | O37: 0.1428571429 | P37: 5
S38: JIM K. | W38: TIM | AA38: ----- | AE38: 0
G39: NL CENTRAL | L39: NL CENTRAL | S39: RANK | T39: W | U39: L | V39: PCT | W39: RANK | X39: W | Y39: L | Z39: PCT | AA39: RANK | AB39: W | AC39: L | AD39: PCT | AE39: RANK | AF39: W | AG39: L | AH39: PCT
B40: Central | C40: W | D40: L | E40: PCT | G40: TEAM | H40: W | I40: L | J40: PCT | L40: TEAM | M40: W | N40: L | O40: PCT | S40: Giants | T40: 3 | U40: 4 | V40: 0.4285714286 | W40: Giants | X40: 3 | Y40: 4 | Z40: 0.4285714286 | AE40: 0
B41: Cubs | C41: 63 | D41: 75 | E41: 0.4565217391 | F41: 4 | G41: CHICAGO | H41: 57 | I41: 75 | J41: 0.4318181818 | K41: 2 | L41: Cubs | M41: 6 | N41: 0 | O41: 1 | P41: 1 | S41: White Sox | T41: 3 | U41: 2 | V41: 0.6 | W41: Rays | X41: 4 | Y41: 3 | Z41: 0.5714285714 | AE41: 0
B42: Reds | C42: 73 | D42: 65 | E42: 0.5289855072 | F42: 2 | G42: CINCINNATI | H42: 71 | I42: 61 | J42: 0.5378787879 | K42: 0 | L42: Reds | M42: 2 | N42: 4 | O42: 0.3333333333 | P42: 4 | S42: Red Sox | T42: 4 | U42: 3 | V42: 0.5714285714 | W42: Brewers | X42: 5 | Y42: 2 | Z42: 0.7142857143 | AE42: 0
B43: Brewers | C43: 84 | D43: 54 | E43: 0.6086956522 | F43: 1 | G43: MILWAUKEE | H43: 79 | I43: 52 | J43: 0.6030534351 | K43: 6 | L43: Brewers | M43: 5 | N43: 2 | O43: 0.7142857143 | P43: 2 | S43: Athletics | T43: 2 | U43: 4 | V43: 0.3333333333 | W43: Astros | X43: 2 | Y43: 4 | Z43: 0.3333333333 | AE43: 0
B44: Pirates | C44: 48 | D44: 89 | E44: 0.3503649635 | F44: 5 | G44: PITTSBURGH | H44: 48 | I44: 83 | J44: 0.3664122137 | K44: 0 | L44: Pirates | M44: 0 | N44: 6 | O44: 0 | P44: 5 | S44: Phillies | T44: 4 | U44: 2 | V44: 0.6666666667 | W44: White Sox | X44: 3 | Y44: 2 | Z44: 0.6 | AE44: 0
B45: Cardinals | C45: 69 | D45: 66 | E45: 0.5111111111 | F45: 3 | G45: ST LOUIS | H45: 66 | I45: 63 | J45: 0.511627907 | K45: 1 | L45: Cardinals | M45: 3 | N45: 3 | O45: 0.5 | P45: 3 | S45: Cubs | T45: 6 | U45: 0 | V45: 1 | W45: Braves | X45: 2 | Y45: 5 | Z45: 0.2857142857 | AE45: 0
Q46: WEEKLY TOTAL | T46: 22 | U46: 15 | V46: 0.5945945946 | X46: 19 | Y46: 20 | Z46: 0.4871794872 | AB46: 0 | AC46: 30
G47: NL WEST | L47: NL WEST | Q47: PREV WEEK TO DATE | T47: 408 | U47: 372 | V47: 0.5230769231 | X47: 424 | Y47: 369 | Z47: 0.5346784363 | AB47: 0 | AC47: 640
B48: West | C48: W | D48: L | E48: PCT | G48: TEAM | H48: W | I48: L | J48: PCT | L48: TEAM | M48: W | N48: L | O48: PCT | Q48: CUR TOTAL TO DATE | T48: 430 | U48: 387 | V48: 0.5263157895 | X48: 443 | Y48: 389 | Z48: 0.5324519231 | AB48: 0 | AC48: 670
B49: Diamondbacks | C49: 45 | D49: 93 | E49: 0.3260869565 | F49: 5 | G49: ARIZONA | H49: 44 | I49: 88 | J49: 0.3333333333 | K49: 0 | L49: Diamondbacks | M49: 1 | N49: 5 | O49: 0.1666666667 | P49: 5
B50: Rockies | C50: 63 | D50: 74 | E50: 0.4598540146 | F50: 4 | G50: COLORADO | H50: 60 | I50: 70 | J50: 0.4615384615 | K50: 0 | L50: Rockies | M50: 3 | N50: 4 | O50: 0.4285714286 | P50: 3
B51: Dodgers | C51: 86 | D51: 51 | E51: 0.6277372263 | F51: 2 | G51: LOS ANGELES | H51: 82 | I51: 49 | J51: 0.6259541985 | K51: 4 | L51: Dodgers | M51: 4 | N51: 2 | O51: 0.6666666667 | P51: 1 | Q51: SEASON TLT TO DATE | T51: 408 | U51: 372 | V51: 0.5230769231 | X51: 424 | Y51: 369 | Z51: 0.5346784363 | AB51: 0 | AC51: 640
B52: Padres | C52: 73 | D52: 64 | E52: 0.5328467153 | F52: 3 | G52: SAN DIEGO | H52: 69 | I52: 62 | J52: 0.5267175573 | K52: 3 | L52: Padres | M52: 4 | N52: 2 | O52: 0.6666666667 | P52: 1 | Q52: SEPTEMBER TOTAL TO DATE | T52: 22 | U52: 15 | V52: 0.5945945946 | X52: 19 | Y52: 20 | Z52: 0.4871794872 | AB52: 0 | AC52: 30
B53: Giants | C53: 87 | D53: 50 | E53: 0.6350364964 | F53: 1 | G53: SAN FRANCISCO | H53: 84 | I53: 46 | J53: 0.6461538462 | K53: 2 | L53: Giants | M53: 3 | N53: 4 | O53: 0.4285714286 | P53: 3
M54: 94 | N54: 94
D55: 2021-09-07 | E55: Morning
C57: WEEK 22
C58: NAME | D58: W | E58: L | F58: PCT | G58: GB
C59: MIKE | D59: 23 | E59: 15 | F59: 0.6052631579 | G59: 0
C60: JIM K. | D60: 22 | E60: 15 | F60: 0.5945945946 | G60: 0.5
C61: LARRY | D61: 21 | E61: 16 | F61: 0.5675675676 | G61: 1.5
C62: DIANE | D62: 20 | E62: 16 | F62: 0.5555555556 | G62: 2
C63: JEAN | D63: 20 | E63: 16 | F63: 0.5555555556 | G63: 2
C64: JIM T. | D64: 20 | E64: 18 | F64: 0.5263157895 | G64: 3
C65: TIM | D65: 19 | E65: 20 | F65: 0.4871794872 | G65: 4.5
C66: JOHN | D66: 18 | E66: 19 | F66: 0.4864864865 | G66: 4.5
C67: ----- | D67: 0 | E67: 30 | F67: 0 | G67: -----
C72: MONTH OF SEPTEMBER
C73: NAME | D73: W | E73: L | F73: PCT | G73: GB
C74: MIKE | D74: 23 | E74: 15 | F74: 0.6052631579 | G74: 0
C75: JIM K. | D75: 22 | E75: 15 | F75: 0.5945945946 | G75: 0.5
C76: LARRY | D76: 21 | E76: 16 | F76: 0.5675675676 | G76: 1.5
C77: DIANE | D77: 20 | E77: 16 | F77: 0.5555555556 | G77: 2
C78: JEAN | D78: 20 | E78: 16 | F78: 0.5555555556 | G78: 2
C79: JIM T. | D79: 20 | E79: 18 | F79: 0.5263157895 | G79: 3
C80: TIM | D80: 19 | E80: 20 | F80: 0.4871794872 | G80: 4.5
C81: JOHN | D81: 18 | E81: 19 | F81: 0.4864864865 | G81: 4.5
C82: ----- | D82: 0 | E82: 30 | F82: 0 | G82: -----
C86: 2021 | E86: SEASON
C87: NAME | D87: W | E87: L | F87: PCT | G87: GB
C88: LARRY | D88: 471 | E88: 354 | F88: 0.5709090909 | G88: 0
C89: JIM T. | D89: 453 | E89: 371 | F89: 0.5497572816 | G89: 17.5
C90: TIM | D90: 443 | E90: 389 | F90: 0.5324519231 | G90: 31.5
C91: DIANE | D91: 435 | E91: 385 | F91: 0.5304878049 | G91: 33.5
C92: MIKE | D92: 435 | E92: 386 | F92: 0.5298416565 | G92: 34
C93: JIM K. | D93: 430 | E93: 387 | F93: 0.5263157895 | G93: 37
C94: JOHN | D94: 430 | E94: 394 | F94: 0.5218446602 | G94: 40.5
C95: JEAN | D95: 421 | E95: 390 | F95: 0.5191122072 | G95: 43
C96: ----- | D96: 0 | E96: 670 | F96: 0 | G96: -----
E107: CURRENT WEEK | L107: THIS WEEK
C108: WEEK ENDING | E108: THIS WEEK | F108: SEASON | L108: AL | N108: RANK
C109: 2021-09-05 | E109: RANK | F109: RANK | L109: TORONTO | M109: 0.8333333333 | N109: 1
C110: CHICAGO N | D110: 1 | E110: 1 | F110: 22 | L110: SEATTLE | M110: 0.8333333333 | N110: 1
C111: NEW YORK N | D111: 0.8571428571 | E111: 2 | F111: 18 | L111: LOS ANGELES A | M111: 0.6666666667 | N111: 3
C112: TORONTO | D112: 0.8333333333 | E112: 3 | F112: 10 | L112: CLEVELAND | M112: 0.6666666667 | N112: 3
C113: SEATTLE | D113: 0.8333333333 | E113: 3 | F113: 9 | L113: CHICAGO A | M113: 0.6 | N113: 5
C114: MILWAUKEE | D114: 0.7142857143 | E114: 5 | F114: 4 | L114: TAMPA BAY | M114: 0.5714285714 | N114: 6
C115: LOS ANGELES N | D115: 0.6666666667 | E115: 6 | F115: 2 | L115: BOSTON | M115: 0.5714285714 | N115: 6
C116: LOS ANGELES A | D116: 0.6666666667 | E116: 6 | F116: 19 | L116: TEXAS | M116: 0.5 | N116: 8
C117: CLEVELAND | D117: 0.6666666667 | E117: 6 | F117: 17 | L117: BALTIMORE | M117: 0.5 | N117: 8
C118: PHILADELPHIA | D118: 0.6666666667 | E118: 6 | F118: 15 | L118: DETROIT | M118: 0.4285714286 | N118: 10
C119: SAN DIEGO | D119: 0.6666666667 | E119: 6 | F119: 12 | L119: OAKLAND | M119: 0.3333333333 | N119: 11
C120: CHICAGO A | D120: 0.6 | E120: 11 | F120: 6 | L120: HOUSTON | M120: 0.3333333333 | N120: 11
C121: TAMPA BAY | D121: 0.5714285714 | E121: 12 | F121: 2 | L121: NEW YORK A | M121: 0.3333333333 | N121: 11
C122: BOSTON | D122: 0.5714285714 | E122: 12 | F122: 8 | L122: MINNESOTA | M122: 0.3333333333 | N122: 11
C123: ST LOUIS | D123: 0.5 | E123: 14 | F123: 16 | L123: KANSAS CITY | M123: 0.3333333333 | N123: 11
C124: TEXAS | D124: 0.5 | E124: 14 | F124: 27 | L124: NL
C125: BALTIMORE | D125: 0.5 | E125: 14 | F125: 30 | L125: CHICAGO N | M125: 1 | N125: 1
C126: COLORADO | D126: 0.4285714286 | E126: 17 | F126: 21 | L126: NEW YORK N | M126: 0.8571428571 | N126: 2
C127: DETROIT | D127: 0.4285714286 | E127: 17 | F127: 20 | L127: MILWAUKEE | M127: 0.7142857143 | N127: 3
C128: SAN FRANCISCO | D128: 0.4285714286 | E128: 17 | F128: 1 | L128: LOS ANGELES N | M128: 0.6666666667 | N128: 4
C129: OAKLAND | D129: 0.3333333333 | E129: 20 | F129: 11 | L129: PHILADELPHIA | M129: 0.6666666667 | N129: 4
C130: HOUSTON | D130: 0.3333333333 | E130: 20 | F130: 5 | L130: SAN DIEGO | M130: 0.6666666667 | N130: 4
C131: NEW YORK A | D131: 0.3333333333 | E131: 20 | F131: 7 | L131: ST LOUIS | M131: 0.5 | N131: 7
C132: CINCINNATI | D132: 0.3333333333 | E132: 20 | F132: 14 | L132: COLORADO | M132: 0.4285714286 | N132: 8
C133: MIAMI | D133: 0.3333333333 | E133: 20 | F133: 25 | L133: SAN FRANCISCO | M133: 0.4285714286 | N133: 8
C134: MINNESOTA | D134: 0.3333333333 | E134: 20 | F134: 24 | L134: CINCINNATI | M134: 0.3333333333 | N134: 10
C135: KANSAS CITY | D135: 0.3333333333 | E135: 20 | F135: 23 | L135: MIAMI | M135: 0.3333333333 | N135: 10
C136: ATLANTA | D136: 0.2857142857 | E136: 27 | F136: 13 | L136: ATLANTA | M136: 0.2857142857 | N136: 12
C137: ARIZONA | D137: 0.1666666667 | E137: 28 | F137: 29 | L137: ARIZONA | M137: 0.1666666667 | N137: 13
C138: WASHINGTON | D138: 0.1428571429 | E138: 29 | F138: 26 | L138: WASHINGTON | M138: 0.1428571429 | N138: 14
C139: PITTSBURGH | D139: 0 | E139: 30 | F139: 28 | L139: PITTSBURGH | M139: 0 | N139: 15
E141: SEASON TO DATE | L141: SEASON TO DATE
L142: AL
C143: SEASON TO-DATE | E143: RANK | L143: TAMPA BAY | M143: 0.6277372263 | N143: 1
C144: SAN FRANCISCO | D144: 0.6350364964 | E144: 1 | L144: HOUSTON | M144: 0.5808823529 | N144: 2
C145: LOS ANGELES N | D145: 0.6277372263 | E145: 2 | L145: CHICAGO A | M145: 0.5766423358 | N145: 3
C146: TAMPA BAY | D146: 0.6277372263 | E146: 2 | L146: NEW YORK A | M146: 0.5735294118 | N146: 4
C147: MILWAUKEE | D147: 0.6086956522 | E147: 4 | L147: BOSTON | M147: 0.5683453237 | N147: 5
C148: HOUSTON | D148: 0.5808823529 | E148: 5 | L148: SEATTLE | M148: 0.5474452555 | N148: 6
C149: CHICAGO A | D149: 0.5766423358 | E149: 6 | L149: TORONTO | M149: 0.5407407407 | N149: 7
C150: NEW YORK A | D150: 0.5735294118 | E150: 7 | L150: OAKLAND | M150: 0.5401459854 | N150: 8
C151: BOSTON | D151: 0.5683453237 | E151: 8 | L151: CLEVELAND | M151: 0.5074626866 | N151: 9
C152: SEATTLE | D152: 0.5474452555 | E152: 9 | L152: LOS ANGELES A | M152: 0.496350365 | N152: 10
C153: TORONTO | D153: 0.5407407407 | E153: 10 | L153: DETROIT | M153: 0.4710144928 | N153: 11
C154: OAKLAND | D154: 0.5401459854 | E154: 11 | L154: KANSAS CITY | M154: 0.4485294118 | N154: 12
C155: SAN DIEGO | D155: 0.5328467153 | E155: 12 | L155: MINNESOTA | M155: 0.4338235294 | N155: 13
C156: ATLANTA | D156: 0.5294117647 | E156: 13 | L156: TEXAS | M156: 0.3529411765 | N156: 14
C157: CINCINNATI | D157: 0.5289855072 | E157: 14 | L157: BALTIMORE | M157: 0.3185185185 | N157: 15
C158: PHILADELPHIA | D158: 0.5147058824 | E158: 15 | L158: NL
C159: ST LOUIS | D159: 0.5111111111 | E159: 16 | L159: SAN FRANCISCO | M159: 0.6350364964 | N159: 1
C160: CLEVELAND | D160: 0.5074626866 | E160: 17 | L160: LOS ANGELES N | M160: 0.6277372263 | N160: 2
C161: NEW YORK N | D161: 0.503649635 | E161: 18 | L161: MILWAUKEE | M161: 0.6086956522 | N161: 3
C162: LOS ANGELES A | D162: 0.496350365 | E162: 19 | L162: SAN DIEGO | M162: 0.5328467153 | N162: 4
C163: DETROIT | D163: 0.4710144928 | E163: 20 | L163: ATLANTA | M163: 0.5294117647 | N163: 5
C164: COLORADO | D164: 0.4598540146 | E164: 21 | L164: CINCINNATI | M164: 0.5289855072 | N164: 6
C165: CHICAGO N | D165: 0.4565217391 | E165: 22 | L165: PHILADELPHIA | M165: 0.5147058824 | N165: 7
C166: KANSAS CITY | D166: 0.4485294118 | E166: 23 | L166: ST LOUIS | M166: 0.5111111111 | N166: 8
C167: MINNESOTA | D167: 0.4338235294 | E167: 24 | L167: NEW YORK N | M167: 0.503649635 | N167: 9
C168: MIAMI | D168: 0.4160583942 | E168: 25 | L168: COLORADO | M168: 0.4598540146 | N168: 10
C169: WASHINGTON | D169: 0.4117647059 | E169: 26 | L169: CHICAGO N | M169: 0.4565217391 | N169: 11
C170: TEXAS | D170: 0.3529411765 | E170: 27 | L170: MIAMI | M170: 0.4160583942 | N170: 12
C171: PITTSBURGH | D171: 0.3503649635 | E171: 28 | L171: WASHINGTON | M171: 0.4117647059 | N171: 13
C172: ARIZONA | D172: 0.3260869565 | E172: 29 | L172: PITTSBURGH | M172: 0.3503649635 | N172: 14

Sheet 29-Aug
B1: 2021 | C1: STANDINGS
Q2: CURRENT WEEK RESULTS
B3: WEEK ENDING | D3: 2021-08-29 | L3: WEEK | M3: 21 | N3: AUGUST
S4: MIKE | W4: JOHN | AA4: LARRY | AE4: 0
C5: CURRENT WEEK-SEASON TO DATE | G5: PREVIOUS WEEK-SEASON TO DATE | L5: CURRENT WEEK TOTALS | S5: RANK | T5: W | U5: L | V5: PCT | W5: RANK | X5: W | Y5: L | Z5: PCT | AA5: RANK | AB5: W | AC5: L | AD5: PCT | AE5: RANK | AF5: W | AG5: L | AH5: PCT
S6: Twins | T6: 3 | U6: 3 | V6: 0.5 | W6: White Sox | X6: 4 | Y6: 3 | Z6: 0.5714285714 | AA6: Astros | AB6: 4 | AC6: 2 | AD6: 0.6666666667 | AE6: 0
B7: American League | G7: AL EAST | K7: Times | L7: AL EAST | S7: Red Sox | T7: 5 | U7: 2 | V7: 0.7142857143 | W7: Astros | X7: 4 | Y7: 2 | Z7: 0.6666666667 | AA7: Dodgers | AB7: 4 | AC7: 2 | AD7: 0.6666666667 | AE7: 0
B8: East | C8: W | D8: L | E8: PCT | F8: Rank | G8: TEAM | H8: W | I8: L | J8: PCT | K8: Picked | L8: TEAM | M8: W | N8: L | O8: PCT | P8: Rank | S8: Astros | T8: 4 | U8: 2 | V8: 0.6666666667 | W8: Brewers | X8: 3 | Y8: 3 | Z8: 0.5 | AA8: White Sox | AB8: 4 | AC8: 3 | AD8: 0.5714285714 | AE8: 0
B9: Orioles | C9: 40 | D9: 89 | E9: 0.3100775194 | F9: 5 | G9: BALTIMORE | H9: 38 | I9: 85 | J9: 0.3089430894 | K9: 0 | L9: Orioles | M9: 2 | N9: 4 | O9: 0.3333333333 | P9: 5 | S9: Mets | T9: 2 | U9: 4 | V9: 0.3333333333 | W9: Phillies | X9: 3 | Y9: 3 | Z9: 0.5 | AA9: Brewers | AB9: 3 | AC9: 3 | AD9: 0.5 | AE9: 0
B10: Red Sox | C10: 75 | D10: 57 | E10: 0.5681818182 | F10: 3 | G10: BOSTON | H10: 70 | I10: 55 | J10: 0.56 | K10: 3 | L10: Red Sox | M10: 5 | N10: 2 | O10: 0.7142857143 | P10: 2 | S10: Brewers | T10: 3 | U10: 3 | V10: 0.5 | W10: Rays | X10: 5 | Y10: 0 | Z10: 1 | AA10: Yankees | AB10: 4 | AC10: 2 | AD10: 0.6666666667 | AE10: 0
B11: Yankees | C11: 76 | D11: 54 | E11: 0.5846153846 | F11: 2 | G11: NEW YORK | H11: 72 | I11: 52 | J11: 0.5806451613 | K11: 2 | L11: Yankees | M11: 4 | N11: 2 | O11: 0.6666666667 | P11: 3 | S11: Padres | T11: 1 | U11: 4 | V11: 0.2 | W11: Rockies | X11: 3 | Y11: 3 | Z11: 0.5 | AA11: Phillies | AB11: 3 | AC11: 3 | AD11: 0.5 | AE11: 0
B12: Rays | C12: 82 | D12: 48 | E12: 0.6307692308 | F12: 1 | G12: TAMPA BAY | H12: 77 | I12: 48 | J12: 0.616 | K12: 3 | L12: Rays | M12: 5 | N12: 0 | O12: 1 | P12: 1 | Q12: WEEKLY TOTAL | T12: 18 | U12: 18 | V12: 0.5 | X12: 22 | Y12: 14 | Z12: 0.6111111111 | AB12: 22 | AC12: 15 | AD12: 0.5945945946
B13: Blue Jays | C13: 68 | D13: 61 | E13: 0.5271317829 | F13: 4 | G13: TORONTO | H13: 64 | I13: 58 | J13: 0.5245901639 | K13: 1 | L13: Blue Jays | M13: 4 | N13: 3 | O13: 0.5714285714 | P13: 4 | Q13: PREV WEEK TO DATE | T13: 394 | U13: 353 | V13: 0.5274431058 | X13: 390 | Y13: 361 | Z13: 0.5193075899 | AB13: 428 | AC13: 323 | AD13: 0.5699067909
Q14: CUR TOTAL TO DATE | T14: 412 | U14: 371 | V14: 0.5261813538 | X14: 412 | Y14: 375 | Z14: 0.5235069886 | AB14: 450 | AC14: 338 | AD14: 0.5710659898
G15: AL CENTRAL | L15: AL CENTRAL
B16: Central | C16: W | D16: L | E16: PCT | G16: TEAM | H16: W | I16: L | J16: PCT | L16: TEAM | M16: W | N16: L | O16: PCT
B17: White Sox | C17: 76 | D17: 56 | E17: 0.5757575758 | F17: 1 | G17: CHICAGO | H17: 72 | I17: 53 | J17: 0.576 | K17: 7 | L17: White Sox | M17: 4 | N17: 3 | O17: 0.5714285714 | P17: 1 | Q17: SEASON TLT TO DATE | T17: 342 | U17: 294 | V17: 0.5377358491 | X17: 327 | Y17: 312 | Z17: 0.5117370892 | AB17: 353 | AC17: 285 | AD17: 0.5532915361
B18: Indians | C18: 64 | D18: 64 | E18: 0.5 | F18: 2 | G18: CLEVELAND | H18: 61 | I18: 61 | J18: 0.5 | K18: 0 | L18: Indians | M18: 3 | N18: 3 | O18: 0.5 | P18: 3 | Q18: AUGUST TOTAL TO DATE | T18: 70 | U18: 77 | V18: 0.4761904762 | X18: 85 | Y18: 63 | Z18: 0.5743243243 | AB18: 97 | AC18: 53 | AD18: 0.6466666667
B19: Tigers | C19: 62 | D19: 69 | E19: 0.4732824427 | F19: 3 | G19: DETROIT | H19: 60 | I19: 66 | J19: 0.4761904762 | K19: 0 | L19: Tigers | M19: 2 | N19: 3 | O19: 0.4 | P19: 5
B20: Royals | C20: 59 | D20: 71 | E20: 0.4538461538 | F20: 4 | G20: KANSAS CITY | H20: 55 | I20: 68 | J20: 0.4471544715 | K20: 0 | L20: Royals | M20: 4 | N20: 3 | O20: 0.5714285714 | P20: 1
B21: Twins | C21: 57 | D21: 73 | E21: 0.4384615385 | F21: 5 | G21: MINNESOTA | H21: 54 | I21: 70 | J21: 0.435483871 | K21: 2 | L21: Twins | M21: 3 | N21: 3 | O21: 0.5 | P21: 3 | S21: JIM T. | W21: JEAN | AA21: DIANE | AE21: 0
S22: RANK | T22: W | U22: L | V22: PCT | W22: RANK | X22: W | Y22: L | Z22: PCT | AA22: RANK | AB22: W | AC22: L | AD22: PCT | AE22: RANK | AF22: W | AG22: L | AH22: PCT
G23: AL WEST | L23: AL WEST | S23: Yankees | T23: 4 | U23: 2 | V23: 0.6666666667 | W23: Phillies | X23: 3 | Y23: 3 | Z23: 0.5 | AA23: Red Sox | AB23: 5 | AC23: 2 | AD23: 0.7142857143 | AE23: 0
B24: West | C24: W | D24: L | E24: PCT | G24: TEAM | H24: W | I24: L | J24: PCT | L24: TEAM | M24: W | N24: L | O24: PCT | S24: White Sox | T24: 4 | U24: 3 | V24: 0.5714285714 | W24: White Sox | X24: 4 | Y24: 3 | Z24: 0.5714285714 | AA24: Brewers | AB24: 3 | AC24: 3 | AD24: 0.5 | AE24: 0
B25: Angels | C25: 64 | D25: 67 | E25: 0.4885496183 | F25: 4 | G25: LOS ANGELES | H25: 62 | I25: 64 | J25: 0.4920634921 | K25: 0 | L25: Angels | M25: 2 | N25: 3 | O25: 0.4 | P25: 3 | S25: Astros | T25: 4 | U25: 2 | V25: 0.6666666667 | W25: Astros | X25: 4 | Y25: 2 | Z25: 0.6666666667 | AA25: White Sox | AB25: 4 | AC25: 3 | AD25: 0.5714285714 | AE25: 0
B26: Athletics | C26: 72 | D26: 59 | E26: 0.5496183206 | F26: 2 | G26: OAKLAND | H26: 70 | I26: 55 | J26: 0.56 | K26: 2 | L26: Athletics | M26: 2 | N26: 4 | O26: 0.3333333333 | P26: 4 | S26: Braves | T26: 2 | U26: 3 | V26: 0.4 | W26: Dodgers | X26: 4 | Y26: 2 | Z26: 0.6666666667 | AA26: Mets | AB26: 2 | AC26: 4 | AD26: 0.3333333333 | AE26: 0
B27: Mariners | C27: 70 | D27: 61 | E27: 0.534351145 | F27: 3 | G27: SEATTLE | H27: 67 | I27: 58 | J27: 0.536 | K27: 1 | L27: Mariners | M27: 3 | N27: 3 | O27: 0.5 | P27: 2 | S27: Brewers | T27: 3 | U27: 3 | V27: 0.5 | W27: Brewers | X27: 3 | Y27: 3 | Z27: 0.5 | AA27: Dodgers | AB27: 4 | AC27: 2 | AD27: 0.6666666667 | AE27: 0
B28: Rangers | C28: 45 | D28: 85 | E28: 0.3461538462 | F28: 5 | G28: TEXAS | H28: 43 | I28: 80 | J28: 0.3495934959 | K28: 0 | L28: Rangers | M28: 2 | N28: 5 | O28: 0.2857142857 | P28: 5 | S28: Dodgers | T28: 4 | U28: 2 | V28: 0.6666666667 | W28: Red Sox | X28: 5 | Y28: 2 | Z28: 0.7142857143 | AA28: Mariners | AB28: 3 | AC28: 3 | AD28: 0.5 | AE28: 0
B29: Astros | C29: 77 | D29: 53 | E29: 0.5923076923 | F29: 1 | G29: HOUSTON | H29: 73 | I29: 51 | J29: 0.5887096774 | K29: 6 | L29: Astros | M29: 4 | N29: 2 | O29: 0.6666666667 | P29: 1 | Q29: WEEKLY TOTAL | T29: 21 | U29: 15 | V29: 0.5833333333 | X29: 23 | Y29: 15 | Z29: 0.6052631579 | AB29: 21 | AC29: 17 | AD29: 0.5526315789
Q30: PREV WEEK TO DATE | T30: 412 | U30: 338 | V30: 0.5493333333 | X30: 378 | Y30: 359 | Z30: 0.512890095 | AB30: 394 | AC30: 352 | AD30: 0.528150134
B31: National League | G31: NL EAST | L31: NL EAST | Q31: CUR TOTAL TO DATE | T31: 433 | U31: 353 | V31: 0.5508905852 | X31: 401 | Y31: 374 | Z31: 0.5174193548 | AB31: 415 | AC31: 369 | AD31: 0.5293367347
B32: East | C32: W | D32: L | E32: PCT | G32: TEAM | H32: W | I32: L | J32: PCT | L32: TEAM | M32: W | N32: L | O32: PCT
B33: Braves | C33: 70 | D33: 59 | E33: 0.5426356589 | F33: 1 | G33: ATLANTA | H33: 68 | I33: 56 | J33: 0.5483870968 | K33: 1 | L33: Braves | M33: 2 | N33: 3 | O33: 0.4 | P33: 3
B34: Marlins | C34: 55 | D34: 76 | E34: 0.4198473282 | F34: 5 | G34: Miami | H34: 51 | I34: 74 | J34: 0.408 | K34: 0 | L34: Marlins | M34: 4 | N34: 2 | O34: 0.6666666667 | P34: 1 | Q34: SEASON TLT TO DATE | T34: 344 | U34: 291 | V34: 0.5417322835 | X34: 314 | Y34: 312 | Z34: 0.5015974441 | AB34: 333 | AC34: 300 | AD34: 0.5260663507
B35: Mets | C35: 63 | D35: 67 | E35: 0.4846153846 | F35: 3 | G35: NEW YORK | H35: 61 | I35: 63 | J35: 0.4919354839 | K35: 3 | L35: Mets | M35: 2 | N35: 4 | O35: 0.3333333333 | P35: 4 | Q35: AUGUST TOTAL TO DATE | T35: 89 | U35: 62 | V35: 0.5894039735 | X35: 87 | Y35: 62 | Z35: 0.5838926174 | AB35: 82 | AC35: 69 | AD35: 0.5430463576
B36: Phillies | C36: 66 | D36: 64 | E36: 0.5076923077 | F36: 2 | G36: PHILADELPHIA | H36: 63 | I36: 61 | J36: 0.5080645161 | K36: 5 | L36: Phillies | M36: 3 | N36: 3 | O36: 0.5 | P36: 2
B37: Nationals | C37: 55 | D37: 74 | E37: 0.4263565891 | F37: 4 | G37: WASHINGTON | H37: 53 | I37: 70 | J37: 0.4308943089 | K37: 0 | L37: Nationals | M37: 2 | N37: 4 | O37: 0.3333333333 | P37: 4
S38: JIM K. | W38: TIM | AA38: ----- | AE38: 0
G39: NL CENTRAL | L39: NL CENTRAL | S39: RANK | T39: W | U39: L | V39: PCT | W39: RANK | X39: W | Y39: L | Z39: PCT | AA39: RANK | AB39: W | AC39: L | AD39: PCT | AE39: RANK | AF39: W | AG39: L | AH39: PCT
B40: Central | C40: W | D40: L | E40: PCT | G40: TEAM | H40: W | I40: L | J40: PCT | L40: TEAM | M40: W | N40: L | O40: PCT | S40: Giants | T40: 4 | U40: 2 | V40: 0.6666666667 | W40: Giants | X40: 4 | Y40: 2 | Z40: 0.6666666667 | AE40: 0
B41: Cubs | C41: 57 | D41: 75 | E41: 0.4318181818 | F41: 4 | G41: CHICAGO | H41: 54 | I41: 72 | J41: 0.4285714286 | K41: 0 | L41: Cubs | M41: 3 | N41: 3 | O41: 0.5 | P41: 2 | S41: Rays | T41: 5 | U41: 0 | V41: 1 | W41: Rays | X41: 5 | Y41: 0 | Z41: 1 | AE41: 0
B42: Reds | C42: 71 | D42: 61 | E42: 0.5378787879 | F42: 2 | G42: CINCINNATI | H42: 69 | I42: 57 | J42: 0.5476190476 | K42: 1 | L42: Reds | M42: 2 | N42: 4 | O42: 0.3333333333 | P42: 5 | S42: Brewers | T42: 3 | U42: 3 | V42: 0.5 | W42: Astros | X42: 4 | Y42: 2 | Z42: 0.6666666667 | AE42: 0
B43: Brewers | C43: 79 | D43: 52 | E43: 0.6030534351 | F43: 1 | G43: MILWAUKEE | H43: 76 | I43: 49 | J43: 0.608 | K43: 8 | L43: Brewers | M43: 3 | N43: 3 | O43: 0.5 | P43: 2 | S43: White Sox | T43: 4 | U43: 3 | V43: 0.5714285714 | W43: White Sox | X43: 4 | Y43: 3 | Z43: 0.5714285714 | AE43: 0
B44: Pirates | C44: 48 | D44: 83 | E44: 0.3664122137 | F44: 5 | G44: PITTSBURGH | H44: 44 | I44: 80 | J44: 0.3548387097 | K44: 0 | L44: Pirates | M44: 4 | N44: 3 | O44: 0.5714285714 | P44: 1 | S44: Athletics | T44: 2 | U44: 4 | V44: 0.3333333333 | W44: Reds | X44: 2 | Y44: 4 | Z44: 0.3333333333 | AE44: 0
B45: Cardinals | C45: 66 | D45: 63 | E45: 0.511627907 | F45: 3 | G45: ST LOUIS | H45: 63 | I45: 60 | J45: 0.512195122 | K45: 0 | L45: Cardinals | M45: 3 | N45: 3 | O45: 0.5 | P45: 2 | S45: Phillies | T45: 3 | U45: 3 | V45: 0.5 | W45: Phillies | X45: 3 | Y45: 3 | Z45: 0.5 | AE45: 0
Q46: WEEKLY TOTAL | T46: 21 | U46: 15 | V46: 0.5833333333 | X46: 22 | Y46: 14 | Z46: 0.6111111111 | AB46: 0 | AC46: 30
G47: NL WEST | L47: NL WEST | Q47: PREV WEEK TO DATE | T47: 387 | U47: 357 | V47: 0.5201612903 | X47: 402 | Y47: 355 | Z47: 0.5310435931 | AB47: 0 | AC47: 610
B48: West | C48: W | D48: L | E48: PCT | G48: TEAM | H48: W | I48: L | J48: PCT | L48: TEAM | M48: W | N48: L | O48: PCT | Q48: CUR TOTAL TO DATE | T48: 408 | U48: 372 | V48: 0.5230769231 | X48: 424 | Y48: 369 | Z48: 0.5346784363 | AB48: 0 | AC48: 640
B49: Diamondbacks | C49: 44 | D49: 88 | E49: 0.3333333333 | F49: 5 | G49: ARIZONA | H49: 42 | I49: 83 | J49: 0.336 | K49: 0 | L49: Diamondbacks | M49: 2 | N49: 5 | O49: 0.2857142857 | P49: 4
B50: Rockies | C50: 60 | D50: 70 | E50: 0.4615384615 | F50: 4 | G50: COLORADO | H50: 57 | I50: 67 | J50: 0.4596774194 | K50: 1 | L50: Rockies | M50: 3 | N50: 3 | O50: 0.5 | P50: 3
B51: Dodgers | C51: 82 | D51: 49 | E51: 0.6259541985 | F51: 2 | G51: LOS ANGELES | H51: 78 | I51: 47 | J51: 0.624 | K51: 4 | L51: Dodgers | M51: 4 | N51: 2 | O51: 0.6666666667 | P51: 1 | Q51: SEASON TLT TO DATE | T51: 317 | U51: 312 | V51: 0.5039745628 | X51: 332 | Y51: 311 | Z51: 0.5163297045 | AB51: 0 | AC51: 520
B52: Padres | C52: 69 | D52: 62 | E52: 0.5267175573 | F52: 3 | G52: SAN DIEGO | H52: 68 | I52: 58 | J52: 0.5396825397 | K52: 2 | L52: Padres | M52: 1 | N52: 4 | O52: 0.2 | P52: 5 | Q52: AUGUST TOTAL TO DATE | T52: 91 | U52: 60 | V52: 0.6026490066 | X52: 92 | Y52: 58 | Z52: 0.6133333333 | AB52: 0 | AC52: 120
B53: Giants | C53: 84 | D53: 46 | E53: 0.6461538462 | F53: 1 | G53: SAN FRANCISCO | H53: 80 | I53: 44 | J53: 0.6451612903 | K53: 2 | L53: Giants | M53: 4 | N53: 2 | O53: 0.6666666667 | P53: 1
M54: 91 | N54: 91
D55: 2021-08-31 | E55: Morning
C57: WEEK 21
C58: NAME | D58: W | E58: L | F58: PCT | G58: GB
C59: TIM | D59: 22 | E59: 14 | F59: 0.6111111111 | G59: 0
C60: JOHN | D60: 22 | E60: 14 | F60: 0.6111111111 | G60: 0
C61: JEAN | D61: 23 | E61: 15 | F61: 0.6052631579 | G61: 0
C62: LARRY | D62: 22 | E62: 15 | F62: 0.5945945946 | G62: 0.5
C63: JIM T. | D63: 21 | E63: 15 | F63: 0.5833333333 | G63: 1
C64: JIM K. | D64: 21 | E64: 15 | F64: 0.5833333333 | G64: 1
C65: DIANE | D65: 21 | E65: 17 | F65: 0.5526315789 | G65: 2
C66: MIKE | D66: 18 | E66: 18 | F66: 0.5 | G66: 4
C67: ----- | D67: 0 | E67: 30 | F67: 0 | G67: -----
C72: MONTH OF AUGUST
C73: NAME | D73: W | E73: L | F73: PCT | G73: GB
C74: LARRY | D74: 97 | E74: 53 | F74: 0.6466666667 | G74: 0
C75: TIM | D75: 92 | E75: 58 | F75: 0.6133333333 | G75: 5
C76: JIM K. | D76: 91 | E76: 60 | F76: 0.6026490066 | G76: 6.5
C77: JIM T. | D77: 89 | E77: 62 | F77: 0.5894039735 | G77: 8.5
C78: JEAN | D78: 87 | E78: 62 | F78: 0.5838926174 | G78: 9.5
C79: JOHN | D79: 85 | E79: 63 | F79: 0.5743243243 | G79: 11
C80: DIANE | D80: 82 | E80: 69 | F80: 0.5430463576 | G80: 15.5
C81: MIKE | D81: 70 | E81: 77 | F81: 0.4761904762 | G81: 25.5
C82: ----- | D82: 0 | E82: 120 | F82: 0 | G82: -----
C86: 2021 | E86: SEASON
C87: NAME | D87: W | E87: L | F87: PCT | G87: GB
C88: LARRY | D88: 450 | E88: 338 | F88: 0.5710659898 | G88: 0
C89: JIM T. | D89: 433 | E89: 353 | F89: 0.5508905852 | G89: 16
C90: TIM | D90: 424 | E90: 369 | F90: 0.5346784363 | G90: 28.5
C91: DIANE | D91: 415 | E91: 369 | F91: 0.5293367347 | G91: 33
C92: MIKE | D92: 412 | E92: 371 | F92: 0.5261813538 | G92: 35.5
C93: JOHN | D93: 412 | E93: 375 | F93: 0.5235069886 | G93: 37.5
C94: JIM K. | D94: 408 | E94: 372 | F94: 0.5230769231 | G94: 38
C95: JEAN | D95: 401 | E95: 374 | F95: 0.5174193548 | G95: 42.5
C96: ----- | D96: 0 | E96: 640 | F96: 0 | G96: -----
E107: CURRENT WEEK | L107: THIS WEEK
C108: WEEK ENDING | E108: THIS WEEK | F108: SEASON | L108: AL | N108: RANK
C109: 2021-08-29 | E109: RANK | F109: RANK | L109: TAMPA BAY | M109: 1 | N109: 1
C110: TAMPA BAY | D110: 1 | E110: 1 | F110: 2 | L110: BOSTON | M110: 0.7142857143 | N110: 2
C111: BOSTON | D111: 0.7142857143 | E111: 2 | F111: 8 | L111: NEW YORK A | M111: 0.6666666667 | N111: 3
C112: NEW YORK A | D112: 0.6666666667 | E112: 3 | F112: 6 | L112: HOUSTON | M112: 0.6666666667 | N112: 3
C113: LOS ANGELES N | D113: 0.6666666667 | E113: 3 | F113: 3 | L113: KANSAS CITY | M113: 0.5714285714 | N113: 5
C114: SAN FRANCISCO | D114: 0.6666666667 | E114: 3 | F114: 1 | L114: CHICAGO A | M114: 0.5714285714 | N114: 5
C115: HOUSTON | D115: 0.6666666667 | E115: 3 | F115: 5 | L115: TORONTO | M115: 0.5714285714 | N115: 5
C116: MIAMI | D116: 0.6666666667 | E116: 3 | F116: 26 | L116: MINNESOTA | M116: 0.5 | N116: 8
C117: KANSAS CITY | D117: 0.5714285714 | E117: 8 | F117: 22 | L117: SEATTLE | M117: 0.5 | N117: 8
C118: PITTSBURGH | D118: 0.5714285714 | E118: 8 | F118: 27 | L118: CLEVELAND | M118: 0.5 | N118: 8
C119: CHICAGO A | D119: 0.5714285714 | E119: 8 | F119: 7 | L119: DETROIT | M119: 0.4 | N119: 11
C120: TORONTO | D120: 0.5714285714 | E120: 8 | F120: 13 | L120: LOS ANGELES A | M120: 0.4 | N120: 11
C121: CHICAGO N | D121: 0.5 | E121: 12 | F121: 24 | L121: BALTIMORE | M121: 0.3333333333 | N121: 13
C122: MINNESOTA | D122: 0.5 | E122: 12 | F122: 23 | L122: OAKLAND | M122: 0.3333333333 | N122: 13
C123: ST LOUIS | D123: 0.5 | E123: 12 | F123: 15 | L123: TEXAS | M123: 0.2857142857 | N123: 15
C124: MILWAUKEE | D124: 0.5 | E124: 12 | F124: 4 | L124: NL
C125: SEATTLE | D125: 0.5 | E125: 12 | F125: 12 | L125: LOS ANGELES N | M125: 0.6666666667 | N125: 1
C126: CLEVELAND | D126: 0.5 | E126: 12 | F126: 17 | L126: SAN FRANCISCO | M126: 0.6666666667 | N126: 1
C127: COLORADO | D127: 0.5 | E127: 12 | F127: 21 | L127: MIAMI | M127: 0.6666666667 | N127: 1
C128: PHILADELPHIA | D128: 0.5 | E128: 12 | F128: 16 | L128: PITTSBURGH | M128: 0.5714285714 | N128: 4
C129: DETROIT | D129: 0.4 | E129: 20 | F129: 20 | L129: CHICAGO N | M129: 0.5 | N129: 5
C130: LOS ANGELES A | D130: 0.4 | E130: 20 | F130: 18 | L130: ST LOUIS | M130: 0.5 | N130: 5
C131: ATLANTA | D131: 0.4 | E131: 20 | F131: 10 | L131: MILWAUKEE | M131: 0.5 | N131: 5
C132: BALTIMORE | D132: 0.3333333333 | E132: 23 | F132: 30 | L132: COLORADO | M132: 0.5 | N132: 5
C133: WASHINGTON | D133: 0.3333333333 | E133: 23 | F133: 25 | L133: PHILADELPHIA | M133: 0.5 | N133: 5
C134: CINCINNATI | D134: 0.3333333333 | E134: 23 | F134: 11 | L134: ATLANTA | M134: 0.4 | N134: 10
C135: NEW YORK N | D135: 0.3333333333 | E135: 23 | F135: 19 | L135: WASHINGTON | M135: 0.3333333333 | N135: 11
C136: OAKLAND | D136: 0.3333333333 | E136: 23 | F136: 9 | L136: CINCINNATI | M136: 0.3333333333 | N136: 11
C137: ARIZONA | D137: 0.2857142857 | E137: 28 | F137: 29 | L137: NEW YORK N | M137: 0.3333333333 | N137: 11
C138: TEXAS | D138: 0.2857142857 | E138: 28 | F138: 28 | L138: ARIZONA | M138: 0.2857142857 | N138: 14
C139: SAN DIEGO | D139: 0.2 | E139: 30 | F139: 14 | L139: SAN DIEGO | M139: 0.2 | N139: 15
E141: SEASON TO DATE | L141: SEASON TO DATE
L142: AL
C143: SEASON TO-DATE | E143: RANK | L143: TAMPA BAY | M143: 0.6307692308 | N143: 1
C144: SAN FRANCISCO | D144: 0.6461538462 | E144: 1 | L144: HOUSTON | M144: 0.5923076923 | N144: 2
C145: TAMPA BAY | D145: 0.6307692308 | E145: 2 | L145: NEW YORK A | M145: 0.5846153846 | N145: 3
C146: LOS ANGELES N | D146: 0.6259541985 | E146: 3 | L146: CHICAGO A | M146: 0.5757575758 | N146: 4
C147: MILWAUKEE | D147: 0.6030534351 | E147: 4 | L147: BOSTON | M147: 0.5681818182 | N147: 5
C148: HOUSTON | D148: 0.5923076923 | E148: 5 | L148: OAKLAND | M148: 0.5496183206 | N148: 6
C149: NEW YORK A | D149: 0.5846153846 | E149: 6 | L149: SEATTLE | M149: 0.534351145 | N149: 7
C150: CHICAGO A | D150: 0.5757575758 | E150: 7 | L150: TORONTO | M150: 0.5271317829 | N150: 8
C151: BOSTON | D151: 0.5681818182 | E151: 8 | L151: CLEVELAND | M151: 0.5 | N151: 9
C152: OAKLAND | D152: 0.5496183206 | E152: 9 | L152: LOS ANGELES A | M152: 0.4885496183 | N152: 10
C153: ATLANTA | D153: 0.5426356589 | E153: 10 | L153: DETROIT | M153: 0.4732824427 | N153: 11
C154: CINCINNATI | D154: 0.5378787879 | E154: 11 | L154: KANSAS CITY | M154: 0.4538461538 | N154: 12
C155: SEATTLE | D155: 0.534351145 | E155: 12 | L155: MINNESOTA | M155: 0.4384615385 | N155: 13
C156: TORONTO | D156: 0.5271317829 | E156: 13 | L156: TEXAS | M156: 0.3461538462 | N156: 14
C157: SAN DIEGO | D157: 0.5267175573 | E157: 14 | L157: BALTIMORE | M157: 0.3100775194 | N157: 15
C158: ST LOUIS | D158: 0.511627907 | E158: 15 | L158: NL
C159: PHILADELPHIA | D159: 0.5076923077 | E159: 16 | L159: SAN FRANCISCO | M159: 0.6461538462 | N159: 1
C160: CLEVELAND | D160: 0.5 | E160: 17 | L160: LOS ANGELES N | M160: 0.6259541985 | N160: 2
C161: LOS ANGELES A | D161: 0.4885496183 | E161: 18 | L161: MILWAUKEE | M161: 0.6030534351 | N161: 3
C162: NEW YORK N | D162: 0.4846153846 | E162: 19 | L162: ATLANTA | M162: 0.5426356589 | N162: 4
C163: DETROIT | D163: 0.4732824427 | E163: 20 | L163: CINCINNATI | M163: 0.5378787879 | N163: 5
C164: COLORADO | D164: 0.4615384615 | E164: 21 | L164: SAN DIEGO | M164: 0.5267175573 | N164: 6
C165: KANSAS CITY | D165: 0.4538461538 | E165: 22 | L165: ST LOUIS | M165: 0.511627907 | N165: 7
C166: MINNESOTA | D166: 0.4384615385 | E166: 23 | L166: PHILADELPHIA | M166: 0.5076923077 | N166: 8
C167: CHICAGO N | D167: 0.4318181818 | E167: 24 | L167: NEW YORK N | M167: 0.4846153846 | N167: 9
C168: WASHINGTON | D168: 0.4263565891 | E168: 25 | L168: COLORADO | M168: 0.4615384615 | N168: 10
C169: MIAMI | D169: 0.4198473282 | E169: 26 | L169: CHICAGO N | M169: 0.4318181818 | N169: 11
C170: PITTSBURGH | D170: 0.3664122137 | E170: 27 | L170: WASHINGTON | M170: 0.4263565891 | N170: 12
C171: TEXAS | D171: 0.3461538462 | E171: 28 | L171: MIAMI | M171: 0.4198473282 | N171: 13
C172: ARIZONA | D172: 0.3333333333 | E172: 29 | L172: PITTSBURGH | M172: 0.3664122137 | N172: 14

Sheet 22-Aug
B1: 2021 | C1: STANDINGS
Q2: CURRENT WEEK RESULTS
B3: WEEK ENDING | D3: 2021-08-22 | L3: WEEK | M3: 20 | N3: AUGUST
S4: MIKE | W4: JOHN | AA4: LARRY | AE4: 0
C5: CURRENT WEEK-SEASON TO DATE | G5: PREVIOUS WEEK-SEASON TO DATE | L5: CURRENT WEEK TOTALS | S5: RANK | T5: W | U5: L | V5: PCT | W5: RANK | X5: W | Y5: L | Z5: PCT | AA5: RANK | AB5: W | AC5: L | AD5: PCT | AE5: RANK | AF5: W | AG5: L | AH5: PCT
S6: Twins | T6: 2 | U6: 4 | V6: 0.3333333333 | W6: White Sox | X6: 4 | Y6: 3 | Z6: 0.5714285714 | AA6: Astros | AB6: 3 | AC6: 4 | AD6: 0.4285714286 | AE6: 0
B7: American League | G7: AL EAST | K7: Times | L7: AL EAST | S7: Red Sox | T7: 1 | U7: 4 | V7: 0.2 | W7: Astros | X7: 3 | Y7: 4 | Z7: 0.4285714286 | AA7: Dodgers | AB7: 6 | AC7: 1 | AD7: 0.8571428571 | AE7: 0
B8: East | C8: W | D8: L | E8: PCT | F8: Rank | G8: TEAM | H8: W | I8: L | J8: PCT | K8: Picked | L8: TEAM | M8: W | N8: L | O8: PCT | P8: Rank | S8: Astros | T8: 3 | U8: 4 | V8: 0.4285714286 | W8: Brewers | X8: 4 | Y8: 2 | Z8: 0.6666666667 | AA8: White Sox | AB8: 4 | AC8: 3 | AD8: 0.5714285714 | AE8: 0
B9: Orioles | C9: 38 | D9: 85 | E9: 0.3089430894 | F9: 5 | G9: BALTIMORE | H9: 38 | I9: 78 | J9: 0.3275862069 | K9: 0 | L9: Orioles | M9: 0 | N9: 7 | O9: 0 | P9: 5 | S9: Mets | T9: 2 | U9: 5 | V9: 0.2857142857 | W9: Phillies | X9: 2 | Y9: 4 | Z9: 0.3333333333 | AA9: Brewers | AB9: 4 | AC9: 2 | AD9: 0.6666666667 | AE9: 0
B10: Red Sox | C10: 70 | D10: 55 | E10: 0.56 | F10: 3 | G10: BOSTON | H10: 69 | I10: 51 | J10: 0.575 | K10: 3 | L10: Red Sox | M10: 1 | N10: 4 | O10: 0.2 | P10: 3 | S10: Brewers | T10: 4 | U10: 2 | V10: 0.6666666667 | W10: Rays | X10: 6 | Y10: 1 | Z10: 0.8571428571 | AA10: Yankees | AB10: 7 | AC10: 0 | AD10: 1 | AE10: 0
B11: Yankees | C11: 72 | D11: 52 | E11: 0.5806451613 | F11: 2 | G11: NEW YORK | H11: 65 | I11: 52 | J11: 0.5555555556 | K11: 2 | L11: Yankees | M11: 7 | N11: 0 | O11: 1 | P11: 1 | S11: Padres | T11: 1 | U11: 5 | V11: 0.1666666667 | W11: Rockies | X11: 5 | Y11: 1 | Z11: 0.8333333333 | AA11: Phillies | AB11: 2 | AC11: 4 | AD11: 0.3333333333 | AE11: 0
B12: Rays | C12: 77 | D12: 48 | E12: 0.616 | F12: 1 | G12: TAMPA BAY | H12: 71 | I12: 47 | J12: 0.6016949153 | K12: 3 | L12: Rays | M12: 6 | N12: 1 | O12: 0.8571428571 | P12: 2 | Q12: WEEKLY TOTAL | T12: 13 | U12: 24 | V12: 0.3513513514 | X12: 24 | Y12: 15 | Z12: 0.6153846154 | AB12: 26 | AC12: 14 | AD12: 0.65
B13: Blue Jays | C13: 64 | D13: 58 | E13: 0.5245901639 | F13: 4 | G13: TORONTO | H13: 63 | I13: 54 | J13: 0.5384615385 | K13: 1 | L13: Blue Jays | M13: 1 | N13: 4 | O13: 0.2 | P13: 3 | Q13: PREV WEEK TO DATE | T13: 381 | U13: 329 | V13: 0.5366197183 | X13: 366 | Y13: 346 | Z13: 0.5140449438 | AB13: 402 | AC13: 309 | AD13: 0.5654008439
Q14: CUR TOTAL TO DATE | T14: 394 | U14: 353 | V14: 0.5274431058 | X14: 390 | Y14: 361 | Z14: 0.5193075899 | AB14: 428 | AC14: 323 | AD14: 0.5699067909
G15: AL CENTRAL | L15: AL CENTRAL
B16: Central | C16: W | D16: L | E16: PCT | G16: TEAM | H16: W | I16: L | J16: PCT | L16: TEAM | M16: W | N16: L | O16: PCT
B17: White Sox | C17: 72 | D17: 53 | E17: 0.576 | F17: 1 | G17: CHICAGO | H17: 68 | I17: 50 | J17: 0.5762711864 | K17: 7 | L17: White Sox | M17: 4 | N17: 3 | O17: 0.5714285714 | P17: 3 | Q17: SEASON TLT TO DATE | T17: 342 | U17: 294 | V17: 0.5377358491 | X17: 327 | Y17: 312 | Z17: 0.5117370892 | AB17: 353 | AC17: 285 | AD17: 0.5532915361
B18: Indians | C18: 61 | D18: 61 | E18: 0.5 | F18: 2 | G18: CLEVELAND | H18: 57 | I18: 59 | J18: 0.4913793103 | K18: 0 | L18: Indians | M18: 4 | N18: 2 | O18: 0.6666666667 | P18: 2 | Q18: AUGUST TOTAL TO DATE | T18: 52 | U18: 59 | V18: 0.4684684685 | X18: 63 | Y18: 49 | Z18: 0.5625 | AB18: 75 | AC18: 38 | AD18: 0.6637168142
B19: Tigers | C19: 60 | D19: 66 | E19: 0.4761904762 | F19: 3 | G19: DETROIT | H19: 58 | I19: 62 | J19: 0.4833333333 | K19: 0 | L19: Tigers | M19: 2 | N19: 4 | O19: 0.3333333333 | P19: 4
B20: Royals | C20: 55 | D20: 68 | E20: 0.4471544715 | F20: 4 | G20: KANSAS CITY | H20: 49 | I20: 67 | J20: 0.4224137931 | K20: 0 | L20: Royals | M20: 6 | N20: 1 | O20: 0.8571428571 | P20: 1
B21: Twins | C21: 54 | D21: 70 | E21: 0.435483871 | F21: 5 | G21: MINNESOTA | H21: 52 | I21: 66 | J21: 0.4406779661 | K21: 2 | L21: Twins | M21: 2 | N21: 4 | O21: 0.3333333333 | P21: 4 | S21: JIM T. | W21: JEAN | AA21: DIANE | AE21: 0
S22: RANK | T22: W | U22: L | V22: PCT | W22: RANK | X22: W | Y22: L | Z22: PCT | AA22: RANK | AB22: W | AC22: L | AD22: PCT | AE22: RANK | AF22: W | AG22: L | AH22: PCT
G23: AL WEST | L23: AL WEST | S23: Yankees | T23: 7 | U23: 0 | V23: 1 | W23: Phillies | X23: 2 | Y23: 4 | Z23: 0.3333333333 | AA23: Red Sox | AB23: 1 | AC23: 4 | AD23: 0.2 | AE23: 0
B24: West | C24: W | D24: L | E24: PCT | G24: TEAM | H24: W | I24: L | J24: PCT | L24: TEAM | M24: W | N24: L | O24: PCT | S24: White Sox | T24: 4 | U24: 3 | V24: 0.5714285714 | W24: White Sox | X24: 4 | Y24: 3 | Z24: 0.5714285714 | AA24: Brewers | AB24: 4 | AC24: 2 | AD24: 0.6666666667 | AE24: 0
B25: Angels | C25: 62 | D25: 64 | E25: 0.4920634921 | F25: 4 | G25: LOS ANGELES | H25: 59 | I25: 60 | J25: 0.4957983193 | K25: 0 | L25: Angels | M25: 3 | N25: 4 | O25: 0.4285714286 | P25: 2 | S25: Astros | T25: 3 | U25: 4 | V25: 0.4285714286 | W25: Astros | X25: 3 | Y25: 4 | Z25: 0.4285714286 | AA25: White Sox | AB25: 4 | AC25: 3 | AD25: 0.5714285714 | AE25: 0
B26: Athletics | C26: 70 | D26: 55 | E26: 0.56 | F26: 2 | G26: OAKLAND | H26: 68 | I26: 50 | J26: 0.5762711864 | K26: 2 | L26: Athletics | M26: 2 | N26: 5 | O26: 0.2857142857 | P26: 4 | S26: Mets | T26: 2 | U26: 5 | V26: 0.2857142857 | W26: Dodgers | X26: 6 | Y26: 1 | Z26: 0.8571428571 | AA26: Mets | AB26: 2 | AC26: 5 | AD26: 0.2857142857 | AE26: 0
B27: Mariners | C27: 67 | D27: 58 | E27: 0.536 | F27: 3 | G27: SEATTLE | H27: 63 | I27: 56 | J27: 0.5294117647 | K27: 1 | L27: Mariners | M27: 4 | N27: 2 | O27: 0.6666666667 | P27: 1 | S27: Brewers | T27: 4 | U27: 2 | V27: 0.6666666667 | W27: Brewers | X27: 4 | Y27: 2 | Z27: 0.6666666667 | AA27: Dodgers | AB27: 6 | AC27: 1 | AD27: 0.8571428571 | AE27: 0
B28: Rangers | C28: 43 | D28: 80 | E28: 0.3495934959 | F28: 5 | G28: TEXAS | H28: 42 | I28: 76 | J28: 0.3559322034 | K28: 0 | L28: Rangers | M28: 1 | N28: 4 | O28: 0.2 | P28: 5 | S28: Giants | T28: 4 | U28: 2 | V28: 0.6666666667 | W28: Red Sox | X28: 1 | Y28: 4 | Z28: 0.2 | AA28: Mariners | AB28: 4 | AC28: 2 | AD28: 0.6666666667 | AE28: 0
B29: Astros | C29: 73 | D29: 51 | E29: 0.5887096774 | F29: 1 | G29: HOUSTON | H29: 70 | I29: 47 | J29: 0.5982905983 | K29: 6 | L29: Astros | M29: 3 | N29: 4 | O29: 0.4285714286 | P29: 2 | Q29: WEEKLY TOTAL | T29: 24 | U29: 16 | V29: 0.6 | X29: 20 | Y29: 18 | Z29: 0.5263157895 | AB29: 21 | AC29: 17 | AD29: 0.5526315789
Q30: PREV WEEK TO DATE | T30: 388 | U30: 322 | V30: 0.5464788732 | X30: 358 | Y30: 341 | Z30: 0.5121602289 | AB30: 373 | AC30: 335 | AD30: 0.5268361582
B31: National League | G31: NL EAST | L31: NL EAST | Q31: CUR TOTAL TO DATE | T31: 412 | U31: 338 | V31: 0.5493333333 | X31: 378 | Y31: 359 | Z31: 0.512890095 | AB31: 394 | AC31: 352 | AD31: 0.528150134
B32: East | C32: W | D32: L | E32: PCT | G32: TEAM | H32: W | I32: L | J32: PCT | L32: TEAM | M32: W | N32: L | O32: PCT
B33: Braves | C33: 68 | D33: 56 | E33: 0.5483870968 | F33: 1 | G33: ATLANTA | H33: 62 | I33: 56 | J33: 0.5254237288 | K33: 0 | L33: Braves | M33: 6 | N33: 0 | O33: 1 | P33: 1
B34: Marlins | C34: 51 | D34: 74 | E34: 0.408 | F34: 5 | G34: Miami | H34: 51 | I34: 67 | J34: 0.4322033898 | K34: 0 | L34: Marlins | M34: 0 | N34: 7 | O34: 0 | P34: 5 | Q34: SEASON TLT TO DATE | T34: 344 | U34: 291 | V34: 0.5417322835 | X34: 314 | Y34: 312 | Z34: 0.5015974441 | AB34: 333 | AC34: 300 | AD34: 0.5260663507
B35: Mets | C35: 61 | D35: 63 | E35: 0.4919354839 | F35: 3 | G35: NEW YORK | H35: 59 | I35: 58 | J35: 0.5042735043 | K35: 4 | L35: Mets | M35: 2 | N35: 5 | O35: 0.2857142857 | P35: 4 | Q35: AUGUST TOTAL TO DATE | T35: 68 | U35: 47 | V35: 0.5913043478 | X35: 64 | Y35: 47 | Z35: 0.5765765766 | AB35: 61 | AC35: 52 | AD35: 0.5398230088
B36: Phillies | C36: 63 | D36: 61 | E36: 0.5080645161 | F36: 2 | G36: PHILADELPHIA | H36: 61 | I36: 57 | J36: 0.5169491525 | K36: 5 | L36: Phillies | M36: 2 | N36: 4 | O36: 0.3333333333 | P36: 3
B37: Nationals | C37: 53 | D37: 70 | E37: 0.4308943089 | F37: 4 | G37: WASHINGTON | H37: 50 | I37: 68 | J37: 0.4237288136 | K37: 0 | L37: Nationals | M37: 3 | N37: 2 | O37: 0.6 | P37: 2
S38: JIM K. | W38: TIM | AA38: ----- | AE38: 0
G39: NL CENTRAL | L39: NL CENTRAL | S39: RANK | T39: W | U39: L | V39: PCT | W39: RANK | X39: W | Y39: L | Z39: PCT | AA39: RANK | AB39: W | AC39: L | AD39: PCT | AE39: RANK | AF39: W | AG39: L | AH39: PCT
B40: Central | C40: W | D40: L | E40: PCT | G40: TEAM | H40: W | I40: L | J40: PCT | L40: TEAM | M40: W | N40: L | O40: PCT | S40: Giants | T40: 4 | U40: 2 | V40: 0.6666666667 | W40: Giants | X40: 4 | Y40: 2 | Z40: 0.6666666667 | AE40: 0
B41: Cubs | C41: 54 | D41: 72 | E41: 0.4285714286 | F41: 4 | G41: CHICAGO | H41: 52 | I41: 68 | J41: 0.4333333333 | K41: 0 | L41: Cubs | M41: 2 | N41: 4 | O41: 0.3333333333 | P41: 3 | S41: Rays | T41: 6 | U41: 1 | V41: 0.8571428571 | W41: Rays | X41: 6 | Y41: 1 | Z41: 0.8571428571 | AE41: 0
B42: Reds | C42: 69 | D42: 57 | E42: 0.5476190476 | F42: 2 | G42: CINCINNATI | H42: 64 | I42: 55 | J42: 0.5378151261 | K42: 1 | L42: Reds | M42: 5 | N42: 2 | O42: 0.7142857143 | P42: 1 | S42: Brewers | T42: 4 | U42: 2 | V42: 0.6666666667 | W42: Astros | X42: 3 | Y42: 4 | Z42: 0.4285714286 | AE42: 0
B43: Brewers | C43: 76 | D43: 49 | E43: 0.608 | F43: 1 | G43: MILWAUKEE | H43: 72 | I43: 47 | J43: 0.6050420168 | K43: 8 | L43: Brewers | M43: 4 | N43: 2 | O43: 0.6666666667 | P43: 2 | S43: White Sox | T43: 4 | U43: 3 | V43: 0.5714285714 | W43: White Sox | X43: 4 | Y43: 3 | Z43: 0.5714285714 | AE43: 0
B44: Pirates | C44: 44 | D44: 80 | E44: 0.3548387097 | F44: 5 | G44: PITTSBURGH | H44: 42 | I44: 76 | J44: 0.3559322034 | K44: 0 | L44: Pirates | M44: 2 | N44: 4 | O44: 0.3333333333 | P44: 3 | S44: Athletics | T44: 2 | U44: 5 | V44: 0.2857142857 | W44: Reds | X44: 5 | Y44: 2 | Z44: 0.7142857143 | AE44: 0
B45: Cardinals | C45: 63 | D45: 60 | E45: 0.512195122 | F45: 3 | G45: ST LOUIS | H45: 61 | I45: 56 | J45: 0.5213675214 | K45: 0 | L45: Cardinals | M45: 2 | N45: 4 | O45: 0.3333333333 | P45: 3 | S45: Phillies | T45: 2 | U45: 4 | V45: 0.3333333333 | W45: Phillies | X45: 2 | Y45: 4 | Z45: 0.3333333333 | AE45: 0
Q46: WEEKLY TOTAL | T46: 22 | U46: 17 | V46: 0.5641025641 | X46: 24 | Y46: 16 | Z46: 0.6 | AB46: 0 | AC46: 30
G47: NL WEST | L47: NL WEST | Q47: PREV WEEK TO DATE | T47: 365 | U47: 340 | V47: 0.5177304965 | X47: 378 | Y47: 339 | Z47: 0.5271966527 | AB47: 0 | AC47: 580
B48: West | C48: W | D48: L | E48: PCT | G48: TEAM | H48: W | I48: L | J48: PCT | L48: TEAM | M48: W | N48: L | O48: PCT | Q48: CUR TOTAL TO DATE | T48: 387 | U48: 357 | V48: 0.5201612903 | X48: 402 | Y48: 355 | Z48: 0.5310435931 | AB48: 0 | AC48: 610
B49: Diamondbacks | C49: 42 | D49: 83 | E49: 0.336 | F49: 5 | G49: ARIZONA | H49: 38 | I49: 81 | J49: 0.3193277311 | K49: 0 | L49: Diamondbacks | M49: 4 | N49: 2 | O49: 0.6666666667 | P49: 3
B50: Rockies | C50: 57 | D50: 67 | E50: 0.4596774194 | F50: 4 | G50: COLORADO | H50: 52 | I50: 66 | J50: 0.4406779661 | K50: 1 | L50: Rockies | M50: 5 | N50: 1 | O50: 0.8333333333 | P50: 2
B51: Dodgers | C51: 78 | D51: 47 | E51: 0.624 | F51: 2 | G51: LOS ANGELES | H51: 72 | I51: 46 | J51: 0.6101694915 | K51: 3 | L51: Dodgers | M51: 6 | N51: 1 | O51: 0.8571428571 | P51: 1 | Q51: SEASON TLT TO DATE | T51: 317 | U51: 312 | V51: 0.5039745628 | X51: 332 | Y51: 311 | Z51: 0.5163297045 | AB51: 0 | AC51: 520
B52: Padres | C52: 68 | D52: 58 | E52: 0.5396825397 | F52: 3 | G52: SAN DIEGO | H52: 67 | I52: 53 | J52: 0.5583333333 | K52: 2 | L52: Padres | M52: 1 | N52: 5 | O52: 0.1666666667 | P52: 5 | Q52: AUGUST TOTAL TO DATE | T52: 70 | U52: 45 | V52: 0.6086956522 | X52: 70 | Y52: 44 | Z52: 0.6140350877 | AB52: 0 | AC52: 90
B53: Giants | C53: 80 | D53: 44 | E53: 0.6451612903 | F53: 1 | G53: SAN FRANCISCO | H53: 76 | I53: 42 | J53: 0.6440677966 | K53: 3 | L53: Giants | M53: 4 | N53: 2 | O53: 0.6666666667 | P53: 3
M54: 94 | N54: 94
D55: 2021-08-24 | E55: Morning
C57: WEEK 20
C58: NAME | D58: W | E58: L | F58: PCT | G58: GB
C59: LARRY | D59: 26 | E59: 14 | F59: 0.65 | G59: 0
C60: JOHN | D60: 24 | E60: 15 | F60: 0.6153846154 | G60: 1.5
C61: JIM T. | D61: 24 | E61: 16 | F61: 0.6 | G61: 2
C62: TIM | D62: 24 | E62: 16 | F62: 0.6 | G62: 2
C63: JIM K. | D63: 22 | E63: 17 | F63: 0.5641025641 | G63: 3.5
C64: DIANE | D64: 21 | E64: 17 | F64: 0.5526315789 | G64: 4
C65: JEAN | D65: 20 | E65: 18 | F65: 0.5263157895 | G65: 5
C66: MIKE | D66: 13 | E66: 24 | F66: 0.3513513514 | G66: 11.5
C67: ----- | D67: 0 | E67: 30 | F67: 0 | G67: -----
C72: MONTH OF AUGUST
C73: NAME | D73: W | E73: L | F73: PCT | G73: GB
C74: LARRY | D74: 75 | E74: 38 | F74: 0.6637168142 | G74: 0
C75: TIM | D75: 70 | E75: 44 | F75: 0.6140350877 | G75: 5.5
C76: JIM K. | D76: 70 | E76: 45 | F76: 0.6086956522 | G76: 6
C77: JIM T. | D77: 68 | E77: 47 | F77: 0.5913043478 | G77: 8
C78: JEAN | D78: 64 | E78: 47 | F78: 0.5765765766 | G78: 10
C79: JOHN | D79: 63 | E79: 49 | F79: 0.5625 | G79: 11.5
C80: DIANE | D80: 61 | E80: 52 | F80: 0.5398230088 | G80: 14
C81: MIKE | D81: 52 | E81: 59 | F81: 0.4684684685 | G81: 22
C82: ----- | D82: 0 | E82: 90 | F82: 0 | G82: -----
C86: 2021 | E86: SEASON
C87: NAME | D87: W | E87: L | F87: PCT | G87: GB
C88: LARRY | D88: 428 | E88: 323 | F88: 0.5699067909 | G88: 0
C89: JIM T. | D89: 412 | E89: 338 | F89: 0.5493333333 | G89: 15.5
C90: TIM | D90: 402 | E90: 355 | F90: 0.5310435931 | G90: 29
C91: DIANE | D91: 394 | E91: 352 | F91: 0.528150134 | G91: 31.5
C92: MIKE | D92: 394 | E92: 353 | F92: 0.5274431058 | G92: 32
C93: JIM K. | D93: 387 | E93: 357 | F93: 0.5201612903 | G93: 37.5
C94: JOHN | D94: 390 | E94: 361 | F94: 0.5193075899 | G94: 38
C95: JEAN | D95: 378 | E95: 359 | F95: 0.512890095 | G95: 43
C96: ----- | D96: 0 | E96: 610 | F96: 0 | G96: -----
E107: CURRENT WEEK | L107: THIS WEEK
C108: WEEK ENDING | E108: THIS WEEK | F108: SEASON | L108: AL | N108: RANK
C109: 2021-08-22 | E109: RANK | F109: RANK | L109: NEW YORK A | M109: 1 | N109: 1
C110: ATLANTA | D110: 1 | E110: 1 | F110: 10 | L110: TAMPA BAY | M110: 0.8571428571 | N110: 2
C111: NEW YORK A | D111: 1 | E111: 1 | F111: 6 | L111: KANSAS CITY | M111: 0.8571428571 | N111: 2
C112: LOS ANGELES N | D112: 0.8571428571 | E112: 3 | F112: 2 | L112: SEATTLE | M112: 0.6666666667 | N112: 4
C113: TAMPA BAY | D113: 0.8571428571 | E113: 3 | F113: 3 | L113: CLEVELAND | M113: 0.6666666667 | N113: 4
C114: KANSAS CITY | D114: 0.8571428571 | E114: 3 | F114: 22 | L114: CHICAGO A | M114: 0.5714285714 | N114: 6
C115: COLORADO | D115: 0.8333333333 | E115: 6 | F115: 21 | L115: LOS ANGELES A | M115: 0.4285714286 | N115: 7
C116: CINCINNATI | D116: 0.7142857143 | E116: 7 | F116: 11 | L116: HOUSTON | M116: 0.4285714286 | N116: 7
C117: SEATTLE | D117: 0.6666666667 | E117: 8 | F117: 13 | L117: MINNESOTA | M117: 0.3333333333 | N117: 9
C118: ARIZONA | D118: 0.6666666667 | E118: 8 | F118: 29 | L118: DETROIT | M118: 0.3333333333 | N118: 9
C119: MILWAUKEE | D119: 0.6666666667 | E119: 8 | F119: 4 | L119: OAKLAND | M119: 0.2857142857 | N119: 11
C120: SAN FRANCISCO | D120: 0.6666666667 | E120: 8 | F120: 1 | L120: TORONTO | M120: 0.2 | N120: 12
C121: CLEVELAND | D121: 0.6666666667 | E121: 8 | F121: 17 | L121: BOSTON | M121: 0.2 | N121: 12
C122: WASHINGTON | D122: 0.6 | E122: 13 | F122: 24 | L122: TEXAS | M122: 0.2 | N122: 12
C123: CHICAGO A | D123: 0.5714285714 | E123: 14 | F123: 7 | L123: BALTIMORE | M123: 0 | N123: 15
C124: LOS ANGELES A | D124: 0.4285714286 | E124: 15 | F124: 18 | L124: NL
C125: HOUSTON | D125: 0.4285714286 | E125: 15 | F125: 5 | L125: ATLANTA | M125: 1 | N125: 1
C126: CHICAGO N | D126: 0.3333333333 | E126: 17 | F126: 25 | L126: LOS ANGELES N | M126: 0.8571428571 | N126: 2
C127: PITTSBURGH | D127: 0.3333333333 | E127: 17 | F127: 27 | L127: COLORADO | M127: 0.8333333333 | N127: 3
C128: MINNESOTA | D128: 0.3333333333 | E128: 17 | F128: 23 | L128: CINCINNATI | M128: 0.7142857143 | N128: 4
C129: ST LOUIS | D129: 0.3333333333 | E129: 17 | F129: 15 | L129: ARIZONA | M129: 0.6666666667 | N129: 5
C130: DETROIT | D130: 0.3333333333 | E130: 17 | F130: 20 | L130: MILWAUKEE | M130: 0.6666666667 | N130: 5
C131: PHILADELPHIA | D131: 0.3333333333 | E131: 17 | F131: 16 | L131: SAN FRANCISCO | M131: 0.6666666667 | N131: 5
C132: OAKLAND | D132: 0.2857142857 | E132: 23 | F132: 8 | L132: WASHINGTON | M132: 0.6 | N132: 8
C133: NEW YORK N | D133: 0.2857142857 | E133: 23 | F133: 19 | L133: CHICAGO N | M133: 0.3333333333 | N133: 9
C134: TORONTO | D134: 0.2 | E134: 25 | F134: 14 | L134: PITTSBURGH | M134: 0.3333333333 | N134: 9
C135: BOSTON | D135: 0.2 | E135: 25 | F135: 8 | L135: ST LOUIS | M135: 0.3333333333 | N135: 9
C136: TEXAS | D136: 0.2 | E136: 25 | F136: 28 | L136: PHILADELPHIA | M136: 0.3333333333 | N136: 9
C137: SAN DIEGO | D137: 0.1666666667 | E137: 28 | F137: 12 | L137: NEW YORK N | M137: 0.2857142857 | N137: 13
C138: MIAMI | D138: 0 | E138: 29 | F138: 26 | L138: SAN DIEGO | M138: 0.1666666667 | N138: 14
C139: BALTIMORE | D139: 0 | E139: 29 | F139: 30 | L139: MIAMI | M139: 0 | N139: 15
E141: SEASON TO DATE | L141: SEASON TO DATE
L142: AL
C143: SEASON TO-DATE | E143: RANK | L143: TAMPA BAY | M143: 0.616 | N143: 1
C144: SAN FRANCISCO | D144: 0.6451612903 | E144: 1 | L144: HOUSTON | M144: 0.5887096774 | N144: 2
C145: LOS ANGELES N | D145: 0.624 | E145: 2 | L145: NEW YORK A | M145: 0.5806451613 | N145: 3
C146: TAMPA BAY | D146: 0.616 | E146: 3 | L146: CHICAGO A | M146: 0.576 | N146: 4
C147: MILWAUKEE | D147: 0.608 | E147: 4 | L147: OAKLAND | M147: 0.56 | N147: 5
C148: HOUSTON | D148: 0.5887096774 | E148: 5 | L148: BOSTON | M148: 0.56 | N148: 5
C149: NEW YORK A | D149: 0.5806451613 | E149: 6 | L149: SEATTLE | M149: 0.536 | N149: 7
C150: CHICAGO A | D150: 0.576 | E150: 7 | L150: TORONTO | M150: 0.5245901639 | N150: 8
C151: OAKLAND | D151: 0.56 | E151: 8 | L151: CLEVELAND | M151: 0.5 | N151: 9
C152: BOSTON | D152: 0.56 | E152: 8 | L152: LOS ANGELES A | M152: 0.4920634921 | N152: 10
C153: ATLANTA | D153: 0.5483870968 | E153: 10 | L153: DETROIT | M153: 0.4761904762 | N153: 11
C154: CINCINNATI | D154: 0.5476190476 | E154: 11 | L154: KANSAS CITY | M154: 0.4471544715 | N154: 12
C155: SAN DIEGO | D155: 0.5396825397 | E155: 12 | L155: MINNESOTA | M155: 0.435483871 | N155: 13
C156: SEATTLE | D156: 0.536 | E156: 13 | L156: TEXAS | M156: 0.3495934959 | N156: 14
C157: TORONTO | D157: 0.5245901639 | E157: 14 | L157: BALTIMORE | M157: 0.3089430894 | N157: 15
C158: ST LOUIS | D158: 0.512195122 | E158: 15 | L158: NL
C159: PHILADELPHIA | D159: 0.5080645161 | E159: 16 | L159: SAN FRANCISCO | M159: 0.6451612903 | N159: 1
C160: CLEVELAND | D160: 0.5 | E160: 17 | L160: LOS ANGELES N | M160: 0.624 | N160: 2
C161: LOS ANGELES A | D161: 0.4920634921 | E161: 18 | L161: MILWAUKEE | M161: 0.608 | N161: 3
C162: NEW YORK N | D162: 0.4919354839 | E162: 19 | L162: ATLANTA | M162: 0.5483870968 | N162: 4
C163: DETROIT | D163: 0.4761904762 | E163: 20 | L163: CINCINNATI | M163: 0.5476190476 | N163: 5
C164: COLORADO | D164: 0.4596774194 | E164: 21 | L164: SAN DIEGO | M164: 0.5396825397 | N164: 6
C165: KANSAS CITY | D165: 0.4471544715 | E165: 22 | L165: ST LOUIS | M165: 0.512195122 | N165: 7
C166: MINNESOTA | D166: 0.435483871 | E166: 23 | L166: PHILADELPHIA | M166: 0.5080645161 | N166: 8
C167: WASHINGTON | D167: 0.4308943089 | E167: 24 | L167: NEW YORK N | M167: 0.4919354839 | N167: 9
C168: CHICAGO N | D168: 0.4285714286 | E168: 25 | L168: COLORADO | M168: 0.4596774194 | N168: 10
C169: MIAMI | D169: 0.408 | E169: 26 | L169: WASHINGTON | M169: 0.4308943089 | N169: 11
C170: PITTSBURGH | D170: 0.3548387097 | E170: 27 | L170: CHICAGO N | M170: 0.4285714286 | N170: 12
C171: TEXAS | D171: 0.3495934959 | E171: 28 | L171: MIAMI | M171: 0.408 | N171: 13
C172: ARIZONA | D172: 0.336 | E172: 29 | L172: PITTSBURGH | M172: 0.3548387097 | N172: 14

Sheet 15-Aug
B1: 2021 | C1: STANDINGS
Q2: CURRENT WEEK RESULTS
B3: WEEK ENDING | D3: 2021-08-15 | L3: WEEK | M3: 19 | N3: AUGUST
S4: MIKE | W4: JOHN | AA4: LARRY | AE4: 0
C5: CURRENT WEEK-SEASON TO DATE | G5: PREVIOUS WEEK-SEASON TO DATE | L5: CURRENT WEEK TOTALS | S5: RANK | T5: W | U5: L | V5: PCT | W5: RANK | X5: W | Y5: L | Z5: PCT | AA5: RANK | AB5: W | AC5: L | AD5: PCT | AE5: RANK | AF5: W | AG5: L | AH5: PCT
S6: Twins | T6: 4 | U6: 2 | V6: 0.6666666667 | W6: White Sox | X6: 2 | Y6: 4 | Z6: 0.3333333333 | AA6: Athletics | AB6: 4 | AC6: 2 | AD6: 0.6666666667 | AE6: 0
B7: American League | G7: AL EAST | K7: Times | L7: AL EAST | S7: Red Sox | T7: 4 | U7: 2 | V7: 0.6666666667 | W7: Athletics | X7: 4 | Y7: 2 | Z7: 0.6666666667 | AA7: Dodgers | AB7: 5 | AC7: 1 | AD7: 0.8333333333 | AE7: 0
B8: East | C8: W | D8: L | E8: PCT | F8: Rank | G8: TEAM | H8: W | I8: L | J8: PCT | K8: Picked | L8: TEAM | M8: W | N8: L | O8: PCT | P8: Rank | S8: Astros | T8: 4 | U8: 1 | V8: 0.8 | W8: Brewers | X8: 6 | Y8: 1 | Z8: 0.8571428571 | AA8: White Sox | AB8: 2 | AC8: 4 | AD8: 0.3333333333 | AE8: 0
B9: Orioles | C9: 38 | D9: 78 | E9: 0.3275862069 | F9: 5 | G9: BALTIMORE | H9: 38 | I9: 72 | J9: 0.3454545455 | K9: 0 | L9: Orioles | M9: 0 | N9: 6 | O9: 0 | P9: 5 | S9: Mets | T9: 3 | U9: 3 | V9: 0.5 | W9: Phillies | X9: 2 | Y9: 4 | Z9: 0.3333333333 | AA9: Brewers | AB9: 6 | AC9: 1 | AD9: 0.8571428571 | AE9: 0
B10: Red Sox | C10: 69 | D10: 51 | E10: 0.575 | F10: 2 | G10: BOSTON | H10: 65 | I10: 49 | J10: 0.5701754386 | K10: 3 | L10: Red Sox | M10: 4 | N10: 2 | O10: 0.6666666667 | P10: 1 | S10: Brewers | T10: 6 | U10: 1 | V10: 0.8571428571 | W10: Rays | X10: 3 | Y10: 3 | Z10: 0.5 | AA10: Yankees | AB10: 4 | AC10: 2 | AD10: 0.6666666667 | AE10: 0
B11: Yankees | C11: 65 | D11: 52 | E11: 0.5555555556 | F11: 3 | G11: NEW YORK | H11: 61 | I11: 50 | J11: 0.5495495495 | K11: 2 | L11: Yankees | M11: 4 | N11: 2 | O11: 0.6666666667 | P11: 1 | S11: Padres | T11: 3 | U11: 4 | V11: 0.4285714286 | W11: Rockies | X11: 1 | Y11: 5 | Z11: 0.1666666667 | AA11: Phillies | AB11: 2 | AC11: 4 | AD11: 0.3333333333 | AE11: 0
B12: Rays | C12: 71 | D12: 47 | E12: 0.6016949153 | F12: 1 | G12: TAMPA BAY | H12: 68 | I12: 44 | J12: 0.6071428571 | K12: 3 | L12: Rays | M12: 3 | N12: 3 | O12: 0.5 | P12: 3 | Q12: WEEKLY TOTAL | T12: 24 | U12: 13 | V12: 0.6486486486 | X12: 18 | Y12: 19 | Z12: 0.4864864865 | AB12: 23 | AC12: 14 | AD12: 0.6216216216
B13: Blue Jays | C13: 63 | D13: 54 | E13: 0.5384615385 | F13: 4 | G13: TORONTO | H13: 60 | I13: 50 | J13: 0.5454545455 | K13: 1 | L13: Blue Jays | M13: 3 | N13: 4 | O13: 0.4285714286 | P13: 4 | Q13: PREV WEEK TO DATE | T13: 357 | U13: 316 | V13: 0.5304606241 | X13: 348 | Y13: 327 | Z13: 0.5155555556 | AB13: 379 | AC13: 295 | AD13: 0.5623145401
Q14: CUR TOTAL TO DATE | T14: 381 | U14: 329 | V14: 0.5366197183 | X14: 366 | Y14: 346 | Z14: 0.5140449438 | AB14: 402 | AC14: 309 | AD14: 0.5654008439
G15: AL CENTRAL | L15: AL CENTRAL
B16: Central | C16: W | D16: L | E16: PCT | G16: TEAM | H16: W | I16: L | J16: PCT | L16: TEAM | M16: W | N16: L | O16: PCT
B17: White Sox | C17: 68 | D17: 50 | E17: 0.5762711864 | F17: 1 | G17: CHICAGO | H17: 66 | I17: 46 | J17: 0.5892857143 | K17: 7 | L17: White Sox | M17: 2 | N17: 4 | O17: 0.3333333333 | P17: 4 | Q17: SEASON TLT TO DATE | T17: 342 | U17: 294 | V17: 0.5377358491 | X17: 327 | Y17: 312 | Z17: 0.5117370892 | AB17: 353 | AC17: 285 | AD17: 0.5532915361
B18: Indians | C18: 57 | D18: 59 | E18: 0.4913793103 | F18: 2 | G18: CLEVELAND | H18: 54 | I18: 55 | J18: 0.495412844 | K18: 0 | L18: Indians | M18: 3 | N18: 4 | O18: 0.4285714286 | P18: 3 | Q18: AUGUST TOTAL TO DATE | T18: 39 | U18: 35 | V18: 0.527027027 | X18: 39 | Y18: 34 | Z18: 0.5342465753 | AB18: 49 | AC18: 24 | AD18: 0.6712328767
B19: Tigers | C19: 58 | D19: 62 | E19: 0.4833333333 | F19: 3 | G19: DETROIT | H19: 54 | I19: 60 | J19: 0.4736842105 | K19: 0 | L19: Tigers | M19: 4 | N19: 2 | O19: 0.6666666667 | P19: 1
B20: Royals | C20: 49 | D20: 67 | E20: 0.4224137931 | F20: 5 | G20: KANSAS CITY | H20: 48 | I20: 62 | J20: 0.4363636364 | K20: 0 | L20: Royals | M20: 1 | N20: 5 | O20: 0.1666666667 | P20: 5
B21: Twins | C21: 52 | D21: 66 | E21: 0.4406779661 | F21: 4 | G21: MINNESOTA | H21: 48 | I21: 64 | J21: 0.4285714286 | K21: 2 | L21: Twins | M21: 4 | N21: 2 | O21: 0.6666666667 | P21: 1 | S21: JIM T. | W21: JEAN | AA21: DIANE | AE21: 0
S22: RANK | T22: W | U22: L | V22: PCT | W22: RANK | X22: W | Y22: L | Z22: PCT | AA22: RANK | AB22: W | AC22: L | AD22: PCT | AE22: RANK | AF22: W | AG22: L | AH22: PCT
G23: AL WEST | L23: AL WEST | S23: Yankees | T23: 4 | U23: 2 | V23: 0.6666666667 | W23: Phillies | X23: 2 | Y23: 4 | Z23: 0.3333333333 | AA23: Red Sox | AB23: 4 | AC23: 2 | AD23: 0.6666666667 | AE23: 0
B24: West | C24: W | D24: L | E24: PCT | G24: TEAM | H24: W | I24: L | J24: PCT | L24: TEAM | M24: W | N24: L | O24: PCT | S24: White Sox | T24: 2 | U24: 4 | V24: 0.3333333333 | W24: White Sox | X24: 2 | Y24: 4 | Z24: 0.3333333333 | AA24: Brewers | AB24: 6 | AC24: 1 | AD24: 0.8571428571 | AE24: 0
B25: Angels | C25: 59 | D25: 60 | E25: 0.4957983193 | F25: 4 | G25: LOS ANGELES | H25: 56 | I25: 56 | J25: 0.5 | K25: 0 | L25: Angels | M25: 3 | N25: 4 | O25: 0.4285714286 | P25: 5 | S25: Astros | T25: 4 | U25: 1 | V25: 0.8 | W25: Astros | X25: 4 | Y25: 1 | Z25: 0.8 | AA25: White Sox | AB25: 2 | AC25: 4 | AD25: 0.3333333333 | AE25: 0
B26: Athletics | C26: 68 | D26: 50 | E26: 0.5762711864 | F26: 2 | G26: OAKLAND | H26: 64 | I26: 48 | J26: 0.5714285714 | K26: 4 | L26: Athletics | M26: 4 | N26: 2 | O26: 0.6666666667 | P26: 2 | S26: Mets | T26: 3 | U26: 3 | V26: 0.5 | W26: Dodgers | X26: 5 | Y26: 1 | Z26: 0.8333333333 | AA26: Mets | AB26: 3 | AC26: 3 | AD26: 0.5 | AE26: 0
B27: Mariners | C27: 63 | D27: 56 | E27: 0.5294117647 | F27: 3 | G27: SEATTLE | H27: 59 | I27: 54 | J27: 0.5221238938 | K27: 1 | L27: Mariners | M27: 4 | N27: 2 | O27: 0.6666666667 | P27: 2 | S27: Brewers | T27: 6 | U27: 1 | V27: 0.8571428571 | W27: Brewers | X27: 6 | Y27: 1 | Z27: 0.8571428571 | AA27: Dodgers | AB27: 5 | AC27: 1 | AD27: 0.8333333333 | AE27: 0
B28: Rangers | C28: 42 | D28: 76 | E28: 0.3559322034 | F28: 5 | G28: TEXAS | H28: 39 | I28: 73 | J28: 0.3482142857 | K28: 0 | L28: Rangers | M28: 3 | N28: 3 | O28: 0.5 | P28: 4 | S28: Giants | T28: 5 | U28: 1 | V28: 0.8333333333 | W28: Red Sox | X28: 4 | Y28: 2 | Z28: 0.6666666667 | AA28: Mariners | AB28: 4 | AC28: 2 | AD28: 0.6666666667 | AE28: 0
B29: Astros | C29: 70 | D29: 47 | E29: 0.5982905983 | F29: 1 | G29: HOUSTON | H29: 66 | I29: 46 | J29: 0.5892857143 | K29: 4 | L29: Astros | M29: 4 | N29: 1 | O29: 0.8 | P29: 1 | Q29: WEEKLY TOTAL | T29: 24 | U29: 12 | V29: 0.6666666667 | X29: 23 | Y29: 13 | Z29: 0.6388888889 | AB29: 24 | AC29: 13 | AD29: 0.6486486486
Q30: PREV WEEK TO DATE | T30: 364 | U30: 310 | V30: 0.5400593472 | X30: 335 | Y30: 328 | Z30: 0.5052790347 | AB30: 349 | AC30: 322 | AD30: 0.520119225
B31: National League | G31: NL EAST | L31: NL EAST | Q31: CUR TOTAL TO DATE | T31: 388 | U31: 322 | V31: 0.5464788732 | X31: 358 | Y31: 341 | Z31: 0.5121602289 | AB31: 373 | AC31: 335 | AD31: 0.5268361582
B32: East | C32: W | D32: L | E32: PCT | G32: TEAM | H32: W | I32: L | J32: PCT | L32: TEAM | M32: W | N32: L | O32: PCT
B33: Braves | C33: 62 | D33: 56 | E33: 0.5254237288 | F33: 1 | G33: ATLANTA | H33: 57 | I33: 55 | J33: 0.5089285714 | K33: 0 | L33: Braves | M33: 5 | N33: 1 | O33: 0.8333333333 | P33: 1
B34: Marlins | C34: 51 | D34: 67 | E34: 0.4322033898 | F34: 4 | G34: Miami | H34: 47 | I34: 65 | J34: 0.4196428571 | K34: 0 | L34: Marlins | M34: 4 | N34: 2 | O34: 0.6666666667 | P34: 2 | Q34: SEASON TLT TO DATE | T34: 344 | U34: 291 | V34: 0.5417322835 | X34: 314 | Y34: 312 | Z34: 0.5015974441 | AB34: 333 | AC34: 300 | AD34: 0.5260663507
B35: Mets | C35: 59 | D35: 58 | E35: 0.5042735043 | F35: 3 | G35: NEW YORK | H35: 56 | I35: 55 | J35: 0.5045045045 | K35: 4 | L35: Mets | M35: 3 | N35: 3 | O35: 0.5 | P35: 3 | Q35: AUGUST TOTAL TO DATE | T35: 44 | U35: 31 | V35: 0.5866666667 | X35: 44 | Y35: 29 | Z35: 0.602739726 | AB35: 40 | AC35: 35 | AD35: 0.5333333333
B36: Phillies | C36: 61 | D36: 57 | E36: 0.5169491525 | F36: 2 | G36: PHILADELPHIA | H36: 59 | I36: 53 | J36: 0.5267857143 | K36: 5 | L36: Phillies | M36: 2 | N36: 4 | O36: 0.3333333333 | P36: 4
B37: Nationals | C37: 50 | D37: 68 | E37: 0.4237288136 | F37: 5 | G37: WASHINGTON | H37: 50 | I37: 62 | J37: 0.4464285714 | K37: 0 | L37: Nationals | M37: 0 | N37: 6 | O37: 0 | P37: 5
S38: JIM K. | W38: TIM | AA38: ----- | AE38: 0
G39: NL CENTRAL | L39: NL CENTRAL | S39: RANK | T39: W | U39: L | V39: PCT | W39: RANK | X39: W | Y39: L | Z39: PCT | AA39: RANK | AB39: W | AC39: L | AD39: PCT | AE39: RANK | AF39: W | AG39: L | AH39: PCT
B40: Central | C40: W | D40: L | E40: PCT | G40: TEAM | H40: W | I40: L | J40: PCT | L40: TEAM | M40: W | N40: L | O40: PCT | S40: Giants | T40: 5 | U40: 1 | V40: 0.8333333333 | W40: Giants | X40: 5 | Y40: 1 | Z40: 0.8333333333 | AE40: 0
B41: Cubs | C41: 52 | D41: 68 | E41: 0.4333333333 | F41: 4 | G41: CHICAGO | H41: 52 | I41: 61 | J41: 0.4601769912 | K41: 0 | L41: Cubs | M41: 0 | N41: 7 | O41: 0 | P41: 5 | S41: Rays | T41: 3 | U41: 3 | V41: 0.5 | W41: Rays | X41: 3 | Y41: 3 | Z41: 0.5 | AE41: 0
B42: Reds | C42: 64 | D42: 55 | E42: 0.5378151261 | F42: 2 | G42: CINCINNATI | H42: 61 | I42: 51 | J42: 0.5446428571 | K42: 1 | L42: Reds | M42: 3 | N42: 4 | O42: 0.4285714286 | P42: 3 | S42: Brewers | T42: 6 | U42: 1 | V42: 0.8571428571 | W42: Astros | X42: 4 | Y42: 1 | Z42: 0.8 | AE42: 0
B43: Brewers | C43: 72 | D43: 47 | E43: 0.6050420168 | F43: 1 | G43: MILWAUKEE | H43: 66 | I43: 46 | J43: 0.5892857143 | K43: 8 | L43: Brewers | M43: 6 | N43: 1 | O43: 0.8571428571 | P43: 2 | S43: White Sox | T43: 2 | U43: 4 | V43: 0.3333333333 | W43: White Sox | X43: 2 | Y43: 4 | Z43: 0.3333333333 | AE43: 0
B44: Pirates | C44: 42 | D44: 76 | E44: 0.3559322034 | F44: 5 | G44: PITTSBURGH | H44: 41 | I44: 71 | J44: 0.3660714286 | K44: 0 | L44: Pirates | M44: 1 | N44: 5 | O44: 0.1666666667 | P44: 4 | S44: Athletics | T44: 4 | U44: 2 | V44: 0.6666666667 | W44: Reds | X44: 3 | Y44: 4 | Z44: 0.4285714286 | AE44: 0
B45: Cardinals | C45: 61 | D45: 56 | E45: 0.5213675214 | F45: 3 | G45: ST LOUIS | H45: 55 | I45: 56 | J45: 0.4954954955 | K45: 0 | L45: Cardinals | M45: 6 | N45: 0 | O45: 1 | P45: 1 | S45: Phillies | T45: 2 | U45: 4 | V45: 0.3333333333 | W45: Phillies | X45: 2 | Y45: 4 | Z45: 0.3333333333 | AE45: 0
Q46: WEEKLY TOTAL | T46: 22 | U46: 15 | V46: 0.5945945946 | X46: 19 | Y46: 17 | Z46: 0.5277777778 | AB46: 0 | AC46: 30
G47: NL WEST | L47: NL WEST | Q47: PREV WEEK TO DATE | T47: 343 | U47: 325 | V47: 0.5134730539 | X47: 359 | Y47: 322 | Z47: 0.5271659325 | AB47: 0 | AC47: 550
B48: West | C48: W | D48: L | E48: PCT | G48: TEAM | H48: W | I48: L | J48: PCT | L48: TEAM | M48: W | N48: L | O48: PCT | Q48: CUR TOTAL TO DATE | T48: 365 | U48: 340 | V48: 0.5177304965 | X48: 378 | Y48: 339 | Z48: 0.5271966527 | AB48: 0 | AC48: 580
B49: Diamondbacks | C49: 38 | D49: 81 | E49: 0.3193277311 | F49: 5 | G49: ARIZONA | H49: 35 | I49: 78 | J49: 0.3097345133 | K49: 0 | L49: Diamondbacks | M49: 3 | N49: 3 | O49: 0.5 | P49: 3
B50: Rockies | C50: 52 | D50: 66 | E50: 0.4406779661 | F50: 4 | G50: COLORADO | H50: 51 | I50: 61 | J50: 0.4553571429 | K50: 1 | L50: Rockies | M50: 1 | N50: 5 | O50: 0.1666666667 | P50: 5
B51: Dodgers | C51: 72 | D51: 46 | E51: 0.6101694915 | F51: 2 | G51: LOS ANGELES | H51: 67 | I51: 45 | J51: 0.5982142857 | K51: 3 | L51: Dodgers | M51: 5 | N51: 1 | O51: 0.8333333333 | P51: 1 | Q51: SEASON TLT TO DATE | T51: 317 | U51: 312 | V51: 0.5039745628 | X51: 332 | Y51: 311 | Z51: 0.5163297045 | AB51: 0 | AC51: 520
B52: Padres | C52: 67 | D52: 53 | E52: 0.5583333333 | F52: 3 | G52: SAN DIEGO | H52: 64 | I52: 49 | J52: 0.5663716814 | K52: 2 | L52: Padres | M52: 3 | N52: 4 | O52: 0.4285714286 | P52: 4 | Q52: AUGUST TOTAL TO DATE | T52: 48 | U52: 28 | V52: 0.6315789474 | X52: 46 | Y52: 28 | Z52: 0.6216216216 | AB52: 0 | AC52: 60
B53: Giants | C53: 76 | D53: 42 | E53: 0.6440677966 | F53: 1 | G53: SAN FRANCISCO | H53: 71 | I53: 41 | J53: 0.6339285714 | K53: 3 | L53: Giants | M53: 5 | N53: 1 | O53: 0.8333333333 | P53: 1
M54: 93 | N54: 93
D55: 2021-08-16 | E55: Morning
C57: WEEK 19
C58: NAME | D58: W | E58: L | F58: PCT | G58: GB
C59: JIM T. | D59: 24 | E59: 12 | F59: 0.6666666667 | G59: 0
C60: DIANE | D60: 24 | E60: 13 | F60: 0.6486486486 | G60: 0.5
C61: MIKE | D61: 24 | E61: 13 | F61: 0.6486486486 | G61: 0.5
C62: JEAN | D62: 23 | E62: 13 | F62: 0.6388888889 | G62: 1
C63: LARRY | D63: 23 | E63: 14 | F63: 0.6216216216 | G63: 1.5
C64: JIM K. | D64: 22 | E64: 15 | F64: 0.5945945946 | G64: 2.5
C65: TIM | D65: 19 | E65: 17 | F65: 0.5277777778 | G65: 5
C66: JOHN | D66: 18 | E66: 19 | F66: 0.4864864865 | G66: 6.5
C67: ----- | D67: 0 | E67: 30 | F67: 0 | G67: -----
C72: MONTH OF AUGUST
C73: NAME | D73: W | E73: L | F73: PCT | G73: GB
C74: LARRY | D74: 49 | E74: 24 | F74: 0.6712328767 | G74: 0
C75: JIM K. | D75: 48 | E75: 28 | F75: 0.6315789474 | G75: 2.5
C76: TIM | D76: 46 | E76: 28 | F76: 0.6216216216 | G76: 3.5
C77: JEAN | D77: 44 | E77: 29 | F77: 0.602739726 | G77: 5
C78: JIM T. | D78: 44 | E78: 31 | F78: 0.5866666667 | G78: 6
C79: JOHN | D79: 39 | E79: 34 | F79: 0.5342465753 | G79: 10
C80: DIANE | D80: 40 | E80: 35 | F80: 0.5333333333 | G80: 10
C81: MIKE | D81: 39 | E81: 35 | F81: 0.527027027 | G81: 10.5
C82: ----- | D82: 0 | E82: 60 | F82: 0 | G82: -----
C86: 2021 | E86: SEASON
C87: NAME | D87: W | E87: L | F87: PCT | G87: GB
C88: LARRY | D88: 402 | E88: 309 | F88: 0.5654008439 | G88: 0
C89: JIM T. | D89: 388 | E89: 322 | F89: 0.5464788732 | G89: 13.5
C90: MIKE | D90: 381 | E90: 329 | F90: 0.5366197183 | G90: 20.5
C91: TIM | D91: 378 | E91: 339 | F91: 0.5271966527 | G91: 27
C92: DIANE | D92: 373 | E92: 335 | F92: 0.5268361582 | G92: 27.5
C93: JIM K. | D93: 365 | E93: 340 | F93: 0.5177304965 | G93: 34
C94: JOHN | D94: 366 | E94: 346 | F94: 0.5140449438 | G94: 36.5
C95: JEAN | D95: 358 | E95: 341 | F95: 0.5121602289 | G95: 38
C96: ----- | D96: 0 | E96: 580 | F96: 0 | G96: -----
E107: CURRENT WEEK | L107: THIS WEEK
C108: WEEK ENDING | E108: THIS WEEK | F108: SEASON | L108: AL | N108: RANK
C109: 2021-08-15 | E109: RANK | F109: RANK | L109: HOUSTON | M109: 0.8 | N109: 1
C110: ST LOUIS | D110: 1 | E110: 1 | F110: 15 | L110: OAKLAND | M110: 0.6666666667 | N110: 2
C111: MILWAUKEE | D111: 0.8571428571 | E111: 2 | F111: 3 | L111: DETROIT | M111: 0.6666666667 | N111: 2
C112: SAN FRANCISCO | D112: 0.8333333333 | E112: 3 | F112: 1 | L112: SEATTLE | M112: 0.6666666667 | N112: 2
C113: ATLANTA | D113: 0.8333333333 | E113: 3 | F113: 14 | L113: MINNESOTA | M113: 0.6666666667 | N113: 2
C114: LOS ANGELES N | D114: 0.8333333333 | E114: 3 | F114: 2 | L114: NEW YORK A | M114: 0.6666666667 | N114: 2
C115: HOUSTON | D115: 0.8 | E115: 6 | F115: 5 | L115: BOSTON | M115: 0.6666666667 | N115: 2
C116: OAKLAND | D116: 0.6666666667 | E116: 7 | F116: 6 | L116: TAMPA BAY | M116: 0.5 | N116: 8
C117: DETROIT | D117: 0.6666666667 | E117: 7 | F117: 20 | L117: TEXAS | M117: 0.5 | N117: 8
C118: SEATTLE | D118: 0.6666666667 | E118: 7 | F118: 13 | L118: TORONTO | M118: 0.4285714286 | N118: 10
C119: MINNESOTA | D119: 0.6666666667 | E119: 7 | F119: 21 | L119: LOS ANGELES A | M119: 0.4285714286 | N119: 10
C120: NEW YORK A | D120: 0.6666666667 | E120: 7 | F120: 10 | L120: CLEVELAND | M120: 0.4285714286 | N120: 10
C121: BOSTON | D121: 0.6666666667 | E121: 7 | F121: 8 | L121: CHICAGO A | M121: 0.3333333333 | N121: 13
C122: MIAMI | D122: 0.6666666667 | E122: 7 | F122: 24 | L122: KANSAS CITY | M122: 0.1666666667 | N122: 14
C123: NEW YORK N | D123: 0.5 | E123: 14 | F123: 17 | L123: BALTIMORE | M123: 0 | N123: 15
C124: TAMPA BAY | D124: 0.5 | E124: 14 | F124: 4 | L124: NL
C125: ARIZONA | D125: 0.5 | E125: 14 | F125: 30 | L125: ST LOUIS | M125: 1 | N125: 1
C126: TEXAS | D126: 0.5 | E126: 14 | F126: 27 | L126: MILWAUKEE | M126: 0.8571428571 | N126: 2
C127: SAN DIEGO | D127: 0.4285714286 | E127: 18 | F127: 9 | L127: SAN FRANCISCO | M127: 0.8333333333 | N127: 3
C128: TORONTO | D128: 0.4285714286 | E128: 18 | F128: 11 | L128: ATLANTA | M128: 0.8333333333 | N128: 3
C129: LOS ANGELES A | D129: 0.4285714286 | E129: 18 | F129: 18 | L129: LOS ANGELES N | M129: 0.8333333333 | N129: 3
C130: CLEVELAND | D130: 0.4285714286 | E130: 18 | F130: 19 | L130: MIAMI | M130: 0.6666666667 | N130: 6
C131: CINCINNATI | D131: 0.4285714286 | E131: 18 | F131: 12 | L131: NEW YORK N | M131: 0.5 | N131: 7
C132: CHICAGO A | D132: 0.3333333333 | E132: 23 | F132: 6 | L132: ARIZONA | M132: 0.5 | N132: 7
C133: PHILADELPHIA | D133: 0.3333333333 | E133: 23 | F133: 16 | L133: SAN DIEGO | M133: 0.4285714286 | N133: 9
C134: KANSAS CITY | D134: 0.1666666667 | E134: 25 | F134: 26 | L134: CINCINNATI | M134: 0.4285714286 | N134: 9
C135: COLORADO | D135: 0.1666666667 | E135: 25 | F135: 21 | L135: PHILADELPHIA | M135: 0.3333333333 | N135: 11
C136: PITTSBURGH | D136: 0.1666666667 | E136: 25 | F136: 27 | L136: COLORADO | M136: 0.1666666667 | N136: 12
C137: WASHINGTON | D137: 0 | E137: 28 | F137: 25 | L137: PITTSBURGH | M137: 0.1666666667 | N137: 12
C138: CHICAGO N | D138: 0 | E138: 28 | F138: 23 | L138: WASHINGTON | M138: 0 | N138: 14
C139: BALTIMORE | D139: 0 | E139: 28 | F139: 29 | L139: CHICAGO N | M139: 0 | N139: 14
E141: SEASON TO DATE | L141: SEASON TO DATE
L142: AL
C143: SEASON TO-DATE | E143: RANK | L143: TAMPA BAY | M143: 0.6016949153 | N143: 1
C144: SAN FRANCISCO | D144: 0.6440677966 | E144: 1 | L144: HOUSTON | M144: 0.5982905983 | N144: 2
C145: LOS ANGELES N | D145: 0.6101694915 | E145: 2 | L145: CHICAGO A | M145: 0.5762711864 | N145: 3
C146: MILWAUKEE | D146: 0.6050420168 | E146: 3 | L146: OAKLAND | M146: 0.5762711864 | N146: 3
C147: TAMPA BAY | D147: 0.6016949153 | E147: 4 | L147: BOSTON | M147: 0.575 | N147: 5
C148: HOUSTON | D148: 0.5982905983 | E148: 5 | L148: NEW YORK A | M148: 0.5555555556 | N148: 6
C149: CHICAGO A | D149: 0.5762711864 | E149: 6 | L149: TORONTO | M149: 0.5384615385 | N149: 7
C150: OAKLAND | D150: 0.5762711864 | E150: 6 | L150: SEATTLE | M150: 0.5294117647 | N150: 8
C151: BOSTON | D151: 0.575 | E151: 8 | L151: LOS ANGELES A | M151: 0.4957983193 | N151: 9
C152: SAN DIEGO | D152: 0.5583333333 | E152: 9 | L152: CLEVELAND | M152: 0.4913793103 | N152: 10
C153: NEW YORK A | D153: 0.5555555556 | E153: 10 | L153: DETROIT | M153: 0.4833333333 | N153: 11
C154: TORONTO | D154: 0.5384615385 | E154: 11 | L154: MINNESOTA | M154: 0.4406779661 | N154: 12
C155: CINCINNATI | D155: 0.5378151261 | E155: 12 | L155: KANSAS CITY | M155: 0.4224137931 | N155: 13
C156: SEATTLE | D156: 0.5294117647 | E156: 13 | L156: TEXAS | M156: 0.3559322034 | N156: 14
C157: ATLANTA | D157: 0.5254237288 | E157: 14 | L157: BALTIMORE | M157: 0.3275862069 | N157: 15
C158: ST LOUIS | D158: 0.5213675214 | E158: 15 | L158: NL
C159: PHILADELPHIA | D159: 0.5169491525 | E159: 16 | L159: SAN FRANCISCO | M159: 0.6440677966 | N159: 1
C160: NEW YORK N | D160: 0.5042735043 | E160: 17 | L160: LOS ANGELES N | M160: 0.6101694915 | N160: 2
C161: LOS ANGELES A | D161: 0.4957983193 | E161: 18 | L161: MILWAUKEE | M161: 0.6050420168 | N161: 3
C162: CLEVELAND | D162: 0.4913793103 | E162: 19 | L162: SAN DIEGO | M162: 0.5583333333 | N162: 4
C163: DETROIT | D163: 0.4833333333 | E163: 20 | L163: CINCINNATI | M163: 0.5378151261 | N163: 5
C164: COLORADO | D164: 0.4406779661 | E164: 21 | L164: ATLANTA | M164: 0.5254237288 | N164: 6
C165: MINNESOTA | D165: 0.4406779661 | E165: 21 | L165: ST LOUIS | M165: 0.5213675214 | N165: 7
C166: CHICAGO N | D166: 0.4333333333 | E166: 23 | L166: PHILADELPHIA | M166: 0.5169491525 | N166: 8
C167: MIAMI | D167: 0.4322033898 | E167: 24 | L167: NEW YORK N | M167: 0.5042735043 | N167: 9
C168: WASHINGTON | D168: 0.4237288136 | E168: 25 | L168: COLORADO | M168: 0.4406779661 | N168: 10
C169: KANSAS CITY | D169: 0.4224137931 | E169: 26 | L169: CHICAGO N | M169: 0.4333333333 | N169: 11
C170: PITTSBURGH | D170: 0.3559322034 | E170: 27 | L170: MIAMI | M170: 0.4322033898 | N170: 12
C171: TEXAS | D171: 0.3559322034 | E171: 27 | L171: WASHINGTON | M171: 0.4237288136 | N171: 13
C172: BALTIMORE | D172: 0.3275862069 | E172: 29 | L172: PITTSBURGH | M172: 0.3559322034 | N172: 14

Sheet 8-Aug
B1: 2021 | C1: STANDINGS
Q2: CURRENT WEEK RESULTS
B3: WEEK ENDING | D3: 2021-08-08 | L3: WEEK | M3: 18 | N3: AUGUST
S4: MIKE | W4: JOHN | AA4: LARRY | AE4: 0
C5: CURRENT WEEK-SEASON TO DATE | G5: PREVIOUS WEEK-SEASON TO DATE | L5: CURRENT WEEK TOTALS | S5: RANK | T5: W | U5: L | V5: PCT | W5: RANK | X5: W | Y5: L | Z5: PCT | AA5: RANK | AB5: W | AC5: L | AD5: PCT | AE5: RANK | AF5: W | AG5: L | AH5: PCT
S6: Twins | T6: 4 | U6: 2 | V6: 0.6666666667 | W6: White Sox | X6: 4 | Y6: 2 | Z6: 0.6666666667 | AA6: Athletics | AB6: 4 | AC6: 1 | AD6: 0.8 | AE6: 0
B7: American League | G7: AL EAST | K7: Times | L7: AL EAST | S7: Red Sox | T7: 2 | U7: 5 | V7: 0.2857142857 | W7: Athletics | X7: 4 | Y7: 1 | Z7: 0.8 | AA7: Dodgers | AB7: 3 | AC7: 2 | AD7: 0.6 | AE7: 0
B8: East | C8: W | D8: L | E8: PCT | F8: Rank | G8: TEAM | H8: W | I8: L | J8: PCT | K8: Picked | L8: TEAM | M8: W | N8: L | O8: PCT | P8: Rank | S8: Astros | T8: 2 | U8: 4 | V8: 0.3333333333 | W8: Brewers | X8: 3 | Y8: 3 | Z8: 0.5 | AA8: White Sox | AB8: 4 | AC8: 2 | AD8: 0.6666666667 | AE8: 0
B9: Orioles | C9: 38 | D9: 72 | E9: 0.3454545455 | F9: 5 | G9: BALTIMORE | H9: 37 | I9: 67 | J9: 0.3557692308 | K9: 0 | L9: Orioles | M9: 1 | N9: 5 | O9: 0.1666666667 | P9: 5 | S9: Mets | T9: 1 | U9: 6 | V9: 0.1428571429 | W9: Mets | X9: 1 | Y9: 6 | Z9: 0.1428571429 | AA9: Brewers | AB9: 3 | AC9: 3 | AD9: 0.5 | AE9: 0
B10: Red Sox | C10: 65 | D10: 49 | E10: 0.5701754386 | F10: 2 | G10: BOSTON | H10: 63 | I10: 44 | J10: 0.5887850467 | K10: 3 | L10: Red Sox | M10: 2 | N10: 5 | O10: 0.2857142857 | P10: 4 | S10: Brewers | T10: 3 | U10: 3 | V10: 0.5 | W10: Rays | X10: 4 | Y10: 2 | Z10: 0.6666666667 | AA10: Yankees | AB10: 5 | AC10: 2 | AD10: 0.7142857143 | AE10: 0
B11: Yankees | C11: 61 | D11: 50 | E11: 0.5495495495 | F11: 3 | G11: NEW YORK | H11: 56 | I11: 48 | J11: 0.5384615385 | K11: 2 | L11: Yankees | M11: 5 | N11: 2 | O11: 0.7142857143 | P11: 2 | S11: Padres | T11: 3 | U11: 2 | V11: 0.6 | W11: Rockies | X11: 5 | Y11: 1 | Z11: 0.8333333333 | AA11: Phillies | AB11: 7 | AC11: 0 | AD11: 1 | AE11: 0
B12: Rays | C12: 68 | D12: 44 | E12: 0.6071428571 | F12: 1 | G12: TAMPA BAY | H12: 64 | I12: 42 | J12: 0.6037735849 | K12: 2 | L12: Rays | M12: 4 | N12: 2 | O12: 0.6666666667 | P12: 3 | Q12: WEEKLY TOTAL | T12: 15 | U12: 22 | V12: 0.4054054054 | X12: 21 | Y12: 15 | Z12: 0.5833333333 | AB12: 26 | AC12: 10 | AD12: 0.7222222222
B13: Blue Jays | C13: 60 | D13: 50 | E13: 0.5454545455 | F13: 4 | G13: TORONTO | H13: 54 | I13: 48 | J13: 0.5294117647 | K13: 2 | L13: Blue Jays | M13: 6 | N13: 2 | O13: 0.75 | P13: 1 | Q13: PREV WEEK TO DATE | T13: 342 | U13: 294 | V13: 0.5377358491 | X13: 327 | Y13: 312 | Z13: 0.5117370892 | AB13: 353 | AC13: 285 | AD13: 0.5532915361
Q14: CUR TOTAL TO DATE | T14: 357 | U14: 316 | V14: 0.5304606241 | X14: 348 | Y14: 327 | Z14: 0.5155555556 | AB14: 379 | AC14: 295 | AD14: 0.5623145401
G15: AL CENTRAL | L15: AL CENTRAL
B16: Central | C16: W | D16: L | E16: PCT | G16: TEAM | H16: W | I16: L | J16: PCT | L16: TEAM | M16: W | N16: L | O16: PCT
B17: White Sox | C17: 66 | D17: 46 | E17: 0.5892857143 | F17: 1 | G17: CHICAGO | H17: 62 | I17: 44 | J17: 0.5849056604 | K17: 6 | L17: White Sox | M17: 4 | N17: 2 | O17: 0.6666666667 | P17: 1 | Q17: SEASON TLT TO DATE | T17: 342 | U17: 294 | V17: 0.5377358491 | X17: 327 | Y17: 312 | Z17: 0.5117370892 | AB17: 353 | AC17: 285 | AD17: 0.5532915361
B18: Indians | C18: 54 | D18: 55 | E18: 0.495412844 | F18: 2 | G18: CLEVELAND | H18: 51 | I18: 51 | J18: 0.5 | K18: 0 | L18: Indians | M18: 3 | N18: 4 | O18: 0.4285714286 | P18: 5 | Q18: AUGUST TOTAL TO DATE | T18: 15 | U18: 22 | V18: 0.4054054054 | X18: 21 | Y18: 15 | Z18: 0.5833333333 | AB18: 26 | AC18: 10 | AD18: 0.7222222222
B19: Tigers | C19: 54 | D19: 60 | E19: 0.4736842105 | F19: 3 | G19: DETROIT | H19: 51 | I19: 57 | J19: 0.4722222222 | K19: 0 | L19: Tigers | M19: 3 | N19: 3 | O19: 0.5 | P19: 3
B20: Royals | C20: 48 | D20: 62 | E20: 0.4363636364 | F20: 4 | G20: KANSAS CITY | H20: 45 | I20: 59 | J20: 0.4326923077 | K20: 0 | L20: Royals | M20: 3 | N20: 3 | O20: 0.5 | P20: 3
B21: Twins | C21: 48 | D21: 64 | E21: 0.4285714286 | F21: 5 | G21: MINNESOTA | H21: 44 | I21: 62 | J21: 0.4150943396 | K21: 3 | L21: Twins | M21: 4 | N21: 2 | O21: 0.6666666667 | P21: 1 | S21: JIM T. | W21: JEAN | AA21: DIANE | AE21: 0
S22: RANK | T22: W | U22: L | V22: PCT | W22: RANK | X22: W | Y22: L | Z22: PCT | AA22: RANK | AB22: W | AC22: L | AD22: PCT | AE22: RANK | AF22: W | AG22: L | AH22: PCT
G23: AL WEST | L23: AL WEST | S23: Yankees | T23: 5 | U23: 2 | V23: 0.7142857143 | W23: Phillies | X23: 7 | Y23: 0 | Z23: 1 | AA23: Red Sox | AB23: 2 | AC23: 5 | AD23: 0.2857142857 | AE23: 0
B24: West | C24: W | D24: L | E24: PCT | G24: TEAM | H24: W | I24: L | J24: PCT | L24: TEAM | M24: W | N24: L | O24: PCT | S24: White Sox | T24: 4 | U24: 2 | V24: 0.6666666667 | W24: White Sox | X24: 4 | Y24: 2 | Z24: 0.6666666667 | AA24: Brewers | AB24: 3 | AC24: 3 | AD24: 0.5 | AE24: 0
B25: Angels | C25: 56 | D25: 56 | E25: 0.5 | F25: 4 | G25: LOS ANGELES | H25: 52 | I25: 53 | J25: 0.4952380952 | K25: 0 | L25: Angels | M25: 4 | N25: 3 | O25: 0.5714285714 | P25: 2 | S25: Astros | T25: 2 | U25: 4 | V25: 0.3333333333 | W25: Astros | X25: 2 | Y25: 4 | Z25: 0.3333333333 | AA25: White Sox | AB25: 4 | AC25: 2 | AD25: 0.6666666667 | AE25: 0
B26: Athletics | C26: 64 | D26: 48 | E26: 0.5714285714 | F26: 2 | G26: OAKLAND | H26: 60 | I26: 47 | J26: 0.5607476636 | K26: 3 | L26: Athletics | M26: 4 | N26: 1 | O26: 0.8 | P26: 1 | S26: Mets | T26: 1 | U26: 6 | V26: 0.1428571429 | W26: Dodgers | X26: 3 | Y26: 2 | Z26: 0.6 | AA26: Mets | AB26: 1 | AC26: 6 | AD26: 0.1428571429 | AE26: 0
B27: Mariners | C27: 59 | D27: 54 | E27: 0.5221238938 | F27: 3 | G27: SEATTLE | H27: 56 | I27: 50 | J27: 0.5283018868 | K27: 2 | L27: Mariners | M27: 3 | N27: 4 | O27: 0.4285714286 | P27: 3 | S27: Brewers | T27: 3 | U27: 3 | V27: 0.5 | W27: Brewers | X27: 3 | Y27: 3 | Z27: 0.5 | AA27: Dodgers | AB27: 3 | AC27: 2 | AD27: 0.6 | AE27: 0
B28: Rangers | C28: 39 | D28: 73 | E28: 0.3482142857 | F28: 5 | G28: TEXAS | H28: 38 | I28: 67 | J28: 0.3619047619 | K28: 0 | L28: Rangers | M28: 1 | N28: 6 | O28: 0.1428571429 | P28: 5 | S28: Giants | T28: 5 | U28: 2 | V28: 0.7142857143 | W28: Red Sox | X28: 2 | Y28: 5 | Z28: 0.2857142857 | AA28: Mariners | AB28: 3 | AC28: 4 | AD28: 0.4285714286 | AE28: 0
B29: Astros | C29: 66 | D29: 46 | E29: 0.5892857143 | F29: 1 | G29: HOUSTON | H29: 64 | I29: 42 | J29: 0.6037735849 | K29: 4 | L29: Astros | M29: 2 | N29: 4 | O29: 0.3333333333 | P29: 4 | Q29: WEEKLY TOTAL | T29: 20 | U29: 19 | V29: 0.5128205128 | X29: 21 | Y29: 16 | Z29: 0.5675675676 | AB29: 16 | AC29: 22 | AD29: 0.4210526316
Q30: PREV WEEK TO DATE | T30: 344 | U30: 291 | V30: 0.5417322835 | X30: 314 | Y30: 312 | Z30: 0.5015974441 | AB30: 333 | AC30: 300 | AD30: 0.5260663507
B31: National League | G31: NL EAST | L31: NL EAST | Q31: CUR TOTAL TO DATE | T31: 364 | U31: 310 | V31: 0.5400593472 | X31: 335 | Y31: 328 | Z31: 0.5052790347 | AB31: 349 | AC31: 322 | AD31: 0.520119225
B32: East | C32: W | D32: L | E32: PCT | G32: TEAM | H32: W | I32: L | J32: PCT | L32: TEAM | M32: W | N32: L | O32: PCT
B33: Braves | C33: 57 | D33: 55 | E33: 0.5089285714 | F33: 2 | G33: ATLANTA | H33: 52 | I33: 54 | J33: 0.4905660377 | K33: 1 | L33: Braves | M33: 5 | N33: 1 | O33: 0.8333333333 | P33: 2
B34: Marlins | C34: 47 | D34: 65 | E34: 0.4196428571 | F34: 5 | G34: Miami | H34: 44 | I34: 61 | J34: 0.419047619 | K34: 0 | L34: Marlins | M34: 3 | N34: 4 | O34: 0.4285714286 | P34: 3 | Q34: SEASON TLT TO DATE | T34: 344 | U34: 291 | V34: 0.5417322835 | X34: 314 | Y34: 312 | Z34: 0.5015974441 | AB34: 333 | AC34: 300 | AD34: 0.5260663507
B35: Mets | C35: 56 | D35: 55 | E35: 0.5045045045 | F35: 3 | G35: NEW YORK | H35: 55 | I35: 49 | J35: 0.5288461538 | K35: 5 | L35: Mets | M35: 1 | N35: 6 | O35: 0.1428571429 | P35: 4 | Q35: AUGUST TOTAL TO DATE | T35: 20 | U35: 19 | V35: 0.5128205128 | X35: 21 | Y35: 16 | Z35: 0.5675675676 | AB35: 16 | AC35: 22 | AD35: 0.4210526316
B36: Phillies | C36: 59 | D36: 53 | E36: 0.5267857143 | F36: 1 | G36: PHILADELPHIA | H36: 52 | I36: 53 | J36: 0.4952380952 | K36: 3 | L36: Phillies | M36: 7 | N36: 0 | O36: 1 | P36: 1
B37: Nationals | C37: 50 | D37: 62 | E37: 0.4464285714 | F37: 4 | G37: WASHINGTON | H37: 49 | I37: 56 | J37: 0.4666666667 | K37: 0 | L37: Nationals | M37: 1 | N37: 6 | O37: 0.1428571429 | P37: 4
S38: JIM K. | W38: TIM | AA38: ----- | AE38: 0
G39: NL CENTRAL | L39: NL CENTRAL | S39: RANK | T39: W | U39: L | V39: PCT | W39: RANK | X39: W | Y39: L | Z39: PCT | AA39: RANK | AB39: W | AC39: L | AD39: PCT | AE39: RANK | AF39: W | AG39: L | AH39: PCT
B40: Central | C40: W | D40: L | E40: PCT | G40: TEAM | H40: W | I40: L | J40: PCT | L40: TEAM | M40: W | N40: L | O40: PCT | S40: Twins | T40: 4 | U40: 2 | V40: 0.6666666667 | W40: Giants | X40: 5 | Y40: 2 | Z40: 0.7142857143 | AE40: 0
B41: Cubs | C41: 52 | D41: 61 | E41: 0.4601769912 | F41: 4 | G41: CHICAGO | H41: 51 | I41: 56 | J41: 0.476635514 | K41: 0 | L41: Cubs | M41: 1 | N41: 5 | O41: 0.1666666667 | P41: 4 | S41: Brewers | T41: 3 | U41: 3 | V41: 0.5 | W41: Rays | X41: 4 | Y41: 2 | Z41: 0.6666666667 | AE41: 0
B42: Reds | C42: 61 | D42: 51 | E42: 0.5446428571 | F42: 2 | G42: CINCINNATI | H42: 56 | I42: 50 | J42: 0.5283018868 | K42: 1 | L42: Reds | M42: 5 | N42: 1 | O42: 0.8333333333 | P42: 1 | S42: Mariners | T42: 3 | U42: 4 | V42: 0.4285714286 | W42: Astros | X42: 2 | Y42: 4 | Z42: 0.3333333333 | AE42: 0
B43: Brewers | C43: 66 | D43: 46 | E43: 0.5892857143 | F43: 1 | G43: MILWAUKEE | H43: 63 | I43: 43 | J43: 0.5943396226 | K43: 8 | L43: Brewers | M43: 3 | N43: 3 | O43: 0.5 | P43: 2 | S43: Blue Jays | T43: 6 | U43: 2 | V43: 0.75 | W43: White Sox | X43: 4 | Y43: 2 | Z43: 0.6666666667 | AE43: 0
B44: Pirates | C44: 41 | D44: 71 | E44: 0.3660714286 | F44: 5 | G44: PITTSBURGH | H44: 40 | I44: 65 | J44: 0.380952381 | K44: 0 | L44: Pirates | M44: 1 | N44: 6 | O44: 0.1428571429 | P44: 5 | S44: Rockies | T44: 5 | U44: 1 | V44: 0.8333333333 | W44: Reds | X44: 5 | Y44: 1 | Z44: 0.8333333333 | AE44: 0
B45: Cardinals | C45: 55 | D45: 56 | E45: 0.4954954955 | F45: 3 | G45: ST LOUIS | H45: 53 | I45: 52 | J45: 0.5047619048 | K45: 0 | L45: Cardinals | M45: 2 | N45: 4 | O45: 0.3333333333 | P45: 3 | S45: Braves | T45: 5 | U45: 1 | V45: 0.8333333333 | W45: Phillies | X45: 7 | Y45: 0 | Z45: 1 | AE45: 0
Q46: WEEKLY TOTAL | T46: 26 | U46: 13 | V46: 0.6666666667 | X46: 27 | Y46: 11 | Z46: 0.7105263158 | AB46: 0 | AC46: 30
G47: NL WEST | L47: NL WEST | Q47: PREV WEEK TO DATE | T47: 317 | U47: 312 | V47: 0.5039745628 | X47: 332 | Y47: 311 | Z47: 0.5163297045 | AB47: 0 | AC47: 520
B48: West | C48: W | D48: L | E48: PCT | G48: TEAM | H48: W | I48: L | J48: PCT | L48: TEAM | M48: W | N48: L | O48: PCT | Q48: CUR TOTAL TO DATE | T48: 343 | U48: 325 | V48: 0.5134730539 | X48: 359 | Y48: 322 | Z48: 0.5271659325 | AB48: 0 | AC48: 550
B49: Diamondbacks | C49: 35 | D49: 78 | E49: 0.3097345133 | F49: 5 | G49: ARIZONA | H49: 33 | I49: 73 | J49: 0.3113207547 | K49: 0 | L49: Diamondbacks | M49: 2 | N49: 5 | O49: 0.2857142857 | P49: 5
B50: Rockies | C50: 51 | D50: 61 | E50: 0.4553571429 | F50: 4 | G50: COLORADO | H50: 46 | I50: 60 | J50: 0.4339622642 | K50: 2 | L50: Rockies | M50: 5 | N50: 1 | O50: 0.8333333333 | P50: 1
B51: Dodgers | C51: 67 | D51: 45 | E51: 0.5982142857 | F51: 2 | G51: LOS ANGELES | H51: 64 | I51: 43 | J51: 0.5981308411 | K51: 3 | L51: Dodgers | M51: 3 | N51: 2 | O51: 0.6 | P51: 3 | Q51: SEASON TLT TO DATE | T51: 317 | U51: 312 | V51: 0.5039745628 | X51: 332 | Y51: 311 | Z51: 0.5163297045 | AB51: 0 | AC51: 520
B52: Padres | C52: 64 | D52: 49 | E52: 0.5663716814 | F52: 3 | G52: SAN DIEGO | H52: 61 | I52: 47 | J52: 0.5648148148 | K52: 2 | L52: Padres | M52: 3 | N52: 2 | O52: 0.6 | P52: 3 | Q52: AUGUST TOTAL TO DATE | T52: 26 | U52: 13 | V52: 0.6666666667 | X52: 27 | Y52: 11 | Z52: 0.7105263158 | AB52: 0 | AC52: 30
B53: Giants | C53: 71 | D53: 41 | E53: 0.6339285714 | F53: 1 | G53: SAN FRANCISCO | H53: 66 | I53: 39 | J53: 0.6285714286 | K53: 2 | L53: Giants | M53: 5 | N53: 2 | O53: 0.7142857143 | P53: 2
M54: 96 | N54: 96
D55: 2021-08-09 | E55: Morning
C57: WEEK 18
C58: NAME | D58: W | E58: L | F58: PCT | G58: GB
C59: LARRY | D59: 26 | E59: 10 | F59: 0.7222222222 | G59: 0
C60: TIM | D60: 27 | E60: 11 | F60: 0.7105263158 | G60: 0
C61: JIM K. | D61: 26 | E61: 13 | F61: 0.6666666667 | G61: 1.5
C62: JOHN | D62: 21 | E62: 15 | F62: 0.5833333333 | G62: 5
C63: JEAN | D63: 21 | E63: 16 | F63: 0.5675675676 | G63: 5.5
C64: JIM T. | D64: 20 | E64: 19 | F64: 0.5128205128 | G64: 7.5
C65: DIANE | D65: 16 | E65: 22 | F65: 0.4210526316 | G65: 11
C66: MIKE | D66: 15 | E66: 22 | F66: 0.4054054054 | G66: 11.5
C67: ----- | D67: 0 | E67: 30 | F67: 0 | G67: -----
C72: MONTH OF AUGUST
C73: NAME | D73: W | E73: L | F73: PCT | G73: GB
C74: LARRY | D74: 26 | E74: 10 | F74: 0.7222222222 | G74: 0
C75: TIM | D75: 27 | E75: 11 | F75: 0.7105263158 | G75: 0
C76: JIM K. | D76: 26 | E76: 13 | F76: 0.6666666667 | G76: 1.5
C77: JOHN | D77: 21 | E77: 15 | F77: 0.5833333333 | G77: 5
C78: JEAN | D78: 21 | E78: 16 | F78: 0.5675675676 | G78: 5.5
C79: JIM T. | D79: 20 | E79: 19 | F79: 0.5128205128 | G79: 7.5
C80: DIANE | D80: 16 | E80: 22 | F80: 0.4210526316 | G80: 11
C81: MIKE | D81: 15 | E81: 22 | F81: 0.4054054054 | G81: 11.5
C82: ----- | D82: 0 | E82: 30 | F82: 0 | G82: -----
C86: 2021 | E86: SEASON
C87: NAME | D87: W | E87: L | F87: PCT | G87: GB
C88: LARRY | D88: 379 | E88: 295 | F88: 0.5623145401 | G88: 0
C89: JIM T. | D89: 364 | E89: 310 | F89: 0.5400593472 | G89: 15
C90: MIKE | D90: 357 | E90: 316 | F90: 0.5304606241 | G90: 21.5
C91: TIM | D91: 359 | E91: 322 | F91: 0.5271659325 | G91: 23.5
C92: DIANE | D92: 349 | E92: 322 | F92: 0.520119225 | G92: 28.5
C93: JOHN | D93: 348 | E93: 327 | F93: 0.5155555556 | G93: 31.5
C94: JIM K. | D94: 343 | E94: 325 | F94: 0.5134730539 | G94: 33
C95: JEAN | D95: 335 | E95: 328 | F95: 0.5052790347 | G95: 38.5
C96: ----- | D96: 0 | E96: 550 | F96: 0 | G96: -----
E107: CURRENT WEEK | L107: THIS WEEK
C108: WEEK ENDING | E108: THIS WEEK | F108: SEASON | L108: AL | N108: RANK
C109: 2021-08-08 | E109: RANK | F109: RANK | L109: OAKLAND | M109: 0.8 | N109: 1
C110: PHILADELPHIA | D110: 1 | E110: 1 | F110: 13 | L110: TORONTO | M110: 0.75 | N110: 2
C111: ATLANTA | D111: 0.8333333333 | E111: 2 | F111: 15 | L111: NEW YORK A | M111: 0.7142857143 | N111: 3
C112: COLORADO | D112: 0.8333333333 | E112: 2 | F112: 22 | L112: MINNESOTA | M112: 0.6666666667 | N112: 4
C113: CINCINNATI | D113: 0.8333333333 | E113: 2 | F113: 12 | L113: CHICAGO A | M113: 0.6666666667 | N113: 4
C114: OAKLAND | D114: 0.8 | E114: 5 | F114: 7 | L114: TAMPA BAY | M114: 0.6666666667 | N114: 4
C115: TORONTO | D115: 0.75 | E115: 6 | F115: 11 | L115: LOS ANGELES A | M115: 0.5714285714 | N115: 7
C116: NEW YORK A | D116: 0.7142857143 | E116: 7 | F116: 10 | L116: DETROIT | M116: 0.5 | N116: 8
C117: SAN FRANCISCO | D117: 0.7142857143 | E117: 7 | F117: 1 | L117: KANSAS CITY | M117: 0.5 | N117: 8
C118: MINNESOTA | D118: 0.6666666667 | E118: 9 | F118: 25 | L118: SEATTLE | M118: 0.4285714286 | N118: 10
C119: CHICAGO A | D119: 0.6666666667 | E119: 9 | F119: 4 | L119: CLEVELAND | M119: 0.4285714286 | N119: 10
C120: TAMPA BAY | D120: 0.6666666667 | E120: 9 | F120: 2 | L120: HOUSTON | M120: 0.3333333333 | N120: 12
C121: SAN DIEGO | D121: 0.6 | E121: 12 | F121: 9 | L121: BOSTON | M121: 0.2857142857 | N121: 13
C122: LOS ANGELES N | D122: 0.6 | E122: 12 | F122: 3 | L122: BALTIMORE | M122: 0.1666666667 | N122: 14
C123: LOS ANGELES A | D123: 0.5714285714 | E123: 14 | F123: 17 | L123: TEXAS | M123: 0.1428571429 | N123: 15
C124: MILWAUKEE | D124: 0.5 | E124: 15 | F124: 4 | L124: NL
C125: DETROIT | D125: 0.5 | E125: 15 | F125: 20 | L125: PHILADELPHIA | M125: 1 | N125: 1
C126: KANSAS CITY | D126: 0.5 | E126: 15 | F126: 24 | L126: ATLANTA | M126: 0.8333333333 | N126: 2
C127: MIAMI | D127: 0.4285714286 | E127: 18 | F127: 26 | L127: COLORADO | M127: 0.8333333333 | N127: 2
C128: SEATTLE | D128: 0.4285714286 | E128: 18 | F128: 14 | L128: CINCINNATI | M128: 0.8333333333 | N128: 2
C129: CLEVELAND | D129: 0.4285714286 | E129: 18 | F129: 19 | L129: SAN FRANCISCO | M129: 0.7142857143 | N129: 5
C130: HOUSTON | D130: 0.3333333333 | E130: 21 | F130: 4 | L130: SAN DIEGO | M130: 0.6 | N130: 6
C131: ST LOUIS | D131: 0.3333333333 | E131: 21 | F131: 18 | L131: LOS ANGELES N | M131: 0.6 | N131: 6
C132: ARIZONA | D132: 0.2857142857 | E132: 23 | F132: 30 | L132: MILWAUKEE | M132: 0.5 | N132: 8
C133: BOSTON | D133: 0.2857142857 | E133: 23 | F133: 8 | L133: MIAMI | M133: 0.4285714286 | N133: 9
C134: CHICAGO N | D134: 0.1666666667 | E134: 25 | F134: 21 | L134: ST LOUIS | M134: 0.3333333333 | N134: 10
C135: BALTIMORE | D135: 0.1666666667 | E135: 25 | F135: 29 | L135: ARIZONA | M135: 0.2857142857 | N135: 11
C136: TEXAS | D136: 0.1428571429 | E136: 27 | F136: 28 | L136: CHICAGO N | M136: 0.1666666667 | N136: 12
C137: PITTSBURGH | D137: 0.1428571429 | E137: 27 | F137: 27 | L137: PITTSBURGH | M137: 0.1428571429 | N137: 13
C138: NEW YORK N | D138: 0.1428571429 | E138: 27 | F138: 16 | L138: NEW YORK N | M138: 0.1428571429 | N138: 13
C139: WASHINGTON | D139: 0.1428571429 | E139: 27 | F139: 23 | L139: WASHINGTON | M139: 0.1428571429 | N139: 13
E141: SEASON TO DATE | L141: SEASON TO DATE
L142: AL
C143: SEASON TO-DATE | E143: RANK | L143: TAMPA BAY | M143: 0.6071428571 | N143: 1
C144: SAN FRANCISCO | D144: 0.6339285714 | E144: 1 | L144: HOUSTON | M144: 0.5892857143 | N144: 2
C145: TAMPA BAY | D145: 0.6071428571 | E145: 2 | L145: CHICAGO A | M145: 0.5892857143 | N145: 2
C146: LOS ANGELES N | D146: 0.5982142857 | E146: 3 | L146: OAKLAND | M146: 0.5714285714 | N146: 4
C147: MILWAUKEE | D147: 0.5892857143 | E147: 4 | L147: BOSTON | M147: 0.5701754386 | N147: 5
C148: HOUSTON | D148: 0.5892857143 | E148: 4 | L148: NEW YORK A | M148: 0.5495495495 | N148: 6
C149: CHICAGO A | D149: 0.5892857143 | E149: 4 | L149: TORONTO | M149: 0.5454545455 | N149: 7
C150: OAKLAND | D150: 0.5714285714 | E150: 7 | L150: SEATTLE | M150: 0.5221238938 | N150: 8
C151: BOSTON | D151: 0.5701754386 | E151: 8 | L151: LOS ANGELES A | M151: 0.5 | N151: 9
C152: SAN DIEGO | D152: 0.5663716814 | E152: 9 | L152: CLEVELAND | M152: 0.495412844 | N152: 10
C153: NEW YORK A | D153: 0.5495495495 | E153: 10 | L153: DETROIT | M153: 0.4736842105 | N153: 11
C154: TORONTO | D154: 0.5454545455 | E154: 11 | L154: KANSAS CITY | M154: 0.4363636364 | N154: 12
C155: CINCINNATI | D155: 0.5446428571 | E155: 12 | L155: MINNESOTA | M155: 0.4285714286 | N155: 13
C156: PHILADELPHIA | D156: 0.5267857143 | E156: 13 | L156: TEXAS | M156: 0.3482142857 | N156: 14
C157: SEATTLE | D157: 0.5221238938 | E157: 14 | L157: BALTIMORE | M157: 0.3454545455 | N157: 15
C158: ATLANTA | D158: 0.5089285714 | E158: 15 | L158: NL
C159: NEW YORK N | D159: 0.5045045045 | E159: 16 | L159: SAN FRANCISCO | M159: 0.6339285714 | N159: 1
C160: LOS ANGELES A | D160: 0.5 | E160: 17 | L160: LOS ANGELES N | M160: 0.5982142857 | N160: 2
C161: ST LOUIS | D161: 0.4954954955 | E161: 18 | L161: MILWAUKEE | M161: 0.5892857143 | N161: 3
C162: CLEVELAND | D162: 0.495412844 | E162: 19 | L162: SAN DIEGO | M162: 0.5663716814 | N162: 4
C163: DETROIT | D163: 0.4736842105 | E163: 20 | L163: CINCINNATI | M163: 0.5446428571 | N163: 5
C164: CHICAGO N | D164: 0.4601769912 | E164: 21 | L164: PHILADELPHIA | M164: 0.5267857143 | N164: 6
C165: COLORADO | D165: 0.4553571429 | E165: 22 | L165: ATLANTA | M165: 0.5089285714 | N165: 7
C166: WASHINGTON | D166: 0.4464285714 | E166: 23 | L166: NEW YORK N | M166: 0.5045045045 | N166: 8
C167: KANSAS CITY | D167: 0.4363636364 | E167: 24 | L167: ST LOUIS | M167: 0.4954954955 | N167: 9
C168: MINNESOTA | D168: 0.4285714286 | E168: 25 | L168: CHICAGO N | M168: 0.4601769912 | N168: 10
C169: MIAMI | D169: 0.4196428571 | E169: 26 | L169: COLORADO | M169: 0.4553571429 | N169: 11
C170: PITTSBURGH | D170: 0.3660714286 | E170: 27 | L170: WASHINGTON | M170: 0.4464285714 | N170: 12
C171: TEXAS | D171: 0.3482142857 | E171: 28 | L171: MIAMI | M171: 0.4196428571 | N171: 13
C172: BALTIMORE | D172: 0.3454545455 | E172: 29 | L172: PITTSBURGH | M172: 0.3660714286 | N172: 14

Sheet 1-Aug
B1: 2021 | C1: STANDINGS
Q2: CURRENT WEEK RESULTS
B3: WEEK ENDING | D3: 2021-08-01 | L3: WEEK | M3: 17 | N3: JULY
S4: MIKE | W4: JOHN | AA4: LARRY | AE4: 0
C5: CURRENT WEEK-SEASON TO DATE | G5: PREVIOUS WEEK-SEASON TO DATE | L5: CURRENT WEEK TOTALS | S5: RANK | T5: W | U5: L | V5: PCT | W5: RANK | X5: W | Y5: L | Z5: PCT | AA5: RANK | AB5: W | AC5: L | AD5: PCT | AE5: RANK | AF5: W | AG5: L | AH5: PCT
S6: Dodgers | T6: 3 | U6: 3 | V6: 0.5 | W6: Dodgers | X6: 3 | Y6: 3 | Z6: 0.5 | AA6: Dodgers | AB6: 3 | AC6: 3 | AD6: 0.5 | AE6: 0
B7: American League | G7: AL EAST | K7: Times | L7: AL EAST | S7: White Sox | T7: 3 | U7: 4 | V7: 0.4285714286 | W7: Brewers | X7: 5 | Y7: 1 | Z7: 0.8333333333 | AA7: Red Sox | AB7: 2 | AC7: 5 | AD7: 0.2857142857 | AE7: 0
B8: East | C8: W | D8: L | E8: PCT | F8: Rank | G8: TEAM | H8: W | I8: L | J8: PCT | K8: Picked | L8: TEAM | M8: W | N8: L | O8: PCT | P8: Rank | S8: Red Sox | T8: 2 | U8: 5 | V8: 0.2857142857 | W8: Rays | X8: 4 | Y8: 2 | Z8: 0.6666666667 | AA8: Mets | AB8: 3 | AC8: 5 | AD8: 0.375 | AE8: 0
B9: Orioles | C9: 37 | D9: 67 | E9: 0.3557692308 | F9: 5 | G9: BALTIMORE | H9: 34 | I9: 64 | J9: 0.3469387755 | K9: 1 | L9: Orioles | M9: 3 | N9: 3 | O9: 0.5 | P9: 4 | S9: Braves | T9: 4 | U9: 4 | V9: 0.5 | W9: Athletics | X9: 4 | Y9: 2 | Z9: 0.6666666667 | AA9: Astros | AB9: 3 | AC9: 3 | AD9: 0.5 | AE9: 0
B10: Red Sox | C10: 63 | D10: 44 | E10: 0.5887850467 | F10: 2 | G10: BOSTON | H10: 61 | I10: 39 | J10: 0.61 | K10: 6 | L10: Red Sox | M10: 2 | N10: 5 | O10: 0.2857142857 | P10: 5 | S10: Astros | T10: 3 | U10: 3 | V10: 0.5 | W10: Mets | X10: 3 | Y10: 5 | Z10: 0.375 | AA10: White Sox | AB10: 3 | AC10: 4 | AD10: 0.4285714286 | AE10: 0
B11: Yankees | C11: 56 | D11: 48 | E11: 0.5384615385 | F11: 3 | G11: NEW YORK | H11: 51 | I11: 47 | J11: 0.5204081633 | K11: 0 | L11: Yankees | M11: 5 | N11: 1 | O11: 0.8333333333 | P11: 1 | S11: Cardinals | T11: 3 | U11: 2 | V11: 0.6 | W11: Indians | X11: 2 | Y11: 3 | Z11: 0.4 | AA11: Brewers | AB11: 5 | AC11: 1 | AD11: 0.8333333333 | AE11: 0
B12: Rays | C12: 64 | D12: 42 | E12: 0.6037735849 | F12: 1 | G12: TAMPA BAY | H12: 60 | I12: 40 | J12: 0.6 | K12: 1 | L12: Rays | M12: 4 | N12: 2 | O12: 0.6666666667 | P12: 3 | Q12: WEEKLY TOTAL | T12: 18 | U12: 21 | V12: 0.4615384615 | X12: 21 | Y12: 16 | Z12: 0.5675675676 | AB12: 19 | AC12: 21 | AD12: 0.475
B13: Blue Jays | C13: 54 | D13: 48 | E13: 0.5294117647 | F13: 4 | G13: TORONTO | H13: 49 | I13: 46 | J13: 0.5157894737 | K13: 1 | L13: Blue Jays | M13: 5 | N13: 2 | O13: 0.7142857143 | P13: 2 | Q13: PREV WEEK TO DATE | T13: 324 | U13: 273 | V13: 0.5427135678 | X13: 306 | Y13: 296 | Z13: 0.5083056478 | AB13: 334 | AC13: 264 | AD13: 0.5585284281
Q14: CUR TOTAL TO DATE | T14: 342 | U14: 294 | V14: 0.5377358491 | X14: 327 | Y14: 312 | Z14: 0.5117370892 | AB14: 353 | AC14: 285 | AD14: 0.5532915361
G15: AL CENTRAL | L15: AL CENTRAL
B16: Central | C16: W | D16: L | E16: PCT | G16: TEAM | H16: W | I16: L | J16: PCT | L16: TEAM | M16: W | N16: L | O16: PCT
B17: White Sox | C17: 62 | D17: 44 | E17: 0.5849056604 | F17: 1 | G17: CHICAGO | H17: 59 | I17: 40 | J17: 0.595959596 | K17: 4 | L17: White Sox | M17: 3 | N17: 4 | O17: 0.4285714286 | P17: 2 | Q17: SEASON TLT TO DATE | T17: 273 | U17: 231 | V17: 0.5416666667 | X17: 256 | Y17: 251 | Z17: 0.5049309665 | AB17: 285 | AC17: 219 | AD17: 0.5654761905
B18: Indians | C18: 51 | D18: 51 | E18: 0.5 | F18: 2 | G18: CLEVELAND | H18: 49 | I18: 48 | J18: 0.5051546392 | K18: 3 | L18: Indians | M18: 2 | N18: 3 | O18: 0.4 | P18: 4 | Q18: JULY TOTAL TO DATE | T18: 69 | U18: 63 | V18: 0.5227272727 | X18: 71 | Y18: 61 | Z18: 0.5378787879 | AB18: 68 | AC18: 66 | AD18: 0.5074626866
B19: Tigers | C19: 51 | D19: 57 | E19: 0.4722222222 | F19: 3 | G19: DETROIT | H19: 47 | I19: 54 | J19: 0.4653465347 | K19: 1 | L19: Tigers | M19: 4 | N19: 3 | O19: 0.5714285714 | P19: 1
B20: Royals | C20: 45 | D20: 59 | E20: 0.4326923077 | F20: 4 | G20: KANSAS CITY | H20: 42 | I20: 55 | J20: 0.4329896907 | K20: 1 | L20: Royals | M20: 3 | N20: 4 | O20: 0.4285714286 | P20: 2
B21: Twins | C21: 44 | D21: 62 | E21: 0.4150943396 | F21: 5 | G21: MINNESOTA | H21: 42 | I21: 58 | J21: 0.42 | K21: 0 | L21: Twins | M21: 2 | N21: 4 | O21: 0.3333333333 | P21: 5 | S21: JIM T. | W21: JEAN | AA21: DIANE | AE21: 0
S22: RANK | T22: W | U22: L | V22: PCT | W22: RANK | X22: W | Y22: L | Z22: PCT | AA22: RANK | AB22: W | AC22: L | AD22: PCT | AE22: RANK | AF22: W | AG22: L | AH22: PCT
G23: AL WEST | L23: AL WEST | S23: Red Sox | T23: 2 | U23: 5 | V23: 0.2857142857 | W23: Mets | X23: 3 | Y23: 5 | Z23: 0.375 | AA23: Red Sox | AB23: 2 | AC23: 5 | AD23: 0.2857142857 | AE23: 0
B24: West | C24: W | D24: L | E24: PCT | G24: TEAM | H24: W | I24: L | J24: PCT | L24: TEAM | M24: W | N24: L | O24: PCT | S24: White Sox | T24: 3 | U24: 4 | V24: 0.4285714286 | W24: Astros | X24: 3 | Y24: 3 | Z24: 0.5 | AA24: Mets | AB24: 3 | AC24: 5 | AD24: 0.375 | AE24: 0
B25: Angels | C25: 52 | D25: 53 | E25: 0.4952380952 | F25: 4 | G25: LOS ANGELES | H25: 49 | I25: 49 | J25: 0.5 | K25: 0 | L25: Angels | M25: 3 | N25: 4 | O25: 0.4285714286 | P25: 4 | S25: Athletics | T25: 4 | U25: 2 | V25: 0.6666666667 | W25: Giants | X25: 4 | Y25: 2 | Z25: 0.6666666667 | AA25: Brewers | AB25: 5 | AC25: 1 | AD25: 0.8333333333 | AE25: 0
B26: Athletics | C26: 60 | D26: 47 | E26: 0.5607476636 | F26: 2 | G26: OAKLAND | H26: 56 | I26: 45 | J26: 0.5544554455 | K26: 3 | L26: Athletics | M26: 4 | N26: 2 | O26: 0.6666666667 | P26: 1 | S26: Braves | T26: 4 | U26: 4 | V26: 0.5 | W26: Blue Jays | X26: 5 | Y26: 2 | Z26: 0.7142857143 | AA26: Padres | AB26: 3 | AC26: 3 | AD26: 0.5 | AE26: 0
B27: Mariners | C27: 56 | D27: 50 | E27: 0.5283018868 | F27: 3 | G27: SEATTLE | H27: 54 | I27: 46 | J27: 0.54 | K27: 1 | L27: Mariners | M27: 2 | N27: 4 | O27: 0.3333333333 | P27: 5 | S27: Brewers | T27: 5 | U27: 1 | V27: 0.8333333333 | W27: Royals | X27: 3 | Y27: 4 | Z27: 0.4285714286 | AA27: Indians | AB27: 2 | AC27: 3 | AD27: 0.4 | AE27: 0
B28: Rangers | C28: 38 | D28: 67 | E28: 0.3619047619 | F28: 5 | G28: TEXAS | H28: 35 | I28: 65 | J28: 0.35 | K28: 0 | L28: Rangers | M28: 3 | N28: 2 | O28: 0.6 | P28: 2 | S28: Dodgers | T28: 3 | U28: 3 | V28: 0.5 | W28: Cardinals | X28: 3 | Y28: 2 | Z28: 0.6 | AA28: Mariners | AB28: 2 | AC28: 4 | AD28: 0.3333333333 | AE28: 0
B29: Astros | C29: 64 | D29: 42 | E29: 0.6037735849 | F29: 1 | G29: HOUSTON | H29: 61 | I29: 39 | J29: 0.61 | K29: 5 | L29: Astros | M29: 3 | N29: 3 | O29: 0.5 | P29: 3 | Q29: WEEKLY TOTAL | T29: 21 | U29: 19 | V29: 0.525 | X29: 21 | Y29: 18 | Z29: 0.5384615385 | AB29: 17 | AC29: 21 | AD29: 0.4473684211
Q30: PREV WEEK TO DATE | T30: 323 | U30: 272 | V30: 0.5428571429 | X30: 293 | Y30: 294 | Z30: 0.4991482112 | AB30: 316 | AC30: 279 | AD30: 0.531092437
B31: National League | G31: NL EAST | L31: NL EAST | Q31: CUR TOTAL TO DATE | T31: 344 | U31: 291 | V31: 0.5417322835 | X31: 314 | Y31: 312 | Z31: 0.5015974441 | AB31: 333 | AC31: 300 | AD31: 0.5260663507
B32: East | C32: W | D32: L | E32: PCT | G32: TEAM | H32: W | I32: L | J32: PCT | L32: TEAM | M32: W | N32: L | O32: PCT
B33: Braves | C33: 52 | D33: 54 | E33: 0.4905660377 | F33: 3 | G33: ATLANTA | H33: 48 | I33: 50 | J33: 0.4897959184 | K33: 3 | L33: Braves | M33: 4 | N33: 4 | O33: 0.5 | P33: 2
B34: Marlins | C34: 44 | D34: 61 | E34: 0.419047619 | F34: 5 | G34: Miami | H34: 43 | I34: 57 | J34: 0.43 | K34: 0 | L34: Marlins | M34: 1 | N34: 4 | O34: 0.2 | P34: 5 | Q34: SEASON TLT TO DATE | T34: 276 | U34: 226 | V34: 0.5498007968 | X34: 244 | Y34: 254 | Z34: 0.4899598394 | AB34: 268 | AC34: 234 | AD34: 0.5338645418
B35: Mets | C35: 55 | D35: 49 | E35: 0.5288461538 | F35: 1 | G35: NEW YORK | H35: 52 | I35: 44 | J35: 0.5416666667 | K35: 4 | L35: Mets | M35: 3 | N35: 5 | O35: 0.375 | P35: 4 | Q35: JULY TOTAL TO DATE | T35: 68 | U35: 65 | V35: 0.5112781955 | X35: 70 | Y35: 58 | Z35: 0.546875 | AB35: 65 | AC35: 66 | AD35: 0.4961832061
B36: Phillies | C36: 52 | D36: 53 | E36: 0.4952380952 | F36: 2 | G36: PHILADELPHIA | H36: 49 | I36: 49 | J36: 0.5 | K36: 1 | L36: Phillies | M36: 3 | N36: 4 | O36: 0.4285714286 | P36: 3
B37: Nationals | C37: 49 | D37: 56 | E37: 0.4666666667 | F37: 4 | G37: WASHINGTON | H37: 45 | I37: 53 | J37: 0.4591836735 | K37: 1 | L37: Nationals | M37: 4 | N37: 3 | O37: 0.5714285714 | P37: 1
S38: JIM K. | W38: TIM | AA38: ----- | AE38: 0
G39: NL CENTRAL | L39: NL CENTRAL | S39: RANK | T39: W | U39: L | V39: PCT | W39: RANK | X39: W | Y39: L | Z39: PCT | AA39: RANK | AB39: W | AC39: L | AD39: PCT | AE39: RANK | AF39: W | AG39: L | AH39: PCT
B40: Central | C40: W | D40: L | E40: PCT | G40: TEAM | H40: W | I40: L | J40: PCT | L40: TEAM | M40: W | N40: L | O40: PCT | S40: Giants | T40: 4 | U40: 2 | V40: 0.6666666667 | W40: Red Sox | X40: 2 | Y40: 5 | Z40: 0.2857142857 | AE40: 0
B41: Cubs | C41: 51 | D41: 56 | E41: 0.476635514 | F41: 4 | G41: CHICAGO | H41: 49 | I41: 51 | J41: 0.49 | K41: 1 | L41: Cubs | M41: 2 | N41: 5 | O41: 0.2857142857 | P41: 5 | S41: Red Sox | T41: 2 | U41: 5 | V41: 0.2857142857 | W41: White Sox | X41: 3 | Y41: 4 | Z41: 0.4285714286 | AE41: 0
B42: Reds | C42: 56 | D42: 50 | E42: 0.5283018868 | F42: 2 | G42: CINCINNATI | H42: 51 | I42: 48 | J42: 0.5151515152 | K42: 1 | L42: Reds | M42: 5 | N42: 2 | O42: 0.7142857143 | P42: 2 | S42: Indians | T42: 2 | U42: 3 | V42: 0.4 | W42: Athletics | X42: 4 | Y42: 2 | Z42: 0.6666666667 | AE42: 0
B43: Brewers | C43: 63 | D43: 43 | E43: 0.5943396226 | F43: 1 | G43: MILWAUKEE | H43: 58 | I43: 42 | J43: 0.58 | K43: 4 | L43: Brewers | M43: 5 | N43: 1 | O43: 0.8333333333 | P43: 1 | S43: Astros | T43: 3 | U43: 3 | V43: 0.5 | W43: Nationals | X43: 4 | Y43: 3 | Z43: 0.5714285714 | AE43: 0
B44: Pirates | C44: 40 | D44: 65 | E44: 0.380952381 | F44: 5 | G44: PITTSBURGH | H44: 38 | I44: 61 | J44: 0.3838383838 | K44: 0 | L44: Pirates | M44: 2 | N44: 4 | O44: 0.3333333333 | P44: 4 | S44: Reds | T44: 5 | U44: 2 | V44: 0.7142857143 | W44: Cubs | X44: 2 | Y44: 5 | Z44: 0.2857142857 | AE44: 0
B45: Cardinals | C45: 53 | D45: 52 | E45: 0.5047619048 | F45: 3 | G45: ST LOUIS | H45: 50 | I45: 50 | J45: 0.5 | K45: 3 | L45: Cardinals | M45: 3 | N45: 2 | O45: 0.6 | P45: 3 | S45: Phillies | T45: 3 | U45: 4 | V45: 0.4285714286 | W45: Giants | X45: 4 | Y45: 2 | Z45: 0.6666666667 | AE45: 0
Q46: WEEKLY TOTAL | T46: 19 | U46: 19 | V46: 0.5 | X46: 19 | Y46: 21 | Z46: 0.475 | AB46: 0 | AC46: 30
G47: NL WEST | L47: NL WEST | Q47: PREV WEEK TO DATE | T47: 298 | U47: 293 | V47: 0.5042301184 | X47: 313 | Y47: 290 | Z47: 0.5190713101 | AB47: 0 | AC47: 490
B48: West | C48: W | D48: L | E48: PCT | G48: TEAM | H48: W | I48: L | J48: PCT | L48: TEAM | M48: W | N48: L | O48: PCT | Q48: CUR TOTAL TO DATE | T48: 317 | U48: 312 | V48: 0.5039745628 | X48: 332 | Y48: 311 | Z48: 0.5163297045 | AB48: 0 | AC48: 520
B49: Diamondbacks | C49: 33 | D49: 73 | E49: 0.3113207547 | F49: 5 | G49: ARIZONA | H49: 31 | I49: 70 | J49: 0.3069306931 | K49: 1 | L49: Diamondbacks | M49: 2 | N49: 3 | O49: 0.4 | P49: 5
B50: Rockies | C50: 46 | D50: 60 | E50: 0.4339622642 | F50: 4 | G50: COLORADO | H50: 43 | I50: 56 | J50: 0.4343434343 | K50: 0 | L50: Rockies | M50: 3 | N50: 4 | O50: 0.4285714286 | P50: 4
B51: Dodgers | C51: 64 | D51: 43 | E51: 0.5981308411 | F51: 2 | G51: LOS ANGELES | H51: 61 | I51: 40 | J51: 0.603960396 | K51: 4 | L51: Dodgers | M51: 3 | N51: 3 | O51: 0.5 | P51: 2 | Q51: SEASON TLT TO DATE | T51: 253 | U51: 244 | V51: 0.509054326 | X51: 267 | Y51: 242 | Z51: 0.5245579568 | AB51: 0 | AC51: 400
B52: Padres | C52: 61 | D52: 47 | E52: 0.5648148148 | F52: 3 | G52: SAN DIEGO | H52: 58 | I52: 44 | J52: 0.568627451 | K52: 1 | L52: Padres | M52: 3 | N52: 3 | O52: 0.5 | P52: 2 | Q52: JULY TOTAL TO DATE | T52: 64 | U52: 68 | V52: 0.4848484848 | X52: 65 | Y52: 69 | Z52: 0.4850746269 | AB52: 0 | AC52: 120
B53: Giants | C53: 66 | D53: 39 | E53: 0.6285714286 | F53: 1 | G53: SAN FRANCISCO | H53: 62 | I53: 37 | J53: 0.6262626263 | K53: 3 | L53: Giants | M53: 4 | N53: 2 | O53: 0.6666666667 | P53: 1
M54: 95 | N54: 95
D55: 2021-08-02 | E55: Morning
C57: WEEK 17
C58: NAME | D58: W | E58: L | F58: PCT | G58: GB
C59: JOHN | D59: 21 | E59: 16 | F59: 0.5675675676 | G59: 0
C60: JEAN | D60: 21 | E60: 18 | F60: 0.5384615385 | G60: 1
C61: JIM T. | D61: 21 | E61: 19 | F61: 0.525 | G61: 1.5
C62: JIM K. | D62: 19 | E62: 19 | F62: 0.5 | G62: 2.5
C63: LARRY | D63: 19 | E63: 21 | F63: 0.475 | G63: 3.5
C64: TIM | D64: 19 | E64: 21 | F64: 0.475 | G64: 3.5
C65: MIKE | D65: 18 | E65: 21 | F65: 0.4615384615 | G65: 4
C66: DIANE | D66: 17 | E66: 21 | F66: 0.4473684211 | G66: 4.5
C67: ----- | D67: 0 | E67: 30 | F67: 0 | G67: -----
C72: MONTH OF JULY
C73: NAME | D73: W | E73: L | F73: PCT | G73: GB
C74: JEAN | D74: 70 | E74: 58 | F74: 0.546875 | G74: 0
C75: JOHN | D75: 71 | E75: 61 | F75: 0.5378787879 | G75: 1
C76: MIKE | D76: 69 | E76: 63 | F76: 0.5227272727 | G76: 3
C77: JIM T. | D77: 68 | E77: 65 | F77: 0.5112781955 | G77: 4.5
C78: LARRY | D78: 68 | E78: 66 | F78: 0.5074626866 | G78: 5
C79: DIANE | D79: 65 | E79: 66 | F79: 0.4961832061 | G79: 6.5
C80: TIM | D80: 65 | E80: 69 | F80: 0.4850746269 | G80: 8
C81: JIM K. | D81: 64 | E81: 68 | F81: 0.4848484848 | G81: 8
C82: ----- | D82: 0 | E82: 120 | F82: 0 | G82: -----
C86: 2021 | E86: SEASON
C87: NAME | D87: W | E87: L | F87: PCT | G87: GB
C88: LARRY | D88: 353 | E88: 285 | F88: 0.5532915361 | G88: 0
C89: JIM T. | D89: 344 | E89: 291 | F89: 0.5417322835 | G89: 7.5
C90: MIKE | D90: 342 | E90: 294 | F90: 0.5377358491 | G90: 10
C91: DIANE | D91: 333 | E91: 300 | F91: 0.5260663507 | G91: 17.5
C92: TIM | D92: 332 | E92: 311 | F92: 0.5163297045 | G92: 23.5
C93: JOHN | D93: 327 | E93: 312 | F93: 0.5117370892 | G93: 26.5
C94: JIM K. | D94: 317 | E94: 312 | F94: 0.5039745628 | G94: 31.5
C95: JEAN | D95: 314 | E95: 312 | F95: 0.5015974441 | G95: 33
C96: ----- | D96: 0 | E96: 520 | F96: 0 | G96: -----
E107: CURRENT WEEK | L107: THIS WEEK
C108: WEEK ENDING | E108: THIS WEEK | F108: SEASON | L108: AL | N108: RANK
C109: 2021-08-01 | E109: RANK | F109: RANK | L109: NEW YORK A | M109: 0.8333333333 | N109: 1
C110: MILWAUKEE | D110: 0.8333333333 | E110: 1 | F110: 5 | L110: TORONTO | M110: 0.7142857143 | N110: 2
C111: NEW YORK A | D111: 0.8333333333 | E111: 1 | F111: 10 | L111: OAKLAND | M111: 0.6666666667 | N111: 3
C112: CINCINNATI | D112: 0.7142857143 | E112: 3 | F112: 13 | L112: TAMPA BAY | M112: 0.6666666667 | N112: 3
C113: TORONTO | D113: 0.7142857143 | E113: 3 | F113: 11 | L113: TEXAS | M113: 0.6 | N113: 5
C114: OAKLAND | D114: 0.6666666667 | E114: 5 | F114: 9 | L114: DETROIT | M114: 0.5714285714 | N114: 6
C115: SAN FRANCISCO | D115: 0.6666666667 | E115: 5 | F115: 1 | L115: HOUSTON | M115: 0.5 | N115: 7
C116: TAMPA BAY | D116: 0.6666666667 | E116: 5 | F116: 2 | L116: BALTIMORE | M116: 0.5 | N116: 7
C117: ST LOUIS | D117: 0.6 | E117: 8 | F117: 15 | L117: KANSAS CITY | M117: 0.4285714286 | N117: 9
C118: TEXAS | D118: 0.6 | E118: 8 | F118: 28 | L118: LOS ANGELES A | M118: 0.4285714286 | N118: 9
C119: DETROIT | D119: 0.5714285714 | E119: 10 | F119: 21 | L119: CHICAGO A | M119: 0.4285714286 | N119: 9
C120: WASHINGTON | D120: 0.5714285714 | E120: 10 | F120: 22 | L120: CLEVELAND | M120: 0.4 | N120: 12
C121: HOUSTON | D121: 0.5 | E121: 12 | F121: 2 | L121: SEATTLE | M121: 0.3333333333 | N121: 13
C122: BALTIMORE | D122: 0.5 | E122: 12 | F122: 29 | L122: MINNESOTA | M122: 0.3333333333 | N122: 13
C123: ATLANTA | D123: 0.5 | E123: 12 | F123: 19 | L123: BOSTON | M123: 0.2857142857 | N123: 15
C124: SAN DIEGO | D124: 0.5 | E124: 12 | F124: 8 | L124: NL
C125: LOS ANGELES N | D125: 0.5 | E125: 12 | F125: 4 | L125: MILWAUKEE | M125: 0.8333333333 | N125: 1
C126: KANSAS CITY | D126: 0.4285714286 | E126: 17 | F126: 24 | L126: CINCINNATI | M126: 0.7142857143 | N126: 2
C127: LOS ANGELES A | D127: 0.4285714286 | E127: 17 | F127: 17 | L127: SAN FRANCISCO | M127: 0.6666666667 | N127: 3
C128: COLORADO | D128: 0.4285714286 | E128: 17 | F128: 23 | L128: ST LOUIS | M128: 0.6 | N128: 4
C129: PHILADELPHIA | D129: 0.4285714286 | E129: 17 | F129: 17 | L129: WASHINGTON | M129: 0.5714285714 | N129: 5
C130: CHICAGO A | D130: 0.4285714286 | E130: 17 | F130: 7 | L130: ATLANTA | M130: 0.5 | N130: 6
C131: ARIZONA | D131: 0.4 | E131: 22 | F131: 30 | L131: SAN DIEGO | M131: 0.5 | N131: 6
C132: CLEVELAND | D132: 0.4 | E132: 22 | F132: 16 | L132: LOS ANGELES N | M132: 0.5 | N132: 6
C133: NEW YORK N | D133: 0.375 | E133: 24 | F133: 12 | L133: COLORADO | M133: 0.4285714286 | N133: 9
C134: SEATTLE | D134: 0.3333333333 | E134: 25 | F134: 13 | L134: PHILADELPHIA | M134: 0.4285714286 | N134: 9
C135: MINNESOTA | D135: 0.3333333333 | E135: 25 | F135: 26 | L135: ARIZONA | M135: 0.4 | N135: 11
C136: PITTSBURGH | D136: 0.3333333333 | E136: 25 | F136: 27 | L136: NEW YORK N | M136: 0.375 | N136: 12
C137: BOSTON | D137: 0.2857142857 | E137: 28 | F137: 6 | L137: PITTSBURGH | M137: 0.3333333333 | N137: 13
C138: CHICAGO N | D138: 0.2857142857 | E138: 28 | F138: 20 | L138: CHICAGO N | M138: 0.2857142857 | N138: 14
C139: MIAMI | D139: 0.2 | E139: 30 | F139: 25 | L139: MIAMI | M139: 0.2 | N139: 15
E141: SEASON TO DATE | L141: SEASON TO DATE
L142: AL
C143: SEASON TO-DATE | E143: RANK | L143: HOUSTON | M143: 0.6037735849 | N143: 1
C144: SAN FRANCISCO | D144: 0.6285714286 | E144: 1 | L144: TAMPA BAY | M144: 0.6037735849 | N144: 1
C145: HOUSTON | D145: 0.6037735849 | E145: 2 | L145: BOSTON | M145: 0.5887850467 | N145: 3
C146: TAMPA BAY | D146: 0.6037735849 | E146: 2 | L146: CHICAGO A | M146: 0.5849056604 | N146: 4
C147: LOS ANGELES N | D147: 0.5981308411 | E147: 4 | L147: OAKLAND | M147: 0.5607476636 | N147: 5
C148: MILWAUKEE | D148: 0.5943396226 | E148: 5 | L148: NEW YORK A | M148: 0.5384615385 | N148: 6
C149: BOSTON | D149: 0.5887850467 | E149: 6 | L149: TORONTO | M149: 0.5294117647 | N149: 7
C150: CHICAGO A | D150: 0.5849056604 | E150: 7 | L150: SEATTLE | M150: 0.5283018868 | N150: 8
C151: SAN DIEGO | D151: 0.5648148148 | E151: 8 | L151: CLEVELAND | M151: 0.5 | N151: 9
C152: OAKLAND | D152: 0.5607476636 | E152: 9 | L152: LOS ANGELES A | M152: 0.4952380952 | N152: 10
C153: NEW YORK A | D153: 0.5384615385 | E153: 10 | L153: DETROIT | M153: 0.4722222222 | N153: 11
C154: TORONTO | D154: 0.5294117647 | E154: 11 | L154: KANSAS CITY | M154: 0.4326923077 | N154: 12
C155: NEW YORK N | D155: 0.5288461538 | E155: 12 | L155: MINNESOTA | M155: 0.4150943396 | N155: 13
C156: SEATTLE | D156: 0.5283018868 | E156: 13 | L156: TEXAS | M156: 0.3619047619 | N156: 14
C157: CINCINNATI | D157: 0.5283018868 | E157: 13 | L157: BALTIMORE | M157: 0.3557692308 | N157: 15
C158: ST LOUIS | D158: 0.5047619048 | E158: 15 | L158: NL
C159: CLEVELAND | D159: 0.5 | E159: 16 | L159: SAN FRANCISCO | M159: 0.6285714286 | N159: 1
C160: LOS ANGELES A | D160: 0.4952380952 | E160: 17 | L160: LOS ANGELES N | M160: 0.5981308411 | N160: 2
C161: PHILADELPHIA | D161: 0.4952380952 | E161: 17 | L161: MILWAUKEE | M161: 0.5943396226 | N161: 3
C162: ATLANTA | D162: 0.4905660377 | E162: 19 | L162: SAN DIEGO | M162: 0.5648148148 | N162: 4
C163: CHICAGO N | D163: 0.476635514 | E163: 20 | L163: NEW YORK N | M163: 0.5288461538 | N163: 5
C164: DETROIT | D164: 0.4722222222 | E164: 21 | L164: CINCINNATI | M164: 0.5283018868 | N164: 6
C165: WASHINGTON | D165: 0.4666666667 | E165: 22 | L165: ST LOUIS | M165: 0.5047619048 | N165: 7
C166: COLORADO | D166: 0.4339622642 | E166: 23 | L166: PHILADELPHIA | M166: 0.4952380952 | N166: 8
C167: KANSAS CITY | D167: 0.4326923077 | E167: 24 | L167: ATLANTA | M167: 0.4905660377 | N167: 9
C168: MIAMI | D168: 0.419047619 | E168: 25 | L168: CHICAGO N | M168: 0.476635514 | N168: 10
C169: MINNESOTA | D169: 0.4150943396 | E169: 26 | L169: WASHINGTON | M169: 0.4666666667 | N169: 11
C170: PITTSBURGH | D170: 0.380952381 | E170: 27 | L170: COLORADO | M170: 0.4339622642 | N170: 12
C171: TEXAS | D171: 0.3619047619 | E171: 28 | L171: MIAMI | M171: 0.419047619 | N171: 13
C172: BALTIMORE | D172: 0.3557692308 | E172: 29 | L172: PITTSBURGH | M172: 0.380952381 | N172: 14

Sheet 25-Jul
B1: 2021 | C1: STANDINGS
Q2: CURRENT WEEK RESULTS
B3: WEEK ENDING | D3: 2021-07-25 | L3: WEEK | M3: 16 | N3: JULY
S4: MIKE | W4: JOHN | AA4: LARRY | AE4: 0
C5: CURRENT WEEK-SEASON TO DATE | G5: PREVIOUS WEEK-SEASON TO DATE | L5: CURRENT WEEK TOTALS | S5: RANK | T5: W | U5: L | V5: PCT | W5: RANK | X5: W | Y5: L | Z5: PCT | AA5: RANK | AB5: W | AC5: L | AD5: PCT | AE5: RANK | AF5: W | AG5: L | AH5: PCT
S6: Dodgers | T6: 3 | U6: 4 | V6: 0.4285714286 | W6: Dodgers | X6: 3 | Y6: 4 | Z6: 0.4285714286 | AA6: Brewers | AB6: 2 | AC6: 3 | AD6: 0.4 | AE6: 0
B7: American League | G7: AL EAST | K7: Times | L7: AL EAST | S7: White Sox | T7: 3 | U7: 4 | V7: 0.4285714286 | W7: Brewers | X7: 2 | Y7: 3 | Z7: 0.4 | AA7: White Sox | AB7: 3 | AC7: 4 | AD7: 0.4285714286 | AE7: 0
B8: East | C8: W | D8: L | E8: PCT | F8: Rank | G8: TEAM | H8: W | I8: L | J8: PCT | K8: Picked | L8: TEAM | M8: W | N8: L | O8: PCT | P8: Rank | S8: Red Sox | T8: 5 | U8: 1 | V8: 0.8333333333 | W8: Rays | X8: 5 | Y8: 2 | Z8: 0.7142857143 | AA8: Dodgers | AB8: 3 | AC8: 4 | AD8: 0.4285714286 | AE8: 0
B9: Orioles | C9: 34 | D9: 64 | E9: 0.3469387755 | F9: 5 | G9: BALTIMORE | H9: 30 | I9: 62 | J9: 0.3260869565 | K9: 1 | L9: Orioles | M9: 4 | N9: 2 | O9: 0.6666666667 | P9: 3 | S9: Braves | T9: 3 | U9: 3 | V9: 0.5 | W9: Athletics | X9: 3 | Y9: 3 | Z9: 0.5 | AA9: Mets | AB9: 4 | AC9: 2 | AD9: 0.6666666667 | AE9: 0
B10: Red Sox | C10: 61 | D10: 39 | E10: 0.61 | F10: 1 | G10: BOSTON | H10: 56 | I10: 38 | J10: 0.5957446809 | K10: 5 | L10: Red Sox | M10: 5 | N10: 1 | O10: 0.8333333333 | P10: 1 | S10: Astros | T10: 5 | U10: 1 | V10: 0.8333333333 | W10: Mets | X10: 4 | Y10: 2 | Z10: 0.6666666667 | AA10: Rays | AB10: 5 | AC10: 2 | AD10: 0.7142857143 | AE10: 0
B11: Yankees | C11: 51 | D11: 47 | E11: 0.5204081633 | F11: 3 | G11: NEW YORK | H11: 48 | I11: 44 | J11: 0.5217391304 | K11: 0 | L11: Yankees | M11: 3 | N11: 3 | O11: 0.5 | P11: 4 | S11: Cardinals | T11: 4 | U11: 3 | V11: 0.5714285714 | W11: Indians | X11: 2 | Y11: 5 | Z11: 0.2857142857 | AA11: Athletics | AB11: 3 | AC11: 3 | AD11: 0.5 | AE11: 0
B12: Rays | C12: 60 | D12: 40 | E12: 0.6 | F12: 2 | G12: TAMPA BAY | H12: 55 | I12: 38 | J12: 0.5913978495 | K12: 2 | L12: Rays | M12: 5 | N12: 2 | O12: 0.7142857143 | P12: 2 | Q12: WEEKLY TOTAL | T12: 23 | U12: 16 | V12: 0.5897435897 | X12: 19 | Y12: 19 | Z12: 0.5 | AB12: 20 | AC12: 18 | AD12: 0.5263157895
B13: Blue Jays | C13: 49 | D13: 46 | E13: 0.5157894737 | F13: 4 | G13: TORONTO | H13: 48 | I13: 42 | J13: 0.5333333333 | K13: 1 | L13: Blue Jays | M13: 1 | N13: 4 | O13: 0.2 | P13: 5 | Q13: PREV WEEK TO DATE | T13: 301 | U13: 257 | V13: 0.5394265233 | X13: 287 | Y13: 277 | Z13: 0.5088652482 | AB13: 314 | AC13: 246 | AD13: 0.5607142857
Q14: CUR TOTAL TO DATE | T14: 324 | U14: 273 | V14: 0.5427135678 | X14: 306 | Y14: 296 | Z14: 0.5083056478 | AB14: 334 | AC14: 264 | AD14: 0.5585284281
G15: AL CENTRAL | L15: AL CENTRAL
B16: Central | C16: W | D16: L | E16: PCT | G16: TEAM | H16: W | I16: L | J16: PCT | L16: TEAM | M16: W | N16: L | O16: PCT
B17: White Sox | C17: 59 | D17: 40 | E17: 0.595959596 | F17: 1 | G17: CHICAGO | H17: 56 | I17: 36 | J17: 0.6086956522 | K17: 4 | L17: White Sox | M17: 3 | N17: 4 | O17: 0.4285714286 | P17: 3 | Q17: SEASON TLT TO DATE | T17: 273 | U17: 231 | V17: 0.5416666667 | X17: 256 | Y17: 251 | Z17: 0.5049309665 | AB17: 285 | AC17: 219 | AD17: 0.5654761905
B18: Indians | C18: 49 | D18: 48 | E18: 0.5051546392 | F18: 2 | G18: CLEVELAND | H18: 47 | I18: 43 | J18: 0.5222222222 | K18: 3 | L18: Indians | M18: 2 | N18: 5 | O18: 0.2857142857 | P18: 5 | Q18: JULY TOTAL TO DATE | T18: 51 | U18: 42 | V18: 0.5483870968 | X18: 50 | Y18: 45 | Z18: 0.5263157895 | AB18: 49 | AC18: 45 | AD18: 0.5212765957
B19: Tigers | C19: 47 | D19: 54 | E19: 0.4653465347 | F19: 3 | G19: DETROIT | H19: 43 | I19: 51 | J19: 0.4574468085 | K19: 1 | L19: Tigers | M19: 4 | N19: 3 | O19: 0.5714285714 | P19: 2
B20: Royals | C20: 42 | D20: 55 | E20: 0.4329896907 | F20: 4 | G20: KANSAS CITY | H20: 37 | I20: 55 | J20: 0.402173913 | K20: 1 | L20: Royals | M20: 5 | N20: 0 | O20: 1 | P20: 1
B21: Twins | C21: 42 | D21: 58 | E21: 0.42 | F21: 5 | G21: MINNESOTA | H21: 39 | I21: 53 | J21: 0.4239130435 | K21: 0 | L21: Twins | M21: 3 | N21: 5 | O21: 0.375 | P21: 4 | S21: JIM T. | W21: JEAN | AA21: DIANE | AE21: 0
S22: RANK | T22: W | U22: L | V22: PCT | W22: RANK | X22: W | Y22: L | Z22: PCT | AA22: RANK | AB22: W | AC22: L | AD22: PCT | AE22: RANK | AF22: W | AG22: L | AH22: PCT
G23: AL WEST | L23: AL WEST | S23: Red Sox | T23: 5 | U23: 1 | V23: 0.8333333333 | W23: Mets | X23: 4 | Y23: 2 | Z23: 0.6666666667 | AA23: Red Sox | AB23: 5 | AC23: 1 | AD23: 0.8333333333 | AE23: 0
B24: West | C24: W | D24: L | E24: PCT | G24: TEAM | H24: W | I24: L | J24: PCT | L24: TEAM | M24: W | N24: L | O24: PCT | S24: White Sox | T24: 3 | U24: 4 | V24: 0.4285714286 | W24: Astros | X24: 5 | Y24: 1 | Z24: 0.8333333333 | AA24: Mets | AB24: 4 | AC24: 2 | AD24: 0.6666666667 | AE24: 0
B25: Angels | C25: 49 | D25: 49 | E25: 0.5 | F25: 4 | G25: LOS ANGELES | H25: 46 | I25: 46 | J25: 0.5 | K25: 0 | L25: Angels | M25: 3 | N25: 3 | O25: 0.5 | P25: 3 | S25: Athletics | T25: 3 | U25: 3 | V25: 0.5 | W25: Giants | X25: 4 | Y25: 3 | Z25: 0.5714285714 | AA25: Brewers | AB25: 2 | AC25: 3 | AD25: 0.4 | AE25: 0
B26: Athletics | C26: 56 | D26: 45 | E26: 0.5544554455 | F26: 2 | G26: OAKLAND | H26: 53 | I26: 42 | J26: 0.5578947368 | K26: 4 | L26: Athletics | M26: 3 | N26: 3 | O26: 0.5 | P26: 3 | S26: Braves | T26: 3 | U26: 3 | V26: 0.5 | W26: Blue Jays | X26: 1 | Y26: 4 | Z26: 0.2 | AA26: Padres | AB26: 3 | AC26: 3 | AD26: 0.5 | AE26: 0
B27: Mariners | C27: 54 | D27: 46 | E27: 0.54 | F27: 3 | G27: SEATTLE | H27: 50 | I27: 44 | J27: 0.5319148936 | K27: 1 | L27: Mariners | M27: 4 | N27: 2 | O27: 0.6666666667 | P27: 2 | S27: Brewers | T27: 2 | U27: 3 | V27: 0.4 | W27: Royals | X27: 5 | Y27: 0 | Z27: 1 | AA27: Indians | AB27: 2 | AC27: 5 | AD27: 0.2857142857 | AE27: 0
B28: Rangers | C28: 35 | D28: 65 | E28: 0.35 | F28: 5 | G28: TEXAS | H28: 35 | I28: 58 | J28: 0.376344086 | K28: 0 | L28: Rangers | M28: 0 | N28: 7 | O28: 0 | P28: 5 | S28: Dodgers | T28: 3 | U28: 4 | V28: 0.4285714286 | W28: Cardinals | X28: 4 | Y28: 3 | Z28: 0.5714285714 | AA28: Mariners | AB28: 4 | AC28: 2 | AD28: 0.6666666667 | AE28: 0
B29: Astros | C29: 61 | D29: 39 | E29: 0.61 | F29: 1 | G29: HOUSTON | H29: 56 | I29: 38 | J29: 0.5957446809 | K29: 4 | L29: Astros | M29: 5 | N29: 1 | O29: 0.8333333333 | P29: 1 | Q29: WEEKLY TOTAL | T29: 19 | U29: 18 | V29: 0.5135135135 | X29: 23 | Y29: 13 | Z29: 0.6388888889 | AB29: 20 | AC29: 16 | AD29: 0.5555555556
Q30: PREV WEEK TO DATE | T30: 304 | U30: 254 | V30: 0.5448028674 | X30: 270 | Y30: 281 | Z30: 0.4900181488 | AB30: 296 | AC30: 263 | AD30: 0.5295169946
B31: National League | G31: NL EAST | L31: NL EAST | Q31: CUR TOTAL TO DATE | T31: 323 | U31: 272 | V31: 0.5428571429 | X31: 293 | Y31: 294 | Z31: 0.4991482112 | AB31: 316 | AC31: 279 | AD31: 0.531092437
B32: East | C32: W | D32: L | E32: PCT | G32: TEAM | H32: W | I32: L | J32: PCT | L32: TEAM | M32: W | N32: L | O32: PCT
B33: Braves | C33: 48 | D33: 50 | E33: 0.4897959184 | F33: 3 | G33: ATLANTA | H33: 45 | I33: 47 | J33: 0.4891304348 | K33: 3 | L33: Braves | M33: 3 | N33: 3 | O33: 0.5 | P33: 2
B34: Marlins | C34: 43 | D34: 57 | E34: 0.43 | F34: 5 | G34: Miami | H34: 40 | I34: 53 | J34: 0.4301075269 | K34: 0 | L34: Marlins | M34: 3 | N34: 4 | O34: 0.4285714286 | P34: 3 | Q34: SEASON TLT TO DATE | T34: 276 | U34: 226 | V34: 0.5498007968 | X34: 244 | Y34: 254 | Z34: 0.4899598394 | AB34: 268 | AC34: 234 | AD34: 0.5338645418
B35: Mets | C35: 52 | D35: 44 | E35: 0.5416666667 | F35: 1 | G35: NEW YORK | H35: 48 | I35: 42 | J35: 0.5333333333 | K35: 4 | L35: Mets | M35: 4 | N35: 2 | O35: 0.6666666667 | P35: 1 | Q35: JULY TOTAL TO DATE | T35: 47 | U35: 46 | V35: 0.5053763441 | X35: 49 | Y35: 40 | Z35: 0.5505617978 | AB35: 48 | AC35: 45 | AD35: 0.5161290323
B36: Phillies | C36: 49 | D36: 49 | E36: 0.5 | F36: 2 | G36: PHILADELPHIA | H36: 47 | I36: 45 | J36: 0.5108695652 | K36: 1 | L36: Phillies | M36: 2 | N36: 4 | O36: 0.3333333333 | P36: 4
B37: Nationals | C37: 45 | D37: 53 | E37: 0.4591836735 | F37: 4 | G37: WASHINGTON | H37: 43 | I37: 49 | J37: 0.4673913043 | K37: 1 | L37: Nationals | M37: 2 | N37: 4 | O37: 0.3333333333 | P37: 4
S38: JIM K. | W38: TIM | AA38: ----- | AE38: 0
G39: NL CENTRAL | L39: NL CENTRAL | S39: RANK | T39: W | U39: L | V39: PCT | W39: RANK | X39: W | Y39: L | Z39: PCT | AA39: RANK | AB39: W | AC39: L | AD39: PCT | AE39: RANK | AF39: W | AG39: L | AH39: PCT
B40: Central | C40: W | D40: L | E40: PCT | G40: TEAM | H40: W | I40: L | J40: PCT | L40: TEAM | M40: W | N40: L | O40: PCT | S40: Giants | T40: 4 | U40: 3 | V40: 0.5714285714 | W40: Red Sox | X40: 5 | Y40: 1 | Z40: 0.8333333333 | AE40: 0
B41: Cubs | C41: 49 | D41: 51 | E41: 0.49 | F41: 4 | G41: CHICAGO | H41: 46 | I41: 47 | J41: 0.4946236559 | K41: 1 | L41: Cubs | M41: 3 | N41: 4 | O41: 0.4285714286 | P41: 3 | S41: Red Sox | T41: 5 | U41: 1 | V41: 0.8333333333 | W41: White Sox | X41: 3 | Y41: 4 | Z41: 0.4285714286 | AE41: 0
B42: Reds | C42: 51 | D42: 48 | E42: 0.5151515152 | F42: 2 | G42: CINCINNATI | H42: 48 | I42: 45 | J42: 0.5161290323 | K42: 1 | L42: Reds | M42: 3 | N42: 3 | O42: 0.5 | P42: 2 | S42: Indians | T42: 2 | U42: 5 | V42: 0.2857142857 | W42: Athletics | X42: 3 | Y42: 3 | Z42: 0.5 | AE42: 0
B43: Brewers | C43: 58 | D43: 42 | E43: 0.58 | F43: 1 | G43: MILWAUKEE | H43: 56 | I43: 39 | J43: 0.5894736842 | K43: 4 | L43: Brewers | M43: 2 | N43: 3 | O43: 0.4 | P43: 4 | S43: Astros | T43: 5 | U43: 1 | V43: 0.8333333333 | W43: Nationals | X43: 2 | Y43: 4 | Z43: 0.3333333333 | AE43: 0
B44: Pirates | C44: 38 | D44: 61 | E44: 0.3838383838 | F44: 5 | G44: PITTSBURGH | H44: 36 | I44: 57 | J44: 0.3870967742 | K44: 0 | L44: Pirates | M44: 2 | N44: 4 | O44: 0.3333333333 | P44: 5 | S44: Reds | T44: 3 | U44: 3 | V44: 0.5 | W44: Cubs | X44: 3 | Y44: 4 | Z44: 0.4285714286 | AE44: 0
B45: Cardinals | C45: 50 | D45: 50 | E45: 0.5 | F45: 3 | G45: ST LOUIS | H45: 46 | I45: 47 | J45: 0.4946236559 | K45: 3 | L45: Cardinals | M45: 4 | N45: 3 | O45: 0.5714285714 | P45: 1 | S45: Phillies | T45: 2 | U45: 4 | V45: 0.3333333333 | W45: Giants | X45: 4 | Y45: 3 | Z45: 0.5714285714 | AE45: 0
Q46: WEEKLY TOTAL | T46: 21 | U46: 17 | V46: 0.5526315789 | X46: 20 | Y46: 19 | Z46: 0.5128205128 | AB46: 0 | AC46: 30
G47: NL WEST | L47: NL WEST | Q47: PREV WEEK TO DATE | T47: 277 | U47: 276 | V47: 0.5009041591 | X47: 293 | Y47: 271 | Z47: 0.5195035461 | AB47: 0 | AC47: 460
B48: West | C48: W | D48: L | E48: PCT | G48: TEAM | H48: W | I48: L | J48: PCT | L48: TEAM | M48: W | N48: L | O48: PCT | Q48: CUR TOTAL TO DATE | T48: 298 | U48: 293 | V48: 0.5042301184 | X48: 313 | Y48: 290 | Z48: 0.5190713101 | AB48: 0 | AC48: 490
B49: Diamondbacks | C49: 31 | D49: 70 | E49: 0.3069306931 | F49: 5 | G49: ARIZONA | H49: 27 | I49: 68 | J49: 0.2842105263 | K49: 1 | L49: Diamondbacks | M49: 4 | N49: 2 | O49: 0.6666666667 | P49: 1
B50: Rockies | C50: 43 | D50: 56 | E50: 0.4343434343 | F50: 4 | G50: COLORADO | H50: 41 | I50: 53 | J50: 0.4361702128 | K50: 0 | L50: Rockies | M50: 2 | N50: 3 | O50: 0.4 | P50: 5
B51: Dodgers | C51: 61 | D51: 40 | E51: 0.603960396 | F51: 2 | G51: LOS ANGELES | H51: 58 | I51: 36 | J51: 0.6170212766 | K51: 4 | L51: Dodgers | M51: 3 | N51: 4 | O51: 0.4285714286 | P51: 4 | Q51: SEASON TLT TO DATE | T51: 253 | U51: 244 | V51: 0.509054326 | X51: 267 | Y51: 242 | Z51: 0.5245579568 | AB51: 0 | AC51: 400
B52: Padres | C52: 58 | D52: 44 | E52: 0.568627451 | F52: 3 | G52: SAN DIEGO | H52: 55 | I52: 41 | J52: 0.5729166667 | K52: 1 | L52: Padres | M52: 3 | N52: 3 | O52: 0.5 | P52: 3 | Q52: JULY TOTAL TO DATE | T52: 45 | U52: 49 | V52: 0.4787234043 | X52: 46 | Y52: 48 | Z52: 0.4893617021 | AB52: 0 | AC52: 90
B53: Giants | C53: 62 | D53: 37 | E53: 0.6262626263 | F53: 1 | G53: SAN FRANCISCO | H53: 58 | I53: 34 | J53: 0.6304347826 | K53: 3 | L53: Giants | M53: 4 | N53: 3 | O53: 0.5714285714 | P53: 2
M54: 94 | N54: 94
D55: 2021-07-26 | E55: Morning
C57: WEEK 16
C58: NAME | D58: W | E58: L | F58: PCT | G58: GB
C59: JEAN | D59: 23 | E59: 13 | F59: 0.6388888889 | G59: 0
C60: MIKE | D60: 23 | E60: 16 | F60: 0.5897435897 | G60: 1.5
C61: DIANE | D61: 20 | E61: 16 | F61: 0.5555555556 | G61: 3
C62: JIM K. | D62: 21 | E62: 17 | F62: 0.5526315789 | G62: 3
C63: LARRY | D63: 20 | E63: 18 | F63: 0.5263157895 | G63: 4
C64: JIM T. | D64: 19 | E64: 18 | F64: 0.5135135135 | G64: 4.5
C65: TIM | D65: 20 | E65: 19 | F65: 0.5128205128 | G65: 4.5
C66: JOHN | D66: 19 | E66: 19 | F66: 0.5 | G66: 5
C67: ----- | D67: 0 | E67: 30 | F67: 0 | G67: -----
C72: MONTH OF JULY
C73: NAME | D73: W | E73: L | F73: PCT | G73: GB
C74: JEAN | D74: 49 | E74: 40 | F74: 0.5505617978 | G74: 0
C75: MIKE | D75: 51 | E75: 42 | F75: 0.5483870968 | G75: 0
C76: JOHN | D76: 50 | E76: 45 | F76: 0.5263157895 | G76: 2
C77: LARRY | D77: 49 | E77: 45 | F77: 0.5212765957 | G77: 2.5
C78: DIANE | D78: 48 | E78: 45 | F78: 0.5161290323 | G78: 3
C79: JIM T. | D79: 47 | E79: 46 | F79: 0.5053763441 | G79: 4
C80: TIM | D80: 46 | E80: 48 | F80: 0.4893617021 | G80: 5.5
C81: JIM K. | D81: 45 | E81: 49 | F81: 0.4787234043 | G81: 6.5
C82: ----- | D82: 0 | E82: 90 | F82: 0 | G82: -----
C86: 2021 | E86: SEASON
C87: NAME | D87: W | E87: L | F87: PCT | G87: GB
C88: LARRY | D88: 334 | E88: 264 | F88: 0.5585284281 | G88: 0
C89: JIM T. | D89: 323 | E89: 272 | F89: 0.5428571429 | G89: 9.5
C90: MIKE | D90: 324 | E90: 273 | F90: 0.5427135678 | G90: 9.5
C91: DIANE | D91: 316 | E91: 279 | F91: 0.531092437 | G91: 16.5
C92: TIM | D92: 313 | E92: 290 | F92: 0.5190713101 | G92: 23.5
C93: JOHN | D93: 306 | E93: 296 | F93: 0.5083056478 | G93: 30
C94: JIM K. | D94: 298 | E94: 293 | F94: 0.5042301184 | G94: 32.5
C95: JEAN | D95: 293 | E95: 294 | F95: 0.4991482112 | G95: 35.5
C96: ----- | D96: 0 | E96: 490 | F96: 0 | G96: -----
E107: CURRENT WEEK | L107: THIS WEEK
C108: WEEK ENDING | E108: THIS WEEK | F108: SEASON | L108: AL | N108: RANK
C109: 2021-07-25 | E109: RANK | F109: RANK | L109: KANSAS CITY | M109: 1 | N109: 1
C110: KANSAS CITY | D110: 1 | E110: 1 | F110: 24 | L110: BOSTON | M110: 0.8333333333 | N110: 2
C111: BOSTON | D111: 0.8333333333 | E111: 2 | F111: 2 | L111: HOUSTON | M111: 0.8333333333 | N111: 2
C112: HOUSTON | D112: 0.8333333333 | E112: 2 | F112: 2 | L112: TAMPA BAY | M112: 0.7142857143 | N112: 4
C113: TAMPA BAY | D113: 0.7142857143 | E113: 4 | F113: 5 | L113: SEATTLE | M113: 0.6666666667 | N113: 5
C114: ARIZONA | D114: 0.6666666667 | E114: 5 | F114: 30 | L114: BALTIMORE | M114: 0.6666666667 | N114: 5
C115: NEW YORK N | D115: 0.6666666667 | E115: 5 | F115: 10 | L115: DETROIT | M115: 0.5714285714 | N115: 7
C116: SEATTLE | D116: 0.6666666667 | E116: 5 | F116: 11 | L116: OAKLAND | M116: 0.5 | N116: 8
C117: BALTIMORE | D117: 0.6666666667 | E117: 5 | F117: 29 | L117: NEW YORK A | M117: 0.5 | N117: 8
C118: DETROIT | D118: 0.5714285714 | E118: 9 | F118: 21 | L118: LOS ANGELES A | M118: 0.5 | N118: 8
C119: ST LOUIS | D119: 0.5714285714 | E119: 9 | F119: 16 | L119: CHICAGO A | M119: 0.4285714286 | N119: 11
C120: SAN FRANCISCO | D120: 0.5714285714 | E120: 9 | F120: 1 | L120: MINNESOTA | M120: 0.375 | N120: 12
C121: OAKLAND | D121: 0.5 | E121: 12 | F121: 9 | L121: CLEVELAND | M121: 0.2857142857 | N121: 13
